Workbook

Sheet 10 23
E2: Приложение 4 Форма 6
D3: к Приказу ФАС России № 38/19 от 18.01.2019 г.
B6: Информация о наличии (отсутствии) технической возможности доступа к регулируемым услугам
B8: по транспортировке газа по газораспределительным сетям ООО "ВельскГазСервис"
B10: за О К Т Я Б Р Ь 2023 года
A13: Точка входа в газораспределительную сеть | B13: Точка выхода из газораспределительной сети | C13: Наименование потребителя | D13: Номер группы газопотребления | E13: Объемы газа в соответствии с поступившими заявками, млн. куб. м | F13: Объемы газа в соответствии с удовлетворенными заявками, млн. куб. м | G13: Свободная мощность газораспределительной сети, млн. куб. м
A17: 1 | B17: 2 | C17: 3 | D17: 4 | E17: 5 | F17: 6 | G17: л | H17: 1 | I17: п | J17: 7
A19: ГРС.г.Вельск | B19: =Лист1!B16 -> Вельск,(ул.Гайдара-16В + ул.Дзержинского-210, стр.12) | C19: =Лист1!A16 -> АО "ГТ Энерго" | D19: =Лист1!C16 -> 4 | E19: =Лист1!BI16/1000 -> 0.3217 | F19: =Лист1!BH16 -> 0.282518 | G19: =IF(#REF!>0,#REF!,0) ->  | H19: =IF(G19>0,1,0) ->  | I19: =IF(#REF!>0,#REF!,0) ->  | J19: =E19-F19 -> 0.039182
A20: ГРС.г.Вельск | B20: =Лист1!B17 ->  | C20: =Лист1!A17 ->  | D20: =Лист1!C17 -> 4 | E20: =Лист1!BI17/1000 -> 0 | F20: =Лист1!BH17 -> 0 | G20: =IF(#REF!>0,#REF!,0) ->  | H20: =IF(G20>0,1,0) ->  | I20: =IF(#REF!>0,#REF!,0) ->  | J20: 0
A21: ГРС.г.Вельск | B21: =Лист1!B18 ->  | C21: =Лист1!A18 ->  | D21: =Лист1!C18 -> 4 | E21: =Лист1!BI18/1000 -> 0 | F21: =Лист1!BH18 -> 0 | G21: =IF(#REF!>0,#REF!,0) ->  | I21: =IF(#REF!>0,#REF!,0) ->  | J21: 0
A22: ГРС.г.Вельск | B22: =Лист1!B19 ->  | C22: =Лист1!A19 ->  | D22: =Лист1!C19 -> 4 | E22: =Лист1!BI19/1000 -> 0 | F22: =Лист1!BH19 -> 0 | G22: =IF(#REF!>0,#REF!,0) ->  | I22: =IF(#REF!>0,#REF!,0) ->  | J22: 0
A23: ГРС.г.Вельск | B23: =Лист1!B20 -> д.Горка Муравьевская, БМК №2 | C23: =Лист1!A20 -> АО "ГТ Энерго" | D23: =Лист1!C20 -> 5 | E23: =Лист1!BI20/1000 -> 0.0866 | F23: =Лист1!BH20 -> 0.083255 | G23: =IF(#REF!>0,#REF!,0) ->  | H23: =IF(G23>0,1,0) ->  | I23: =IF(#REF!>0,#REF!,0) ->  | J23: 0.003345
A24: ГРС.г.Вельск | B24: =Лист1!B21 ->  | C24: =Лист1!A21 ->  | D24: =Лист1!C21 -> 5 | E24: =Лист1!BI21/1000 -> 0 | F24: =Лист1!BH21 -> 0 | G24: =IF(#REF!>0,#REF!,0) ->  | H24: =IF(G24>0,1,0) ->  | I24: =IF(#REF!>0,#REF!,0) ->  | J24: 0
A25: ГРС.г.Вельск | B25: =Лист1!B22 ->  | C25: =Лист1!A22 ->  | D25: =Лист1!C22 -> 5 | E25: =Лист1!BI22/1000 -> 0 | F25: =Лист1!BH22 -> 0 | G25: =IF(#REF!>0,#REF!,0) ->  | I25: =IF(#REF!>0,#REF!,0) ->  | J25: 0
A26: ГРС.г.Вельск | B26: =Лист1!B23 ->  | C26: =Лист1!A23 ->  | D26: =Лист1!C23 -> 5 | E26: =Лист1!BI23/1000 -> 0 | F26: =Лист1!BH23 -> 0 | G26: =IF(#REF!>0,#REF!,0) ->  | I26: =IF(#REF!>0,#REF!,0) ->  | J26: 0
A27: ГРС.г.Вельск | B27: =Лист1!B24 -> д.Вороновская, БМК №3 | C27: =Лист1!A24 -> АО "ГТ Энерго" | D27: =Лист1!C24 -> 5 | E27: =Лист1!BI24/1000 -> 0.0687 | F27: =Лист1!BH24 -> 0.052133 | G27: =IF(#REF!>0,#REF!,0) ->  | H27: =IF(G27>0,1,0) ->  | I27: =IF(#REF!>0,#REF!,0) ->  | J27: 0.016567
A28: ГРС.г.Вельск | B28: =Лист1!B25 ->  | C28: =Лист1!A25 ->  | D28: =Лист1!C25 -> 5 | E28: =Лист1!BI25/1000 -> 0 | F28: =Лист1!BH25 -> 0 | G28: =IF(#REF!>0,#REF!,0) ->  | H28: =IF(G28>0,1,0) ->  | I28: =IF(#REF!>0,#REF!,0) ->  | J28: 0
A29: ГРС.г.Вельск | B29: =Лист1!B26 ->  | C29: =Лист1!A26 ->  | D29: =Лист1!C26 -> 5 | E29: =Лист1!BI26/1000 -> 0 | F29: =Лист1!BH26 -> 0 | G29: =IF(#REF!>0,#REF!,0) ->  | I29: =IF(#REF!>0,#REF!,0) ->  | J29: 0
A30: ГРС.г.Вельск | B30: =Лист1!B27 ->  | C30: =Лист1!A27 ->  | D30: =Лист1!C27 -> 5 | E30: =Лист1!BI27/1000 -> 0 | F30: =Лист1!BH27 -> 0 | G30: =IF(#REF!>0,#REF!,0) ->  | I30: =IF(#REF!>0,#REF!,0) ->  | J30: 0
A31: ГРС.г.Вельск | B31: =Лист1!B28 -> Вельск, ул.Революционная-73 (ПУ-29) | C31: =Лист1!A28 -> АО "ГТ Энерго" | D31: =Лист1!C28 -> 5 | E31: =Лист1!BI28/1000 -> 0.0637 | F31: =Лист1!BH28 -> 0.043136 | G31: =IF(#REF!>0,#REF!,0) ->  | H31: =IF(G31>0,1,0) ->  | I31: =IF(#REF!>0,#REF!,0) ->  | J31: 0.020564
A32: ГРС.г.Вельск | B32: =Лист1!B29 ->  | C32: =Лист1!A29 ->  | D32: =Лист1!C29 -> 5 | E32: =Лист1!BI29/1000 -> 0 | F32: =Лист1!BH29 -> 0 | G32: =IF(#REF!>0,#REF!,0) ->  | H32: =IF(G32>0,1,0) ->  | I32: =IF(#REF!>0,#REF!,0) ->  | J32: 0
A33: ГРС.г.Вельск | B33: =Лист1!B30 ->  | C33: =Лист1!A30 ->  | D33: =Лист1!C30 -> 5 | E33: =Лист1!BI30/1000 -> 0 | F33: =Лист1!BH30 -> 0 | G33: =IF(#REF!>0,#REF!,0) ->  | I33: =IF(#REF!>0,#REF!,0) ->  | J33: 0
A34: ГРС.г.Вельск | B34: =Лист1!B31 ->  | C34: =Лист1!A31 ->  | D34: =Лист1!C31 -> 5 | E34: =Лист1!BI31/1000 -> 0 | F34: =Лист1!BH31 -> 0 | G34: =IF(#REF!>0,#REF!,0) ->  | I34: =IF(#REF!>0,#REF!,0) ->  | J34: 0
A35: ГРС.г.Вельск | B35: =Лист1!B32 -> Вельск, (ул.Дзержинского-201, а/л №45 + ул.Кирова-6а) | C35: =Лист1!A32 -> АО "ГТ Энерго" | D35: =Лист1!C32 -> 5 | E35: =Лист1!BI32/1000 -> 0.1313 | F35: =Лист1!BH32 -> 0.073937 | G35: =IF(#REF!>0,#REF!,0) ->  | H35: =IF(G35>0,1,0) ->  | I35: =IF(#REF!>0,#REF!,0) ->  | J35: 0.057363
A36: ГРС.г.Вельск | B36: =Лист1!B33 ->  | C36: =Лист1!A33 ->  | D36: =Лист1!C33 -> 5 | E36: =Лист1!BI33/1000 -> 0 | F36: =Лист1!BH33 -> 0 | G36: =IF(#REF!>0,#REF!,0) ->  | H36: =IF(G36>0,1,0) ->  | I36: =IF(#REF!>0,#REF!,0) ->  | J36: 0
A37: ГРС.г.Вельск | B37: =Лист1!B34 ->  | C37: =Лист1!A34 ->  | D37: =Лист1!C34 -> 5 | E37: =Лист1!BI34/1000 -> 0 | F37: =Лист1!BH34 -> 0 | G37: =IF(#REF!>0,#REF!,0) ->  | I37: =IF(#REF!>0,#REF!,0) ->  | J37: 0
A38: ГРС.г.Вельск | B38: =Лист1!B35 ->  | C38: =Лист1!A35 ->  | D38: =Лист1!C35 -> 5 | E38: =Лист1!BI35/1000 -> 0 | F38: =Лист1!BH35 -> 0 | G38: =IF(#REF!>0,#REF!,0) ->  | I38: =IF(#REF!>0,#REF!,0) ->  | J38: 0
A39: ГРС.г.Вельск | B39: =Лист1!B36 ->  | C39: =Лист1!A36 -> ОАО "Архангельскоблгаз" | D39: =Лист1!C36 -> 7 | E39: =Лист1!BI36/1000 -> 0.001 | F39: =Лист1!BH36 -> 0.00067 | G39: =IF(#REF!>0,#REF!,0) ->  | H39: =IF(G39>0,1,0) ->  | I39: =IF(#REF!>0,#REF!,0) ->  | J39: 0.00033
A40: ГРС.г.Вельск | B40: =Лист1!B37 ->  | C40: =Лист1!A37 ->  | D40: =Лист1!C37 -> 7 | E40: =Лист1!BI37/1000 -> 0 | F40: =Лист1!BH37 -> 0 | G40: =IF(#REF!>0,#REF!,0) ->  | H40: =IF(G40>0,1,0) ->  | I40: =IF(#REF!>0,#REF!,0) ->  | J40: 0
A41: ГРС.г.Вельск | B41: =Лист1!B38 ->  | C41: =Лист1!A38 ->  | D41: =Лист1!C38 -> 7 | E41: =Лист1!BI38/1000 -> 0 | F41: =Лист1!BH38 -> 0 | G41: =IF(#REF!>0,#REF!,0) ->  | I41: =IF(#REF!>0,#REF!,0) ->  | J41: 0
A42: ГРС.г.Вельск | B42: =Лист1!B39 ->  | C42: =Лист1!A39 ->  | D42: =Лист1!C39 -> 7 | E42: =Лист1!BI39/1000 -> 0 | F42: =Лист1!BH39 -> 0 | G42: =IF(#REF!>0,#REF!,0) ->  | I42: =IF(#REF!>0,#REF!,0) ->  | J42: 0
A43: ГРС.г.Вельск | B43: =Лист1!B40 ->  | C43: =Лист1!A40 -> ГКУЗ АО АМЦМР "Резерв" | D43: =Лист1!C40 -> 6 | E43: =Лист1!BI40/1000 -> 0.0035 | F43: =Лист1!BH40 -> 0.002508 | G43: =IF(#REF!>0,#REF!,0) ->  | H43: =IF(G43>0,1,0) ->  | I43: =IF(#REF!>0,#REF!,0) ->  | J43: 0.000992
A44: ГРС.г.Вельск | B44: =Лист1!B41 ->  | C44: =Лист1!A41 ->  | D44: =Лист1!C41 -> 6 | E44: =Лист1!BI41/1000 -> 0 | F44: =Лист1!BH41 -> 0 | G44: =IF(#REF!>0,#REF!,0) ->  | H44: =IF(G44>0,1,0) ->  | I44: =IF(#REF!>0,#REF!,0) ->  | J44: 0
A45: ГРС.г.Вельск | B45: =Лист1!B42 ->  | C45: =Лист1!A42 ->  | D45: =Лист1!C42 -> 6 | E45: =Лист1!BI42/1000 -> 0 | F45: =Лист1!BH42 -> 0 | G45: =IF(#REF!>0,#REF!,0) ->  | H45: =IF(G45>0,1,0) ->  | I45: =IF(#REF!>0,#REF!,0) ->  | J45: 0
A46: ГРС.г.Вельск | B46: =Лист1!B43 ->  | C46: =Лист1!A43 ->  | D46: =Лист1!C43 -> 6 | E46: =Лист1!BI43/1000 -> 0 | F46: =Лист1!BH43 -> 0 | G46: =IF(#REF!>0,#REF!,0) ->  | H46: =IF(G46>0,1,0) ->  | I46: =IF(#REF!>0,#REF!,0) ->  | J46: 0
A47: ГРС.г.Вельск | B47: =Лист1!B44 ->  | C47: =Лист1!A44 -> ООО "КМТС" | D47: =Лист1!C44 -> 6 | E47: =Лист1!BI44/1000 -> 0.0025 | F47: =Лист1!BH44 -> 0.001419 | G47: =IF(#REF!>0,#REF!,0) ->  | I47: =IF(#REF!>0,#REF!,0) ->  | J47: 0.001081
A48: ГРС.г.Вельск | B48: =Лист1!B45 ->  | C48: =Лист1!A45 ->  | D48: =Лист1!C45 -> 6 | E48: =Лист1!BI45/1000 -> 0 | F48: =Лист1!BH45 -> 0 | G48: =IF(#REF!>0,#REF!,0) ->  | I48: =IF(#REF!>0,#REF!,0) ->  | J48: 0
A49: ГРС.г.Вельск | B49: =Лист1!B46 ->  | C49: =Лист1!A46 ->  | D49: =Лист1!C46 -> 6 | E49: =Лист1!BI46/1000 -> 0 | F49: =Лист1!BH46 -> 0 | G49: =IF(#REF!>0,#REF!,0) ->  | H49: =IF(G49>0,1,0) ->  | I49: =IF(#REF!>0,#REF!,0) ->  | J49: 0
A50: ГРС.г.Вельск | B50: =Лист1!B47 ->  | C50: =Лист1!A47 ->  | D50: =Лист1!C47 -> 6 | E50: =Лист1!BI47/1000 -> 0 | F50: =Лист1!BH47 -> 0 | G50: =IF(#REF!>0,#REF!,0) ->  | H50: =IF(G50>0,1,0) ->  | I50: =IF(#REF!>0,#REF!,0) ->  | J50: 0
A51: ГРС.г.Вельск | B51: =Лист1!B48 -> Вельск, ул.50 лет Октября-48 | C51: =Лист1!A48 -> ООО "Диал - Север" | D51: =Лист1!C48 -> 5 | E51: =Лист1!BI48/1000 -> 0.01 | F51: =Лист1!BH48 -> 0.011 | G51: =IF(#REF!>0,#REF!,0) ->  | I51: =IF(#REF!>0,#REF!,0) ->  | J51: -0.001
A52: ГРС.г.Вельск | B52: =Лист1!B49 ->  | C52: =Лист1!A49 ->  | D52: =Лист1!C49 -> 5 | E52: =Лист1!BI49/1000 -> 0 | F52: =Лист1!BH49 -> 0 | G52: =IF(#REF!>0,#REF!,0) ->  | I52: =IF(#REF!>0,#REF!,0) ->  | J52: 0
A53: ГРС.г.Вельск | B53: =Лист1!B50 ->  | C53: =Лист1!A50 ->  | D53: =Лист1!C50 -> 5 | E53: =Лист1!BI50/1000 -> 0 | F53: =Лист1!BH50 -> 0 | G53: =IF(#REF!>0,#REF!,0) ->  | H53: =IF(G53>0,1,0) ->  | I53: =IF(#REF!>0,#REF!,0) ->  | J53: 0
A54: ГРС.г.Вельск | B54: =Лист1!B51 ->  | C54: =Лист1!A51 ->  | D54: =Лист1!C51 -> 5 | E54: =Лист1!BI51/1000 -> 0 | F54: =Лист1!BH51 -> 0 | G54: =IF(#REF!>0,#REF!,0) ->  | H54: =IF(G54>0,1,0) ->  | I54: =IF(#REF!>0,#REF!,0) ->  | J54: 0
A55: ГРС.г.Вельск | B55: =Лист1!B52 -> Вельск, ул.50 лет Октября-48 | C55: =Лист1!A52 -> ООО "Диал - Север" | D55: =Лист1!C52 -> 5 | E55: =Лист1!BI52/1000 -> 0.037 | F55: =Лист1!BH52 -> 0.015842 | G55: =IF(#REF!>0,#REF!,0) ->  | I55: =IF(#REF!>0,#REF!,0) ->  | J55: 0.021158
A56: ГРС.г.Вельск | B56: =Лист1!B53 ->  | C56: =Лист1!A53 ->  | D56: =Лист1!C53 -> 5 | E56: =Лист1!BI53/1000 -> 0 | F56: =Лист1!BH53 -> 0 | G56: =IF(#REF!>0,#REF!,0) ->  | I56: =IF(#REF!>0,#REF!,0) ->  | J56: 0
A57: ГРС.г.Вельск | B57: =Лист1!B54 ->  | C57: =Лист1!A54 ->  | D57: =Лист1!C54 -> 5 | E57: =Лист1!BI54/1000 -> 0 | F57: =Лист1!BH54 -> 0 | G57: =IF(#REF!>0,#REF!,0) ->  | H57: =IF(G57>0,1,0) ->  | I57: =IF(#REF!>0,#REF!,0) ->  | J57: 0
A58: ГРС.г.Вельск | B58: =Лист1!B55 ->  | C58: =Лист1!A55 ->  | D58: =Лист1!C55 -> 5 | E58: =Лист1!BI55/1000 -> 0 | F58: =Лист1!BH55 -> 0 | G58: =IF(#REF!>0,#REF!,0) ->  | H58: =IF(G58>0,1,0) ->  | I58: =IF(#REF!>0,#REF!,0) ->  | J58: 0
A59: ГРС.г.Вельск | B59: =Лист1!B56 -> д.Вороновская-38 | C59: =Лист1!A56 -> ООО "Диал - Север" | D59: =Лист1!C56 -> 6 | E59: =Лист1!BI56/1000 -> 0.0085 | F59: =Лист1!BH56 -> 0.003807 | G59: =IF(#REF!>0,#REF!,0) ->  | I59: =IF(#REF!>0,#REF!,0) ->  | J59: 0.004693
A60: ГРС.г.Вельск | B60: =Лист1!B57 ->  | C60: =Лист1!A57 ->  | D60: =Лист1!C57 -> 6 | E60: =Лист1!BI57/1000 -> 0 | F60: =Лист1!BH57 -> 0 | G60: =IF(#REF!>0,#REF!,0) ->  | I60: =IF(#REF!>0,#REF!,0) ->  | J60: 0
A61: ГРС.г.Вельск | B61: =Лист1!B58 ->  | C61: =Лист1!A58 ->  | D61: =Лист1!C58 -> 6 | E61: =Лист1!BI58/1000 -> 0 | F61: =Лист1!BH58 -> 0 | G61: =IF(#REF!>0,#REF!,0) ->  | H61: =IF(G61>0,1,0) ->  | I61: =IF(#REF!>0,#REF!,0) ->  | J61: 0
A62: ГРС.г.Вельск | B62: =Лист1!B59 ->  | C62: =Лист1!A59 ->  | D62: =Лист1!C59 -> 6 | E62: =Лист1!BI59/1000 -> 0 | F62: =Лист1!BH59 -> 0 | G62: =IF(#REF!>0,#REF!,0) ->  | H62: =IF(G62>0,1,0) ->  | I62: =IF(#REF!>0,#REF!,0) ->  | J62: 0
A63: ГРС.г.Вельск | B63: =Лист1!B60 ->  | C63: =Лист1!A60 -> ГКУ Архангельской области «ОГПС № 1» | D63: =Лист1!C60 -> 6 | E63: =Лист1!BI60/1000 -> 0.0039 | F63: =Лист1!BH60 -> 0.002333 | G63: =IF(#REF!>0,#REF!,0) ->  | I63: =IF(#REF!>0,#REF!,0) ->  | J63: 0.001567
A64: ГРС.г.Вельск | B64: =Лист1!B61 ->  | C64: =Лист1!A61 ->  | D64: =Лист1!C61 -> 6 | E64: =Лист1!BI61/1000 -> 0 | F64: =Лист1!BH61 -> 0 | G64: =IF(#REF!>0,#REF!,0) ->  | I64: =IF(#REF!>0,#REF!,0) ->  | J64: 0
A65: ГРС.г.Вельск | B65: =Лист1!B62 ->  | C65: =Лист1!A62 -> Гр. Растегаева Татьяна Борисовна | D65: =Лист1!C62 -> 7 | E65: =Лист1!BI62/1000 -> 0.0005 | F65: =Лист1!BH62 -> 0.000447 | G65: =IF(#REF!>0,#REF!,0) ->  | H65: =IF(G65>0,1,0) ->  | I65: =IF(#REF!>0,#REF!,0) ->  | J65: 5.3e-05
A66: ГРС.г.Вельск | B66: =Лист1!B63 ->  | C66: =Лист1!A63 ->  | D66: =Лист1!C63 -> 7 | E66: =Лист1!BI63/1000 -> 0 | F66: =Лист1!BH63 -> 0 | G66: =IF(#REF!>0,#REF!,0) ->  | H66: =IF(G66>0,1,0) ->  | I66: =IF(#REF!>0,#REF!,0) ->  | J66: 0
A67: ГРС.г.Вельск | B67: =Лист1!B64 ->  | C67: =Лист1!A64 ->  | D67: =Лист1!C64 -> 7 | E67: =Лист1!BI64/1000 -> 0 | F67: =Лист1!BH64 -> 0 | G67: =IF(#REF!>0,#REF!,0) ->  | I67: =IF(#REF!>0,#REF!,0) ->  | J67: 0
A68: ГРС.г.Вельск | B68: =Лист1!B65 ->  | C68: =Лист1!A65 ->  | D68: =Лист1!C65 -> 7 | E68: =Лист1!BI65/1000 -> 0 | F68: =Лист1!BH65 -> 0 | G68: =IF(#REF!>0,#REF!,0) ->  | I68: =IF(#REF!>0,#REF!,0) ->  | J68: =E68-F68 -> 0
A69: ГРС.г.Вельск | B69: =Лист1!B66 ->  | C69: =Лист1!A66 -> ИП Шахова (Гужова) Татьяна Николаевна | D69: =Лист1!C66 -> 6 | E69: =Лист1!BI66/1000 -> 0.0021 | F69: =Лист1!BH66 -> 0.001162 | G69: =IF(#REF!>0,#REF!,0) ->  | H69: =IF(G69>0,1,0) ->  | I69: =IF(#REF!>0,#REF!,0) ->  | J69: =E69-F69 -> 0.000938
A70: ГРС.г.Вельск | B70: =Лист1!B67 ->  | C70: =Лист1!A67 ->  | D70: =Лист1!C67 -> 6 | E70: =Лист1!BI67/1000 -> 0 | F70: =Лист1!BH67 -> 0 | G70: =IF(#REF!>0,#REF!,0) ->  | H70: =IF(G70>0,1,0) ->  | I70: =IF(#REF!>0,#REF!,0) ->  | J70: 0
A71: ГРС.г.Вельск | B71: =Лист1!B68 ->  | C71: =Лист1!A68 ->  | D71: =Лист1!C68 -> 6 | E71: =Лист1!BI68/1000 -> 0 | F71: =Лист1!BH68 -> 0 | G71: =IF(#REF!>0,#REF!,0) ->  | I71: =IF(#REF!>0,#REF!,0) ->  | J71: 0
A72: ГРС.г.Вельск | B72: =Лист1!B69 ->  | C72: =Лист1!A69 ->  | D72: =Лист1!C69 -> 6 | E72: =Лист1!BI69/1000 -> 0 | F72: =Лист1!BH69 -> 0 | G72: =IF(#REF!>0,#REF!,0) ->  | I72: =IF(#REF!>0,#REF!,0) ->  | J72: 0
A73: ГРС.г.Вельск | B73: =Лист1!B70 ->  | C73: =Лист1!A70 -> Гр. Щепелин Илья Николаевич (до 01.09 - гр.Дмитриева Н.С.) | D73: =Лист1!C70 -> 7 | E73: =Лист1!BI70/1000 -> 0.001 | F73: =Лист1!BH70 -> 0.000452 | G73: =IF(#REF!>0,#REF!,0) ->  | H73: =IF(G73>0,1,0) ->  | I73: =IF(#REF!>0,#REF!,0) ->  | J73: 0.000548
A74: ГРС.г.Вельск | B74: =Лист1!B71 ->  | C74: =Лист1!A71 ->  | D74: =Лист1!C71 -> 7 | E74: =Лист1!BI71/1000 -> 0 | F74: =Лист1!BH71 -> 0 | G74: =IF(#REF!>0,#REF!,0) ->  | H74: =IF(G74>0,1,0) ->  | I74: =IF(#REF!>0,#REF!,0) ->  | J74: 0
A75: ГРС.г.Вельск | B75: =Лист1!B72 ->  | C75: =Лист1!A72 ->  | D75: =Лист1!C72 -> 7 | E75: =Лист1!BI72/1000 -> 0 | F75: =Лист1!BH72 -> 0 | G75: =IF(#REF!>0,#REF!,0) ->  | I75: =IF(#REF!>0,#REF!,0) ->  | J75: 0
A76: ГРС.г.Вельск | B76: =Лист1!B73 ->  | C76: =Лист1!A73 ->  | D76: =Лист1!C73 -> 7 | E76: =Лист1!BI73/1000 -> 0 | F76: =Лист1!BH73 -> 0 | G76: =IF(#REF!>0,#REF!,0) ->  | I76: =IF(#REF!>0,#REF!,0) ->  | J76: 0
A77: ГРС.г.Вельск | B77: =Лист1!B74 -> Вельск, ул.Гагарина-5а | C77: =Лист1!A74 -> ООО "Строймаркет" | D77: =Лист1!C74 -> 6 | E77: =Лист1!BI74/1000 -> 0.0011 | F77: =Лист1!BH74 -> 0.00121 | G77: =IF(#REF!>0,#REF!,0) ->  | H77: =IF(G77>0,1,0) ->  | I77: =IF(#REF!>0,#REF!,0) ->  | J77: -0.00011
A78: ГРС.г.Вельск | B78: =Лист1!B75 ->  | C78: =Лист1!A75 ->  | D78: =Лист1!C75 -> 6 | E78: =Лист1!BI75/1000 -> 0 | F78: =Лист1!BH75 -> 0 | G78: =IF(#REF!>0,#REF!,0) ->  | H78: =IF(G78>0,1,0) ->  | I78: =IF(#REF!>0,#REF!,0) ->  | J78: 0
A79: ГРС.г.Вельск | B79: =Лист1!B76 ->  | C79: =Лист1!A76 ->  | D79: =Лист1!C76 -> 6 | E79: =Лист1!BI76/1000 -> 0 | F79: =Лист1!BH76 -> 0 | G79: =IF(#REF!>0,#REF!,0) ->  | I79: =IF(#REF!>0,#REF!,0) ->  | J79: 0
A80: ГРС.г.Вельск | B80: =Лист1!B77 ->  | C80: =Лист1!A77 ->  | D80: =Лист1!C77 -> 6 | E80: =Лист1!BI77/1000 -> 0 | F80: =Лист1!BH77 -> 0 | G80: =IF(#REF!>0,#REF!,0) ->  | I80: =IF(#REF!>0,#REF!,0) ->  | J80: 0
A81: ГРС.г.Вельск | B81: =Лист1!B78 -> Вельск, ул.Гагарина-5а | C81: =Лист1!A78 -> ООО "Строймаркет" | D81: =Лист1!C78 -> 6 | E81: =Лист1!BI78/1000 -> 0.0025 | F81: =Лист1!BH78 -> 0.000328 | G81: =IF(#REF!>0,#REF!,0) ->  | H81: =IF(G81>0,1,0) ->  | I81: =IF(#REF!>0,#REF!,0) ->  | J81: 0.002172
A82: ГРС.г.Вельск | B82: =Лист1!B79 ->  | C82: =Лист1!A79 ->  | D82: =Лист1!C79 -> 6 | E82: =Лист1!BI79/1000 -> 0 | F82: =Лист1!BH79 -> 0 | G82: =IF(#REF!>0,#REF!,0) ->  | H82: =IF(G82>0,1,0) ->  | I82: =IF(#REF!>0,#REF!,0) ->  | J82: 0
A83: ГРС.г.Вельск | B83: =Лист1!B80 ->  | C83: =Лист1!A80 ->  | D83: =Лист1!C80 -> 6 | E83: =Лист1!BI80/1000 -> 0 | F83: =Лист1!BH80 -> 0 | G83: =IF(#REF!>0,#REF!,0) ->  | I83: =IF(#REF!>0,#REF!,0) ->  | J83: =E83-F83 -> 0
A84: ГРС.г.Вельск | B84: =Лист1!B81 ->  | C84: =Лист1!A81 ->  | D84: =Лист1!C81 -> 6 | E84: =Лист1!BI81/1000 -> 0 | F84: =Лист1!BH81 -> 0 | G84: =IF(#REF!>0,#REF!,0) ->  | I84: =IF(#REF!>0,#REF!,0) ->  | J84: 0
A85: ГРС.г.Вельск | B85: =Лист1!B82 -> Вельск, ул.Комсомольская-11 | C85: =Лист1!A82 -> ООО "Сервис" | D85: =Лист1!C82 -> 6 | E85: =Лист1!BI82/1000 -> 0.00341 | F85: =Лист1!BH82 -> 0.001069 | G85: =IF(#REF!>0,#REF!,0) ->  | H85: =IF(G85>0,1,0) ->  | I85: =IF(#REF!>0,#REF!,0) ->  | J85: 0.002341
A86: ГРС.г.Вельск | B86: =Лист1!B83 ->  | C86: =Лист1!A83 ->  | D86: =Лист1!C83 -> 6 | E86: =Лист1!BI83/1000 -> 0 | F86: =Лист1!BH83 -> 0 | G86: =IF(#REF!>0,#REF!,0) ->  | H86: =IF(G86>0,1,0) ->  | I86: =IF(#REF!>0,#REF!,0) ->  | J86: 0
A87: ГРС.г.Вельск | B87: =Лист1!B84 ->  | C87: =Лист1!A84 ->  | D87: =Лист1!C84 -> 6 | E87: =Лист1!BI84/1000 -> 0 | F87: =Лист1!BH84 -> 0 | G87: =IF(#REF!>0,#REF!,0) ->  | I87: =IF(#REF!>0,#REF!,0) ->  | J87: 0
A88: ГРС.г.Вельск | B88: =Лист1!B85 ->  | C88: =Лист1!A85 ->  | D88: =Лист1!C85 -> 6 | E88: =Лист1!BI85/1000 -> 0 | F88: =Лист1!BH85 -> 0 | G88: =IF(#REF!>0,#REF!,0) ->  | I88: =IF(#REF!>0,#REF!,0) ->  | J88: 0
A89: ГРС.г.Вельск | B89: =Лист1!B86 -> Вельск, ул.Дзержинского-50 | C89: =Лист1!A86 -> ООО "Сервис" | D89: =Лист1!C86 -> 7 | E89: =Лист1!BI86/1000 -> 0.0004 | F89: =Лист1!BH86 -> 0.000244 | G89: =IF(#REF!>0,#REF!,0) ->  | H89: =IF(G89>0,1,0) ->  | I89: =IF(#REF!>0,#REF!,0) ->  | J89: 0.000156
A90: ГРС.г.Вельск | B90: =Лист1!B87 ->  | C90: =Лист1!A87 ->  | D90: =Лист1!C87 -> 7 | E90: =Лист1!BI87/1000 -> 0 | F90: =Лист1!BH87 -> 0 | G90: =IF(#REF!>0,#REF!,0) ->  | H90: =IF(G90>0,1,0) ->  | I90: =IF(#REF!>0,#REF!,0) ->  | J90: 0
A91: ГРС.г.Вельск | B91: =Лист1!B88 ->  | C91: =Лист1!A88 ->  | D91: =Лист1!C88 -> 7 | E91: =Лист1!BI88/1000 -> 0 | F91: =Лист1!BH88 -> 0 | G91: =IF(#REF!>0,#REF!,0) ->  | I91: =IF(#REF!>0,#REF!,0) ->  | J91: 0
A92: ГРС.г.Вельск | B92: =Лист1!B89 ->  | C92: =Лист1!A89 ->  | D92: =Лист1!C89 -> 7 | E92: =Лист1!BI89/1000 -> 0 | F92: =Лист1!BH89 -> 0 | G92: =IF(#REF!>0,#REF!,0) ->  | I92: =IF(#REF!>0,#REF!,0) ->  | J92: 0
A93: ГРС.г.Вельск | B93: =Лист1!B90 -> Вельск, ул.1 мая-63 | C93: =Лист1!A90 -> ООО "Сервис" | D93: =Лист1!C90 -> 7 | E93: =Лист1!BI90/1000 -> 0.0005 | F93: =Лист1!BH90 -> 0.000279 | G93: =IF(#REF!>0,#REF!,0) ->  | H93: =IF(G93>0,1,0) ->  | I93: =IF(#REF!>0,#REF!,0) ->  | J93: 0.000221
A94: ГРС.г.Вельск | B94: =Лист1!B91 ->  | C94: =Лист1!A91 ->  | D94: =Лист1!C91 -> 7 | E94: =Лист1!BI91/1000 -> 0 | F94: =Лист1!BH91 -> 0 | G94: =IF(#REF!>0,#REF!,0) ->  | H94: =IF(G94>0,1,0) ->  | I94: =IF(#REF!>0,#REF!,0) ->  | J94: 0
A95: ГРС.г.Вельск | B95: =Лист1!B92 ->  | C95: =Лист1!A92 ->  | D95: =Лист1!C92 -> 7 | E95: =Лист1!BI92/1000 -> 0 | F95: =Лист1!BH92 -> 0 | G95: =IF(#REF!>0,#REF!,0) ->  | I95: =IF(#REF!>0,#REF!,0) ->  | J95: 0
A96: ГРС.г.Вельск | B96: =Лист1!B93 ->  | C96: =Лист1!A93 ->  | D96: =Лист1!C93 -> 7 | E96: =Лист1!BI93/1000 -> 0 | F96: =Лист1!BH93 -> 0 | G96: =IF(#REF!>0,#REF!,0) ->  | I96: =IF(#REF!>0,#REF!,0) ->  | J96: 0
A97: ГРС.г.Вельск | B97: =Лист1!B94 -> Вельск, ул.Гагарина-42, 44 | C97: =Лист1!A94 -> ООО "Сервис" | D97: =Лист1!C94 -> 6 | E97: =Лист1!BI94/1000 -> 0.0036 | F97: =Лист1!BH94 -> 0.00149 | G97: =IF(#REF!>0,#REF!,0) ->  | H97: =IF(G97>0,1,0) ->  | I97: =IF(#REF!>0,#REF!,0) ->  | J97: 0.00211
A98: ГРС.г.Вельск | B98: =Лист1!B95 ->  | C98: =Лист1!A95 ->  | D98: =Лист1!C95 -> 6 | E98: =Лист1!BI95/1000 -> 0 | F98: =Лист1!BH95 -> 0 | G98: =IF(#REF!>0,#REF!,0) ->  | H98: =IF(G98>0,1,0) ->  | I98: =IF(#REF!>0,#REF!,0) ->  | J98: 0
A99: ГРС.г.Вельск | B99: =Лист1!B96 ->  | C99: =Лист1!A96 ->  | D99: =Лист1!C96 -> 6 | E99: =Лист1!BI96/1000 -> 0 | F99: =Лист1!BH96 -> 0 | G99: =IF(#REF!>0,#REF!,0) ->  | I99: =IF(#REF!>0,#REF!,0) ->  | J99: 0
A100: ГРС.г.Вельск | B100: =Лист1!B97 ->  | C100: =Лист1!A97 ->  | D100: =Лист1!C97 -> 6 | E100: =Лист1!BI97/1000 -> 0 | F100: =Лист1!BH97 -> 0 | G100: =IF(#REF!>0,#REF!,0) ->  | I100: =IF(#REF!>0,#REF!,0) ->  | J100: 0
A101: ГРС.г.Вельск | B101: =Лист1!B98 -> Вельск, ул.Набережная-58 | C101: =Лист1!A98 -> ИП Тюкин Николай Федорович | D101: =Лист1!C98 -> 6 | E101: =Лист1!BI98/1000 -> 0.0012 | F101: =Лист1!BH98 -> 0.0012 | G101: =IF(#REF!>0,#REF!,0) ->  | H101: =IF(G101>0,1,0) ->  | I101: =IF(#REF!>0,#REF!,0) ->  | J101: 0
A102: ГРС.г.Вельск | B102: =Лист1!B99 ->  | C102: =Лист1!A99 ->  | D102: =Лист1!C99 -> 6 | E102: =Лист1!BI99/1000 -> 0 | F102: =Лист1!BH99 -> 0 | G102: =IF(#REF!>0,#REF!,0) ->  | H102: =IF(G102>0,1,0) ->  | I102: =IF(#REF!>0,#REF!,0) ->  | J102: 0
A103: ГРС.г.Вельск | B103: =Лист1!B100 ->  | C103: =Лист1!A100 ->  | D103: =Лист1!C100 -> 6 | E103: =Лист1!BI100/1000 -> 0 | F103: =Лист1!BH100 -> 0 | G103: =IF(#REF!>0,#REF!,0) ->  | I103: =IF(#REF!>0,#REF!,0) ->  | J103: 0
A104: ГРС.г.Вельск | B104: =Лист1!B101 ->  | C104: =Лист1!A101 ->  | D104: =Лист1!C101 -> 6 | E104: =Лист1!BI101/1000 -> 0 | F104: =Лист1!BH101 -> 0 | G104: =IF(#REF!>0,#REF!,0) ->  | I104: =IF(#REF!>0,#REF!,0) ->  | J104: 0
A105: ГРС.г.Вельск | B105: =Лист1!B102 -> Вельск, ул.Революционная-3в | C105: =Лист1!A102 -> ИП Тюкин Николай Федорович | D105: =Лист1!C102 -> 6 | E105: =Лист1!BI102/1000 -> 0.0012 | F105: =Лист1!BH102 -> 0.0012 | G105: =IF(#REF!>0,#REF!,0) ->  | H105: =IF(G105>0,1,0) ->  | I105: =IF(#REF!>0,#REF!,0) ->  | J105: 0
A106: ГРС.г.Вельск | B106: =Лист1!B103 ->  | C106: =Лист1!A103 ->  | D106: =Лист1!C103 -> 6 | E106: =Лист1!BI103/1000 -> 0 | F106: =Лист1!BH103 -> 0 | G106: =IF(#REF!>0,#REF!,0) ->  | H106: =IF(G106>0,1,0) ->  | I106: =IF(#REF!>0,#REF!,0) ->  | J106: 0
A107: ГРС.г.Вельск | B107: =Лист1!B104 ->  | C107: =Лист1!A104 ->  | D107: =Лист1!C104 -> 6 | E107: =Лист1!BI104/1000 -> 0 | F107: =Лист1!BH104 -> 0 | G107: =IF(#REF!>0,#REF!,0) ->  | I107: =IF(#REF!>0,#REF!,0) ->  | J107: 0
A108: ГРС.г.Вельск | B108: =Лист1!B105 ->  | C108: =Лист1!A105 ->  | D108: =Лист1!C105 -> 6 | E108: =Лист1!BI105/1000 -> 0 | F108: =Лист1!BH105 -> 0 | G108: =IF(#REF!>0,#REF!,0) ->  | I108: =IF(#REF!>0,#REF!,0) ->  | J108: 0
A109: ГРС.г.Вельск | B109: =Лист1!B106 -> д.Горка Муравьевская, ул.Школьная-4 | C109: =Лист1!A106 -> ИП Тюкин Николай Федорович | D109: =Лист1!C106 -> 7 | E109: =Лист1!BI106/1000 -> 0.0008 | F109: =Лист1!BH106 -> 0.00081 | G109: =IF(#REF!>0,#REF!,0) ->  | H109: =IF(G109>0,1,0) ->  | I109: =IF(#REF!>0,#REF!,0) ->  | J109: -1e-05
A110: ГРС.г.Вельск | B110: =Лист1!B107 ->  | C110: =Лист1!A107 ->  | D110: =Лист1!C107 -> 7 | E110: =Лист1!BI107/1000 -> 0 | F110: =Лист1!BH107 -> 0 | G110: =IF(#REF!>0,#REF!,0) ->  | H110: =IF(G110>0,1,0) ->  | I110: =IF(#REF!>0,#REF!,0) ->  | J110: 0
A111: ГРС.г.Вельск | B111: =Лист1!B108 ->  | C111: =Лист1!A108 ->  | D111: =Лист1!C108 -> 7 | E111: =Лист1!BI108/1000 -> 0 | F111: =Лист1!BH108 -> 0 | G111: =IF(#REF!>0,#REF!,0) ->  | I111: =IF(#REF!>0,#REF!,0) ->  | J111: 0
A112: ГРС.г.Вельск | B112: =Лист1!B109 ->  | C112: =Лист1!A109 ->  | D112: =Лист1!C109 -> 7 | E112: =Лист1!BI109/1000 -> 0 | F112: =Лист1!BH109 -> 0 | G112: =IF(#REF!>0,#REF!,0) ->  | I112: =IF(#REF!>0,#REF!,0) ->  | J112: 0
A113: ГРС.г.Вельск | B113: =Лист1!B110 ->  | C113: =Лист1!A110 -> Гр. Козлов Олег Станиславович | D113: =Лист1!C110 -> 7 | E113: =Лист1!BI110/1000 -> 0.001 | F113: =Лист1!BH110 -> 0.000206 | G113: =IF(#REF!>0,#REF!,0) ->  | H113: =IF(G113>0,1,0) ->  | I113: =IF(#REF!>0,#REF!,0) ->  | J113: 0.000794
A114: ГРС.г.Вельск | B114: =Лист1!B111 ->  | C114: =Лист1!A111 ->  | D114: =Лист1!C111 -> 7 | E114: =Лист1!BI111/1000 -> 0 | F114: =Лист1!BH111 -> 0 | G114: =IF(#REF!>0,#REF!,0) ->  | H114: =IF(G114>0,1,0) ->  | I114: =IF(#REF!>0,#REF!,0) ->  | J114: 0
A115: ГРС.г.Вельск | B115: =Лист1!B112 ->  | C115: =Лист1!A112 ->  | D115: =Лист1!C112 -> 7 | E115: =Лист1!BI112/1000 -> 0 | F115: =Лист1!BH112 -> 0 | G115: =IF(#REF!>0,#REF!,0) ->  | I115: =IF(#REF!>0,#REF!,0) ->  | J115: 0
A116: ГРС.г.Вельск | B116: =Лист1!B113 ->  | C116: =Лист1!A113 ->  | D116: =Лист1!C113 -> 7 | E116: =Лист1!BI113/1000 -> 0 | F116: =Лист1!BH113 -> 0 | G116: =IF(#REF!>0,#REF!,0) ->  | I116: =IF(#REF!>0,#REF!,0) ->  | J116: 0
A117: ГРС.г.Вельск | B117: =Лист1!B114 ->  | C117: =Лист1!A114 -> Гр. Вострецов Олег Анатольевич | D117: =Лист1!C114 -> 6 | E117: =Лист1!BI114/1000 -> 0.0026 | F117: =Лист1!BH114 -> 0.000482 | G117: =IF(#REF!>0,#REF!,0) ->  | H117: =IF(G117>0,1,0) ->  | I117: =IF(#REF!>0,#REF!,0) ->  | J117: 0.002118
A118: ГРС.г.Вельск | B118: =Лист1!B115 ->  | C118: =Лист1!A115 ->  | D118: =Лист1!C115 -> 6 | E118: =Лист1!BI115/1000 -> 0 | F118: =Лист1!BH115 -> 0 | G118: =IF(#REF!>0,#REF!,0) ->  | H118: =IF(G118>0,1,0) ->  | I118: =IF(#REF!>0,#REF!,0) ->  | J118: 0
A119: ГРС.г.Вельск | B119: =Лист1!B116 ->  | C119: =Лист1!A116 ->  | D119: =Лист1!C116 -> 6 | E119: =Лист1!BI116/1000 -> 0 | F119: =Лист1!BH116 -> 0 | G119: =IF(#REF!>0,#REF!,0) ->  | I119: =IF(#REF!>0,#REF!,0) ->  | J119: 0
A120: ГРС.г.Вельск | B120: =Лист1!B117 ->  | C120: =Лист1!A117 ->  | D120: =Лист1!C117 -> 6 | E120: =Лист1!BI117/1000 -> 0 | F120: =Лист1!BH117 -> 0 | G120: =IF(#REF!>0,#REF!,0) ->  | I120: =IF(#REF!>0,#REF!,0) ->  | J120: 0
A121: ГРС.г.Вельск | B121: =Лист1!B118 -> Вельск, ул.Горького-1 | C121: =Лист1!A118 -> ООО "Вельская энергетическая компания" | D121: =Лист1!C118 -> 4 | E121: =Лист1!BI118/1000 -> 0 | F121: =Лист1!BH118 -> 0 | G121: =IF(#REF!>0,#REF!,0) ->  | H121: =IF(G121>0,1,0) ->  | I121: =IF(#REF!>0,#REF!,0) ->  | J121: 0
A122: ГРС.г.Вельск | B122: =Лист1!B119 ->  | C122: =Лист1!A119 ->  | D122: =Лист1!C119 -> 4 | E122: =Лист1!BI119/1000 -> 0 | F122: =Лист1!BH119 -> 0 | G122: =IF(#REF!>0,#REF!,0) ->  | H122: =IF(G122>0,1,0) ->  | I122: =IF(#REF!>0,#REF!,0) ->  | J122: 0
A123: ГРС.г.Вельск | B123: =Лист1!B120 ->  | C123: =Лист1!A120 ->  | D123: =Лист1!C120 -> 4 | E123: =Лист1!BI120/1000 -> 0 | F123: =Лист1!BH120 -> 0 | G123: =IF(#REF!>0,#REF!,0) ->  | I123: =IF(#REF!>0,#REF!,0) ->  | J123: 0
A124: ГРС.г.Вельск | B124: =Лист1!B121 ->  | C124: =Лист1!A121 ->  | D124: =Лист1!C121 -> 4 | E124: =Лист1!BI121/1000 -> 0 | F124: =Лист1!BH121 -> 0 | G124: =IF(#REF!>0,#REF!,0) ->  | I124: =IF(#REF!>0,#REF!,0) ->  | J124: 0
A125: ГРС.г.Вельск | B125: =Лист1!B122 -> Вельск, ул.Горького-1 | C125: =Лист1!A122 -> ООО "Вельская энергетическая компания" | D125: =Лист1!C122 -> 4 | E125: =Лист1!BI122/1000 -> 0 | F125: =Лист1!BH122 -> 0 | G125: =IF(#REF!>0,#REF!,0) ->  | H125: =IF(G125>0,1,0) ->  | I125: =IF(#REF!>0,#REF!,0) ->  | J125: 0
A126: ГРС.г.Вельск | B126: =Лист1!B123 ->  | C126: =Лист1!A123 ->  | D126: =Лист1!C123 -> 4 | E126: =Лист1!BI123/1000 -> 0 | F126: =Лист1!BH123 -> 0 | G126: =IF(#REF!>0,#REF!,0) ->  | H126: =IF(G126>0,1,0) ->  | I126: =IF(#REF!>0,#REF!,0) ->  | J126: 0
A127: ГРС.г.Вельск | B127: =Лист1!B124 ->  | C127: =Лист1!A124 ->  | D127: =Лист1!C124 -> 4 | E127: =Лист1!BI124/1000 -> 0 | F127: =Лист1!BH124 -> 0 | G127: =IF(#REF!>0,#REF!,0) ->  | I127: =IF(#REF!>0,#REF!,0) ->  | J127: 0
A128: ГРС.г.Вельск | B128: =Лист1!B125 ->  | C128: =Лист1!A125 ->  | D128: =Лист1!C125 -> 4 | E128: =Лист1!BI125/1000 -> 0 | F128: =Лист1!BH125 -> 0 | G128: =IF(#REF!>0,#REF!,0) ->  | I128: =IF(#REF!>0,#REF!,0) ->  | J128: 0
A129: ГРС.г.Вельск | B129: =Лист1!B126 -> Вельск, ул.Набережная, кот."Терапия" | C129: =Лист1!A126 -> ООО "Вельская энергетическая компания" | D129: =Лист1!C126 -> 5 | E129: =Лист1!BI126/1000 -> 0 | F129: =Лист1!BH126 -> 0 | G129: =IF(#REF!>0,#REF!,0) ->  | H129: =IF(G129>0,1,0) ->  | I129: =IF(#REF!>0,#REF!,0) ->  | J129: 0
A130: ГРС.г.Вельск | B130: =Лист1!B127 ->  | C130: =Лист1!A127 ->  | D130: =Лист1!C127 -> 5 | E130: =Лист1!BI127/1000 -> 0 | F130: =Лист1!BH127 -> 0 | G130: =IF(#REF!>0,#REF!,0) ->  | H130: =IF(G130>0,1,0) ->  | I130: =IF(#REF!>0,#REF!,0) ->  | J130: 0
A131: ГРС.г.Вельск | B131: =Лист1!B128 ->  | C131: =Лист1!A128 ->  | D131: =Лист1!C128 -> 5 | E131: =Лист1!BI128/1000 -> 0 | F131: =Лист1!BH128 -> 0 | G131: =IF(#REF!>0,#REF!,0) ->  | I131: =IF(#REF!>0,#REF!,0) ->  | J131: 0
A132: ГРС.г.Вельск | B132: =Лист1!B129 ->  | C132: =Лист1!A129 ->  | D132: =Лист1!C129 -> 5 | E132: =Лист1!BI129/1000 -> 0 | F132: =Лист1!BH129 -> 0 | G132: =IF(#REF!>0,#REF!,0) ->  | I132: =IF(#REF!>0,#REF!,0) ->  | J132: 0
A133: ГРС.г.Вельск | B133: =Лист1!B130 ->  | C133: =Лист1!A130 -> ООО "Вельская торговая компания" | D133: =Лист1!C130 -> 6 | E133: =Лист1!BI130/1000 -> 0.01 | F133: =Лист1!BH130 -> 0.005156 | G133: =IF(#REF!>0,#REF!,0) ->  | H133: =IF(G133>0,1,0) ->  | I133: =IF(#REF!>0,#REF!,0) ->  | J133: 0.004844
A134: ГРС.г.Вельск | B134: =Лист1!B131 ->  | C134: =Лист1!A131 ->  | D134: =Лист1!C131 -> 6 | E134: =Лист1!BI131/1000 -> 0 | F134: =Лист1!BH131 -> 0 | G134: =IF(#REF!>0,#REF!,0) ->  | H134: =IF(G134>0,1,0) ->  | I134: =IF(#REF!>0,#REF!,0) ->  | J134: 0
A135: ГРС.г.Вельск | B135: =Лист1!B132 ->  | C135: =Лист1!A132 ->  | D135: =Лист1!C132 -> 6 | E135: =Лист1!BI132/1000 -> 0 | F135: =Лист1!BH132 -> 0 | G135: =IF(#REF!>0,#REF!,0) ->  | I135: =IF(#REF!>0,#REF!,0) ->  | J135: 0
A136: ГРС.г.Вельск | B136: =Лист1!B133 ->  | C136: =Лист1!A133 ->  | D136: =Лист1!C133 -> 6 | E136: =Лист1!BI133/1000 -> 0 | F136: =Лист1!BH133 -> 0 | G136: =IF(#REF!>0,#REF!,0) ->  | I136: =IF(#REF!>0,#REF!,0) ->  | J136: 0
A137: ГРС.г.Вельск | B137: =Лист1!B134 ->  | C137: =Лист1!A134 -> Гр. Хобатенков Виктор Николаевич | D137: =Лист1!C134 -> 6 | E137: =Лист1!BI134/1000 -> 0.0017 | F137: =Лист1!BH134 -> 0.000742 | G137: =IF(#REF!>0,#REF!,0) ->  | H137: =IF(G137>0,1,0) ->  | I137: =IF(#REF!>0,#REF!,0) ->  | J137: 0.000958
A138: ГРС.г.Вельск | B138: =Лист1!B135 ->  | C138: =Лист1!A135 ->  | D138: =Лист1!C135 -> 6 | E138: =Лист1!BI135/1000 -> 0 | F138: =Лист1!BH135 -> 0 | G138: =IF(#REF!>0,#REF!,0) ->  | H138: =IF(G138>0,1,0) ->  | I138: =IF(#REF!>0,#REF!,0) ->  | J138: 0
A139: ГРС.г.Вельск | B139: =Лист1!B136 ->  | C139: =Лист1!A136 ->  | D139: =Лист1!C136 -> 6 | E139: =Лист1!BI136/1000 -> 0 | F139: =Лист1!BH136 -> 0 | G139: =IF(#REF!>0,#REF!,0) ->  | I139: =IF(#REF!>0,#REF!,0) ->  | J139: 0
A140: ГРС.г.Вельск | B140: =Лист1!B137 ->  | C140: =Лист1!A137 ->  | D140: =Лист1!C137 -> 6 | E140: =Лист1!BI137/1000 -> 0 | F140: =Лист1!BH137 -> 0 | G140: =IF(#REF!>0,#REF!,0) ->  | I140: =IF(#REF!>0,#REF!,0) ->  | J140: 0
A141: ГРС.г.Вельск | B141: =Лист1!B138 -> Вельск, ул.1 мая-4 | C141: =Лист1!A138 -> Вельское ГОРПО | D141: =Лист1!C138 -> 6 | E141: =Лист1!BI138/1000 -> 0.0032 | F141: =Лист1!BH138 -> 0.002921 | G141: =IF(#REF!>0,#REF!,0) ->  | H141: =IF(G141>0,1,0) ->  | I141: =IF(#REF!>0,#REF!,0) ->  | J141: 0.000279
A142: ГРС.г.Вельск | B142: =Лист1!B139 ->  | C142: =Лист1!A139 ->  | D142: =Лист1!C139 -> 6 | E142: =Лист1!BI139/1000 -> 0 | F142: =Лист1!BH139 -> 0 | G142: =IF(#REF!>0,#REF!,0) ->  | H142: =IF(G142>0,1,0) ->  | I142: =IF(#REF!>0,#REF!,0) ->  | J142: 0
A143: ГРС.г.Вельск | B143: =Лист1!B140 ->  | C143: =Лист1!A140 ->  | D143: =Лист1!C140 -> 6 | E143: =Лист1!BI140/1000 -> 0 | F143: =Лист1!BH140 -> 0 | G143: =IF(#REF!>0,#REF!,0) ->  | I143: =IF(#REF!>0,#REF!,0) ->  | J143: 0
A144: ГРС.г.Вельск | B144: =Лист1!B141 ->  | C144: =Лист1!A141 ->  | D144: =Лист1!C141 -> 6 | E144: =Лист1!BI141/1000 -> 0 | F144: =Лист1!BH141 -> 0 | G144: =IF(#REF!>0,#REF!,0) ->  | I144: =IF(#REF!>0,#REF!,0) ->  | J144: 0
A145: ГРС.г.Вельск | B145: =Лист1!B142 -> Вельск, ул.Фефилова-66 | C145: =Лист1!A142 -> Вельское ГОРПО | D145: =Лист1!C142 -> 7 | E145: =Лист1!BI142/1000 -> 0.0008 | F145: =Лист1!BH142 -> 9.8e-05 | G145: =IF(#REF!>0,#REF!,0) ->  | H145: =IF(G145>0,1,0) ->  | I145: =IF(#REF!>0,#REF!,0) ->  | J145: 0.000702
A146: ГРС.г.Вельск | B146: =Лист1!B143 ->  | C146: =Лист1!A143 ->  | D146: =Лист1!C143 -> 7 | E146: =Лист1!BI143/1000 -> 0 | F146: =Лист1!BH143 -> 0 | G146: =IF(#REF!>0,#REF!,0) ->  | H146: =IF(G146>0,1,0) ->  | I146: =IF(#REF!>0,#REF!,0) ->  | J146: 0
A147: ГРС.г.Вельск | B147: =Лист1!B144 ->  | C147: =Лист1!A144 ->  | D147: =Лист1!C144 -> 7 | E147: =Лист1!BI144/1000 -> 0 | F147: =Лист1!BH144 -> 0 | G147: =IF(#REF!>0,#REF!,0) ->  | I147: =IF(#REF!>0,#REF!,0) ->  | J147: =E147-F147 -> 0
A148: ГРС.г.Вельск | B148: =Лист1!B145 ->  | C148: =Лист1!A145 ->  | D148: =Лист1!C145 -> 7 | E148: =Лист1!BI145/1000 -> 0 | F148: =Лист1!BH145 -> 0 | G148: =IF(#REF!>0,#REF!,0) ->  | I148: =IF(#REF!>0,#REF!,0) ->  | J148: 0
A149: ГРС.г.Вельск | B149: =Лист1!B146 -> Вельск, ул.Ленина-42 | C149: =Лист1!A146 -> Вельское ГОРПО | D149: =Лист1!C146 -> 6 | E149: =Лист1!BI146/1000 -> 0.004 | F149: =Лист1!BH146 -> 0.001614 | G149: =IF(#REF!>0,#REF!,0) ->  | H149: =IF(G149>0,1,0) ->  | I149: =IF(#REF!>0,#REF!,0) ->  | J149: 0.002386
A150: ГРС.г.Вельск | B150: =Лист1!B147 ->  | C150: =Лист1!A147 ->  | D150: =Лист1!C147 -> 6 | E150: =Лист1!BI147/1000 -> 0 | F150: =Лист1!BH147 -> 0 | G150: =IF(#REF!>0,#REF!,0) ->  | H150: =IF(G150>0,1,0) ->  | I150: =IF(#REF!>0,#REF!,0) ->  | J150: 0
A151: ГРС.г.Вельск | B151: =Лист1!B148 ->  | C151: =Лист1!A148 ->  | D151: =Лист1!C148 -> 6 | E151: =Лист1!BI148/1000 -> 0 | F151: =Лист1!BH148 -> 0 | G151: =IF(#REF!>0,#REF!,0) ->  | I151: =IF(#REF!>0,#REF!,0) ->  | J151: 0
A152: ГРС.г.Вельск | B152: =Лист1!B149 ->  | C152: =Лист1!A149 ->  | D152: =Лист1!C149 -> 6 | E152: =Лист1!BI149/1000 -> 0 | F152: =Лист1!BH149 -> 0 | G152: =IF(#REF!>0,#REF!,0) ->  | I152: =IF(#REF!>0,#REF!,0) ->  | J152: 0
A153: ГРС.г.Вельск | B153: =Лист1!B150 -> Вельск, ул.Горького-20 | C153: =Лист1!A150 -> ООО "КМТС плюс" | D153: =Лист1!C150 -> 6 | E153: =Лист1!BI150/1000 -> 0.0012 | F153: =Лист1!BH150 -> 0.00132 | G153: =IF(#REF!>0,#REF!,0) ->  | H153: =IF(G153>0,1,0) ->  | I153: =IF(#REF!>0,#REF!,0) ->  | J153: -0.00012
A154: ГРС.г.Вельск | B154: =Лист1!B151 ->  | C154: =Лист1!A151 ->  | D154: =Лист1!C151 -> 6 | E154: =Лист1!BI151/1000 -> 0 | F154: =Лист1!BH151 -> 0 | G154: =IF(#REF!>0,#REF!,0) ->  | H154: =IF(G154>0,1,0) ->  | I154: =IF(#REF!>0,#REF!,0) ->  | J154: 0
A155: ГРС.г.Вельск | B155: =Лист1!B152 ->  | C155: =Лист1!A152 ->  | D155: =Лист1!C152 -> 6 | E155: =Лист1!BI152/1000 -> 0 | F155: =Лист1!BH152 -> 0 | G155: =IF(#REF!>0,#REF!,0) ->  | I155: =IF(#REF!>0,#REF!,0) ->  | J155: 0
A156: ГРС.г.Вельск | B156: =Лист1!B153 ->  | C156: =Лист1!A153 ->  | D156: =Лист1!C153 -> 6 | E156: =Лист1!BI153/1000 -> 0 | F156: =Лист1!BH153 -> 0 | G156: =IF(#REF!>0,#REF!,0) ->  | I156: =IF(#REF!>0,#REF!,0) ->  | J156: 0
A157: ГРС.г.Вельск | B157: =Лист1!B154 -> Вельск, ул.Горького-20 | C157: =Лист1!A154 -> ООО "КМТС плюс" | D157: =Лист1!C154 -> 6 | E157: =Лист1!BI154/1000 -> 0.0004 | F157: =Лист1!BH154 -> 0.000149 | G157: =IF(#REF!>0,#REF!,0) ->  | H157: =IF(G157>0,1,0) ->  | I157: =IF(#REF!>0,#REF!,0) ->  | J157: 0.000251
A158: ГРС.г.Вельск | B158: =Лист1!B155 ->  | C158: =Лист1!A155 ->  | D158: =Лист1!C155 -> 6 | E158: =Лист1!BI155/1000 -> 0 | F158: =Лист1!BH155 -> 0 | G158: =IF(#REF!>0,#REF!,0) ->  | H158: =IF(G158>0,1,0) ->  | I158: =IF(#REF!>0,#REF!,0) ->  | J158: 0
A159: ГРС.г.Вельск | B159: =Лист1!B156 ->  | C159: =Лист1!A156 ->  | D159: =Лист1!C156 -> 6 | E159: =Лист1!BI156/1000 -> 0 | F159: =Лист1!BH156 -> 0 | G159: =IF(#REF!>0,#REF!,0) ->  | I159: =IF(#REF!>0,#REF!,0) ->  | J159: 0
A160: ГРС.г.Вельск | B160: =Лист1!B157 ->  | C160: =Лист1!A157 ->  | D160: =Лист1!C157 -> 6 | E160: =Лист1!BI157/1000 -> 0 | F160: =Лист1!BH157 -> 0 | G160: =IF(#REF!>0,#REF!,0) ->  | I160: =IF(#REF!>0,#REF!,0) ->  | J160: 0
A161: ГРС.г.Вельск | B161: =Лист1!B158 ->  | C161: =Лист1!A158 -> ИП Сащенко Олег Леонидович (до 01.07 - ООО "Вагаинвест") | D161: =Лист1!C158 -> 7 | E161: =Лист1!BI158/1000 -> 0.0008 | F161: =Лист1!BH158 -> 0.001383 | G161: =IF(#REF!>0,#REF!,0) ->  | H161: =IF(G161>0,1,0) ->  | I161: =IF(#REF!>0,#REF!,0) ->  | J161: -0.000583
A162: ГРС.г.Вельск | B162: =Лист1!B159 ->  | C162: =Лист1!A159 ->  | D162: =Лист1!C159 -> 7 | E162: =Лист1!BI159/1000 -> 0 | F162: =Лист1!BH159 -> 0 | G162: =IF(#REF!>0,#REF!,0) ->  | H162: =IF(G162>0,1,0) ->  | I162: =IF(#REF!>0,#REF!,0) ->  | J162: 0
A163: ГРС.г.Вельск | B163: =Лист1!B160 ->  | C163: =Лист1!A160 ->  | D163: =Лист1!C160 -> 7 | E163: =Лист1!BI160/1000 -> 0 | F163: =Лист1!BH160 -> 0 | G163: =IF(#REF!>0,#REF!,0) ->  | I163: =IF(#REF!>0,#REF!,0) ->  | J163: 0
A164: ГРС.г.Вельск | B164: =Лист1!B161 ->  | C164: =Лист1!A161 ->  | D164: =Лист1!C161 -> 7 | E164: =Лист1!BI161/1000 -> 0 | F164: =Лист1!BH161 -> 0 | G164: =IF(#REF!>0,#REF!,0) ->  | I164: =IF(#REF!>0,#REF!,0) ->  | J164: 0
A165: ГРС.г.Вельск | B165: =Лист1!B162 ->  | C165: =Лист1!A162 -> ГАУ АО ИД "Вельские вести" | D165: =Лист1!C162 -> 7 | E165: =Лист1!BI162/1000 -> 0.00047 | F165: =Лист1!BH162 -> 0.00058 | G165: =IF(#REF!>0,#REF!,0) ->  | H165: =IF(G165>0,1,0) ->  | I165: =IF(#REF!>0,#REF!,0) ->  | J165: -0.00011
A166: ГРС.г.Вельск | B166: =Лист1!B163 ->  | C166: =Лист1!A163 ->  | D166: =Лист1!C163 -> 7 | E166: =Лист1!BI163/1000 -> 0 | F166: =Лист1!BH163 -> 0 | G166: =IF(#REF!>0,#REF!,0) ->  | H166: =IF(G166>0,1,0) ->  | I166: =IF(#REF!>0,#REF!,0) ->  | J166: 0
A167: ГРС.г.Вельск | B167: =Лист1!B164 ->  | C167: =Лист1!A164 ->  | D167: =Лист1!C164 -> 7 | E167: =Лист1!BI164/1000 -> 0 | F167: =Лист1!BH164 -> 0 | G167: =IF(#REF!>0,#REF!,0) ->  | I167: =IF(#REF!>0,#REF!,0) ->  | J167: 0
A168: ГРС.г.Вельск | B168: =Лист1!B165 ->  | C168: =Лист1!A165 ->  | D168: =Лист1!C165 -> 7 | E168: =Лист1!BI165/1000 -> 0 | F168: =Лист1!BH165 -> 0 | G168: =IF(#REF!>0,#REF!,0) ->  | I168: =IF(#REF!>0,#REF!,0) ->  | J168: 0
A169: ГРС.г.Вельск | B169: =Лист1!B166 ->  | C169: =Лист1!A166 -> МБУ "Эксплуатационно-техническое предприятие" | D169: =Лист1!C166 -> 6 | E169: =Лист1!BI166/1000 -> 0 | F169: =Лист1!BH166 -> 0 | G169: =IF(#REF!>0,#REF!,0) ->  | H169: =IF(G169>0,1,0) ->  | I169: =IF(#REF!>0,#REF!,0) ->  | J169: 0
A170: ГРС.г.Вельск | B170: =Лист1!B167 ->  | C170: =Лист1!A167 ->  | D170: =Лист1!C167 -> 6 | E170: =Лист1!BI167/1000 -> 0 | F170: =Лист1!BH167 -> 0 | G170: =IF(#REF!>0,#REF!,0) ->  | H170: =IF(G170>0,1,0) ->  | I170: =IF(#REF!>0,#REF!,0) ->  | J170: 0
A171: ГРС.г.Вельск | B171: =Лист1!B168 ->  | C171: =Лист1!A168 ->  | D171: =Лист1!C168 -> 6 | E171: =Лист1!BI168/1000 -> 0 | F171: =Лист1!BH168 -> 0 | G171: =IF(#REF!>0,#REF!,0) ->  | I171: =IF(#REF!>0,#REF!,0) ->  | J171: 0
A172: ГРС.г.Вельск | B172: =Лист1!B169 ->  | C172: =Лист1!A169 ->  | D172: =Лист1!C169 -> 6 | E172: =Лист1!BI169/1000 -> 0 | F172: =Лист1!BH169 -> 0 | G172: =IF(#REF!>0,#REF!,0) ->  | I172: =IF(#REF!>0,#REF!,0) ->  | J172: 0
A173: ГРС.г.Вельск | B173: =Лист1!B170 -> Вельск, ул.Советская-70 | C173: =Лист1!A170 -> ООО "Торговый дом "Устьялес" | D173: =Лист1!C170 -> 6 | E173: =Лист1!BI170/1000 -> 0.003 | F173: =Лист1!BH170 -> 0.001501 | G173: =IF(#REF!>0,#REF!,0) ->  | H173: =IF(G173>0,1,0) ->  | I173: =IF(#REF!>0,#REF!,0) ->  | J173: 0.001499
A174: ГРС.г.Вельск | B174: =Лист1!B171 ->  | C174: =Лист1!A171 ->  | D174: =Лист1!C171 -> 6 | E174: =Лист1!BI171/1000 -> 0 | F174: =Лист1!BH171 -> 0 | G174: =IF(#REF!>0,#REF!,0) ->  | H174: =IF(G174>0,1,0) ->  | I174: =IF(#REF!>0,#REF!,0) ->  | J174: 0
A175: ГРС.г.Вельск | B175: =Лист1!B172 ->  | C175: =Лист1!A172 ->  | D175: =Лист1!C172 -> 6 | E175: =Лист1!BI172/1000 -> 0 | F175: =Лист1!BH172 -> 0 | G175: =IF(#REF!>0,#REF!,0) ->  | I175: =IF(#REF!>0,#REF!,0) ->  | J175: 0
A176: ГРС.г.Вельск | B176: =Лист1!B173 ->  | C176: =Лист1!A173 ->  | D176: =Лист1!C173 -> 6 | E176: =Лист1!BI173/1000 -> 0 | F176: =Лист1!BH173 -> 0 | G176: =IF(#REF!>0,#REF!,0) ->  | I176: =IF(#REF!>0,#REF!,0) ->  | J176: 0
A177: ГРС.г.Вельск | B177: =Лист1!B174 -> Вельск | C177: =Лист1!A174 -> АО "Тандер" | D177: =Лист1!C174 -> 6 | E177: =Лист1!BI174/1000 -> 0.0013 | F177: =Лист1!BH174 -> 0.000382 | G177: =IF(#REF!>0,#REF!,0) ->  | H177: =IF(G177>0,1,0) ->  | I177: =IF(#REF!>0,#REF!,0) ->  | J177: 0.000918
A178: ГРС.г.Вельск | B178: =Лист1!B175 ->  | C178: =Лист1!A175 ->  | D178: =Лист1!C175 -> 6 | E178: =Лист1!BI175/1000 -> 0 | F178: =Лист1!BH175 -> 0 | G178: =IF(#REF!>0,#REF!,0) ->  | H178: =IF(G178>0,1,0) ->  | I178: =IF(#REF!>0,#REF!,0) ->  | J178: 0
A179: ГРС.г.Вельск | B179: =Лист1!B176 ->  | C179: =Лист1!A176 ->  | D179: =Лист1!C176 -> 6 | E179: =Лист1!BI176/1000 -> 0 | F179: =Лист1!BH176 -> 0 | G179: =IF(#REF!>0,#REF!,0) ->  | I179: =IF(#REF!>0,#REF!,0) ->  | J179: 0
A180: ГРС.г.Вельск | B180: =Лист1!B177 ->  | C180: =Лист1!A177 ->  | D180: =Лист1!C177 -> 6 | E180: =Лист1!BI177/1000 -> 0 | F180: =Лист1!BH177 -> 0 | G180: =IF(#REF!>0,#REF!,0) ->  | I180: =IF(#REF!>0,#REF!,0) ->  | J180: 0
A181: ГРС.г.Вельск | B181: =Лист1!B178 -> Вельск, ул.Дзержинского-59 | C181: =Лист1!A178 -> ИП Евдокимова Анастасия Алексеевна | D181: =Лист1!C178 -> 6 | E181: =Лист1!BI178/1000 -> 0.0023 | F181: =Лист1!BH178 -> 0.002099 | G181: =IF(#REF!>0,#REF!,0) ->  | H181: =IF(G181>0,1,0) ->  | I181: =IF(#REF!>0,#REF!,0) ->  | J181: 0.000201
A182: ГРС.г.Вельск | B182: =Лист1!B179 ->  | C182: =Лист1!A179 ->  | D182: =Лист1!C179 -> 6 | E182: =Лист1!BI179/1000 -> 0 | F182: =Лист1!BH179 -> 0 | G182: =IF(#REF!>0,#REF!,0) ->  | H182: =IF(G182>0,1,0) ->  | I182: =IF(#REF!>0,#REF!,0) ->  | J182: 0
A183: ГРС.г.Вельск | B183: =Лист1!B180 ->  | C183: =Лист1!A180 ->  | D183: =Лист1!C180 -> 6 | E183: =Лист1!BI180/1000 -> 0 | F183: =Лист1!BH180 -> 0 | G183: =IF(#REF!>0,#REF!,0) ->  | I183: =IF(#REF!>0,#REF!,0) ->  | J183: 0
A184: ГРС.г.Вельск | B184: =Лист1!B181 ->  | C184: =Лист1!A181 ->  | D184: =Лист1!C181 -> 6 | E184: =Лист1!BI181/1000 -> 0 | F184: =Лист1!BH181 -> 0 | G184: =IF(#REF!>0,#REF!,0) ->  | I184: =IF(#REF!>0,#REF!,0) ->  | J184: 0
A185: ГРС.г.Вельск | B185: =Лист1!B182 -> Вельск, ул.Революционная-105 | C185: =Лист1!A182 -> ИП Евдокимова Анастасия Алексеевна | D185: =Лист1!C182 -> 7 | E185: =Лист1!BI182/1000 -> 0.001 | F185: =Лист1!BH182 -> 0.000342 | G185: =IF(#REF!>0,#REF!,0) ->  | H185: =IF(G185>0,1,0) ->  | I185: =IF(#REF!>0,#REF!,0) ->  | J185: 0.000658
A186: ГРС.г.Вельск | B186: =Лист1!B183 ->  | C186: =Лист1!A183 ->  | D186: =Лист1!C183 -> 7 | E186: =Лист1!BI183/1000 -> 0 | F186: =Лист1!BH183 -> 0 | G186: =IF(#REF!>0,#REF!,0) ->  | H186: =IF(G186>0,1,0) ->  | I186: =IF(#REF!>0,#REF!,0) ->  | J186: 0
A187: ГРС.г.Вельск | B187: =Лист1!B184 ->  | C187: =Лист1!A184 ->  | D187: =Лист1!C184 -> 7 | E187: =Лист1!BI184/1000 -> 0 | F187: =Лист1!BH184 -> 0 | G187: =IF(#REF!>0,#REF!,0) ->  | I187: =IF(#REF!>0,#REF!,0) ->  | J187: 0
A188: ГРС.г.Вельск | B188: =Лист1!B185 ->  | C188: =Лист1!A185 ->  | D188: =Лист1!C185 -> 7 | E188: =Лист1!BI185/1000 -> 0 | F188: =Лист1!BH185 -> 0 | G188: =IF(#REF!>0,#REF!,0) ->  | I188: =IF(#REF!>0,#REF!,0) ->  | J188: 0
A189: ГРС.г.Вельск | B189: =Лист1!B186 ->  | C189: =Лист1!A186 -> ИП Любарский Юрий Алексеевич | D189: =Лист1!C186 -> 6 | E189: =Лист1!BI186/1000 -> 0.0035 | F189: =Лист1!BH186 -> 0.00243 | G189: =IF(#REF!>0,#REF!,0) ->  | H189: =IF(G189>0,1,0) ->  | I189: =IF(#REF!>0,#REF!,0) ->  | J189: 0.00107
A190: ГРС.г.Вельск | B190: =Лист1!B187 ->  | C190: =Лист1!A187 ->  | D190: =Лист1!C187 -> 6 | E190: =Лист1!BI187/1000 -> 0 | F190: =Лист1!BH187 -> 0 | G190: =IF(#REF!>0,#REF!,0) ->  | H190: =IF(G190>0,1,0) ->  | I190: =IF(#REF!>0,#REF!,0) ->  | J190: 0
A191: ГРС.г.Вельск | B191: =Лист1!B188 ->  | C191: =Лист1!A188 ->  | D191: =Лист1!C188 -> 6 | E191: =Лист1!BI188/1000 -> 0 | F191: =Лист1!BH188 -> 0 | G191: =IF(#REF!>0,#REF!,0) ->  | I191: =IF(#REF!>0,#REF!,0) ->  | J191: 0
A192: ГРС.г.Вельск | B192: =Лист1!B189 ->  | C192: =Лист1!A189 ->  | D192: =Лист1!C189 -> 6 | E192: =Лист1!BI189/1000 -> 0 | F192: =Лист1!BH189 -> 0 | G192: =IF(#REF!>0,#REF!,0) ->  | I192: =IF(#REF!>0,#REF!,0) ->  | J192: 0
A193: ГРС.г.Вельск | B193: =Лист1!B190 -> Вельск | C193: =Лист1!A190 -> ООО "Наше Пиво" | D193: =Лист1!C190 -> 6 | E193: =Лист1!BI190/1000 -> 0.0052 | F193: =Лист1!BH190 -> 0.003691 | G193: =IF(#REF!>0,#REF!,0) ->  | H193: =IF(G193>0,1,0) ->  | I193: =IF(#REF!>0,#REF!,0) ->  | J193: 0.001509
A194: ГРС.г.Вельск | B194: =Лист1!B191 ->  | C194: =Лист1!A191 ->  | D194: =Лист1!C191 -> 6 | E194: =Лист1!BI191/1000 -> 0 | F194: =Лист1!BH191 -> 0 | G194: =IF(#REF!>0,#REF!,0) ->  | H194: =IF(G194>0,1,0) ->  | I194: =IF(#REF!>0,#REF!,0) ->  | J194: 0
A195: ГРС.г.Вельск | B195: =Лист1!B192 ->  | C195: =Лист1!A192 ->  | D195: =Лист1!C192 -> 6 | E195: =Лист1!BI192/1000 -> 0 | F195: =Лист1!BH192 -> 0 | G195: =IF(#REF!>0,#REF!,0) ->  | I195: =IF(#REF!>0,#REF!,0) ->  | J195: 0
A196: ГРС.г.Вельск | B196: =Лист1!B193 ->  | C196: =Лист1!A193 ->  | D196: =Лист1!C193 -> 6 | E196: =Лист1!BI193/1000 -> 0 | F196: =Лист1!BH193 -> 0 | G196: =IF(#REF!>0,#REF!,0) ->  | I196: =IF(#REF!>0,#REF!,0) ->  | J196: 0
A197: ГРС.г.Вельск | B197: =Лист1!B194 ->  | C197: =Лист1!A194 -> ООО "Фрегат" | D197: =Лист1!C194 -> 6 | E197: =Лист1!BI194/1000 -> 0.0055 | F197: =Лист1!BH194 -> 0.003014 | G197: =IF(#REF!>0,#REF!,0) ->  | H197: =IF(G197>0,1,0) ->  | I197: =IF(#REF!>0,#REF!,0) ->  | J197: 0.002486
A198: ГРС.г.Вельск | B198: =Лист1!B195 ->  | C198: =Лист1!A195 ->  | D198: =Лист1!C195 -> 6 | E198: =Лист1!BI195/1000 -> 0 | F198: =Лист1!BH195 -> 0 | G198: =IF(#REF!>0,#REF!,0) ->  | H198: =IF(G198>0,1,0) ->  | I198: =IF(#REF!>0,#REF!,0) ->  | J198: 0
A199: ГРС.г.Вельск | B199: =Лист1!B196 ->  | C199: =Лист1!A196 ->  | D199: =Лист1!C196 -> 6 | E199: =Лист1!BI196/1000 -> 0 | F199: =Лист1!BH196 -> 0 | G199: =IF(#REF!>0,#REF!,0) ->  | I199: =IF(#REF!>0,#REF!,0) ->  | J199: 0
A200: ГРС.г.Вельск | B200: =Лист1!B197 ->  | C200: =Лист1!A197 ->  | D200: =Лист1!C197 -> 6 | E200: =Лист1!BI197/1000 -> 0 | F200: =Лист1!BH197 -> 0 | G200: =IF(#REF!>0,#REF!,0) ->  | I200: =IF(#REF!>0,#REF!,0) ->  | J200: 0
A201: ГРС.г.Вельск | B201: =Лист1!B198 ->  | C201: =Лист1!A198 -> ИП Онучин Евгений Борисович | D201: =Лист1!C198 -> 6 | E201: =Лист1!BI198/1000 -> 0.0025 | F201: =Лист1!BH198 -> 0.001603 | G201: =IF(#REF!>0,#REF!,0) ->  | H201: =IF(G201>0,1,0) ->  | I201: =IF(#REF!>0,#REF!,0) ->  | J201: 0.000897
A202: ГРС.г.Вельск | B202: =Лист1!B199 ->  | C202: =Лист1!A199 ->  | D202: =Лист1!C199 -> 6 | E202: =Лист1!BI199/1000 -> 0 | F202: =Лист1!BH199 -> 0 | G202: =IF(#REF!>0,#REF!,0) ->  | H202: =IF(G202>0,1,0) ->  | I202: =IF(#REF!>0,#REF!,0) ->  | J202: 0
A203: ГРС.г.Вельск | B203: =Лист1!B200 ->  | C203: =Лист1!A200 ->  | D203: =Лист1!C200 -> 6 | E203: =Лист1!BI200/1000 -> 0 | F203: =Лист1!BH200 -> 0 | G203: =IF(#REF!>0,#REF!,0) ->  | I203: =IF(#REF!>0,#REF!,0) ->  | J203: 0
A204: ГРС.г.Вельск | B204: =Лист1!B201 ->  | C204: =Лист1!A201 ->  | D204: =Лист1!C201 -> 6 | E204: =Лист1!BI201/1000 -> 0 | F204: =Лист1!BH201 -> 0 | G204: =IF(#REF!>0,#REF!,0) ->  | I204: =IF(#REF!>0,#REF!,0) ->  | J204: 0
A205: ГРС.г.Вельск | B205: =Лист1!B202 ->  | C205: =Лист1!A202 -> КУМИ Вельского муниципального района АО | D205: =Лист1!C202 -> 7 | E205: =Лист1!BI202/1000 -> 0 | F205: =Лист1!BH202 -> 0 | G205: =IF(#REF!>0,#REF!,0) ->  | H205: =IF(G205>0,1,0) ->  | I205: =IF(#REF!>0,#REF!,0) ->  | J205: 0
A206: ГРС.г.Вельск | B206: =Лист1!B203 ->  | C206: =Лист1!A203 ->  | D206: =Лист1!C203 -> 7 | E206: =Лист1!BI203/1000 -> 0 | F206: =Лист1!BH203 -> 0 | G206: =IF(#REF!>0,#REF!,0) ->  | H206: =IF(G206>0,1,0) ->  | I206: =IF(#REF!>0,#REF!,0) ->  | J206: 0
A207: ГРС.г.Вельск | B207: =Лист1!B204 ->  | C207: =Лист1!A204 ->  | D207: =Лист1!C204 -> 7 | E207: =Лист1!BI204/1000 -> 0 | F207: =Лист1!BH204 -> 0 | G207: =IF(#REF!>0,#REF!,0) ->  | I207: =IF(#REF!>0,#REF!,0) ->  | J207: 0
A208: ГРС.г.Вельск | B208: =Лист1!B205 ->  | C208: =Лист1!A205 ->  | D208: =Лист1!C205 -> 7 | E208: =Лист1!BI205/1000 -> 0 | F208: =Лист1!BH205 -> 0 | G208: =IF(#REF!>0,#REF!,0) ->  | I208: =IF(#REF!>0,#REF!,0) ->  | J208: 0
A209: ГРС.г.Вельск | B209: =Лист1!B206 ->  | C209: =Лист1!A206 -> Гр. Онучина Людмила Владимировна | D209: =Лист1!C206 -> 6 | E209: =Лист1!BI206/1000 -> 0.001 | F209: =Лист1!BH206 -> 0.000719 | G209: =IF(#REF!>0,#REF!,0) ->  | H209: =IF(G209>0,1,0) ->  | I209: =IF(#REF!>0,#REF!,0) ->  | J209: 0.000281
A210: ГРС.г.Вельск | B210: =Лист1!B207 ->  | C210: =Лист1!A207 ->  | D210: =Лист1!C207 -> 6 | E210: =Лист1!BI207/1000 -> 0 | F210: =Лист1!BH207 -> 0 | G210: =IF(#REF!>0,#REF!,0) ->  | H210: =IF(G210>0,1,0) ->  | I210: =IF(#REF!>0,#REF!,0) ->  | J210: 0
A211: ГРС.г.Вельск | B211: =Лист1!B208 ->  | C211: =Лист1!A208 ->  | D211: =Лист1!C208 -> 6 | E211: =Лист1!BI208/1000 -> 0 | F211: =Лист1!BH208 -> 0 | G211: =IF(#REF!>0,#REF!,0) ->  | I211: =IF(#REF!>0,#REF!,0) ->  | J211: =E211-F211 -> 0
... 755 more rows

Sheet Лист1
A4: Транспортировка газа по сетям ГРО ООО "ВельскГазСервис"
Q6: 405.07 | AI6: 1040.08 | AO6: 1386.75 | AU6: 1733.45 | BA6: 2166.8 | BG6: 811.31
A10: ОКТЯБРЬ | C10: Группа | D10: Договор поставки газа | E10: Лимит | F10: Перебор | J10: Транспорт газа | Q10: Инвестиционная составляющая к тарифу ГРО | AI10: объем фактической транспортировки газа, тыс.куб.м | BI10: План транспортировки по договору, тыс.куб.м
E11: объем | G11: объем | H11: Расчетный | I11: Тарифная | J11: сумма услуг | K11: сверх договора | O11: сумма услуг | R11: сумма услуг | S11: сверх договора | W11: сумма услуг | AI11: > 1 000 000 до 10 000 000 | AO11: > 100 000 до 1 000 000 | AU11: > 10 000 до 100 000 | BA11: до 10 000 | BG11: население
A12: Потребитель газа | B12: Точка подключения | F12: К | H12: тариф | I12: ставка , | J12: по лимиту , | K12: тариф | L12: сумма услуг | M12: сумма К | N12: НДС | O12: всего , | Q12: размер, | R12: по лимиту , | S12: размер, | T12: сумма услуг, | U12: сумма К, | V12: НДС | W12: всего , | AI12: лимит | AJ12: перебор | AK12: П | AO12: лимит | AP12: перебор | AQ12: П | AU12: лимит | AV12: перебор | AW12: П | BA12: лимит | BB12: перебор | BC12: П
E13: тыс.куб.м | G13: тыс.куб.м | H13: руб./1000 куб.м | I13: руб./1000 куб.м | J13: руб. | K13: руб./1000 куб.м | L13: руб. | M13: руб. | N13: руб. | O13: руб. | Q13: руб./1000 куб.м | R13: руб. | S13: руб./1000 куб.м | T13: руб. | U13: руб. | V13: руб. | W13: руб.
AI14: 4 | AK14: л | AL14: 1 | AM14: п | AN14: 1 | AO14: 5 | AQ14: л | AR14: 1 | AS14: п | AT14: 1 | AU14: 6 | AW14: л | AX14: 1 | AY14: п | AZ14: 1 | BA14: 7 | BC14: л | BD14: 1 | BE14: п | BF14: 1 | BG14: 8 | BI14: 1000
A16: АО "ГТ Энерго" | B16: Вельск,(ул.Гайдара-16В + ул.Дзержинского-210, стр.12) | C16: =C17 -> 4 | D16: 03-4-23.007(333) | E16: 282.518 | F16: 1.5 | G16: 0 | H16: =E16+G16 -> 282.518 | I16: =SUMIF(Y$14:BA$14,C16,Y$6:BA$6) -> 1040.08 | J16: =IF(H16=0,ROUND(E16*I16,2),ROUND(H16*E16,2)) -> 79816.42 | K16: =ROUND(F16*I16,2) -> 1560.12 | L16: =IF(H16=0,ROUND(ROUND(F16*I16,2)*G16,2),ROUND(G16*H16,2)) -> 0 | M16: =L16-ROUND(G16*I16,2) -> 0 | O16: =J16+L16+N16 -> 79816.42 | Q16: =IF(BI16>0,Q$6,Q$6) -> 405.07 | R16: =ROUND(Q16*E16,2) -> 114439.57 | S16: =ROUND(F16*Q16,2) -> 607.61 | T16: =ROUND(S16*G16,2) -> 0 | U16: =T16-ROUND(Q16*G16,2) -> 0 | W16: =R16+T16+V16 -> 114439.57 | AI16: =IF($I16=AI$6,$E16,0) -> 282.518 | AJ16: =IF($K16=ROUND(AI$6*$F16,2),$G16,0) -> 0 | AK16: =IF($H16>0,AI16,0) -> 282.518 | AL16: =IF(AK16>0,1,0) -> 1 | AM16: =IF($H16>0,AJ16,0) -> 0 | AN16: =IF(AM16>0,1,0) -> 0 | AO16: =IF($I16=AO$6,$E16,0) -> 0 | AP16: =IF($K16=ROUND(AO$6*$F16,2),$G16,0) -> 0 | AQ16: =IF($H16>0,AO16,0) -> 0 | AR16: =IF(AQ16>0,1,0) -> 0 | AS16: =IF($H16>0,AP16,0) -> 0 | AT16: =IF(AS16>0,1,0) -> 0 | AU16: =IF($I16=AU$6,$E16,0) -> 0 | AV16: =IF($K16=ROUND(AU$6*$F16,2),$G16,0) -> 0 | AW16: =IF($H16>0,AU16,0) -> 0 | AX16: =IF(AW16>0,1,0) -> 0 | AY16: =IF($H16>0,AV16,0) -> 0 | AZ16: =IF(AY16>0,1,0) -> 0 | BA16: =IF($I16=BA$6,$E16,0) -> 0 | BB16: =IF($K16=ROUND(BA$6*$F16,2),$G16,0) -> 0 | BC16: =IF($H16>0,BA16,0) -> 0 | BD16: =IF(BC16>0,1,0) -> 0 | BE16: =IF($H16>0,BB16,0) -> 0 | BF16: =IF(BE16>0,1,0) -> 0 | BH16: =H16/1000 -> 0.282518 | BI16: 321.7 | BL16: =E16-SUM(AI16,AO16,AU16,BA16) -> 0
A17: =IF(E17+G17>0,A16,"") ->  | B17: =IF(E17+G17>0,B16,"") ->  | C17: 4 | D17: 03-4-23.007(333) | E17: 0 | F17: 1.1 | G17: 0 | H17: =E17+G17 -> 0 | I17: =SUMIF(Y$14:BA$14,C17,Y$6:BA$6) -> 1040.08 | J17: =IF(H17=0,ROUND(E17*I17,2),ROUND(H17*E17,2)) -> 0 | K17: =ROUND(F17*I17,2) -> 1144.09 | L17: =IF(H17=0,ROUND(ROUND(F17*I17,2)*G17,2),ROUND(G17*H17,2)) -> 0 | M17: =L17-ROUND(G17*I17,2) -> 0 | O17: =J17+L17+N17 -> 0 | Q17: 405.07 | R17: =ROUND(Q17*E17,2) -> 0 | S17: =ROUND(F17*Q17,2) -> 445.58 | T17: =ROUND(S17*G17,2) -> 0 | U17: =T17-ROUND(Q17*G17,2) -> 0 | W17: =R17+T17+V17 -> 0 | AI17: =IF($I17=AI$6,$E17,0) -> 0 | AJ17: 0 | AK17: =IF($H17>0,AI17,0) -> 0 | AL17: =IF(AK17>0,1,0) -> 0 | AM17: =IF($H17>0,AJ17,0) -> 0 | AN17: =IF(AM17>0,1,0) -> 0 | AO17: =IF($I17=AO$6,$E17,0) -> 0 | AP17: 0 | AQ17: =IF($H17>0,AO17,0) -> 0 | AR17: =IF(AQ17>0,1,0) -> 0 | AS17: =IF($H17>0,AP17,0) -> 0 | AT17: =IF(AS17>0,1,0) -> 0 | AU17: =IF($I17=AU$6,$E17,0) -> 0 | AV17: 0 | AW17: =IF($H17>0,AU17,0) -> 0 | AX17: =IF(AW17>0,1,0) -> 0 | AY17: =IF($H17>0,AV17,0) -> 0 | AZ17: =IF(AY17>0,1,0) -> 0 | BA17: =IF($I17=BA$6,$E17,0) -> 0 | BB17: 0 | BC17: =IF($H17>0,BA17,0) -> 0 | BD17: =IF(BC17>0,1,0) -> 0 | BE17: =IF($H17>0,BB17,0) -> 0 | BF17: =IF(BE17>0,1,0) -> 0 | BH17: =H17/1000 -> 0 | BL17: =E17-SUM(AI17,AO17,AU17,BA17) -> 0
A18: =IF(E18+G18>0,A16,"") ->  | B18: =IF(E18+G18>0,B16,"") ->  | C18: =C17 -> 4 | D18: 03-4-23.007(333) | E18: 0 | F18: 1.5 | G18: 0 | H18: 0 | I18: =SUMIF(Y$14:BA$14,C18,Y$7:BA$7) -> 0 | J18: 0 | K18: 0 | L18: 0 | M18: 0 | O18: 0 | Q18: 405.07 | R18: 0 | S18: 607.61 | T18: 0 | U18: 0 | W18: 0 | AI18: =IF($I18=AI$7,$E18,0) -> 0 | AJ18: =IF($K18=ROUND(AI$7*$F18,2),$G18,0) -> 0 | AK18: 0 | AL18: 0 | AM18: 0 | AN18: 0 | AO18: =IF($I18=AO$7,$E18,0) -> 0 | AP18: =IF($K18=ROUND(AO$7*$F18,2),$G18,0) -> 0 | AQ18: 0 | AR18: 0 | AS18: 0 | AT18: 0 | AU18: =IF($I18=AU$7,$E18,0) -> 0 | AV18: =IF($K18=ROUND(AU$7*$F18,2),$G18,0) -> 0 | AW18: 0 | AX18: 0 | AY18: 0 | AZ18: 0 | BA18: =IF($I18=BA$7,$E18,0) -> 0 | BB18: =IF($K18=ROUND(BA$7*$F18,2),$G18,0) -> 0 | BC18: 0 | BD18: 0 | BE18: 0 | BF18: 0 | BH18: 0 | BL18: 0
A19: =IF(E19+G19>0,A16,"") ->  | B19: =IF(E19+G19>0,B16,"") ->  | C19: =C17 -> 4 | D19: 03-4-23.007(333) | E19: 0 | F19: 1.1 | G19: 0 | H19: 0 | I19: =SUMIF(Y$14:BA$14,C19,Y$7:BA$7) -> 0 | J19: 0 | K19: 0 | L19: 0 | M19: 0 | O19: 0 | Q19: 405.07 | R19: 0 | S19: 445.58 | T19: 0 | U19: 0 | W19: 0 | AI19: =IF($I19=AI$7,$E19,0) -> 0 | AJ19: =IF($K19=ROUND(AI$7*$F19,2),$G19,0) -> 0 | AK19: 0 | AL19: 0 | AM19: 0 | AN19: 0 | AO19: =IF($I19=AO$7,$E19,0) -> 0 | AP19: =IF($K19=ROUND(AO$7*$F19,2),$G19,0) -> 0 | AQ19: 0 | AR19: 0 | AS19: 0 | AT19: 0 | AU19: =IF($I19=AU$7,$E19,0) -> 0 | AV19: =IF($K19=ROUND(AU$7*$F19,2),$G19,0) -> 0 | AW19: 0 | AX19: 0 | AY19: 0 | AZ19: 0 | BA19: =IF($I19=BA$7,$E19,0) -> 0 | BB19: =IF($K19=ROUND(BA$7*$F19,2),$G19,0) -> 0 | BC19: 0 | BD19: 0 | BE19: 0 | BF19: 0 | BH19: 0 | BL19: 0
A20: АО "ГТ Энерго" | B20: д.Горка Муравьевская, БМК №2 | C20: =C21 -> 5 | D20: 03-4-23.007(333) | E20: 83.255 | F20: 1.5 | G20: 0 | H20: 83.255 | I20: =SUMIF(Y$14:BA$14,C20,Y$6:BA$6) -> 1386.75 | J20: =IF(H20=0,ROUND(E20*I20,2),ROUND(H20*E20,2)) -> 6931.4 | K20: =ROUND(F20*I20,2) -> 2080.13 | L20: =IF(H20=0,ROUND(ROUND(F20*I20,2)*G20,2),ROUND(G20*H20,2)) -> 0 | M20: =L20-ROUND(G20*I20,2) -> 0 | O20: =J20+L20+N20 -> 6931.4 | Q20: 405.07 | R20: =ROUND(Q20*E20,2) -> 33724.1 | S20: =ROUND(F20*Q20,2) -> 607.61 | T20: =ROUND(S20*G20,2) -> 0 | U20: =T20-ROUND(Q20*G20,2) -> 0 | W20: =R20+T20+V20 -> 33724.1 | AI20: =IF($I20=AI$6,$E20,0) -> 0 | AJ20: =IF($K20=ROUND(AI$6*$F20,2),$G20,0) -> 0 | AK20: =IF($H20>0,AI20,0) -> 0 | AL20: =IF(AK20>0,1,0) -> 0 | AM20: =IF($H20>0,AJ20,0) -> 0 | AN20: =IF(AM20>0,1,0) -> 0 | AO20: =IF($I20=AO$6,$E20,0) -> 83.255 | AP20: =IF($K20=ROUND(AO$6*$F20,2),$G20,0) -> 0 | AQ20: =IF($H20>0,AO20,0) -> 83.255 | AR20: =IF(AQ20>0,1,0) -> 1 | AS20: =IF($H20>0,AP20,0) -> 0 | AT20: =IF(AS20>0,1,0) -> 0 | AU20: =IF($I20=AU$6,$E20,0) -> 0 | AV20: =IF($K20=ROUND(AU$6*$F20,2),$G20,0) -> 0 | AW20: =IF($H20>0,AU20,0) -> 0 | AX20: =IF(AW20>0,1,0) -> 0 | AY20: =IF($H20>0,AV20,0) -> 0 | AZ20: =IF(AY20>0,1,0) -> 0 | BA20: =IF($I20=BA$6,$E20,0) -> 0 | BB20: =IF($K20=ROUND(BA$6*$F20,2),$G20,0) -> 0 | BC20: =IF($H20>0,BA20,0) -> 0 | BD20: =IF(BC20>0,1,0) -> 0 | BE20: =IF($H20>0,BB20,0) -> 0 | BF20: =IF(BE20>0,1,0) -> 0 | BH20: 0.083255 | BI20: 86.6 | BL20: 0
A21: =IF(E21+G21>0,A20,"") ->  | B21: =IF(E21+G21>0,B20,"") ->  | C21: 5 | D21: 03-4-23.007(333) | E21: 0 | F21: 1.1 | G21: 0 | H21: 0 | I21: =SUMIF(Y$14:BA$14,C21,Y$6:BA$6) -> 1386.75 | J21: =IF(H21=0,ROUND(E21*I21,2),ROUND(H21*E21,2)) -> 0 | K21: =ROUND(F21*I21,2) -> 1525.43 | L21: =IF(H21=0,ROUND(ROUND(F21*I21,2)*G21,2),ROUND(G21*H21,2)) -> 0 | M21: =L21-ROUND(G21*I21,2) -> 0 | O21: =J21+L21+N21 -> 0 | Q21: 405.07 | R21: =ROUND(Q21*E21,2) -> 0 | S21: =ROUND(F21*Q21,2) -> 445.58 | T21: =ROUND(S21*G21,2) -> 0 | U21: =T21-ROUND(Q21*G21,2) -> 0 | W21: =R21+T21+V21 -> 0 | AI21: 0 | AJ21: 0 | AK21: =IF($H21>0,AI21,0) -> 0 | AL21: =IF(AK21>0,1,0) -> 0 | AM21: =IF($H21>0,AJ21,0) -> 0 | AN21: =IF(AM21>0,1,0) -> 0 | AO21: 0 | AP21: 0 | AQ21: =IF($H21>0,AO21,0) -> 0 | AR21: =IF(AQ21>0,1,0) -> 0 | AS21: =IF($H21>0,AP21,0) -> 0 | AT21: =IF(AS21>0,1,0) -> 0 | AU21: 0 | AV21: 0 | AW21: =IF($H21>0,AU21,0) -> 0 | AX21: =IF(AW21>0,1,0) -> 0 | AY21: =IF($H21>0,AV21,0) -> 0 | AZ21: =IF(AY21>0,1,0) -> 0 | BA21: 0 | BB21: 0 | BC21: =IF($H21>0,BA21,0) -> 0 | BD21: =IF(BC21>0,1,0) -> 0 | BE21: =IF($H21>0,BB21,0) -> 0 | BF21: =IF(BE21>0,1,0) -> 0 | BH21: 0 | BL21: 0
A22: =IF(E22+G22>0,A20,"") ->  | B22: =IF(E22+G22>0,B20,"") ->  | C22: =C21 -> 5 | D22: 03-4-23.007(333) | E22: 0 | F22: 1.5 | G22: 0 | H22: 0 | I22: =SUMIF(Y$14:BA$14,C22,Y$7:BA$7) -> 0 | J22: 0 | K22: 0 | L22: 0 | M22: 0 | O22: 0 | Q22: 405.07 | R22: 0 | S22: 607.61 | T22: 0 | U22: 0 | W22: 0 | AI22: =IF($I22=AI$7,$E22,0) -> 0 | AJ22: =IF($K22=ROUND(AI$7*$F22,2),$G22,0) -> 0 | AK22: 0 | AL22: 0 | AM22: 0 | AN22: 0 | AO22: =IF($I22=AO$7,$E22,0) -> 0 | AP22: =IF($K22=ROUND(AO$7*$F22,2),$G22,0) -> 0 | AQ22: 0 | AR22: 0 | AS22: 0 | AT22: 0 | AU22: =IF($I22=AU$7,$E22,0) -> 0 | AV22: =IF($K22=ROUND(AU$7*$F22,2),$G22,0) -> 0 | AW22: 0 | AX22: 0 | AY22: 0 | AZ22: 0 | BA22: =IF($I22=BA$7,$E22,0) -> 0 | BB22: =IF($K22=ROUND(BA$7*$F22,2),$G22,0) -> 0 | BC22: 0 | BD22: 0 | BE22: 0 | BF22: 0 | BH22: 0 | BL22: 0
A23: =IF(E23+G23>0,A20,"") ->  | B23: =IF(E23+G23>0,B20,"") ->  | C23: =C21 -> 5 | D23: 03-4-23.007(333) | E23: 0 | F23: 1.1 | G23: 0 | H23: 0 | I23: =SUMIF(Y$14:BA$14,C23,Y$7:BA$7) -> 0 | J23: 0 | K23: 0 | L23: 0 | M23: 0 | O23: 0 | Q23: 405.07 | R23: 0 | S23: 445.58 | T23: 0 | U23: 0 | W23: 0 | AI23: =IF($I23=AI$7,$E23,0) -> 0 | AJ23: =IF($K23=ROUND(AI$7*$F23,2),$G23,0) -> 0 | AK23: 0 | AL23: 0 | AM23: 0 | AN23: 0 | AO23: =IF($I23=AO$7,$E23,0) -> 0 | AP23: =IF($K23=ROUND(AO$7*$F23,2),$G23,0) -> 0 | AQ23: 0 | AR23: 0 | AS23: 0 | AT23: 0 | AU23: =IF($I23=AU$7,$E23,0) -> 0 | AV23: =IF($K23=ROUND(AU$7*$F23,2),$G23,0) -> 0 | AW23: 0 | AX23: 0 | AY23: 0 | AZ23: 0 | BA23: =IF($I23=BA$7,$E23,0) -> 0 | BB23: =IF($K23=ROUND(BA$7*$F23,2),$G23,0) -> 0 | BC23: 0 | BD23: 0 | BE23: 0 | BF23: 0 | BH23: 0 | BL23: 0
A24: АО "ГТ Энерго" | B24: д.Вороновская, БМК №3 | C24: =C25 -> 5 | D24: 03-4-23.007(333) | E24: 52.133 | F24: 1.5 | G24: 0 | H24: 52.133 | I24: =SUMIF(Y$14:BA$14,C24,Y$6:BA$6) -> 1386.75 | J24: =IF(H24=0,ROUND(E24*I24,2),ROUND(H24*E24,2)) -> 2717.85 | K24: =ROUND(F24*I24,2) -> 2080.13 | L24: =IF(H24=0,ROUND(ROUND(F24*I24,2)*G24,2),ROUND(G24*H24,2)) -> 0 | M24: =L24-ROUND(G24*I24,2) -> 0 | O24: =J24+L24+N24 -> 2717.85 | Q24: 405.07 | R24: =ROUND(Q24*E24,2) -> 21117.51 | S24: =ROUND(F24*Q24,2) -> 607.61 | T24: =ROUND(S24*G24,2) -> 0 | U24: =T24-ROUND(Q24*G24,2) -> 0 | W24: =R24+T24+V24 -> 21117.51 | AI24: =IF($I24=AI$6,$E24,0) -> 0 | AJ24: =IF($K24=ROUND(AI$6*$F24,2),$G24,0) -> 0 | AK24: =IF($H24>0,AI24,0) -> 0 | AL24: =IF(AK24>0,1,0) -> 0 | AM24: =IF($H24>0,AJ24,0) -> 0 | AN24: =IF(AM24>0,1,0) -> 0 | AO24: =IF($I24=AO$6,$E24,0) -> 52.133 | AP24: =IF($K24=ROUND(AO$6*$F24,2),$G24,0) -> 0 | AQ24: =IF($H24>0,AO24,0) -> 52.133 | AR24: =IF(AQ24>0,1,0) -> 1 | AS24: =IF($H24>0,AP24,0) -> 0 | AT24: =IF(AS24>0,1,0) -> 0 | AU24: =IF($I24=AU$6,$E24,0) -> 0 | AV24: =IF($K24=ROUND(AU$6*$F24,2),$G24,0) -> 0 | AW24: =IF($H24>0,AU24,0) -> 0 | AX24: =IF(AW24>0,1,0) -> 0 | AY24: =IF($H24>0,AV24,0) -> 0 | AZ24: =IF(AY24>0,1,0) -> 0 | BA24: =IF($I24=BA$6,$E24,0) -> 0 | BB24: =IF($K24=ROUND(BA$6*$F24,2),$G24,0) -> 0 | BC24: =IF($H24>0,BA24,0) -> 0 | BD24: =IF(BC24>0,1,0) -> 0 | BE24: =IF($H24>0,BB24,0) -> 0 | BF24: =IF(BE24>0,1,0) -> 0 | BH24: 0.052133 | BI24: 68.7 | BL24: 0
A25: =IF(E25+G25>0,A24,"") ->  | B25: =IF(E25+G25>0,B24,"") ->  | C25: 5 | D25: 03-4-23.007(333) | E25: 0 | F25: 1.1 | G25: 0 | H25: 0 | I25: =SUMIF(Y$14:BA$14,C25,Y$6:BA$6) -> 1386.75 | J25: =IF(H25=0,ROUND(E25*I25,2),ROUND(H25*E25,2)) -> 0 | K25: =ROUND(F25*I25,2) -> 1525.43 | L25: =IF(H25=0,ROUND(ROUND(F25*I25,2)*G25,2),ROUND(G25*H25,2)) -> 0 | M25: =L25-ROUND(G25*I25,2) -> 0 | O25: =J25+L25+N25 -> 0 | Q25: 405.07 | R25: =ROUND(Q25*E25,2) -> 0 | S25: =ROUND(F25*Q25,2) -> 445.58 | T25: =ROUND(S25*G25,2) -> 0 | U25: =T25-ROUND(Q25*G25,2) -> 0 | W25: =R25+T25+V25 -> 0 | AI25: =IF($I25=AI$6,$E25,0) -> 0 | AJ25: 0 | AK25: =IF($H25>0,AI25,0) -> 0 | AL25: =IF(AK25>0,1,0) -> 0 | AM25: =IF($H25>0,AJ25,0) -> 0 | AN25: =IF(AM25>0,1,0) -> 0 | AO25: =IF($I25=AO$6,$E25,0) -> 0 | AP25: 0 | AQ25: =IF($H25>0,AO25,0) -> 0 | AR25: =IF(AQ25>0,1,0) -> 0 | AS25: =IF($H25>0,AP25,0) -> 0 | AT25: =IF(AS25>0,1,0) -> 0 | AU25: =IF($I25=AU$6,$E25,0) -> 0 | AV25: 0 | AW25: =IF($H25>0,AU25,0) -> 0 | AX25: =IF(AW25>0,1,0) -> 0 | AY25: =IF($H25>0,AV25,0) -> 0 | AZ25: =IF(AY25>0,1,0) -> 0 | BA25: =IF($I25=BA$6,$E25,0) -> 0 | BB25: 0 | BC25: =IF($H25>0,BA25,0) -> 0 | BD25: =IF(BC25>0,1,0) -> 0 | BE25: =IF($H25>0,BB25,0) -> 0 | BF25: =IF(BE25>0,1,0) -> 0 | BH25: 0 | BL25: 0
A26: =IF(E26+G26>0,A24,"") ->  | B26: =IF(E26+G26>0,B24,"") ->  | C26: =C25 -> 5 | D26: 03-4-23.007(333) | E26: 0 | F26: 1.5 | G26: 0 | H26: 0 | I26: =SUMIF(Y$14:BA$14,C26,Y$7:BA$7) -> 0 | J26: 0 | K26: 0 | L26: 0 | M26: 0 | O26: 0 | Q26: 405.07 | R26: 0 | S26: 607.61 | T26: 0 | U26: 0 | W26: 0 | AI26: =IF($I26=AI$7,$E26,0) -> 0 | AJ26: =IF($K26=ROUND(AI$7*$F26,2),$G26,0) -> 0 | AK26: 0 | AL26: 0 | AM26: 0 | AN26: 0 | AO26: =IF($I26=AO$7,$E26,0) -> 0 | AP26: =IF($K26=ROUND(AO$7*$F26,2),$G26,0) -> 0 | AQ26: 0 | AR26: 0 | AS26: 0 | AT26: 0 | AU26: =IF($I26=AU$7,$E26,0) -> 0 | AV26: =IF($K26=ROUND(AU$7*$F26,2),$G26,0) -> 0 | AW26: 0 | AX26: 0 | AY26: 0 | AZ26: 0 | BA26: =IF($I26=BA$7,$E26,0) -> 0 | BB26: =IF($K26=ROUND(BA$7*$F26,2),$G26,0) -> 0 | BC26: 0 | BD26: 0 | BE26: 0 | BF26: 0 | BH26: 0 | BL26: 0
A27: =IF(E27+G27>0,A24,"") ->  | B27: =IF(E27+G27>0,B24,"") ->  | C27: =C25 -> 5 | D27: 03-4-23.007(333) | E27: 0 | F27: 1.1 | G27: 0 | H27: 0 | I27: =SUMIF(Y$14:BA$14,C27,Y$7:BA$7) -> 0 | J27: 0 | K27: 0 | L27: 0 | M27: 0 | O27: 0 | Q27: 405.07 | R27: 0 | S27: 445.58 | T27: 0 | U27: 0 | W27: 0 | AI27: =IF($I27=AI$7,$E27,0) -> 0 | AJ27: =IF($K27=ROUND(AI$7*$F27,2),$G27,0) -> 0 | AK27: 0 | AL27: 0 | AM27: 0 | AN27: 0 | AO27: =IF($I27=AO$7,$E27,0) -> 0 | AP27: =IF($K27=ROUND(AO$7*$F27,2),$G27,0) -> 0 | AQ27: 0 | AR27: 0 | AS27: 0 | AT27: 0 | AU27: =IF($I27=AU$7,$E27,0) -> 0 | AV27: =IF($K27=ROUND(AU$7*$F27,2),$G27,0) -> 0 | AW27: 0 | AX27: 0 | AY27: 0 | AZ27: 0 | BA27: =IF($I27=BA$7,$E27,0) -> 0 | BB27: =IF($K27=ROUND(BA$7*$F27,2),$G27,0) -> 0 | BC27: 0 | BD27: 0 | BE27: 0 | BF27: 0 | BH27: 0 | BL27: 0
A28: АО "ГТ Энерго" | B28: Вельск, ул.Революционная-73 (ПУ-29) | C28: =C29 -> 5 | D28: 03-4-23.007(333) | E28: 43.136 | F28: 1.5 | G28: 0 | H28: 43.136 | I28: =SUMIF(Y$14:BA$14,C28,Y$6:BA$6) -> 1386.75 | J28: =IF(H28=0,ROUND(E28*I28,2),ROUND(H28*E28,2)) -> 1860.71 | K28: =ROUND(F28*I28,2) -> 2080.13 | L28: =IF(H28=0,ROUND(ROUND(F28*I28,2)*G28,2),ROUND(G28*H28,2)) -> 0 | M28: =L28-ROUND(G28*I28,2) -> 0 | O28: =J28+L28+N28 -> 1860.71 | Q28: 405.07 | R28: =ROUND(Q28*E28,2) -> 17473.1 | S28: =ROUND(F28*Q28,2) -> 607.61 | T28: =ROUND(S28*G28,2) -> 0 | U28: =T28-ROUND(Q28*G28,2) -> 0 | W28: =R28+T28+V28 -> 17473.1 | AI28: =IF($I28=AI$6,$E28,0) -> 0 | AJ28: =IF($K28=ROUND(AI$6*$F28,2),$G28,0) -> 0 | AK28: =IF($H28>0,AI28,0) -> 0 | AL28: =IF(AK28>0,1,0) -> 0 | AM28: =IF($H28>0,AJ28,0) -> 0 | AN28: =IF(AM28>0,1,0) -> 0 | AO28: =IF($I28=AO$6,$E28,0) -> 43.136 | AP28: =IF($K28=ROUND(AO$6*$F28,2),$G28,0) -> 0 | AQ28: =IF($H28>0,AO28,0) -> 43.136 | AR28: =IF(AQ28>0,1,0) -> 1 | AS28: =IF($H28>0,AP28,0) -> 0 | AT28: =IF(AS28>0,1,0) -> 0 | AU28: =IF($I28=AU$6,$E28,0) -> 0 | AV28: =IF($K28=ROUND(AU$6*$F28,2),$G28,0) -> 0 | AW28: =IF($H28>0,AU28,0) -> 0 | AX28: =IF(AW28>0,1,0) -> 0 | AY28: =IF($H28>0,AV28,0) -> 0 | AZ28: =IF(AY28>0,1,0) -> 0 | BA28: =IF($I28=BA$6,$E28,0) -> 0 | BB28: =IF($K28=ROUND(BA$6*$F28,2),$G28,0) -> 0 | BC28: =IF($H28>0,BA28,0) -> 0 | BD28: =IF(BC28>0,1,0) -> 0 | BE28: =IF($H28>0,BB28,0) -> 0 | BF28: =IF(BE28>0,1,0) -> 0 | BH28: 0.043136 | BI28: 63.7 | BL28: 0
A29: =IF(E29+G29>0,A28,"") ->  | B29: =IF(E29+G29>0,B28,"") ->  | C29: 5 | D29: 03-4-23.007(333) | E29: 0 | F29: 1.1 | G29: 0 | H29: 0 | I29: =SUMIF(Y$14:BA$14,C29,Y$6:BA$6) -> 1386.75 | J29: =IF(H29=0,ROUND(E29*I29,2),ROUND(H29*E29,2)) -> 0 | K29: =ROUND(F29*I29,2) -> 1525.43 | L29: =IF(H29=0,ROUND(ROUND(F29*I29,2)*G29,2),ROUND(G29*H29,2)) -> 0 | M29: =L29-ROUND(G29*I29,2) -> 0 | O29: =J29+L29+N29 -> 0 | Q29: 405.07 | R29: =ROUND(Q29*E29,2) -> 0 | S29: =ROUND(F29*Q29,2) -> 445.58 | T29: =ROUND(S29*G29,2) -> 0 | U29: =T29-ROUND(Q29*G29,2) -> 0 | W29: =R29+T29+V29 -> 0 | AI29: =IF($I29=AI$6,$E29,0) -> 0 | AJ29: 0 | AK29: =IF($H29>0,AI29,0) -> 0 | AL29: =IF(AK29>0,1,0) -> 0 | AM29: =IF($H29>0,AJ29,0) -> 0 | AN29: =IF(AM29>0,1,0) -> 0 | AO29: =IF($I29=AO$6,$E29,0) -> 0 | AP29: 0 | AQ29: =IF($H29>0,AO29,0) -> 0 | AR29: =IF(AQ29>0,1,0) -> 0 | AS29: =IF($H29>0,AP29,0) -> 0 | AT29: =IF(AS29>0,1,0) -> 0 | AU29: =IF($I29=AU$6,$E29,0) -> 0 | AV29: 0 | AW29: =IF($H29>0,AU29,0) -> 0 | AX29: =IF(AW29>0,1,0) -> 0 | AY29: =IF($H29>0,AV29,0) -> 0 | AZ29: =IF(AY29>0,1,0) -> 0 | BA29: =IF($I29=BA$6,$E29,0) -> 0 | BB29: 0 | BC29: =IF($H29>0,BA29,0) -> 0 | BD29: =IF(BC29>0,1,0) -> 0 | BE29: =IF($H29>0,BB29,0) -> 0 | BF29: =IF(BE29>0,1,0) -> 0 | BH29: 0 | BL29: 0
A30: =IF(E30+G30>0,A28,"") ->  | B30: =IF(E30+G30>0,B28,"") ->  | C30: =C29 -> 5 | D30: 03-4-23.007(333) | E30: 0 | F30: 1.5 | G30: 0 | H30: 0 | I30: =SUMIF(Y$14:BA$14,C30,Y$7:BA$7) -> 0 | J30: 0 | K30: 0 | L30: 0 | M30: 0 | O30: 0 | Q30: 405.07 | R30: 0 | S30: 607.61 | T30: 0 | U30: 0 | W30: 0 | AI30: =IF($I30=AI$7,$E30,0) -> 0 | AJ30: =IF($K30=ROUND(AI$7*$F30,2),$G30,0) -> 0 | AK30: 0 | AL30: 0 | AM30: 0 | AN30: 0 | AO30: =IF($I30=AO$7,$E30,0) -> 0 | AP30: =IF($K30=ROUND(AO$7*$F30,2),$G30,0) -> 0 | AQ30: 0 | AR30: 0 | AS30: 0 | AT30: 0 | AU30: =IF($I30=AU$7,$E30,0) -> 0 | AV30: =IF($K30=ROUND(AU$7*$F30,2),$G30,0) -> 0 | AW30: 0 | AX30: 0 | AY30: 0 | AZ30: 0 | BA30: =IF($I30=BA$7,$E30,0) -> 0 | BB30: =IF($K30=ROUND(BA$7*$F30,2),$G30,0) -> 0 | BC30: 0 | BD30: 0 | BE30: 0 | BF30: 0 | BH30: 0 | BL30: 0
A31: =IF(E31+G31>0,A28,"") ->  | B31: =IF(E31+G31>0,B28,"") ->  | C31: =C29 -> 5 | D31: 03-4-23.007(333) | E31: 0 | F31: 1.1 | G31: 0 | H31: 0 | I31: =SUMIF(Y$14:BA$14,C31,Y$7:BA$7) -> 0 | J31: 0 | K31: 0 | L31: 0 | M31: 0 | O31: 0 | Q31: 405.07 | R31: 0 | S31: 445.58 | T31: 0 | U31: 0 | W31: 0 | AI31: =IF($I31=AI$7,$E31,0) -> 0 | AJ31: =IF($K31=ROUND(AI$7*$F31,2),$G31,0) -> 0 | AK31: 0 | AL31: 0 | AM31: 0 | AN31: 0 | AO31: =IF($I31=AO$7,$E31,0) -> 0 | AP31: =IF($K31=ROUND(AO$7*$F31,2),$G31,0) -> 0 | AQ31: 0 | AR31: 0 | AS31: 0 | AT31: 0 | AU31: =IF($I31=AU$7,$E31,0) -> 0 | AV31: =IF($K31=ROUND(AU$7*$F31,2),$G31,0) -> 0 | AW31: 0 | AX31: 0 | AY31: 0 | AZ31: 0 | BA31: =IF($I31=BA$7,$E31,0) -> 0 | BB31: =IF($K31=ROUND(BA$7*$F31,2),$G31,0) -> 0 | BC31: 0 | BD31: 0 | BE31: 0 | BF31: 0 | BH31: 0 | BL31: 0
A32: АО "ГТ Энерго" | B32: Вельск, (ул.Дзержинского-201, а/л №45 + ул.Кирова-6а) | C32: =C33 -> 5 | D32: 03-4-23.007(333) | E32: 73.937 | F32: 1.5 | G32: 0 | H32: 73.937 | I32: =SUMIF(Y$14:BA$14,C32,Y$6:BA$6) -> 1386.75 | J32: =IF(H32=0,ROUND(E32*I32,2),ROUND(H32*E32,2)) -> 5466.68 | K32: =ROUND(F32*I32,2) -> 2080.13 | L32: =IF(H32=0,ROUND(ROUND(F32*I32,2)*G32,2),ROUND(G32*H32,2)) -> 0 | M32: =L32-ROUND(G32*I32,2) -> 0 | O32: =J32+L32+N32 -> 5466.68 | Q32: 405.07 | R32: =ROUND(Q32*E32,2) -> 29949.66 | S32: =ROUND(F32*Q32,2) -> 607.61 | T32: =ROUND(S32*G32,2) -> 0 | U32: =T32-ROUND(Q32*G32,2) -> 0 | W32: =R32+T32+V32 -> 29949.66 | AI32: =IF($I32=AI$6,$E32,0) -> 0 | AJ32: =IF($K32=ROUND(AI$6*$F32,2),$G32,0) -> 0 | AK32: =IF($H32>0,AI32,0) -> 0 | AL32: =IF(AK32>0,1,0) -> 0 | AM32: =IF($H32>0,AJ32,0) -> 0 | AN32: =IF(AM32>0,1,0) -> 0 | AO32: =IF($I32=AO$6,$E32,0) -> 73.937 | AP32: =IF($K32=ROUND(AO$6*$F32,2),$G32,0) -> 0 | AQ32: =IF($H32>0,AO32,0) -> 73.937 | AR32: =IF(AQ32>0,1,0) -> 1 | AS32: =IF($H32>0,AP32,0) -> 0 | AT32: =IF(AS32>0,1,0) -> 0 | AU32: =IF($I32=AU$6,$E32,0) -> 0 | AV32: =IF($K32=ROUND(AU$6*$F32,2),$G32,0) -> 0 | AW32: =IF($H32>0,AU32,0) -> 0 | AX32: =IF(AW32>0,1,0) -> 0 | AY32: =IF($H32>0,AV32,0) -> 0 | AZ32: =IF(AY32>0,1,0) -> 0 | BA32: =IF($I32=BA$6,$E32,0) -> 0 | BB32: =IF($K32=ROUND(BA$6*$F32,2),$G32,0) -> 0 | BC32: =IF($H32>0,BA32,0) -> 0 | BD32: =IF(BC32>0,1,0) -> 0 | BE32: =IF($H32>0,BB32,0) -> 0 | BF32: =IF(BE32>0,1,0) -> 0 | BH32: 0.073937 | BI32: 131.3 | BL32: 0
A33: =IF(E33+G33>0,A32,"") ->  | B33: =IF(E33+G33>0,B32,"") ->  | C33: 5 | D33: 03-4-23.007(333) | E33: 0 | F33: 1.1 | G33: 0 | H33: 0 | I33: =SUMIF(Y$14:BA$14,C33,Y$6:BA$6) -> 1386.75 | J33: =IF(H33=0,ROUND(E33*I33,2),ROUND(H33*E33,2)) -> 0 | K33: =ROUND(F33*I33,2) -> 1525.43 | L33: =IF(H33=0,ROUND(ROUND(F33*I33,2)*G33,2),ROUND(G33*H33,2)) -> 0 | M33: =L33-ROUND(G33*I33,2) -> 0 | O33: =J33+L33+N33 -> 0 | Q33: 405.07 | R33: =ROUND(Q33*E33,2) -> 0 | S33: =ROUND(F33*Q33,2) -> 445.58 | T33: =ROUND(S33*G33,2) -> 0 | U33: =T33-ROUND(Q33*G33,2) -> 0 | W33: =R33+T33+V33 -> 0 | AI33: =IF($I33=AI$6,$E33,0) -> 0 | AJ33: 0 | AK33: =IF($H33>0,AI33,0) -> 0 | AL33: =IF(AK33>0,1,0) -> 0 | AM33: =IF($H33>0,AJ33,0) -> 0 | AN33: =IF(AM33>0,1,0) -> 0 | AO33: =IF($I33=AO$6,$E33,0) -> 0 | AP33: 0 | AQ33: =IF($H33>0,AO33,0) -> 0 | AR33: =IF(AQ33>0,1,0) -> 0 | AS33: =IF($H33>0,AP33,0) -> 0 | AT33: =IF(AS33>0,1,0) -> 0 | AU33: =IF($I33=AU$6,$E33,0) -> 0 | AV33: 0 | AW33: =IF($H33>0,AU33,0) -> 0 | AX33: =IF(AW33>0,1,0) -> 0 | AY33: =IF($H33>0,AV33,0) -> 0 | AZ33: =IF(AY33>0,1,0) -> 0 | BA33: =IF($I33=BA$6,$E33,0) -> 0 | BB33: 0 | BC33: =IF($H33>0,BA33,0) -> 0 | BD33: =IF(BC33>0,1,0) -> 0 | BE33: =IF($H33>0,BB33,0) -> 0 | BF33: =IF(BE33>0,1,0) -> 0 | BH33: 0 | BL33: 0
A34: =IF(E34+G34>0,A32,"") ->  | B34: =IF(E34+G34>0,B32,"") ->  | C34: =C33 -> 5 | D34: 03-4-23.007(333) | E34: 0 | F34: 1.5 | G34: 0 | H34: 0 | I34: =SUMIF(Y$14:BA$14,C34,Y$7:BA$7) -> 0 | J34: 0 | K34: 0 | L34: 0 | M34: 0 | O34: 0 | Q34: 405.07 | R34: 0 | S34: 607.61 | T34: 0 | U34: 0 | W34: 0 | AI34: =IF($I34=AI$7,$E34,0) -> 0 | AJ34: =IF($K34=ROUND(AI$7*$F34,2),$G34,0) -> 0 | AK34: 0 | AL34: 0 | AM34: 0 | AN34: 0 | AO34: =IF($I34=AO$7,$E34,0) -> 0 | AP34: =IF($K34=ROUND(AO$7*$F34,2),$G34,0) -> 0 | AQ34: 0 | AR34: 0 | AS34: 0 | AT34: 0 | AU34: =IF($I34=AU$7,$E34,0) -> 0 | AV34: =IF($K34=ROUND(AU$7*$F34,2),$G34,0) -> 0 | AW34: 0 | AX34: 0 | AY34: 0 | AZ34: 0 | BA34: =IF($I34=BA$7,$E34,0) -> 0 | BB34: =IF($K34=ROUND(BA$7*$F34,2),$G34,0) -> 0 | BC34: 0 | BD34: 0 | BE34: 0 | BF34: 0 | BH34: 0 | BL34: 0
A35: =IF(E35+G35>0,A32,"") ->  | B35: =IF(E35+G35>0,B32,"") ->  | C35: =C33 -> 5 | D35: 03-4-23.007(333) | E35: 0 | F35: 1.1 | G35: 0 | H35: 0 | I35: =SUMIF(Y$14:BA$14,C35,Y$7:BA$7) -> 0 | J35: 0 | K35: 0 | L35: 0 | M35: 0 | O35: 0 | Q35: 405.07 | R35: 0 | S35: 445.58 | T35: 0 | U35: 0 | W35: 0 | AI35: =IF($I35=AI$7,$E35,0) -> 0 | AJ35: =IF($K35=ROUND(AI$7*$F35,2),$G35,0) -> 0 | AK35: 0 | AL35: 0 | AM35: 0 | AN35: 0 | AO35: =IF($I35=AO$7,$E35,0) -> 0 | AP35: =IF($K35=ROUND(AO$7*$F35,2),$G35,0) -> 0 | AQ35: 0 | AR35: 0 | AS35: 0 | AT35: 0 | AU35: =IF($I35=AU$7,$E35,0) -> 0 | AV35: =IF($K35=ROUND(AU$7*$F35,2),$G35,0) -> 0 | AW35: 0 | AX35: 0 | AY35: 0 | AZ35: 0 | BA35: =IF($I35=BA$7,$E35,0) -> 0 | BB35: =IF($K35=ROUND(BA$7*$F35,2),$G35,0) -> 0 | BC35: 0 | BD35: 0 | BE35: 0 | BF35: 0 | BH35: 0 | BL35: 0
A36: ОАО "Архангельскоблгаз" | C36: =C37 -> 7 | D36: 03-4-23.011(333) | E36: 0.67 | F36: 1.5 | G36: 0 | H36: 0.67 | I36: =SUMIF(Y$14:BA$14,C36,Y$6:BA$6) -> 2166.8 | J36: =IF(H36=0,ROUND(E36*I36,2),ROUND(H36*E36,2)) -> 0.45 | K36: =ROUND(F36*I36,2) -> 3250.2 | L36: =IF(H36=0,ROUND(ROUND(F36*I36,2)*G36,2),ROUND(G36*H36,2)) -> 0 | M36: =L36-ROUND(G36*I36,2) -> 0 | O36: =J36+L36+N36 -> 0.45 | Q36: 405.07 | R36: =ROUND(Q36*E36,2) -> 271.4 | S36: =ROUND(F36*Q36,2) -> 607.61 | T36: =ROUND(S36*G36,2) -> 0 | U36: =T36-ROUND(Q36*G36,2) -> 0 | W36: =R36+T36+V36 -> 271.4 | AI36: =IF($I36=AI$6,$E36,0) -> 0 | AJ36: =IF($K36=ROUND(AI$6*$F36,2),$G36,0) -> 0 | AK36: =IF($H36>0,AI36,0) -> 0 | AL36: =IF(AK36>0,1,0) -> 0 | AM36: =IF($H36>0,AJ36,0) -> 0 | AN36: =IF(AM36>0,1,0) -> 0 | AO36: =IF($I36=AO$6,$E36,0) -> 0 | AP36: =IF($K36=ROUND(AO$6*$F36,2),$G36,0) -> 0 | AQ36: =IF($H36>0,AO36,0) -> 0 | AR36: =IF(AQ36>0,1,0) -> 0 | AS36: =IF($H36>0,AP36,0) -> 0 | AT36: =IF(AS36>0,1,0) -> 0 | AU36: =IF($I36=AU$6,$E36,0) -> 0 | AV36: =IF($K36=ROUND(AU$6*$F36,2),$G36,0) -> 0 | AW36: =IF($H36>0,AU36,0) -> 0 | AX36: =IF(AW36>0,1,0) -> 0 | AY36: =IF($H36>0,AV36,0) -> 0 | AZ36: =IF(AY36>0,1,0) -> 0 | BA36: =IF($I36=BA$6,$E36,0) -> 0.67 | BB36: =IF($K36=ROUND(BA$6*$F36,2),$G36,0) -> 0 | BC36: =IF($H36>0,BA36,0) -> 0.67 | BD36: =IF(BC36>0,1,0) -> 1 | BE36: =IF($H36>0,BB36,0) -> 0 | BF36: =IF(BE36>0,1,0) -> 0 | BH36: 0.00067 | BI36: 1 | BL36: 0
A37: =IF(E37+G37>0,A36,"") ->  | B37: =IF(E37+G37>0,B36,"") ->  | C37: 7 | D37: 03-4-23.011(333) | E37: 0 | F37: 1.1 | G37: 0 | H37: 0 | I37: =SUMIF(Y$14:BA$14,C37,Y$6:BA$6) -> 2166.8 | J37: =IF(H37=0,ROUND(E37*I37,2),ROUND(H37*E37,2)) -> 0 | K37: =ROUND(F37*I37,2) -> 2383.48 | L37: =IF(H37=0,ROUND(ROUND(F37*I37,2)*G37,2),ROUND(G37*H37,2)) -> 0 | M37: =L37-ROUND(G37*I37,2) -> 0 | O37: =J37+L37+N37 -> 0 | Q37: 405.07 | R37: =ROUND(Q37*E37,2) -> 0 | S37: =ROUND(F37*Q37,2) -> 445.58 | T37: =ROUND(S37*G37,2) -> 0 | U37: =T37-ROUND(Q37*G37,2) -> 0 | W37: =R37+T37+V37 -> 0 | AI37: =IF($I37=AI$6,$E37,0) -> 0 | AJ37: 0 | AK37: =IF($H37>0,AI37,0) -> 0 | AL37: =IF(AK37>0,1,0) -> 0 | AM37: =IF($H37>0,AJ37,0) -> 0 | AN37: =IF(AM37>0,1,0) -> 0 | AO37: =IF($I37=AO$6,$E37,0) -> 0 | AP37: 0 | AQ37: =IF($H37>0,AO37,0) -> 0 | AR37: =IF(AQ37>0,1,0) -> 0 | AS37: =IF($H37>0,AP37,0) -> 0 | AT37: =IF(AS37>0,1,0) -> 0 | AU37: =IF($I37=AU$6,$E37,0) -> 0 | AV37: 0 | AW37: =IF($H37>0,AU37,0) -> 0 | AX37: =IF(AW37>0,1,0) -> 0 | AY37: =IF($H37>0,AV37,0) -> 0 | AZ37: =IF(AY37>0,1,0) -> 0 | BA37: =IF($I37=BA$6,$E37,0) -> 0 | BB37: 0 | BC37: =IF($H37>0,BA37,0) -> 0 | BD37: =IF(BC37>0,1,0) -> 0 | BE37: =IF($H37>0,BB37,0) -> 0 | BF37: =IF(BE37>0,1,0) -> 0 | BH37: 0 | BL37: 0
A38: =IF(E38+G38>0,A36,"") ->  | B38: =IF(E38+G38>0,B36,"") ->  | C38: =C37 -> 7 | D38: 03-4-23.011(333) | E38: 0 | F38: 1.5 | G38: 0 | H38: 0 | I38: =SUMIF(Y$14:BA$14,C38,Y$7:BA$7) -> 0 | J38: 0 | K38: 0 | L38: 0 | M38: 0 | O38: 0 | Q38: 405.07 | R38: 0 | S38: 607.61 | T38: 0 | U38: 0 | W38: 0 | AI38: =IF($I38=AI$7,$E38,0) -> 0 | AJ38: =IF($K38=ROUND(AI$7*$F38,2),$G38,0) -> 0 | AK38: 0 | AL38: 0 | AM38: 0 | AN38: 0 | AO38: =IF($I38=AO$7,$E38,0) -> 0 | AP38: =IF($K38=ROUND(AO$7*$F38,2),$G38,0) -> 0 | AQ38: 0 | AR38: 0 | AS38: 0 | AT38: 0 | AU38: =IF($I38=AU$7,$E38,0) -> 0 | AV38: =IF($K38=ROUND(AU$7*$F38,2),$G38,0) -> 0 | AW38: 0 | AX38: 0 | AY38: 0 | AZ38: 0 | BA38: =IF($I38=BA$7,$E38,0) -> 0 | BB38: =IF($K38=ROUND(BA$7*$F38,2),$G38,0) -> 0 | BC38: 0 | BD38: 0 | BE38: 0 | BF38: 0 | BH38: 0 | BL38: 0
A39: =IF(E39+G39>0,A36,"") ->  | B39: =IF(E39+G39>0,B36,"") ->  | C39: =C37 -> 7 | D39: 03-4-23.011(333) | E39: 0 | F39: 1.1 | G39: 0 | H39: 0 | I39: =SUMIF(Y$14:BA$14,C39,Y$7:BA$7) -> 0 | J39: 0 | K39: 0 | L39: 0 | M39: 0 | O39: 0 | Q39: 405.07 | R39: 0 | S39: 445.58 | T39: 0 | U39: 0 | W39: 0 | AI39: =IF($I39=AI$7,$E39,0) -> 0 | AJ39: =IF($K39=ROUND(AI$7*$F39,2),$G39,0) -> 0 | AK39: 0 | AL39: 0 | AM39: 0 | AN39: 0 | AO39: =IF($I39=AO$7,$E39,0) -> 0 | AP39: =IF($K39=ROUND(AO$7*$F39,2),$G39,0) -> 0 | AQ39: 0 | AR39: 0 | AS39: 0 | AT39: 0 | AU39: =IF($I39=AU$7,$E39,0) -> 0 | AV39: =IF($K39=ROUND(AU$7*$F39,2),$G39,0) -> 0 | AW39: 0 | AX39: 0 | AY39: 0 | AZ39: 0 | BA39: =IF($I39=BA$7,$E39,0) -> 0 | BB39: =IF($K39=ROUND(BA$7*$F39,2),$G39,0) -> 0 | BC39: 0 | BD39: 0 | BE39: 0 | BF39: 0 | BH39: 0 | BL39: 0
A40: ГКУЗ АО АМЦМР "Резерв" | C40: =C41 -> 6 | D40: 03-4-23.012Б(333) | E40: 2.508 | F40: 1.5 | G40: 0 | H40: 2.508 | I40: =SUMIF(Y$14:BA$14,C40,Y$6:BA$6) -> 1733.45 | J40: =IF(H40=0,ROUND(E40*I40,2),ROUND(H40*E40,2)) -> 6.29 | K40: =ROUND(F40*I40,2) -> 2600.18 | L40: =IF(H40=0,ROUND(ROUND(F40*I40,2)*G40,2),ROUND(G40*H40,2)) -> 0 | M40: =L40-ROUND(G40*I40,2) -> 0 | O40: =J40+L40+N40 -> 6.29 | Q40: 405.07 | R40: =ROUND(Q40*E40,2) -> 1015.92 | S40: =ROUND(F40*Q40,2) -> 607.61 | T40: =ROUND(S40*G40,2) -> 0 | U40: =T40-ROUND(Q40*G40,2) -> 0 | W40: =R40+T40+V40 -> 1015.92 | AI40: =IF($I40=AI$6,$E40,0) -> 0 | AJ40: =IF($K40=ROUND(AI$6*$F40,2),$G40,0) -> 0 | AK40: =IF($H40>0,AI40,0) -> 0 | AL40: =IF(AK40>0,1,0) -> 0 | AM40: =IF($H40>0,AJ40,0) -> 0 | AN40: =IF(AM40>0,1,0) -> 0 | AO40: =IF($I40=AO$6,$E40,0) -> 0 | AP40: =IF($K40=ROUND(AO$6*$F40,2),$G40,0) -> 0 | AQ40: =IF($H40>0,AO40,0) -> 0 | AR40: =IF(AQ40>0,1,0) -> 0 | AS40: =IF($H40>0,AP40,0) -> 0 | AT40: =IF(AS40>0,1,0) -> 0 | AU40: =IF($I40=AU$6,$E40,0) -> 2.508 | AV40: =IF($K40=ROUND(AU$6*$F40,2),$G40,0) -> 0 | AW40: =IF($H40>0,AU40,0) -> 2.508 | AX40: =IF(AW40>0,1,0) -> 1 | AY40: =IF($H40>0,AV40,0) -> 0 | AZ40: =IF(AY40>0,1,0) -> 0 | BA40: =IF($I40=BA$6,$E40,0) -> 0 | BB40: =IF($K40=ROUND(BA$6*$F40,2),$G40,0) -> 0 | BC40: =IF($H40>0,BA40,0) -> 0 | BD40: =IF(BC40>0,1,0) -> 0 | BE40: =IF($H40>0,BB40,0) -> 0 | BF40: =IF(BE40>0,1,0) -> 0 | BH40: 0.002508 | BI40: 3.5 | BL40: 0
A41: =IF(E41+G41>0,A40,"") ->  | B41: =IF(E41+G41>0,B40,"") ->  | C41: 6 | D41: 03-4-23.012Б(333) | E41: 0 | F41: 1.1 | G41: 0 | H41: 0 | I41: =SUMIF(Y$14:BA$14,C41,Y$6:BA$6) -> 1733.45 | J41: =IF(H41=0,ROUND(E41*I41,2),ROUND(H41*E41,2)) -> 0 | K41: =ROUND(F41*I41,2) -> 1906.8 | L41: =IF(H41=0,ROUND(ROUND(F41*I41,2)*G41,2),ROUND(G41*H41,2)) -> 0 | M41: =L41-ROUND(G41*I41,2) -> 0 | O41: =J41+L41+N41 -> 0 | Q41: 405.07 | R41: =ROUND(Q41*E41,2) -> 0 | S41: =ROUND(F41*Q41,2) -> 445.58 | T41: =ROUND(S41*G41,2) -> 0 | U41: =T41-ROUND(Q41*G41,2) -> 0 | W41: =R41+T41+V41 -> 0 | AI41: =IF($I41=AI$6,$E41,0) -> 0 | AJ41: 0 | AK41: =IF($H41>0,AI41,0) -> 0 | AL41: =IF(AK41>0,1,0) -> 0 | AM41: =IF($H41>0,AJ41,0) -> 0 | AN41: =IF(AM41>0,1,0) -> 0 | AO41: =IF($I41=AO$6,$E41,0) -> 0 | AP41: 0 | AQ41: =IF($H41>0,AO41,0) -> 0 | AR41: =IF(AQ41>0,1,0) -> 0 | AS41: =IF($H41>0,AP41,0) -> 0 | AT41: =IF(AS41>0,1,0) -> 0 | AU41: =IF($I41=AU$6,$E41,0) -> 0 | AV41: 0 | AW41: =IF($H41>0,AU41,0) -> 0 | AX41: =IF(AW41>0,1,0) -> 0 | AY41: =IF($H41>0,AV41,0) -> 0 | AZ41: =IF(AY41>0,1,0) -> 0 | BA41: =IF($I41=BA$6,$E41,0) -> 0 | BB41: 0 | BC41: =IF($H41>0,BA41,0) -> 0 | BD41: =IF(BC41>0,1,0) -> 0 | BE41: =IF($H41>0,BB41,0) -> 0 | BF41: =IF(BE41>0,1,0) -> 0 | BH41: 0 | BL41: 0
A42: =IF(E42+G42>0,A40,"") ->  | B42: =IF(E42+G42>0,B40,"") ->  | C42: =C41 -> 6 | D42: 03-4-23.012Б(333) | E42: 0 | F42: 1.5 | G42: 0 | H42: 0 | I42: =SUMIF(Y$14:BA$14,C42,Y$7:BA$7) -> 0 | J42: 0 | K42: 0 | L42: 0 | M42: 0 | O42: 0 | Q42: 405.07 | R42: 0 | S42: 607.61 | T42: 0 | U42: 0 | W42: 0 | AI42: =IF($I42=AI$7,$E42,0) -> 0 | AJ42: =IF($K42=ROUND(AI$7*$F42,2),$G42,0) -> 0 | AK42: 0 | AL42: 0 | AM42: 0 | AN42: 0 | AO42: =IF($I42=AO$7,$E42,0) -> 0 | AP42: =IF($K42=ROUND(AO$7*$F42,2),$G42,0) -> 0 | AQ42: 0 | AR42: 0 | AS42: 0 | AT42: 0 | AU42: =IF($I42=AU$7,$E42,0) -> 0 | AV42: =IF($K42=ROUND(AU$7*$F42,2),$G42,0) -> 0 | AW42: 0 | AX42: 0 | AY42: 0 | AZ42: 0 | BA42: =IF($I42=BA$7,$E42,0) -> 0 | BB42: =IF($K42=ROUND(BA$7*$F42,2),$G42,0) -> 0 | BC42: 0 | BD42: 0 | BE42: 0 | BF42: 0 | BH42: 0 | BL42: 0
A43: =IF(E43+G43>0,A40,"") ->  | B43: =IF(E43+G43>0,B40,"") ->  | C43: =C41 -> 6 | D43: 03-4-23.012Б(333) | E43: 0 | F43: 1.1 | G43: 0 | H43: 0 | I43: =SUMIF(Y$14:BA$14,C43,Y$7:BA$7) -> 0 | J43: 0 | K43: 0 | L43: 0 | M43: 0 | O43: 0 | Q43: 405.07 | R43: 0 | S43: 445.58 | T43: 0 | U43: 0 | W43: 0 | AI43: =IF($I43=AI$7,$E43,0) -> 0 | AJ43: =IF($K43=ROUND(AI$7*$F43,2),$G43,0) -> 0 | AK43: 0 | AL43: 0 | AM43: 0 | AN43: 0 | AO43: =IF($I43=AO$7,$E43,0) -> 0 | AP43: =IF($K43=ROUND(AO$7*$F43,2),$G43,0) -> 0 | AQ43: 0 | AR43: 0 | AS43: 0 | AT43: 0 | AU43: =IF($I43=AU$7,$E43,0) -> 0 | AV43: =IF($K43=ROUND(AU$7*$F43,2),$G43,0) -> 0 | AW43: 0 | AX43: 0 | AY43: 0 | AZ43: 0 | BA43: =IF($I43=BA$7,$E43,0) -> 0 | BB43: =IF($K43=ROUND(BA$7*$F43,2),$G43,0) -> 0 | BC43: 0 | BD43: 0 | BE43: 0 | BF43: 0 | BH43: 0 | BL43: 0
A44: ООО "КМТС" | C44: =C45 -> 6 | D44: 03-4-23.364 | E44: 1.419 | F44: 1.5 | G44: 0 | H44: 1.419 | I44: =SUMIF(Y$14:BA$14,C44,Y$6:BA$6) -> 1733.45 | J44: =IF(H44=0,ROUND(E44*I44,2),ROUND(H44*E44,2)) -> 2.01 | K44: =ROUND(F44*I44,2) -> 2600.18 | L44: =IF(H44=0,ROUND(ROUND(F44*I44,2)*G44,2),ROUND(G44*H44,2)) -> 0 | M44: =L44-ROUND(G44*I44,2) -> 0 | O44: =J44+L44+N44 -> 2.01 | Q44: 405.07 | R44: =ROUND(Q44*E44,2) -> 574.79 | S44: =ROUND(F44*Q44,2) -> 607.61 | T44: =ROUND(S44*G44,2) -> 0 | U44: =T44-ROUND(Q44*G44,2) -> 0 | W44: =R44+T44+V44 -> 574.79 | AI44: =IF($I44=AI$6,$E44,0) -> 0 | AJ44: =IF($K44=ROUND(AI$6*$F44,2),$G44,0) -> 0 | AK44: =IF($H44>0,AI44,0) -> 0 | AL44: =IF(AK44>0,1,0) -> 0 | AM44: =IF($H44>0,AJ44,0) -> 0 | AN44: =IF(AM44>0,1,0) -> 0 | AO44: =IF($I44=AO$6,$E44,0) -> 0 | AP44: =IF($K44=ROUND(AO$6*$F44,2),$G44,0) -> 0 | AQ44: =IF($H44>0,AO44,0) -> 0 | AR44: =IF(AQ44>0,1,0) -> 0 | AS44: =IF($H44>0,AP44,0) -> 0 | AT44: =IF(AS44>0,1,0) -> 0 | AU44: =IF($I44=AU$6,$E44,0) -> 1.419 | AV44: =IF($K44=ROUND(AU$6*$F44,2),$G44,0) -> 0 | AW44: =IF($H44>0,AU44,0) -> 1.419 | AX44: =IF(AW44>0,1,0) -> 1 | AY44: =IF($H44>0,AV44,0) -> 0 | AZ44: =IF(AY44>0,1,0) -> 0 | BA44: =IF($I44=BA$6,$E44,0) -> 0 | BB44: =IF($K44=ROUND(BA$6*$F44,2),$G44,0) -> 0 | BC44: =IF($H44>0,BA44,0) -> 0 | BD44: =IF(BC44>0,1,0) -> 0 | BE44: =IF($H44>0,BB44,0) -> 0 | BF44: =IF(BE44>0,1,0) -> 0 | BH44: 0.001419 | BI44: 2.5 | BL44: 0
A45: =IF(E45+G45>0,A44,"") ->  | B45: =IF(E45+G45>0,B44,"") ->  | C45: 6 | D45: 03-4-23.364 | E45: 0 | F45: 1.1 | G45: 0 | H45: 0 | I45: =SUMIF(Y$14:BA$14,C45,Y$6:BA$6) -> 1733.45 | J45: =IF(H45=0,ROUND(E45*I45,2),ROUND(H45*E45,2)) -> 0 | K45: =ROUND(F45*I45,2) -> 1906.8 | L45: =IF(H45=0,ROUND(ROUND(F45*I45,2)*G45,2),ROUND(G45*H45,2)) -> 0 | M45: =L45-ROUND(G45*I45,2) -> 0 | O45: =J45+L45+N45 -> 0 | Q45: 405.07 | R45: =ROUND(Q45*E45,2) -> 0 | S45: =ROUND(F45*Q45,2) -> 445.58 | T45: =ROUND(S45*G45,2) -> 0 | U45: =T45-ROUND(Q45*G45,2) -> 0 | W45: =R45+T45+V45 -> 0 | AI45: =IF($I45=AI$6,$E45,0) -> 0 | AJ45: 0 | AK45: =IF($H45>0,AI45,0) -> 0 | AL45: =IF(AK45>0,1,0) -> 0 | AM45: =IF($H45>0,AJ45,0) -> 0 | AN45: =IF(AM45>0,1,0) -> 0 | AO45: =IF($I45=AO$6,$E45,0) -> 0 | AP45: 0 | AQ45: =IF($H45>0,AO45,0) -> 0 | AR45: =IF(AQ45>0,1,0) -> 0 | AS45: =IF($H45>0,AP45,0) -> 0 | AT45: =IF(AS45>0,1,0) -> 0 | AU45: =IF($I45=AU$6,$E45,0) -> 0 | AV45: 0 | AW45: =IF($H45>0,AU45,0) -> 0 | AX45: =IF(AW45>0,1,0) -> 0 | AY45: =IF($H45>0,AV45,0) -> 0 | AZ45: =IF(AY45>0,1,0) -> 0 | BA45: =IF($I45=BA$6,$E45,0) -> 0 | BB45: 0 | BC45: =IF($H45>0,BA45,0) -> 0 | BD45: =IF(BC45>0,1,0) -> 0 | BE45: =IF($H45>0,BB45,0) -> 0 | BF45: =IF(BE45>0,1,0) -> 0 | BH45: 0 | BL45: 0
A46: =IF(E46+G46>0,A44,"") ->  | B46: =IF(E46+G46>0,B44,"") ->  | C46: =C45 -> 6 | D46: 03-4-23.364 | E46: 0 | F46: 1.5 | G46: 0 | H46: 0 | I46: =SUMIF(Y$14:BA$14,C46,Y$7:BA$7) -> 0 | J46: 0 | K46: 0 | L46: 0 | M46: 0 | O46: 0 | Q46: 405.07 | R46: 0 | S46: 607.61 | T46: 0 | U46: 0 | W46: 0 | AI46: =IF($I46=AI$7,$E46,0) -> 0 | AJ46: =IF($K46=ROUND(AI$7*$F46,2),$G46,0) -> 0 | AK46: 0 | AL46: 0 | AM46: 0 | AN46: 0 | AO46: =IF($I46=AO$7,$E46,0) -> 0 | AP46: =IF($K46=ROUND(AO$7*$F46,2),$G46,0) -> 0 | AQ46: 0 | AR46: 0 | AS46: 0 | AT46: 0 | AU46: =IF($I46=AU$7,$E46,0) -> 0 | AV46: =IF($K46=ROUND(AU$7*$F46,2),$G46,0) -> 0 | AW46: 0 | AX46: 0 | AY46: 0 | AZ46: 0 | BA46: =IF($I46=BA$7,$E46,0) -> 0 | BB46: =IF($K46=ROUND(BA$7*$F46,2),$G46,0) -> 0 | BC46: 0 | BD46: 0 | BE46: 0 | BF46: 0 | BH46: 0 | BL46: 0
A47: =IF(E47+G47>0,A44,"") ->  | B47: =IF(E47+G47>0,B44,"") ->  | C47: =C45 -> 6 | D47: 03-4-23.364 | E47: 0 | F47: 1.1 | G47: 0 | H47: 0 | I47: =SUMIF(Y$14:BA$14,C47,Y$7:BA$7) -> 0 | J47: 0 | K47: 0 | L47: 0 | M47: 0 | O47: 0 | Q47: 405.07 | R47: 0 | S47: 445.58 | T47: 0 | U47: 0 | W47: 0 | AI47: =IF($I47=AI$7,$E47,0) -> 0 | AJ47: =IF($K47=ROUND(AI$7*$F47,2),$G47,0) -> 0 | AK47: 0 | AL47: 0 | AM47: 0 | AN47: 0 | AO47: =IF($I47=AO$7,$E47,0) -> 0 | AP47: =IF($K47=ROUND(AO$7*$F47,2),$G47,0) -> 0 | AQ47: 0 | AR47: 0 | AS47: 0 | AT47: 0 | AU47: =IF($I47=AU$7,$E47,0) -> 0 | AV47: =IF($K47=ROUND(AU$7*$F47,2),$G47,0) -> 0 | AW47: 0 | AX47: 0 | AY47: 0 | AZ47: 0 | BA47: =IF($I47=BA$7,$E47,0) -> 0 | BB47: =IF($K47=ROUND(BA$7*$F47,2),$G47,0) -> 0 | BC47: 0 | BD47: 0 | BE47: 0 | BF47: 0 | BH47: 0 | BL47: 0
A48: ООО "Диал - Север" | B48: Вельск, ул.50 лет Октября-48 | C48: =C49 -> 5 | D48: 03-4-23.366 | E48: 11 | F48: 1.5 | G48: 0 | H48: 11 | I48: =SUMIF(Y$14:BA$14,C48,Y$6:BA$6) -> 1386.75 | J48: =IF(H48=0,ROUND(E48*I48,2),ROUND(H48*E48,2)) -> 121 | K48: =ROUND(F48*I48,2) -> 2080.13 | L48: =IF(H48=0,ROUND(ROUND(F48*I48,2)*G48,2),ROUND(G48*H48,2)) -> 0 | M48: =L48-ROUND(G48*I48,2) -> 0 | O48: =J48+L48+N48 -> 121 | Q48: 405.07 | R48: =ROUND(Q48*E48,2) -> 4455.77 | S48: =ROUND(F48*Q48,2) -> 607.61 | T48: =ROUND(S48*G48,2) -> 0 | U48: =T48-ROUND(Q48*G48,2) -> 0 | W48: =R48+T48+V48 -> 4455.77 | AI48: =IF($I48=AI$6,$E48,0) -> 0 | AJ48: =IF($K48=ROUND(AI$6*$F48,2),$G48,0) -> 0 | AK48: =IF($H48>0,AI48,0) -> 0 | AL48: =IF(AK48>0,1,0) -> 0 | AM48: =IF($H48>0,AJ48,0) -> 0 | AN48: =IF(AM48>0,1,0) -> 0 | AO48: =IF($I48=AO$6,$E48,0) -> 11 | AP48: =IF($K48=ROUND(AO$6*$F48,2),$G48,0) -> 0 | AQ48: =IF($H48>0,AO48,0) -> 11 | AR48: =IF(AQ48>0,1,0) -> 1 | AS48: =IF($H48>0,AP48,0) -> 0 | AT48: =IF(AS48>0,1,0) -> 0 | AU48: =IF($I48=AU$6,$E48,0) -> 0 | AV48: =IF($K48=ROUND(AU$6*$F48,2),$G48,0) -> 0 | AW48: =IF($H48>0,AU48,0) -> 0 | AX48: =IF(AW48>0,1,0) -> 0 | AY48: =IF($H48>0,AV48,0) -> 0 | AZ48: =IF(AY48>0,1,0) -> 0 | BA48: =IF($I48=BA$6,$E48,0) -> 0 | BB48: =IF($K48=ROUND(BA$6*$F48,2),$G48,0) -> 0 | BC48: =IF($H48>0,BA48,0) -> 0 | BD48: =IF(BC48>0,1,0) -> 0 | BE48: =IF($H48>0,BB48,0) -> 0 | BF48: =IF(BE48>0,1,0) -> 0 | BH48: 0.011 | BI48: 10 | BL48: 0
A49: =IF(E49+G49>0,A48,"") ->  | B49: =IF(E49+G49>0,B48,"") ->  | C49: 5 | D49: 03-4-23.366 | E49: 0 | F49: 1.1 | G49: 0 | H49: 0 | I49: =SUMIF(Y$14:BA$14,C49,Y$6:BA$6) -> 1386.75 | J49: =IF(H49=0,ROUND(E49*I49,2),ROUND(H49*E49,2)) -> 0 | K49: =ROUND(F49*I49,2) -> 1525.43 | L49: =IF(H49=0,ROUND(ROUND(F49*I49,2)*G49,2),ROUND(G49*H49,2)) -> 0 | M49: =L49-ROUND(G49*I49,2) -> 0 | O49: =J49+L49+N49 -> 0 | Q49: 405.07 | R49: =ROUND(Q49*E49,2) -> 0 | S49: =ROUND(F49*Q49,2) -> 445.58 | T49: =ROUND(S49*G49,2) -> 0 | U49: =T49-ROUND(Q49*G49,2) -> 0 | W49: =R49+T49+V49 -> 0 | AI49: =IF($I49=AI$6,$E49,0) -> 0 | AJ49: 0 | AK49: =IF($H49>0,AI49,0) -> 0 | AL49: =IF(AK49>0,1,0) -> 0 | AM49: =IF($H49>0,AJ49,0) -> 0 | AN49: =IF(AM49>0,1,0) -> 0 | AO49: =IF($I49=AO$6,$E49,0) -> 0 | AP49: 0 | AQ49: =IF($H49>0,AO49,0) -> 0 | AR49: =IF(AQ49>0,1,0) -> 0 | AS49: =IF($H49>0,AP49,0) -> 0 | AT49: =IF(AS49>0,1,0) -> 0 | AU49: =IF($I49=AU$6,$E49,0) -> 0 | AV49: 0 | AW49: =IF($H49>0,AU49,0) -> 0 | AX49: =IF(AW49>0,1,0) -> 0 | AY49: =IF($H49>0,AV49,0) -> 0 | AZ49: =IF(AY49>0,1,0) -> 0 | BA49: =IF($I49=BA$6,$E49,0) -> 0 | BB49: 0 | BC49: =IF($H49>0,BA49,0) -> 0 | BD49: =IF(BC49>0,1,0) -> 0 | BE49: =IF($H49>0,BB49,0) -> 0 | BF49: =IF(BE49>0,1,0) -> 0 | BH49: 0 | BL49: 0
A50: =IF(E50+G50>0,A48,"") ->  | B50: =IF(E50+G50>0,B48,"") ->  | C50: =C49 -> 5 | D50: 03-4-23.366 | E50: 0 | F50: 1.5 | G50: 0 | H50: 0 | I50: =SUMIF(Y$14:BA$14,C50,Y$7:BA$7) -> 0 | J50: 0 | K50: 0 | L50: 0 | M50: 0 | O50: 0 | Q50: 405.07 | R50: 0 | S50: 607.61 | T50: 0 | U50: 0 | W50: 0 | AI50: =IF($I50=AI$7,$E50,0) -> 0 | AJ50: =IF($K50=ROUND(AI$7*$F50,2),$G50,0) -> 0 | AK50: 0 | AL50: 0 | AM50: 0 | AN50: 0 | AO50: =IF($I50=AO$7,$E50,0) -> 0 | AP50: =IF($K50=ROUND(AO$7*$F50,2),$G50,0) -> 0 | AQ50: 0 | AR50: 0 | AS50: 0 | AT50: 0 | AU50: =IF($I50=AU$7,$E50,0) -> 0 | AV50: =IF($K50=ROUND(AU$7*$F50,2),$G50,0) -> 0 | AW50: 0 | AX50: 0 | AY50: 0 | AZ50: 0 | BA50: =IF($I50=BA$7,$E50,0) -> 0 | BB50: =IF($K50=ROUND(BA$7*$F50,2),$G50,0) -> 0 | BC50: 0 | BD50: 0 | BE50: 0 | BF50: 0 | BH50: 0 | BL50: 0
A51: =IF(E51+G51>0,A48,"") ->  | B51: =IF(E51+G51>0,B48,"") ->  | C51: =C49 -> 5 | D51: 03-4-23.366 | E51: 0 | F51: 1.1 | G51: 0 | H51: 0 | I51: =SUMIF(Y$14:BA$14,C51,Y$7:BA$7) -> 0 | J51: 0 | K51: 0 | L51: 0 | M51: 0 | O51: 0 | Q51: 405.07 | R51: 0 | S51: 445.58 | T51: 0 | U51: 0 | W51: 0 | AI51: =IF($I51=AI$7,$E51,0) -> 0 | AJ51: =IF($K51=ROUND(AI$7*$F51,2),$G51,0) -> 0 | AK51: 0 | AL51: 0 | AM51: 0 | AN51: 0 | AO51: =IF($I51=AO$7,$E51,0) -> 0 | AP51: =IF($K51=ROUND(AO$7*$F51,2),$G51,0) -> 0 | AQ51: 0 | AR51: 0 | AS51: 0 | AT51: 0 | AU51: =IF($I51=AU$7,$E51,0) -> 0 | AV51: =IF($K51=ROUND(AU$7*$F51,2),$G51,0) -> 0 | AW51: 0 | AX51: 0 | AY51: 0 | AZ51: 0 | BA51: =IF($I51=BA$7,$E51,0) -> 0 | BB51: =IF($K51=ROUND(BA$7*$F51,2),$G51,0) -> 0 | BC51: 0 | BD51: 0 | BE51: 0 | BF51: 0 | BH51: 0 | BL51: 0
A52: ООО "Диал - Север" | B52: Вельск, ул.50 лет Октября-48 | C52: =C53 -> 5 | D52: 03-4-23.366(333) | E52: 15.842 | F52: 1.5 | G52: 0 | H52: 15.842 | I52: =SUMIF(Y$14:BA$14,C52,Y$6:BA$6) -> 1386.75 | J52: =IF(H52=0,ROUND(E52*I52,2),ROUND(H52*E52,2)) -> 250.97 | K52: =ROUND(F52*I52,2) -> 2080.13 | L52: =IF(H52=0,ROUND(ROUND(F52*I52,2)*G52,2),ROUND(G52*H52,2)) -> 0 | M52: =L52-ROUND(G52*I52,2) -> 0 | O52: =J52+L52+N52 -> 250.97 | Q52: 405.07 | R52: =ROUND(Q52*E52,2) -> 6417.12 | S52: =ROUND(F52*Q52,2) -> 607.61 | T52: =ROUND(S52*G52,2) -> 0 | U52: =T52-ROUND(Q52*G52,2) -> 0 | W52: =R52+T52+V52 -> 6417.12 | AI52: =IF($I52=AI$6,$E52,0) -> 0 | AJ52: =IF($K52=ROUND(AI$6*$F52,2),$G52,0) -> 0 | AK52: =IF($H52>0,AI52,0) -> 0 | AL52: =IF(AK52>0,1,0) -> 0 | AM52: =IF($H52>0,AJ52,0) -> 0 | AN52: =IF(AM52>0,1,0) -> 0 | AO52: =IF($I52=AO$6,$E52,0) -> 15.842 | AP52: =IF($K52=ROUND(AO$6*$F52,2),$G52,0) -> 0 | AQ52: =IF($H52>0,AO52,0) -> 15.842 | AR52: =IF(AQ52>0,1,0) -> 1 | AS52: =IF($H52>0,AP52,0) -> 0 | AT52: =IF(AS52>0,1,0) -> 0 | AU52: =IF($I52=AU$6,$E52,0) -> 0 | AV52: =IF($K52=ROUND(AU$6*$F52,2),$G52,0) -> 0 | AW52: =IF($H52>0,AU52,0) -> 0 | AX52: =IF(AW52>0,1,0) -> 0 | AY52: =IF($H52>0,AV52,0) -> 0 | AZ52: =IF(AY52>0,1,0) -> 0 | BA52: =IF($I52=BA$6,$E52,0) -> 0 | BB52: =IF($K52=ROUND(BA$6*$F52,2),$G52,0) -> 0 | BC52: =IF($H52>0,BA52,0) -> 0 | BD52: =IF(BC52>0,1,0) -> 0 | BE52: =IF($H52>0,BB52,0) -> 0 | BF52: =IF(BE52>0,1,0) -> 0 | BH52: 0.015842 | BI52: 37 | BL52: 0
A53: =IF(E53+G53>0,A52,"") ->  | B53: =IF(E53+G53>0,B52,"") ->  | C53: 5 | D53: 03-4-23.366(333) | E53: 0 | F53: 1.1 | G53: 0 | H53: 0 | I53: =SUMIF(Y$14:BA$14,C53,Y$6:BA$6) -> 1386.75 | J53: =IF(H53=0,ROUND(E53*I53,2),ROUND(H53*E53,2)) -> 0 | K53: =ROUND(F53*I53,2) -> 1525.43 | L53: =IF(H53=0,ROUND(ROUND(F53*I53,2)*G53,2),ROUND(G53*H53,2)) -> 0 | M53: =L53-ROUND(G53*I53,2) -> 0 | O53: =J53+L53+N53 -> 0 | Q53: 405.07 | R53: =ROUND(Q53*E53,2) -> 0 | S53: =ROUND(F53*Q53,2) -> 445.58 | T53: =ROUND(S53*G53,2) -> 0 | U53: =T53-ROUND(Q53*G53,2) -> 0 | W53: =R53+T53+V53 -> 0 | AI53: =IF($I53=AI$6,$E53,0) -> 0 | AJ53: 0 | AK53: =IF($H53>0,AI53,0) -> 0 | AL53: =IF(AK53>0,1,0) -> 0 | AM53: =IF($H53>0,AJ53,0) -> 0 | AN53: =IF(AM53>0,1,0) -> 0 | AO53: =IF($I53=AO$6,$E53,0) -> 0 | AP53: 0 | AQ53: =IF($H53>0,AO53,0) -> 0 | AR53: =IF(AQ53>0,1,0) -> 0 | AS53: =IF($H53>0,AP53,0) -> 0 | AT53: =IF(AS53>0,1,0) -> 0 | AU53: =IF($I53=AU$6,$E53,0) -> 0 | AV53: 0 | AW53: =IF($H53>0,AU53,0) -> 0 | AX53: =IF(AW53>0,1,0) -> 0 | AY53: =IF($H53>0,AV53,0) -> 0 | AZ53: =IF(AY53>0,1,0) -> 0 | BA53: =IF($I53=BA$6,$E53,0) -> 0 | BB53: 0 | BC53: =IF($H53>0,BA53,0) -> 0 | BD53: =IF(BC53>0,1,0) -> 0 | BE53: =IF($H53>0,BB53,0) -> 0 | BF53: =IF(BE53>0,1,0) -> 0 | BH53: 0 | BL53: 0
A54: =IF(E54+G54>0,A52,"") ->  | B54: =IF(E54+G54>0,B52,"") ->  | C54: =C53 -> 5 | D54: 03-4-23.366(333) | E54: 0 | F54: 1.5 | G54: 0 | H54: 0 | I54: =SUMIF(Y$14:BA$14,C54,Y$7:BA$7) -> 0 | J54: 0 | K54: 0 | L54: 0 | M54: 0 | O54: 0 | Q54: 405.07 | R54: 0 | S54: 607.61 | T54: 0 | U54: 0 | W54: 0 | AI54: =IF($I54=AI$7,$E54,0) -> 0 | AJ54: =IF($K54=ROUND(AI$7*$F54,2),$G54,0) -> 0 | AK54: 0 | AL54: 0 | AM54: 0 | AN54: 0 | AO54: =IF($I54=AO$7,$E54,0) -> 0 | AP54: =IF($K54=ROUND(AO$7*$F54,2),$G54,0) -> 0 | AQ54: 0 | AR54: 0 | AS54: 0 | AT54: 0 | AU54: =IF($I54=AU$7,$E54,0) -> 0 | AV54: =IF($K54=ROUND(AU$7*$F54,2),$G54,0) -> 0 | AW54: 0 | AX54: 0 | AY54: 0 | AZ54: 0 | BA54: =IF($I54=BA$7,$E54,0) -> 0 | BB54: =IF($K54=ROUND(BA$7*$F54,2),$G54,0) -> 0 | BC54: 0 | BD54: 0 | BE54: 0 | BF54: 0 | BH54: 0 | BL54: 0
A55: =IF(E55+G55>0,A52,"") ->  | B55: =IF(E55+G55>0,B52,"") ->  | C55: =C53 -> 5 | D55: 03-4-23.366(333) | E55: 0 | F55: 1.1 | G55: 0 | H55: 0 | I55: =SUMIF(Y$14:BA$14,C55,Y$7:BA$7) -> 0 | J55: 0 | K55: 0 | L55: 0 | M55: 0 | O55: 0 | Q55: 405.07 | R55: 0 | S55: 445.58 | T55: 0 | U55: 0 | W55: 0 | AI55: =IF($I55=AI$7,$E55,0) -> 0 | AJ55: =IF($K55=ROUND(AI$7*$F55,2),$G55,0) -> 0 | AK55: 0 | AL55: 0 | AM55: 0 | AN55: 0 | AO55: =IF($I55=AO$7,$E55,0) -> 0 | AP55: =IF($K55=ROUND(AO$7*$F55,2),$G55,0) -> 0 | AQ55: 0 | AR55: 0 | AS55: 0 | AT55: 0 | AU55: =IF($I55=AU$7,$E55,0) -> 0 | AV55: =IF($K55=ROUND(AU$7*$F55,2),$G55,0) -> 0 | AW55: 0 | AX55: 0 | AY55: 0 | AZ55: 0 | BA55: =IF($I55=BA$7,$E55,0) -> 0 | BB55: =IF($K55=ROUND(BA$7*$F55,2),$G55,0) -> 0 | BC55: 0 | BD55: 0 | BE55: 0 | BF55: 0 | BH55: 0 | BL55: 0
A56: ООО "Диал - Север" | B56: д.Вороновская-38 | C56: =C57 -> 6 | D56: 03-4-23.366(333) | E56: 3.807 | F56: 1.5 | G56: 0 | H56: 3.807 | I56: =SUMIF(Y$14:BA$14,C56,Y$6:BA$6) -> 1733.45 | J56: =IF(H56=0,ROUND(E56*I56,2),ROUND(H56*E56,2)) -> 14.49 | K56: =ROUND(F56*I56,2) -> 2600.18 | L56: =IF(H56=0,ROUND(ROUND(F56*I56,2)*G56,2),ROUND(G56*H56,2)) -> 0 | M56: =L56-ROUND(G56*I56,2) -> 0 | O56: =J56+L56+N56 -> 14.49 | Q56: 405.07 | R56: =ROUND(Q56*E56,2) -> 1542.1 | S56: =ROUND(F56*Q56,2) -> 607.61 | T56: =ROUND(S56*G56,2) -> 0 | U56: =T56-ROUND(Q56*G56,2) -> 0 | W56: =R56+T56+V56 -> 1542.1 | AI56: =IF($I56=AI$6,$E56,0) -> 0 | AJ56: =IF($K56=ROUND(AI$6*$F56,2),$G56,0) -> 0 | AK56: =IF($H56>0,AI56,0) -> 0 | AL56: =IF(AK56>0,1,0) -> 0 | AM56: =IF($H56>0,AJ56,0) -> 0 | AN56: =IF(AM56>0,1,0) -> 0 | AO56: =IF($I56=AO$6,$E56,0) -> 0 | AP56: =IF($K56=ROUND(AO$6*$F56,2),$G56,0) -> 0 | AQ56: =IF($H56>0,AO56,0) -> 0 | AR56: =IF(AQ56>0,1,0) -> 0 | AS56: =IF($H56>0,AP56,0) -> 0 | AT56: =IF(AS56>0,1,0) -> 0 | AU56: =IF($I56=AU$6,$E56,0) -> 3.807 | AV56: =IF($K56=ROUND(AU$6*$F56,2),$G56,0) -> 0 | AW56: =IF($H56>0,AU56,0) -> 3.807 | AX56: =IF(AW56>0,1,0) -> 1 | AY56: =IF($H56>0,AV56,0) -> 0 | AZ56: =IF(AY56>0,1,0) -> 0 | BA56: =IF($I56=BA$6,$E56,0) -> 0 | BB56: =IF($K56=ROUND(BA$6*$F56,2),$G56,0) -> 0 | BC56: =IF($H56>0,BA56,0) -> 0 | BD56: =IF(BC56>0,1,0) -> 0 | BE56: =IF($H56>0,BB56,0) -> 0 | BF56: =IF(BE56>0,1,0) -> 0 | BH56: 0.003807 | BI56: 8.5 | BL56: 0
A57: =IF(E57+G57>0,A56,"") ->  | B57: =IF(E57+G57>0,B56,"") ->  | C57: 6 | D57: 03-4-23.366(333) | E57: 0 | F57: 1.1 | G57: 0 | H57: 0 | I57: =SUMIF(Y$14:BA$14,C57,Y$6:BA$6) -> 1733.45 | J57: =IF(H57=0,ROUND(E57*I57,2),ROUND(H57*E57,2)) -> 0 | K57: =ROUND(F57*I57,2) -> 1906.8 | L57: =IF(H57=0,ROUND(ROUND(F57*I57,2)*G57,2),ROUND(G57*H57,2)) -> 0 | M57: =L57-ROUND(G57*I57,2) -> 0 | O57: =J57+L57+N57 -> 0 | Q57: 405.07 | R57: =ROUND(Q57*E57,2) -> 0 | S57: =ROUND(F57*Q57,2) -> 445.58 | T57: =ROUND(S57*G57,2) -> 0 | U57: =T57-ROUND(Q57*G57,2) -> 0 | W57: =R57+T57+V57 -> 0 | AI57: =IF($I57=AI$6,$E57,0) -> 0 | AJ57: 0 | AK57: =IF($H57>0,AI57,0) -> 0 | AL57: =IF(AK57>0,1,0) -> 0 | AM57: =IF($H57>0,AJ57,0) -> 0 | AN57: =IF(AM57>0,1,0) -> 0 | AO57: =IF($I57=AO$6,$E57,0) -> 0 | AP57: 0 | AQ57: =IF($H57>0,AO57,0) -> 0 | AR57: =IF(AQ57>0,1,0) -> 0 | AS57: =IF($H57>0,AP57,0) -> 0 | AT57: =IF(AS57>0,1,0) -> 0 | AU57: =IF($I57=AU$6,$E57,0) -> 0 | AV57: 0 | AW57: =IF($H57>0,AU57,0) -> 0 | AX57: =IF(AW57>0,1,0) -> 0 | AY57: =IF($H57>0,AV57,0) -> 0 | AZ57: =IF(AY57>0,1,0) -> 0 | BA57: =IF($I57=BA$6,$E57,0) -> 0 | BB57: 0 | BC57: =IF($H57>0,BA57,0) -> 0 | BD57: =IF(BC57>0,1,0) -> 0 | BE57: =IF($H57>0,BB57,0) -> 0 | BF57: =IF(BE57>0,1,0) -> 0 | BH57: 0 | BL57: 0
A58: =IF(E58+G58>0,A56,"") ->  | B58: =IF(E58+G58>0,B56,"") ->  | C58: =C57 -> 6 | D58: 03-4-23.366(333) | E58: 0 | F58: 1.5 | G58: 0 | H58: 0 | I58: =SUMIF(Y$14:BA$14,C58,Y$7:BA$7) -> 0 | J58: 0 | K58: 0 | L58: 0 | M58: 0 | O58: 0 | Q58: 405.07 | R58: 0 | S58: 607.61 | T58: 0 | U58: 0 | W58: 0 | AI58: =IF($I58=AI$7,$E58,0) -> 0 | AJ58: =IF($K58=ROUND(AI$7*$F58,2),$G58,0) -> 0 | AK58: 0 | AL58: 0 | AM58: 0 | AN58: 0 | AO58: =IF($I58=AO$7,$E58,0) -> 0 | AP58: =IF($K58=ROUND(AO$7*$F58,2),$G58,0) -> 0 | AQ58: 0 | AR58: 0 | AS58: 0 | AT58: 0 | AU58: =IF($I58=AU$7,$E58,0) -> 0 | AV58: =IF($K58=ROUND(AU$7*$F58,2),$G58,0) -> 0 | AW58: 0 | AX58: 0 | AY58: 0 | AZ58: 0 | BA58: =IF($I58=BA$7,$E58,0) -> 0 | BB58: =IF($K58=ROUND(BA$7*$F58,2),$G58,0) -> 0 | BC58: 0 | BD58: 0 | BE58: 0 | BF58: 0 | BH58: 0 | BL58: 0
A59: =IF(E59+G59>0,A56,"") ->  | B59: =IF(E59+G59>0,B56,"") ->  | C59: =C57 -> 6 | D59: 03-4-23.366(333) | E59: 0 | F59: 1.1 | G59: 0 | H59: 0 | I59: =SUMIF(Y$14:BA$14,C59,Y$7:BA$7) -> 0 | J59: 0 | K59: 0 | L59: 0 | M59: 0 | O59: 0 | Q59: 405.07 | R59: 0 | S59: 445.58 | T59: 0 | U59: 0 | W59: 0 | AI59: =IF($I59=AI$7,$E59,0) -> 0 | AJ59: =IF($K59=ROUND(AI$7*$F59,2),$G59,0) -> 0 | AK59: 0 | AL59: 0 | AM59: 0 | AN59: 0 | AO59: =IF($I59=AO$7,$E59,0) -> 0 | AP59: =IF($K59=ROUND(AO$7*$F59,2),$G59,0) -> 0 | AQ59: 0 | AR59: 0 | AS59: 0 | AT59: 0 | AU59: =IF($I59=AU$7,$E59,0) -> 0 | AV59: =IF($K59=ROUND(AU$7*$F59,2),$G59,0) -> 0 | AW59: 0 | AX59: 0 | AY59: 0 | AZ59: 0 | BA59: =IF($I59=BA$7,$E59,0) -> 0 | BB59: =IF($K59=ROUND(BA$7*$F59,2),$G59,0) -> 0 | BC59: 0 | BD59: 0 | BE59: 0 | BF59: 0 | BH59: 0 | BL59: 0
A60: ГКУ Архангельской области «ОГПС № 1» | C60: =C61 -> 6 | D60: 03-4-23.367Б | E60: 2.333 | F60: 1.5 | G60: 0 | H60: 2.333 | I60: =SUMIF(Y$14:BA$14,C60,Y$6:BA$6) -> 1733.45 | J60: =IF(H60=0,ROUND(E60*I60,2),ROUND(H60*E60,2)) -> 5.44 | K60: =ROUND(F60*I60,2) -> 2600.18 | L60: =IF(H60=0,ROUND(ROUND(F60*I60,2)*G60,2),ROUND(G60*H60,2)) -> 0 | M60: =L60-ROUND(G60*I60,2) -> 0 | O60: =J60+L60+N60 -> 5.44 | Q60: 405.07 | R60: =ROUND(Q60*E60,2) -> 945.03 | S60: =ROUND(F60*Q60,2) -> 607.61 | T60: =ROUND(S60*G60,2) -> 0 | U60: =T60-ROUND(Q60*G60,2) -> 0 | W60: =R60+T60+V60 -> 945.03 | AI60: =IF($I60=AI$6,$E60,0) -> 0 | AJ60: =IF($K60=ROUND(AI$6*$F60,2),$G60,0) -> 0 | AK60: =IF($H60>0,AI60,0) -> 0 | AL60: =IF(AK60>0,1,0) -> 0 | AM60: =IF($H60>0,AJ60,0) -> 0 | AN60: =IF(AM60>0,1,0) -> 0 | AO60: =IF($I60=AO$6,$E60,0) -> 0 | AP60: =IF($K60=ROUND(AO$6*$F60,2),$G60,0) -> 0 | AQ60: =IF($H60>0,AO60,0) -> 0 | AR60: =IF(AQ60>0,1,0) -> 0 | AS60: =IF($H60>0,AP60,0) -> 0 | AT60: =IF(AS60>0,1,0) -> 0 | AU60: =IF($I60=AU$6,$E60,0) -> 2.333 | AV60: =IF($K60=ROUND(AU$6*$F60,2),$G60,0) -> 0 | AW60: =IF($H60>0,AU60,0) -> 2.333 | AX60: =IF(AW60>0,1,0) -> 1 | AY60: =IF($H60>0,AV60,0) -> 0 | AZ60: =IF(AY60>0,1,0) -> 0 | BA60: =IF($I60=BA$6,$E60,0) -> 0 | BB60: =IF($K60=ROUND(BA$6*$F60,2),$G60,0) -> 0 | BC60: =IF($H60>0,BA60,0) -> 0 | BD60: =IF(BC60>0,1,0) -> 0 | BE60: =IF($H60>0,BB60,0) -> 0 | BF60: =IF(BE60>0,1,0) -> 0 | BH60: 0.002333 | BI60: 3.9 | BL60: 0
A61: =IF(E61+G61>0,A60,"") ->  | B61: =IF(E61+G61>0,B60,"") ->  | C61: 6 | D61: 03-4-23.367Б | E61: 0 | F61: 1.1 | G61: 0 | H61: 0 | I61: =SUMIF(Y$14:BA$14,C61,Y$6:BA$6) -> 1733.45 | J61: =IF(H61=0,ROUND(E61*I61,2),ROUND(H61*E61,2)) -> 0 | K61: =ROUND(F61*I61,2) -> 1906.8 | L61: =IF(H61=0,ROUND(ROUND(F61*I61,2)*G61,2),ROUND(G61*H61,2)) -> 0 | M61: =L61-ROUND(G61*I61,2) -> 0 | O61: =J61+L61+N61 -> 0 | Q61: 405.07 | R61: =ROUND(Q61*E61,2) -> 0 | S61: =ROUND(F61*Q61,2) -> 445.58 | T61: =ROUND(S61*G61,2) -> 0 | U61: =T61-ROUND(Q61*G61,2) -> 0 | W61: =R61+T61+V61 -> 0 | AI61: 0 | AJ61: 0 | AK61: =IF($H61>0,AI61,0) -> 0 | AL61: =IF(AK61>0,1,0) -> 0 | AM61: =IF($H61>0,AJ61,0) -> 0 | AN61: =IF(AM61>0,1,0) -> 0 | AO61: 0 | AP61: 0 | AQ61: =IF($H61>0,AO61,0) -> 0 | AR61: =IF(AQ61>0,1,0) -> 0 | AS61: =IF($H61>0,AP61,0) -> 0 | AT61: =IF(AS61>0,1,0) -> 0 | AU61: 0 | AV61: 0 | AW61: =IF($H61>0,AU61,0) -> 0 | AX61: =IF(AW61>0,1,0) -> 0 | AY61: =IF($H61>0,AV61,0) -> 0 | AZ61: =IF(AY61>0,1,0) -> 0 | BA61: 0 | BB61: 0 | BC61: =IF($H61>0,BA61,0) -> 0 | BD61: =IF(BC61>0,1,0) -> 0 | BE61: =IF($H61>0,BB61,0) -> 0 | BF61: =IF(BE61>0,1,0) -> 0 | BH61: 0 | BL61: 0
A62: Гр. Растегаева Татьяна Борисовна | C62: =C63 -> 7 | D62: 03-4-23.371(333) | E62: 0.447 | F62: 1.5 | G62: 0 | H62: 0.447 | I62: =SUMIF(Y$14:BA$14,C62,Y$6:BA$6) -> 2166.8 | J62: =IF(H62=0,ROUND(E62*I62,2),ROUND(H62*E62,2)) -> 0.2 | K62: =ROUND(F62*I62,2) -> 3250.2 | L62: =IF(H62=0,ROUND(ROUND(F62*I62,2)*G62,2),ROUND(G62*H62,2)) -> 0 | M62: =L62-ROUND(G62*I62,2) -> 0 | O62: =J62+L62+N62 -> 0.2 | Q62: 405.07 | R62: =ROUND(Q62*E62,2) -> 181.07 | S62: =ROUND(F62*Q62,2) -> 607.61 | T62: =ROUND(S62*G62,2) -> 0 | U62: =T62-ROUND(Q62*G62,2) -> 0 | W62: =R62+T62+V62 -> 181.07 | AI62: =IF($I62=AI$6,$E62,0) -> 0 | AJ62: 0 | AK62: =IF($H62>0,AI62,0) -> 0 | AL62: =IF(AK62>0,1,0) -> 0 | AM62: =IF($H62>0,AJ62,0) -> 0 | AN62: =IF(AM62>0,1,0) -> 0 | AO62: =IF($I62=AO$6,$E62,0) -> 0 | AP62: 0 | AQ62: =IF($H62>0,AO62,0) -> 0 | AR62: =IF(AQ62>0,1,0) -> 0 | AS62: =IF($H62>0,AP62,0) -> 0 | AT62: =IF(AS62>0,1,0) -> 0 | AU62: =IF($I62=AU$6,$E62,0) -> 0 | AV62: 0 | AW62: =IF($H62>0,AU62,0) -> 0 | AX62: =IF(AW62>0,1,0) -> 0 | AY62: =IF($H62>0,AV62,0) -> 0 | AZ62: =IF(AY62>0,1,0) -> 0 | BA62: =IF($I62=BA$6,$E62,0) -> 0.447 | BB62: 0 | BC62: =IF($H62>0,BA62,0) -> 0.447 | BD62: =IF(BC62>0,1,0) -> 1 | BE62: =IF($H62>0,BB62,0) -> 0 | BF62: =IF(BE62>0,1,0) -> 0 | BH62: 0.000447 | BI62: 0.5 | BL62: 0
A63: =IF(E63+G63>0,A62,"") ->  | B63: =IF(E63+G63>0,B62,"") ->  | C63: 7 | D63: 03-4-23.371(333) | E63: 0 | F63: 1.1 | G63: 0 | H63: 0 | I63: =SUMIF(Y$14:BA$14,C63,Y$6:BA$6) -> 2166.8 | J63: =IF(H63=0,ROUND(E63*I63,2),ROUND(H63*E63,2)) -> 0 | K63: =ROUND(F63*I63,2) -> 2383.48 | L63: =IF(H63=0,ROUND(ROUND(F63*I63,2)*G63,2),ROUND(G63*H63,2)) -> 0 | M63: =L63-ROUND(G63*I63,2) -> 0 | O63: =J63+L63+N63 -> 0 | Q63: 405.07 | R63: =ROUND(Q63*E63,2) -> 0 | S63: =ROUND(F63*Q63,2) -> 445.58 | T63: =ROUND(S63*G63,2) -> 0 | U63: =T63-ROUND(Q63*G63,2) -> 0 | W63: =R63+T63+V63 -> 0 | AI63: 0 | AJ63: 0 | AK63: =IF($H63>0,AI63,0) -> 0 | AL63: =IF(AK63>0,1,0) -> 0 | AM63: =IF($H63>0,AJ63,0) -> 0 | AN63: =IF(AM63>0,1,0) -> 0 | AO63: 0 | AP63: 0 | AQ63: =IF($H63>0,AO63,0) -> 0 | AR63: =IF(AQ63>0,1,0) -> 0 | AS63: =IF($H63>0,AP63,0) -> 0 | AT63: =IF(AS63>0,1,0) -> 0 | AU63: 0 | AV63: 0 | AW63: =IF($H63>0,AU63,0) -> 0 | AX63: =IF(AW63>0,1,0) -> 0 | AY63: =IF($H63>0,AV63,0) -> 0 | AZ63: =IF(AY63>0,1,0) -> 0 | BA63: 0 | BB63: 0 | BC63: =IF($H63>0,BA63,0) -> 0 | BD63: =IF(BC63>0,1,0) -> 0 | BE63: =IF($H63>0,BB63,0) -> 0 | BF63: =IF(BE63>0,1,0) -> 0 | BH63: 0 | BL63: 0
A64: =IF(E64+G64>0,A62,"") ->  | B64: =IF(E64+G64>0,B62,"") ->  | C64: =C63 -> 7 | D64: 03-4-23.371(333) | E64: 0 | F64: 1.5 | G64: 0 | H64: 0 | I64: =SUMIF(Y$14:BA$14,C64,Y$7:BA$7) -> 0 | J64: 0 | K64: 0 | L64: 0 | M64: 0 | O64: 0 | Q64: 405.07 | R64: 0 | S64: 607.61 | T64: 0 | U64: 0 | W64: 0 | AI64: =IF($I64=AI$7,$E64,0) -> 0 | AJ64: =IF($K64=ROUND(AI$7*$F64,2),$G64,0) -> 0 | AK64: 0 | AL64: 0 | AM64: 0 | AN64: 0 | AO64: =IF($I64=AO$7,$E64,0) -> 0 | AP64: =IF($K64=ROUND(AO$7*$F64,2),$G64,0) -> 0 | AQ64: 0 | AR64: 0 | AS64: 0 | AT64: 0 | AU64: =IF($I64=AU$7,$E64,0) -> 0 | AV64: =IF($K64=ROUND(AU$7*$F64,2),$G64,0) -> 0 | AW64: 0 | AX64: 0 | AY64: 0 | AZ64: 0 | BA64: =IF($I64=BA$7,$E64,0) -> 0 | BB64: =IF($K64=ROUND(BA$7*$F64,2),$G64,0) -> 0 | BC64: 0 | BD64: 0 | BE64: 0 | BF64: 0 | BH64: 0 | BL64: 0
A65: =IF(E65+G65>0,A62,"") ->  | B65: =IF(E65+G65>0,B62,"") ->  | C65: =C63 -> 7 | D65: 03-4-23.371(333) | E65: 0 | F65: 1.1 | G65: 0 | H65: 0 | I65: =SUMIF(Y$14:BA$14,C65,Y$7:BA$7) -> 0 | J65: 0 | K65: 0 | L65: 0 | M65: 0 | O65: 0 | Q65: 405.07 | R65: 0 | S65: 445.58 | T65: 0 | U65: 0 | W65: 0 | AI65: =IF($I65=AI$7,$E65,0) -> 0 | AJ65: =IF($K65=ROUND(AI$7*$F65,2),$G65,0) -> 0 | AK65: 0 | AL65: 0 | AM65: 0 | AN65: 0 | AO65: =IF($I65=AO$7,$E65,0) -> 0 | AP65: =IF($K65=ROUND(AO$7*$F65,2),$G65,0) -> 0 | AQ65: 0 | AR65: 0 | AS65: 0 | AT65: 0 | AU65: =IF($I65=AU$7,$E65,0) -> 0 | AV65: =IF($K65=ROUND(AU$7*$F65,2),$G65,0) -> 0 | AW65: 0 | AX65: 0 | AY65: 0 | AZ65: 0 | BA65: =IF($I65=BA$7,$E65,0) -> 0 | BB65: =IF($K65=ROUND(BA$7*$F65,2),$G65,0) -> 0 | BC65: 0 | BD65: 0 | BE65: 0 | BF65: 0 | BH65: 0 | BL65: 0
A66: ИП Шахова (Гужова) Татьяна Николаевна | C66: =C67 -> 6 | D66: 03-4-23.372 | E66: 1.162 | F66: 1.5 | G66: 0 | H66: 1.162 | I66: =SUMIF(Y$14:BA$14,C66,Y$6:BA$6) -> 1733.45 | J66: =IF(H66=0,ROUND(E66*I66,2),ROUND(H66*E66,2)) -> 1.35 | K66: =ROUND(F66*I66,2) -> 2600.18 | L66: =IF(H66=0,ROUND(ROUND(F66*I66,2)*G66,2),ROUND(G66*H66,2)) -> 0 | M66: =L66-ROUND(G66*I66,2) -> 0 | O66: =J66+L66+N66 -> 1.35 | Q66: 405.07 | R66: =ROUND(Q66*E66,2) -> 470.69 | S66: =ROUND(F66*Q66,2) -> 607.61 | T66: =ROUND(S66*G66,2) -> 0 | U66: =T66-ROUND(Q66*G66,2) -> 0 | W66: =R66+T66+V66 -> 470.69 | AI66: =IF($I66=AI$6,$E66,0) -> 0 | AJ66: =IF($K66=ROUND(AI$6*$F66,2),$G66,0) -> 0 | AK66: =IF($H66>0,AI66,0) -> 0 | AL66: =IF(AK66>0,1,0) -> 0 | AM66: =IF($H66>0,AJ66,0) -> 0 | AN66: =IF(AM66>0,1,0) -> 0 | AO66: =IF($I66=AO$6,$E66,0) -> 0 | AP66: =IF($K66=ROUND(AO$6*$F66,2),$G66,0) -> 0 | AQ66: =IF($H66>0,AO66,0) -> 0 | AR66: =IF(AQ66>0,1,0) -> 0 | AS66: =IF($H66>0,AP66,0) -> 0 | AT66: =IF(AS66>0,1,0) -> 0 | AU66: =IF($I66=AU$6,$E66,0) -> 1.162 | AV66: =IF($K66=ROUND(AU$6*$F66,2),$G66,0) -> 0 | AW66: =IF($H66>0,AU66,0) -> 1.162 | AX66: =IF(AW66>0,1,0) -> 1 | AY66: =IF($H66>0,AV66,0) -> 0 | AZ66: =IF(AY66>0,1,0) -> 0 | BA66: =IF($I66=BA$6,$E66,0) -> 0 | BB66: =IF($K66=ROUND(BA$6*$F66,2),$G66,0) -> 0 | BC66: =IF($H66>0,BA66,0) -> 0 | BD66: =IF(BC66>0,1,0) -> 0 | BE66: =IF($H66>0,BB66,0) -> 0 | BF66: =IF(BE66>0,1,0) -> 0 | BH66: 0.001162 | BI66: 2.1 | BL66: 0
A67: =IF(E67+G67>0,A66,"") ->  | B67: =IF(E67+G67>0,B66,"") ->  | C67: 6 | D67: 03-4-23.372 | E67: 0 | F67: 1.1 | G67: 0 | H67: 0 | I67: =SUMIF(Y$14:BA$14,C67,Y$6:BA$6) -> 1733.45 | J67: =IF(H67=0,ROUND(E67*I67,2),ROUND(H67*E67,2)) -> 0 | K67: =ROUND(F67*I67,2) -> 1906.8 | L67: =IF(H67=0,ROUND(ROUND(F67*I67,2)*G67,2),ROUND(G67*H67,2)) -> 0 | M67: =L67-ROUND(G67*I67,2) -> 0 | O67: =J67+L67+N67 -> 0 | Q67: 405.07 | R67: =ROUND(Q67*E67,2) -> 0 | S67: =ROUND(F67*Q67,2) -> 445.58 | T67: =ROUND(S67*G67,2) -> 0 | U67: =T67-ROUND(Q67*G67,2) -> 0 | W67: =R67+T67+V67 -> 0 | AI67: =IF($I67=AI$6,$E67,0) -> 0 | AJ67: 0 | AK67: =IF($H67>0,AI67,0) -> 0 | AL67: =IF(AK67>0,1,0) -> 0 | AM67: =IF($H67>0,AJ67,0) -> 0 | AN67: =IF(AM67>0,1,0) -> 0 | AO67: =IF($I67=AO$6,$E67,0) -> 0 | AP67: 0 | AQ67: =IF($H67>0,AO67,0) -> 0 | AR67: =IF(AQ67>0,1,0) -> 0 | AS67: =IF($H67>0,AP67,0) -> 0 | AT67: =IF(AS67>0,1,0) -> 0 | AU67: =IF($I67=AU$6,$E67,0) -> 0 | AV67: 0 | AW67: =IF($H67>0,AU67,0) -> 0 | AX67: =IF(AW67>0,1,0) -> 0 | AY67: =IF($H67>0,AV67,0) -> 0 | AZ67: =IF(AY67>0,1,0) -> 0 | BA67: =IF($I67=BA$6,$E67,0) -> 0 | BB67: 0 | BC67: =IF($H67>0,BA67,0) -> 0 | BD67: =IF(BC67>0,1,0) -> 0 | BE67: =IF($H67>0,BB67,0) -> 0 | BF67: =IF(BE67>0,1,0) -> 0 | BH67: 0 | BL67: 0
A68: =IF(E68+G68>0,A66,"") ->  | B68: =IF(E68+G68>0,B66,"") ->  | C68: =C67 -> 6 | D68: 03-4-23.372 | E68: 0 | F68: 1.5 | G68: 0 | H68: 0 | I68: =SUMIF(Y$14:BA$14,C68,Y$7:BA$7) -> 0 | J68: 0 | K68: 0 | L68: 0 | M68: 0 | O68: 0 | Q68: 405.07 | R68: 0 | S68: 607.61 | T68: 0 | U68: 0 | W68: 0 | AI68: =IF($I68=AI$7,$E68,0) -> 0 | AJ68: =IF($K68=ROUND(AI$7*$F68,2),$G68,0) -> 0 | AK68: 0 | AL68: 0 | AM68: 0 | AN68: 0 | AO68: =IF($I68=AO$7,$E68,0) -> 0 | AP68: =IF($K68=ROUND(AO$7*$F68,2),$G68,0) -> 0 | AQ68: 0 | AR68: 0 | AS68: 0 | AT68: 0 | AU68: =IF($I68=AU$7,$E68,0) -> 0 | AV68: =IF($K68=ROUND(AU$7*$F68,2),$G68,0) -> 0 | AW68: 0 | AX68: 0 | AY68: 0 | AZ68: 0 | BA68: =IF($I68=BA$7,$E68,0) -> 0 | BB68: =IF($K68=ROUND(BA$7*$F68,2),$G68,0) -> 0 | BC68: 0 | BD68: 0 | BE68: 0 | BF68: 0 | BH68: 0 | BL68: 0
A69: =IF(E69+G69>0,A66,"") ->  | B69: =IF(E69+G69>0,B66,"") ->  | C69: =C67 -> 6 | D69: 03-4-23.372 | E69: 0 | F69: 1.1 | G69: 0 | H69: 0 | I69: =SUMIF(Y$14:BA$14,C69,Y$7:BA$7) -> 0 | J69: 0 | K69: 0 | L69: 0 | M69: 0 | O69: 0 | Q69: 405.07 | R69: 0 | S69: 445.58 | T69: 0 | U69: 0 | W69: 0 | AI69: =IF($I69=AI$7,$E69,0) -> 0 | AJ69: =IF($K69=ROUND(AI$7*$F69,2),$G69,0) -> 0 | AK69: 0 | AL69: 0 | AM69: 0 | AN69: 0 | AO69: =IF($I69=AO$7,$E69,0) -> 0 | AP69: =IF($K69=ROUND(AO$7*$F69,2),$G69,0) -> 0 | AQ69: 0 | AR69: 0 | AS69: 0 | AT69: 0 | AU69: =IF($I69=AU$7,$E69,0) -> 0 | AV69: =IF($K69=ROUND(AU$7*$F69,2),$G69,0) -> 0 | AW69: 0 | AX69: 0 | AY69: 0 | AZ69: 0 | BA69: =IF($I69=BA$7,$E69,0) -> 0 | BB69: =IF($K69=ROUND(BA$7*$F69,2),$G69,0) -> 0 | BC69: 0 | BD69: 0 | BE69: 0 | BF69: 0 | BH69: 0 | BL69: 0
A70: Гр. Щепелин Илья Николаевич (до 01.09 - гр.Дмитриева Н.С.) | C70: =C71 -> 7 | D70: 03-4-23.1126/03-4-23.374 | E70: 0.452 | F70: 1.5 | G70: 0 | H70: 0.452 | I70: =SUMIF(Y$14:BA$14,C70,Y$6:BA$6) -> 2166.8 | J70: =IF(H70=0,ROUND(E70*I70,2),ROUND(H70*E70,2)) -> 0.2 | K70: =ROUND(F70*I70,2) -> 3250.2 | L70: =IF(H70=0,ROUND(ROUND(F70*I70,2)*G70,2),ROUND(G70*H70,2)) -> 0 | M70: =L70-ROUND(G70*I70,2) -> 0 | O70: =J70+L70+N70 -> 0.2 | Q70: 405.07 | R70: =ROUND(Q70*E70,2) -> 183.09 | S70: =ROUND(F70*Q70,2) -> 607.61 | T70: =ROUND(S70*G70,2) -> 0 | U70: =T70-ROUND(Q70*G70,2) -> 0 | W70: =R70+T70+V70 -> 183.09 | AI70: =IF($I70=AI$6,$E70,0) -> 0 | AJ70: =IF($K70=ROUND(AI$6*$F70,2),$G70,0) -> 0 | AK70: =IF($H70>0,AI70,0) -> 0 | AL70: =IF(AK70>0,1,0) -> 0 | AM70: =IF($H70>0,AJ70,0) -> 0 | AN70: =IF(AM70>0,1,0) -> 0 | AO70: =IF($I70=AO$6,$E70,0) -> 0 | AP70: =IF($K70=ROUND(AO$6*$F70,2),$G70,0) -> 0 | AQ70: =IF($H70>0,AO70,0) -> 0 | AR70: =IF(AQ70>0,1,0) -> 0 | AS70: =IF($H70>0,AP70,0) -> 0 | AT70: =IF(AS70>0,1,0) -> 0 | AU70: =IF($I70=AU$6,$E70,0) -> 0 | AV70: =IF($K70=ROUND(AU$6*$F70,2),$G70,0) -> 0 | AW70: =IF($H70>0,AU70,0) -> 0 | AX70: =IF(AW70>0,1,0) -> 0 | AY70: =IF($H70>0,AV70,0) -> 0 | AZ70: =IF(AY70>0,1,0) -> 0 | BA70: =IF($I70=BA$6,$E70,0) -> 0.452 | BB70: =IF($K70=ROUND(BA$6*$F70,2),$G70,0) -> 0 | BC70: =IF($H70>0,BA70,0) -> 0.452 | BD70: =IF(BC70>0,1,0) -> 1 | BE70: =IF($H70>0,BB70,0) -> 0 | BF70: =IF(BE70>0,1,0) -> 0 | BH70: 0.000452 | BI70: 1 | BL70: 0
A71: =IF(E71+G71>0,A70,"") ->  | B71: =IF(E71+G71>0,B70,"") ->  | C71: 7 | D71: 03-4-23.1126/03-4-23.374 | E71: 0 | F71: 1.1 | G71: 0 | H71: 0 | I71: =SUMIF(Y$14:BA$14,C71,Y$6:BA$6) -> 2166.8 | J71: =IF(H71=0,ROUND(E71*I71,2),ROUND(H71*E71,2)) -> 0 | K71: =ROUND(F71*I71,2) -> 2383.48 | L71: =IF(H71=0,ROUND(ROUND(F71*I71,2)*G71,2),ROUND(G71*H71,2)) -> 0 | M71: =L71-ROUND(G71*I71,2) -> 0 | O71: =J71+L71+N71 -> 0 | Q71: 405.07 | R71: =ROUND(Q71*E71,2) -> 0 | S71: =ROUND(F71*Q71,2) -> 445.58 | T71: =ROUND(S71*G71,2) -> 0 | U71: =T71-ROUND(Q71*G71,2) -> 0 | W71: =R71+T71+V71 -> 0 | AI71: =IF($I71=AI$6,$E71,0) -> 0 | AJ71: 0 | AK71: =IF($H71>0,AI71,0) -> 0 | AL71: =IF(AK71>0,1,0) -> 0 | AM71: =IF($H71>0,AJ71,0) -> 0 | AN71: =IF(AM71>0,1,0) -> 0 | AO71: =IF($I71=AO$6,$E71,0) -> 0 | AP71: 0 | AQ71: =IF($H71>0,AO71,0) -> 0 | AR71: =IF(AQ71>0,1,0) -> 0 | AS71: =IF($H71>0,AP71,0) -> 0 | AT71: =IF(AS71>0,1,0) -> 0 | AU71: =IF($I71=AU$6,$E71,0) -> 0 | AV71: 0 | AW71: =IF($H71>0,AU71,0) -> 0 | AX71: =IF(AW71>0,1,0) -> 0 | AY71: =IF($H71>0,AV71,0) -> 0 | AZ71: =IF(AY71>0,1,0) -> 0 | BA71: =IF($I71=BA$6,$E71,0) -> 0 | BB71: 0 | BC71: =IF($H71>0,BA71,0) -> 0 | BD71: =IF(BC71>0,1,0) -> 0 | BE71: =IF($H71>0,BB71,0) -> 0 | BF71: =IF(BE71>0,1,0) -> 0 | BH71: 0 | BL71: 0
A72: =IF(E72+G72>0,A70,"") ->  | B72: =IF(E72+G72>0,B70,"") ->  | C72: =C71 -> 7 | D72: 03-4-23.1126/03-4-23.374 | E72: 0 | F72: 1.5 | G72: 0 | H72: 0 | I72: =SUMIF(Y$14:BA$14,C72,Y$7:BA$7) -> 0 | J72: 0 | K72: 0 | L72: 0 | M72: 0 | O72: 0 | Q72: 405.07 | R72: 0 | S72: 607.61 | T72: 0 | U72: 0 | W72: 0 | AI72: =IF($I72=AI$7,$E72,0) -> 0 | AJ72: =IF($K72=ROUND(AI$7*$F72,2),$G72,0) -> 0 | AK72: 0 | AL72: 0 | AM72: 0 | AN72: 0 | AO72: =IF($I72=AO$7,$E72,0) -> 0 | AP72: =IF($K72=ROUND(AO$7*$F72,2),$G72,0) -> 0 | AQ72: 0 | AR72: 0 | AS72: 0 | AT72: 0 | AU72: =IF($I72=AU$7,$E72,0) -> 0 | AV72: =IF($K72=ROUND(AU$7*$F72,2),$G72,0) -> 0 | AW72: 0 | AX72: 0 | AY72: 0 | AZ72: 0 | BA72: =IF($I72=BA$7,$E72,0) -> 0 | BB72: =IF($K72=ROUND(BA$7*$F72,2),$G72,0) -> 0 | BC72: 0 | BD72: 0 | BE72: 0 | BF72: 0 | BH72: 0 | BL72: 0
A73: =IF(E73+G73>0,A70,"") ->  | B73: =IF(E73+G73>0,B70,"") ->  | C73: =C71 -> 7 | D73: 03-4-23.1126/03-4-23.374 | E73: 0 | F73: 1.1 | G73: 0 | H73: 0 | I73: =SUMIF(Y$14:BA$14,C73,Y$7:BA$7) -> 0 | J73: 0 | K73: 0 | L73: 0 | M73: 0 | O73: 0 | Q73: 405.07 | R73: 0 | S73: 445.58 | T73: 0 | U73: 0 | W73: 0 | AI73: =IF($I73=AI$7,$E73,0) -> 0 | AJ73: =IF($K73=ROUND(AI$7*$F73,2),$G73,0) -> 0 | AK73: 0 | AL73: 0 | AM73: 0 | AN73: 0 | AO73: =IF($I73=AO$7,$E73,0) -> 0 | AP73: =IF($K73=ROUND(AO$7*$F73,2),$G73,0) -> 0 | AQ73: 0 | AR73: 0 | AS73: 0 | AT73: 0 | AU73: =IF($I73=AU$7,$E73,0) -> 0 | AV73: =IF($K73=ROUND(AU$7*$F73,2),$G73,0) -> 0 | AW73: 0 | AX73: 0 | AY73: 0 | AZ73: 0 | BA73: =IF($I73=BA$7,$E73,0) -> 0 | BB73: =IF($K73=ROUND(BA$7*$F73,2),$G73,0) -> 0 | BC73: 0 | BD73: 0 | BE73: 0 | BF73: 0 | BH73: 0 | BL73: 0
A74: ООО "Строймаркет" | B74: Вельск, ул.Гагарина-5а | C74: =C75 -> 6 | D74: 03-4-23.375 | E74: 1.21 | F74: 1.5 | G74: 0 | H74: 1.21 | I74: =SUMIF(Y$14:BA$14,C74,Y$6:BA$6) -> 1733.45 | J74: =IF(H74=0,ROUND(E74*I74,2),ROUND(H74*E74,2)) -> 1.46 | K74: =ROUND(F74*I74,2) -> 2600.18 | L74: =IF(H74=0,ROUND(ROUND(F74*I74,2)*G74,2),ROUND(G74*H74,2)) -> 0 | M74: =L74-ROUND(G74*I74,2) -> 0 | O74: =J74+L74+N74 -> 1.46 | Q74: 405.07 | R74: =ROUND(Q74*E74,2) -> 490.13 | S74: =ROUND(F74*Q74,2) -> 607.61 | T74: =ROUND(S74*G74,2) -> 0 | U74: =T74-ROUND(Q74*G74,2) -> 0 | W74: =R74+T74+V74 -> 490.13 | AI74: =IF($I74=AI$6,$E74,0) -> 0 | AJ74: =IF($K74=ROUND(AI$6*$F74,2),$G74,0) -> 0 | AK74: =IF($H74>0,AI74,0) -> 0 | AL74: =IF(AK74>0,1,0) -> 0 | AM74: =IF($H74>0,AJ74,0) -> 0 | AN74: =IF(AM74>0,1,0) -> 0 | AO74: =IF($I74=AO$6,$E74,0) -> 0 | AP74: =IF($K74=ROUND(AO$6*$F74,2),$G74,0) -> 0 | AQ74: =IF($H74>0,AO74,0) -> 0 | AR74: =IF(AQ74>0,1,0) -> 0 | AS74: =IF($H74>0,AP74,0) -> 0 | AT74: =IF(AS74>0,1,0) -> 0 | AU74: =IF($I74=AU$6,$E74,0) -> 1.21 | AV74: =IF($K74=ROUND(AU$6*$F74,2),$G74,0) -> 0 | AW74: =IF($H74>0,AU74,0) -> 1.21 | AX74: =IF(AW74>0,1,0) -> 1 | AY74: =IF($H74>0,AV74,0) -> 0 | AZ74: =IF(AY74>0,1,0) -> 0 | BA74: =IF($I74=BA$6,$E74,0) -> 0 | BB74: =IF($K74=ROUND(BA$6*$F74,2),$G74,0) -> 0 | BC74: =IF($H74>0,BA74,0) -> 0 | BD74: =IF(BC74>0,1,0) -> 0 | BE74: =IF($H74>0,BB74,0) -> 0 | BF74: =IF(BE74>0,1,0) -> 0 | BH74: 0.00121 | BI74: 1.1 | BL74: 0
A75: =IF(E75+G75>0,A74,"") ->  | B75: =IF(E75+G75>0,B74,"") ->  | C75: 6 | D75: 03-4-23.375 | E75: 0 | F75: 1.1 | G75: 0 | H75: 0 | I75: =SUMIF(Y$14:BA$14,C75,Y$6:BA$6) -> 1733.45 | J75: =IF(H75=0,ROUND(E75*I75,2),ROUND(H75*E75,2)) -> 0 | K75: =ROUND(F75*I75,2) -> 1906.8 | L75: =IF(H75=0,ROUND(ROUND(F75*I75,2)*G75,2),ROUND(G75*H75,2)) -> 0 | M75: =L75-ROUND(G75*I75,2) -> 0 | O75: =J75+L75+N75 -> 0 | Q75: 405.07 | R75: =ROUND(Q75*E75,2) -> 0 | S75: =ROUND(F75*Q75,2) -> 445.58 | T75: =ROUND(S75*G75,2) -> 0 | U75: =T75-ROUND(Q75*G75,2) -> 0 | W75: =R75+T75+V75 -> 0 | AI75: =IF($I75=AI$6,$E75,0) -> 0 | AJ75: 0 | AK75: =IF($H75>0,AI75,0) -> 0 | AL75: =IF(AK75>0,1,0) -> 0 | AM75: =IF($H75>0,AJ75,0) -> 0 | AN75: =IF(AM75>0,1,0) -> 0 | AO75: =IF($I75=AO$6,$E75,0) -> 0 | AP75: 0 | AQ75: =IF($H75>0,AO75,0) -> 0 | AR75: =IF(AQ75>0,1,0) -> 0 | AS75: =IF($H75>0,AP75,0) -> 0 | AT75: =IF(AS75>0,1,0) -> 0 | AU75: =IF($I75=AU$6,$E75,0) -> 0 | AV75: 0 | AW75: =IF($H75>0,AU75,0) -> 0 | AX75: =IF(AW75>0,1,0) -> 0 | AY75: =IF($H75>0,AV75,0) -> 0 | AZ75: =IF(AY75>0,1,0) -> 0 | BA75: =IF($I75=BA$6,$E75,0) -> 0 | BB75: 0 | BC75: =IF($H75>0,BA75,0) -> 0 | BD75: =IF(BC75>0,1,0) -> 0 | BE75: =IF($H75>0,BB75,0) -> 0 | BF75: =IF(BE75>0,1,0) -> 0 | BH75: 0 | BL75: 0
A76: =IF(E76+G76>0,A74,"") ->  | B76: =IF(E76+G76>0,B74,"") ->  | C76: =C75 -> 6 | D76: 03-4-23.375 | E76: 0 | F76: 1.5 | G76: 0 | H76: 0 | I76: =SUMIF(Y$14:BA$14,C76,Y$7:BA$7) -> 0 | J76: 0 | K76: 0 | L76: 0 | M76: 0 | O76: 0 | Q76: 405.07 | R76: 0 | S76: 607.61 | T76: 0 | U76: 0 | W76: 0 | AI76: =IF($I76=AI$7,$E76,0) -> 0 | AJ76: =IF($K76=ROUND(AI$7*$F76,2),$G76,0) -> 0 | AK76: 0 | AL76: 0 | AM76: 0 | AN76: 0 | AO76: =IF($I76=AO$7,$E76,0) -> 0 | AP76: =IF($K76=ROUND(AO$7*$F76,2),$G76,0) -> 0 | AQ76: 0 | AR76: 0 | AS76: 0 | AT76: 0 | AU76: =IF($I76=AU$7,$E76,0) -> 0 | AV76: =IF($K76=ROUND(AU$7*$F76,2),$G76,0) -> 0 | AW76: 0 | AX76: 0 | AY76: 0 | AZ76: 0 | BA76: =IF($I76=BA$7,$E76,0) -> 0 | BB76: =IF($K76=ROUND(BA$7*$F76,2),$G76,0) -> 0 | BC76: 0 | BD76: 0 | BE76: 0 | BF76: 0 | BH76: 0 | BL76: 0
A77: =IF(E77+G77>0,A74,"") ->  | B77: =IF(E77+G77>0,B74,"") ->  | C77: =C75 -> 6 | D77: 03-4-23.375 | E77: 0 | F77: 1.1 | G77: 0 | H77: 0 | I77: =SUMIF(Y$14:BA$14,C77,Y$7:BA$7) -> 0 | J77: 0 | K77: 0 | L77: 0 | M77: 0 | O77: 0 | Q77: 405.07 | R77: 0 | S77: 445.58 | T77: 0 | U77: 0 | W77: 0 | AI77: =IF($I77=AI$7,$E77,0) -> 0 | AJ77: =IF($K77=ROUND(AI$7*$F77,2),$G77,0) -> 0 | AK77: 0 | AL77: 0 | AM77: 0 | AN77: 0 | AO77: =IF($I77=AO$7,$E77,0) -> 0 | AP77: =IF($K77=ROUND(AO$7*$F77,2),$G77,0) -> 0 | AQ77: 0 | AR77: 0 | AS77: 0 | AT77: 0 | AU77: =IF($I77=AU$7,$E77,0) -> 0 | AV77: =IF($K77=ROUND(AU$7*$F77,2),$G77,0) -> 0 | AW77: 0 | AX77: 0 | AY77: 0 | AZ77: 0 | BA77: =IF($I77=BA$7,$E77,0) -> 0 | BB77: =IF($K77=ROUND(BA$7*$F77,2),$G77,0) -> 0 | BC77: 0 | BD77: 0 | BE77: 0 | BF77: 0 | BH77: 0 | BL77: 0
A78: ООО "Строймаркет" | B78: Вельск, ул.Гагарина-5а | C78: =C79 -> 6 | D78: 03-4-23.375(333) | E78: 0.328 | F78: 1.5 | G78: 0 | H78: 0.328 | I78: =SUMIF(Y$14:BA$14,C78,Y$6:BA$6) -> 1733.45 | J78: =IF(H78=0,ROUND(E78*I78,2),ROUND(H78*E78,2)) -> 0.11 | K78: =ROUND(F78*I78,2) -> 2600.18 | L78: =IF(H78=0,ROUND(ROUND(F78*I78,2)*G78,2),ROUND(G78*H78,2)) -> 0 | M78: =L78-ROUND(G78*I78,2) -> 0 | O78: =J78+L78+N78 -> 0.11 | Q78: 405.07 | R78: =ROUND(Q78*E78,2) -> 132.86 | S78: =ROUND(F78*Q78,2) -> 607.61 | T78: =ROUND(S78*G78,2) -> 0 | U78: =T78-ROUND(Q78*G78,2) -> 0 | W78: =R78+T78+V78 -> 132.86 | AI78: =IF($I78=AI$6,$E78,0) -> 0 | AJ78: =IF($K78=ROUND(AI$6*$F78,2),$G78,0) -> 0 | AK78: =IF($H78>0,AI78,0) -> 0 | AL78: =IF(AK78>0,1,0) -> 0 | AM78: =IF($H78>0,AJ78,0) -> 0 | AN78: =IF(AM78>0,1,0) -> 0 | AO78: =IF($I78=AO$6,$E78,0) -> 0 | AP78: =IF($K78=ROUND(AO$6*$F78,2),$G78,0) -> 0 | AQ78: =IF($H78>0,AO78,0) -> 0 | AR78: =IF(AQ78>0,1,0) -> 0 | AS78: =IF($H78>0,AP78,0) -> 0 | AT78: =IF(AS78>0,1,0) -> 0 | AU78: =IF($I78=AU$6,$E78,0) -> 0.328 | AV78: =IF($K78=ROUND(AU$6*$F78,2),$G78,0) -> 0 | AW78: =IF($H78>0,AU78,0) -> 0.328 | AX78: =IF(AW78>0,1,0) -> 1 | AY78: =IF($H78>0,AV78,0) -> 0 | AZ78: =IF(AY78>0,1,0) -> 0 | BA78: =IF($I78=BA$6,$E78,0) -> 0 | BB78: =IF($K78=ROUND(BA$6*$F78,2),$G78,0) -> 0 | BC78: =IF($H78>0,BA78,0) -> 0 | BD78: =IF(BC78>0,1,0) -> 0 | BE78: =IF($H78>0,BB78,0) -> 0 | BF78: =IF(BE78>0,1,0) -> 0 | BH78: 0.000328 | BI78: 2.5 | BL78: 0
A79: =IF(E79+G79>0,A78,"") ->  | B79: =IF(E79+G79>0,B78,"") ->  | C79: 6 | D79: 03-4-23.375(333) | E79: 0 | F79: 1.1 | G79: 0 | H79: 0 | I79: =SUMIF(Y$14:BA$14,C79,Y$6:BA$6) -> 1733.45 | J79: =IF(H79=0,ROUND(E79*I79,2),ROUND(H79*E79,2)) -> 0 | K79: =ROUND(F79*I79,2) -> 1906.8 | L79: =IF(H79=0,ROUND(ROUND(F79*I79,2)*G79,2),ROUND(G79*H79,2)) -> 0 | M79: =L79-ROUND(G79*I79,2) -> 0 | O79: =J79+L79+N79 -> 0 | Q79: 405.07 | R79: =ROUND(Q79*E79,2) -> 0 | S79: =ROUND(F79*Q79,2) -> 445.58 | T79: =ROUND(S79*G79,2) -> 0 | U79: =T79-ROUND(Q79*G79,2) -> 0 | W79: =R79+T79+V79 -> 0 | AI79: 0 | AJ79: 0 | AK79: =IF($H79>0,AI79,0) -> 0 | AL79: =IF(AK79>0,1,0) -> 0 | AM79: =IF($H79>0,AJ79,0) -> 0 | AN79: =IF(AM79>0,1,0) -> 0 | AO79: 0 | AP79: 0 | AQ79: =IF($H79>0,AO79,0) -> 0 | AR79: =IF(AQ79>0,1,0) -> 0 | AS79: =IF($H79>0,AP79,0) -> 0 | AT79: =IF(AS79>0,1,0) -> 0 | AU79: 0 | AV79: 0 | AW79: =IF($H79>0,AU79,0) -> 0 | AX79: =IF(AW79>0,1,0) -> 0 | AY79: =IF($H79>0,AV79,0) -> 0 | AZ79: =IF(AY79>0,1,0) -> 0 | BA79: 0 | BB79: 0 | BC79: =IF($H79>0,BA79,0) -> 0 | BD79: =IF(BC79>0,1,0) -> 0 | BE79: =IF($H79>0,BB79,0) -> 0 | BF79: =IF(BE79>0,1,0) -> 0 | BH79: 0 | BL79: 0
A80: =IF(E80+G80>0,A78,"") ->  | B80: =IF(E80+G80>0,B78,"") ->  | C80: =C79 -> 6 | D80: 03-4-23.375(333) | E80: 0 | F80: 1.5 | G80: 0 | H80: 0 | I80: =SUMIF(Y$14:BA$14,C80,Y$7:BA$7) -> 0 | J80: 0 | K80: 0 | L80: 0 | M80: 0 | O80: 0 | Q80: =IF(BI80>0,Q$6,Q$6) -> 405.07 | R80: 0 | S80: 607.61 | T80: 0 | U80: 0 | W80: 0 | AI80: =IF($I80=AI$7,$E80,0) -> 0 | AJ80: =IF($K80=ROUND(AI$7*$F80,2),$G80,0) -> 0 | AK80: 0 | AL80: 0 | AM80: 0 | AN80: 0 | AO80: =IF($I80=AO$7,$E80,0) -> 0 | AP80: =IF($K80=ROUND(AO$7*$F80,2),$G80,0) -> 0 | AQ80: 0 | AR80: 0 | AS80: 0 | AT80: 0 | AU80: =IF($I80=AU$7,$E80,0) -> 0 | AV80: =IF($K80=ROUND(AU$7*$F80,2),$G80,0) -> 0 | AW80: 0 | AX80: 0 | AY80: 0 | AZ80: 0 | BA80: =IF($I80=BA$7,$E80,0) -> 0 | BB80: =IF($K80=ROUND(BA$7*$F80,2),$G80,0) -> 0 | BC80: 0 | BD80: 0 | BE80: 0 | BF80: 0 | BH80: 0 | BL80: 0
A81: =IF(E81+G81>0,A78,"") ->  | B81: =IF(E81+G81>0,B78,"") ->  | C81: =C79 -> 6 | D81: 03-4-23.375(333) | E81: 0 | F81: 1.1 | G81: 0 | H81: =E81+G81 -> 0 | I81: =SUMIF(Y$14:BA$14,C81,Y$7:BA$7) -> 0 | J81: 0 | K81: 0 | L81: 0 | M81: 0 | O81: 0 | Q81: 405.07 | R81: 0 | S81: 445.58 | T81: 0 | U81: 0 | W81: 0 | AI81: =IF($I81=AI$7,$E81,0) -> 0 | AJ81: =IF($K81=ROUND(AI$7*$F81,2),$G81,0) -> 0 | AK81: 0 | AL81: 0 | AM81: 0 | AN81: 0 | AO81: =IF($I81=AO$7,$E81,0) -> 0 | AP81: =IF($K81=ROUND(AO$7*$F81,2),$G81,0) -> 0 | AQ81: 0 | AR81: 0 | AS81: 0 | AT81: 0 | AU81: =IF($I81=AU$7,$E81,0) -> 0 | AV81: =IF($K81=ROUND(AU$7*$F81,2),$G81,0) -> 0 | AW81: 0 | AX81: 0 | AY81: 0 | AZ81: 0 | BA81: =IF($I81=BA$7,$E81,0) -> 0 | BB81: =IF($K81=ROUND(BA$7*$F81,2),$G81,0) -> 0 | BC81: 0 | BD81: 0 | BE81: 0 | BF81: 0 | BH81: =H81/1000 -> 0 | BL81: =E81-SUM(AI81,AO81,AU81,BA81) -> 0
A82: ООО "Сервис" | B82: Вельск, ул.Комсомольская-11 | C82: =C83 -> 6 | D82: 03-4-23.381 | E82: 1.069 | F82: 1.5 | G82: 0 | H82: 1.069 | I82: =SUMIF(Y$14:BA$14,C82,Y$6:BA$6) -> 1733.45 | J82: =IF(H82=0,ROUND(E82*I82,2),ROUND(H82*E82,2)) -> 1.14 | K82: =ROUND(F82*I82,2) -> 2600.18 | L82: =IF(H82=0,ROUND(ROUND(F82*I82,2)*G82,2),ROUND(G82*H82,2)) -> 0 | M82: =L82-ROUND(G82*I82,2) -> 0 | O82: =J82+L82+N82 -> 1.14 | Q82: 405.07 | R82: =ROUND(Q82*E82,2) -> 433.02 | S82: =ROUND(F82*Q82,2) -> 607.61 | T82: =ROUND(S82*G82,2) -> 0 | U82: =T82-ROUND(Q82*G82,2) -> 0 | W82: =R82+T82+V82 -> 433.02 | AI82: =IF($I82=AI$6,$E82,0) -> 0 | AJ82: =IF($K82=ROUND(AI$6*$F82,2),$G82,0) -> 0 | AK82: =IF($H82>0,AI82,0) -> 0 | AL82: =IF(AK82>0,1,0) -> 0 | AM82: =IF($H82>0,AJ82,0) -> 0 | AN82: =IF(AM82>0,1,0) -> 0 | AO82: =IF($I82=AO$6,$E82,0) -> 0 | AP82: =IF($K82=ROUND(AO$6*$F82,2),$G82,0) -> 0 | AQ82: =IF($H82>0,AO82,0) -> 0 | AR82: =IF(AQ82>0,1,0) -> 0 | AS82: =IF($H82>0,AP82,0) -> 0 | AT82: =IF(AS82>0,1,0) -> 0 | AU82: =IF($I82=AU$6,$E82,0) -> 1.069 | AV82: =IF($K82=ROUND(AU$6*$F82,2),$G82,0) -> 0 | AW82: =IF($H82>0,AU82,0) -> 1.069 | AX82: =IF(AW82>0,1,0) -> 1 | AY82: =IF($H82>0,AV82,0) -> 0 | AZ82: =IF(AY82>0,1,0) -> 0 | BA82: =IF($I82=BA$6,$E82,0) -> 0 | BB82: =IF($K82=ROUND(BA$6*$F82,2),$G82,0) -> 0 | BC82: =IF($H82>0,BA82,0) -> 0 | BD82: =IF(BC82>0,1,0) -> 0 | BE82: =IF($H82>0,BB82,0) -> 0 | BF82: =IF(BE82>0,1,0) -> 0 | BH82: 0.001069 | BI82: 3.41 | BL82: 0
A83: =IF(E83+G83>0,A82,"") ->  | B83: =IF(E83+G83>0,B82,"") ->  | C83: 6 | D83: 03-4-23.381 | E83: 0 | F83: 1.1 | G83: 0 | H83: 0 | I83: =SUMIF(Y$14:BA$14,C83,Y$6:BA$6) -> 1733.45 | J83: =IF(H83=0,ROUND(E83*I83,2),ROUND(H83*E83,2)) -> 0 | K83: =ROUND(F83*I83,2) -> 1906.8 | L83: =IF(H83=0,ROUND(ROUND(F83*I83,2)*G83,2),ROUND(G83*H83,2)) -> 0 | M83: =L83-ROUND(G83*I83,2) -> 0 | O83: =J83+L83+N83 -> 0 | Q83: 405.07 | R83: =ROUND(Q83*E83,2) -> 0 | S83: =ROUND(F83*Q83,2) -> 445.58 | T83: =ROUND(S83*G83,2) -> 0 | U83: =T83-ROUND(Q83*G83,2) -> 0 | W83: =R83+T83+V83 -> 0 | AI83: =IF($I83=AI$6,$E83,0) -> 0 | AJ83: 0 | AK83: =IF($H83>0,AI83,0) -> 0 | AL83: =IF(AK83>0,1,0) -> 0 | AM83: =IF($H83>0,AJ83,0) -> 0 | AN83: =IF(AM83>0,1,0) -> 0 | AO83: =IF($I83=AO$6,$E83,0) -> 0 | AP83: 0 | AQ83: =IF($H83>0,AO83,0) -> 0 | AR83: =IF(AQ83>0,1,0) -> 0 | AS83: =IF($H83>0,AP83,0) -> 0 | AT83: =IF(AS83>0,1,0) -> 0 | AU83: =IF($I83=AU$6,$E83,0) -> 0 | AV83: 0 | AW83: =IF($H83>0,AU83,0) -> 0 | AX83: =IF(AW83>0,1,0) -> 0 | AY83: =IF($H83>0,AV83,0) -> 0 | AZ83: =IF(AY83>0,1,0) -> 0 | BA83: =IF($I83=BA$6,$E83,0) -> 0 | BB83: 0 | BC83: =IF($H83>0,BA83,0) -> 0 | BD83: =IF(BC83>0,1,0) -> 0 | BE83: =IF($H83>0,BB83,0) -> 0 | BF83: =IF(BE83>0,1,0) -> 0 | BH83: 0 | BL83: 0
A84: =IF(E84+G84>0,A82,"") ->  | B84: =IF(E84+G84>0,B82,"") ->  | C84: =C83 -> 6 | D84: 03-4-23.381 | E84: 0 | F84: 1.5 | G84: 0 | H84: 0 | I84: =SUMIF(Y$14:BA$14,C84,Y$7:BA$7) -> 0 | J84: 0 | K84: 0 | L84: 0 | M84: 0 | O84: 0 | Q84: 405.07 | R84: 0 | S84: 607.61 | T84: 0 | U84: 0 | W84: 0 | AI84: =IF($I84=AI$7,$E84,0) -> 0 | AJ84: =IF($K84=ROUND(AI$7*$F84,2),$G84,0) -> 0 | AK84: 0 | AL84: 0 | AM84: 0 | AN84: 0 | AO84: =IF($I84=AO$7,$E84,0) -> 0 | AP84: =IF($K84=ROUND(AO$7*$F84,2),$G84,0) -> 0 | AQ84: 0 | AR84: 0 | AS84: 0 | AT84: 0 | AU84: =IF($I84=AU$7,$E84,0) -> 0 | AV84: =IF($K84=ROUND(AU$7*$F84,2),$G84,0) -> 0 | AW84: 0 | AX84: 0 | AY84: 0 | AZ84: 0 | BA84: =IF($I84=BA$7,$E84,0) -> 0 | BB84: =IF($K84=ROUND(BA$7*$F84,2),$G84,0) -> 0 | BC84: 0 | BD84: 0 | BE84: 0 | BF84: 0 | BH84: 0 | BL84: 0
A85: =IF(E85+G85>0,A82,"") ->  | B85: =IF(E85+G85>0,B82,"") ->  | C85: =C83 -> 6 | D85: 03-4-23.381 | E85: 0 | F85: 1.1 | G85: 0 | H85: 0 | I85: =SUMIF(Y$14:BA$14,C85,Y$7:BA$7) -> 0 | J85: 0 | K85: 0 | L85: 0 | M85: 0 | O85: 0 | Q85: 405.07 | R85: 0 | S85: 445.58 | T85: 0 | U85: 0 | W85: 0 | AI85: =IF($I85=AI$7,$E85,0) -> 0 | AJ85: =IF($K85=ROUND(AI$7*$F85,2),$G85,0) -> 0 | AK85: 0 | AL85: 0 | AM85: 0 | AN85: 0 | AO85: =IF($I85=AO$7,$E85,0) -> 0 | AP85: =IF($K85=ROUND(AO$7*$F85,2),$G85,0) -> 0 | AQ85: 0 | AR85: 0 | AS85: 0 | AT85: 0 | AU85: =IF($I85=AU$7,$E85,0) -> 0 | AV85: =IF($K85=ROUND(AU$7*$F85,2),$G85,0) -> 0 | AW85: 0 | AX85: 0 | AY85: 0 | AZ85: 0 | BA85: =IF($I85=BA$7,$E85,0) -> 0 | BB85: =IF($K85=ROUND(BA$7*$F85,2),$G85,0) -> 0 | BC85: 0 | BD85: 0 | BE85: 0 | BF85: 0 | BH85: 0 | BL85: 0
A86: ООО "Сервис" | B86: Вельск, ул.Дзержинского-50 | C86: =C87 -> 7 | D86: 03-4-23.381(333) | E86: 0.244 | F86: 1.5 | G86: 0 | H86: 0.244 | I86: =SUMIF(Y$14:BA$14,C86,Y$6:BA$6) -> 2166.8 | J86: =IF(H86=0,ROUND(E86*I86,2),ROUND(H86*E86,2)) -> 0.06 | K86: =ROUND(F86*I86,2) -> 3250.2 | L86: =IF(H86=0,ROUND(ROUND(F86*I86,2)*G86,2),ROUND(G86*H86,2)) -> 0 | M86: =L86-ROUND(G86*I86,2) -> 0 | O86: =J86+L86+N86 -> 0.06 | Q86: 405.07 | R86: =ROUND(Q86*E86,2) -> 98.84 | S86: =ROUND(F86*Q86,2) -> 607.61 | T86: =ROUND(S86*G86,2) -> 0 | U86: =T86-ROUND(Q86*G86,2) -> 0 | W86: =R86+T86+V86 -> 98.84 | AI86: =IF($I86=AI$6,$E86,0) -> 0 | AJ86: =IF($K86=ROUND(AI$6*$F86,2),$G86,0) -> 0 | AK86: =IF($H86>0,AI86,0) -> 0 | AL86: =IF(AK86>0,1,0) -> 0 | AM86: =IF($H86>0,AJ86,0) -> 0 | AN86: =IF(AM86>0,1,0) -> 0 | AO86: =IF($I86=AO$6,$E86,0) -> 0 | AP86: =IF($K86=ROUND(AO$6*$F86,2),$G86,0) -> 0 | AQ86: =IF($H86>0,AO86,0) -> 0 | AR86: =IF(AQ86>0,1,0) -> 0 | AS86: =IF($H86>0,AP86,0) -> 0 | AT86: =IF(AS86>0,1,0) -> 0 | AU86: =IF($I86=AU$6,$E86,0) -> 0 | AV86: =IF($K86=ROUND(AU$6*$F86,2),$G86,0) -> 0 | AW86: =IF($H86>0,AU86,0) -> 0 | AX86: =IF(AW86>0,1,0) -> 0 | AY86: =IF($H86>0,AV86,0) -> 0 | AZ86: =IF(AY86>0,1,0) -> 0 | BA86: =IF($I86=BA$6,$E86,0) -> 0.244 | BB86: =IF($K86=ROUND(BA$6*$F86,2),$G86,0) -> 0 | BC86: =IF($H86>0,BA86,0) -> 0.244 | BD86: =IF(BC86>0,1,0) -> 1 | BE86: =IF($H86>0,BB86,0) -> 0 | BF86: =IF(BE86>0,1,0) -> 0 | BH86: 0.000244 | BI86: 0.4 | BL86: 0
A87: =IF(E87+G87>0,A86,"") ->  | B87: =IF(E87+G87>0,B86,"") ->  | C87: 7 | D87: 03-4-23.381(333) | E87: 0 | F87: 1.1 | G87: 0 | H87: 0 | I87: =SUMIF(Y$14:BA$14,C87,Y$6:BA$6) -> 2166.8 | J87: =IF(H87=0,ROUND(E87*I87,2),ROUND(H87*E87,2)) -> 0 | K87: =ROUND(F87*I87,2) -> 2383.48 | L87: =IF(H87=0,ROUND(ROUND(F87*I87,2)*G87,2),ROUND(G87*H87,2)) -> 0 | M87: =L87-ROUND(G87*I87,2) -> 0 | O87: =J87+L87+N87 -> 0 | Q87: 405.07 | R87: =ROUND(Q87*E87,2) -> 0 | S87: =ROUND(F87*Q87,2) -> 445.58 | T87: =ROUND(S87*G87,2) -> 0 | U87: =T87-ROUND(Q87*G87,2) -> 0 | W87: =R87+T87+V87 -> 0 | AI87: =IF($I87=AI$6,$E87,0) -> 0 | AJ87: 0 | AK87: =IF($H87>0,AI87,0) -> 0 | AL87: =IF(AK87>0,1,0) -> 0 | AM87: =IF($H87>0,AJ87,0) -> 0 | AN87: =IF(AM87>0,1,0) -> 0 | AO87: =IF($I87=AO$6,$E87,0) -> 0 | AP87: 0 | AQ87: =IF($H87>0,AO87,0) -> 0 | AR87: =IF(AQ87>0,1,0) -> 0 | AS87: =IF($H87>0,AP87,0) -> 0 | AT87: =IF(AS87>0,1,0) -> 0 | AU87: =IF($I87=AU$6,$E87,0) -> 0 | AV87: 0 | AW87: =IF($H87>0,AU87,0) -> 0 | AX87: =IF(AW87>0,1,0) -> 0 | AY87: =IF($H87>0,AV87,0) -> 0 | AZ87: =IF(AY87>0,1,0) -> 0 | BA87: =IF($I87=BA$6,$E87,0) -> 0 | BB87: 0 | BC87: =IF($H87>0,BA87,0) -> 0 | BD87: =IF(BC87>0,1,0) -> 0 | BE87: =IF($H87>0,BB87,0) -> 0 | BF87: =IF(BE87>0,1,0) -> 0 | BH87: 0 | BL87: 0
A88: =IF(E88+G88>0,A86,"") ->  | B88: =IF(E88+G88>0,B86,"") ->  | C88: =C87 -> 7 | D88: 03-4-23.381(333) | E88: 0 | F88: 1.5 | G88: 0 | H88: 0 | I88: =SUMIF(Y$14:BA$14,C88,Y$7:BA$7) -> 0 | J88: 0 | K88: 0 | L88: 0 | M88: 0 | O88: 0 | Q88: 405.07 | R88: 0 | S88: 607.61 | T88: 0 | U88: 0 | W88: 0 | AI88: =IF($I88=AI$7,$E88,0) -> 0 | AJ88: =IF($K88=ROUND(AI$7*$F88,2),$G88,0) -> 0 | AK88: 0 | AL88: 0 | AM88: 0 | AN88: 0 | AO88: =IF($I88=AO$7,$E88,0) -> 0 | AP88: =IF($K88=ROUND(AO$7*$F88,2),$G88,0) -> 0 | AQ88: 0 | AR88: 0 | AS88: 0 | AT88: 0 | AU88: =IF($I88=AU$7,$E88,0) -> 0 | AV88: =IF($K88=ROUND(AU$7*$F88,2),$G88,0) -> 0 | AW88: 0 | AX88: 0 | AY88: 0 | AZ88: 0 | BA88: =IF($I88=BA$7,$E88,0) -> 0 | BB88: =IF($K88=ROUND(BA$7*$F88,2),$G88,0) -> 0 | BC88: 0 | BD88: 0 | BE88: 0 | BF88: 0 | BH88: 0 | BL88: 0
A89: =IF(E89+G89>0,A86,"") ->  | B89: =IF(E89+G89>0,B86,"") ->  | C89: =C87 -> 7 | D89: 03-4-23.381(333) | E89: 0 | F89: 1.1 | G89: 0 | H89: 0 | I89: =SUMIF(Y$14:BA$14,C89,Y$7:BA$7) -> 0 | J89: 0 | K89: 0 | L89: 0 | M89: 0 | O89: 0 | Q89: 405.07 | R89: 0 | S89: 445.58 | T89: 0 | U89: 0 | W89: 0 | AI89: =IF($I89=AI$7,$E89,0) -> 0 | AJ89: =IF($K89=ROUND(AI$7*$F89,2),$G89,0) -> 0 | AK89: 0 | AL89: 0 | AM89: 0 | AN89: 0 | AO89: =IF($I89=AO$7,$E89,0) -> 0 | AP89: =IF($K89=ROUND(AO$7*$F89,2),$G89,0) -> 0 | AQ89: 0 | AR89: 0 | AS89: 0 | AT89: 0 | AU89: =IF($I89=AU$7,$E89,0) -> 0 | AV89: =IF($K89=ROUND(AU$7*$F89,2),$G89,0) -> 0 | AW89: 0 | AX89: 0 | AY89: 0 | AZ89: 0 | BA89: =IF($I89=BA$7,$E89,0) -> 0 | BB89: =IF($K89=ROUND(BA$7*$F89,2),$G89,0) -> 0 | BC89: 0 | BD89: 0 | BE89: 0 | BF89: 0 | BH89: 0 | BL89: 0
A90: ООО "Сервис" | B90: Вельск, ул.1 мая-63 | C90: =C91 -> 7 | D90: 03-4-23.381(333) | E90: 0.279 | F90: 1.5 | G90: 0 | H90: 0.279 | I90: =SUMIF(Y$14:BA$14,C90,Y$6:BA$6) -> 2166.8 | J90: =IF(H90=0,ROUND(E90*I90,2),ROUND(H90*E90,2)) -> 0.08 | K90: =ROUND(F90*I90,2) -> 3250.2 | L90: =IF(H90=0,ROUND(ROUND(F90*I90,2)*G90,2),ROUND(G90*H90,2)) -> 0 | M90: =L90-ROUND(G90*I90,2) -> 0 | O90: =J90+L90+N90 -> 0.08 | Q90: 405.07 | R90: =ROUND(Q90*E90,2) -> 113.01 | S90: =ROUND(F90*Q90,2) -> 607.61 | T90: =ROUND(S90*G90,2) -> 0 | U90: =T90-ROUND(Q90*G90,2) -> 0 | W90: =R90+T90+V90 -> 113.01 | AI90: =IF($I90=AI$6,$E90,0) -> 0 | AJ90: =IF($K90=ROUND(AI$6*$F90,2),$G90,0) -> 0 | AK90: =IF($H90>0,AI90,0) -> 0 | AL90: =IF(AK90>0,1,0) -> 0 | AM90: =IF($H90>0,AJ90,0) -> 0 | AN90: =IF(AM90>0,1,0) -> 0 | AO90: =IF($I90=AO$6,$E90,0) -> 0 | AP90: =IF($K90=ROUND(AO$6*$F90,2),$G90,0) -> 0 | AQ90: =IF($H90>0,AO90,0) -> 0 | AR90: =IF(AQ90>0,1,0) -> 0 | AS90: =IF($H90>0,AP90,0) -> 0 | AT90: =IF(AS90>0,1,0) -> 0 | AU90: =IF($I90=AU$6,$E90,0) -> 0 | AV90: =IF($K90=ROUND(AU$6*$F90,2),$G90,0) -> 0 | AW90: =IF($H90>0,AU90,0) -> 0 | AX90: =IF(AW90>0,1,0) -> 0 | AY90: =IF($H90>0,AV90,0) -> 0 | AZ90: =IF(AY90>0,1,0) -> 0 | BA90: =IF($I90=BA$6,$E90,0) -> 0.279 | BB90: =IF($K90=ROUND(BA$6*$F90,2),$G90,0) -> 0 | BC90: =IF($H90>0,BA90,0) -> 0.279 | BD90: =IF(BC90>0,1,0) -> 1 | BE90: =IF($H90>0,BB90,0) -> 0 | BF90: =IF(BE90>0,1,0) -> 0 | BH90: 0.000279 | BI90: 0.5 | BL90: 0
A91: =IF(E91+G91>0,A90,"") ->  | B91: =IF(E91+G91>0,B90,"") ->  | C91: 7 | D91: 03-4-23.381(333) | E91: 0 | F91: 1.1 | G91: 0 | H91: 0 | I91: =SUMIF(Y$14:BA$14,C91,Y$6:BA$6) -> 2166.8 | J91: =IF(H91=0,ROUND(E91*I91,2),ROUND(H91*E91,2)) -> 0 | K91: =ROUND(F91*I91,2) -> 2383.48 | L91: =IF(H91=0,ROUND(ROUND(F91*I91,2)*G91,2),ROUND(G91*H91,2)) -> 0 | M91: =L91-ROUND(G91*I91,2) -> 0 | O91: =J91+L91+N91 -> 0 | Q91: 405.07 | R91: =ROUND(Q91*E91,2) -> 0 | S91: =ROUND(F91*Q91,2) -> 445.58 | T91: =ROUND(S91*G91,2) -> 0 | U91: =T91-ROUND(Q91*G91,2) -> 0 | W91: =R91+T91+V91 -> 0 | AI91: =IF($I91=AI$6,$E91,0) -> 0 | AJ91: 0 | AK91: =IF($H91>0,AI91,0) -> 0 | AL91: =IF(AK91>0,1,0) -> 0 | AM91: =IF($H91>0,AJ91,0) -> 0 | AN91: =IF(AM91>0,1,0) -> 0 | AO91: =IF($I91=AO$6,$E91,0) -> 0 | AP91: 0 | AQ91: =IF($H91>0,AO91,0) -> 0 | AR91: =IF(AQ91>0,1,0) -> 0 | AS91: =IF($H91>0,AP91,0) -> 0 | AT91: =IF(AS91>0,1,0) -> 0 | AU91: =IF($I91=AU$6,$E91,0) -> 0 | AV91: 0 | AW91: =IF($H91>0,AU91,0) -> 0 | AX91: =IF(AW91>0,1,0) -> 0 | AY91: =IF($H91>0,AV91,0) -> 0 | AZ91: =IF(AY91>0,1,0) -> 0 | BA91: =IF($I91=BA$6,$E91,0) -> 0 | BB91: 0 | BC91: =IF($H91>0,BA91,0) -> 0 | BD91: =IF(BC91>0,1,0) -> 0 | BE91: =IF($H91>0,BB91,0) -> 0 | BF91: =IF(BE91>0,1,0) -> 0 | BH91: 0 | BL91: 0
A92: =IF(E92+G92>0,A90,"") ->  | B92: =IF(E92+G92>0,B90,"") ->  | C92: =C91 -> 7 | D92: 03-4-23.381(333) | E92: 0 | F92: 1.5 | G92: 0 | H92: 0 | I92: =SUMIF(Y$14:BA$14,C92,Y$7:BA$7) -> 0 | J92: 0 | K92: 0 | L92: 0 | M92: 0 | O92: 0 | Q92: 405.07 | R92: 0 | S92: 607.61 | T92: 0 | U92: 0 | W92: 0 | AI92: =IF($I92=AI$7,$E92,0) -> 0 | AJ92: =IF($K92=ROUND(AI$7*$F92,2),$G92,0) -> 0 | AK92: 0 | AL92: 0 | AM92: 0 | AN92: 0 | AO92: =IF($I92=AO$7,$E92,0) -> 0 | AP92: =IF($K92=ROUND(AO$7*$F92,2),$G92,0) -> 0 | AQ92: 0 | AR92: 0 | AS92: 0 | AT92: 0 | AU92: =IF($I92=AU$7,$E92,0) -> 0 | AV92: =IF($K92=ROUND(AU$7*$F92,2),$G92,0) -> 0 | AW92: 0 | AX92: 0 | AY92: 0 | AZ92: 0 | BA92: =IF($I92=BA$7,$E92,0) -> 0 | BB92: =IF($K92=ROUND(BA$7*$F92,2),$G92,0) -> 0 | BC92: 0 | BD92: 0 | BE92: 0 | BF92: 0 | BH92: 0 | BL92: 0
A93: =IF(E93+G93>0,A90,"") ->  | B93: =IF(E93+G93>0,B90,"") ->  | C93: =C91 -> 7 | D93: 03-4-23.381(333) | E93: 0 | F93: 1.1 | G93: 0 | H93: 0 | I93: =SUMIF(Y$14:BA$14,C93,Y$7:BA$7) -> 0 | J93: 0 | K93: 0 | L93: 0 | M93: 0 | O93: 0 | Q93: 405.07 | R93: 0 | S93: 445.58 | T93: 0 | U93: 0 | W93: 0 | AI93: =IF($I93=AI$7,$E93,0) -> 0 | AJ93: =IF($K93=ROUND(AI$7*$F93,2),$G93,0) -> 0 | AK93: 0 | AL93: 0 | AM93: 0 | AN93: 0 | AO93: =IF($I93=AO$7,$E93,0) -> 0 | AP93: =IF($K93=ROUND(AO$7*$F93,2),$G93,0) -> 0 | AQ93: 0 | AR93: 0 | AS93: 0 | AT93: 0 | AU93: =IF($I93=AU$7,$E93,0) -> 0 | AV93: =IF($K93=ROUND(AU$7*$F93,2),$G93,0) -> 0 | AW93: 0 | AX93: 0 | AY93: 0 | AZ93: 0 | BA93: =IF($I93=BA$7,$E93,0) -> 0 | BB93: =IF($K93=ROUND(BA$7*$F93,2),$G93,0) -> 0 | BC93: 0 | BD93: 0 | BE93: 0 | BF93: 0 | BH93: 0 | BL93: 0
A94: ООО "Сервис" | B94: Вельск, ул.Гагарина-42, 44 | C94: =C95 -> 6 | D94: 03-4-23.381(333) | E94: 1.49 | F94: 1.5 | G94: 0 | H94: 1.49 | I94: =SUMIF(Y$14:BA$14,C94,Y$6:BA$6) -> 1733.45 | J94: =IF(H94=0,ROUND(E94*I94,2),ROUND(H94*E94,2)) -> 2.22 | K94: =ROUND(F94*I94,2) -> 2600.18 | L94: =IF(H94=0,ROUND(ROUND(F94*I94,2)*G94,2),ROUND(G94*H94,2)) -> 0 | M94: =L94-ROUND(G94*I94,2) -> 0 | O94: =J94+L94+N94 -> 2.22 | Q94: 405.07 | R94: =ROUND(Q94*E94,2) -> 603.55 | S94: =ROUND(F94*Q94,2) -> 607.61 | T94: =ROUND(S94*G94,2) -> 0 | U94: =T94-ROUND(Q94*G94,2) -> 0 | W94: =R94+T94+V94 -> 603.55 | AI94: =IF($I94=AI$6,$E94,0) -> 0 | AJ94: =IF($K94=ROUND(AI$6*$F94,2),$G94,0) -> 0 | AK94: =IF($H94>0,AI94,0) -> 0 | AL94: =IF(AK94>0,1,0) -> 0 | AM94: =IF($H94>0,AJ94,0) -> 0 | AN94: =IF(AM94>0,1,0) -> 0 | AO94: =IF($I94=AO$6,$E94,0) -> 0 | AP94: =IF($K94=ROUND(AO$6*$F94,2),$G94,0) -> 0 | AQ94: =IF($H94>0,AO94,0) -> 0 | AR94: =IF(AQ94>0,1,0) -> 0 | AS94: =IF($H94>0,AP94,0) -> 0 | AT94: =IF(AS94>0,1,0) -> 0 | AU94: =IF($I94=AU$6,$E94,0) -> 1.49 | AV94: =IF($K94=ROUND(AU$6*$F94,2),$G94,0) -> 0 | AW94: =IF($H94>0,AU94,0) -> 1.49 | AX94: =IF(AW94>0,1,0) -> 1 | AY94: =IF($H94>0,AV94,0) -> 0 | AZ94: =IF(AY94>0,1,0) -> 0 | BA94: =IF($I94=BA$6,$E94,0) -> 0 | BB94: =IF($K94=ROUND(BA$6*$F94,2),$G94,0) -> 0 | BC94: =IF($H94>0,BA94,0) -> 0 | BD94: =IF(BC94>0,1,0) -> 0 | BE94: =IF($H94>0,BB94,0) -> 0 | BF94: =IF(BE94>0,1,0) -> 0 | BH94: 0.00149 | BI94: 3.6 | BL94: 0
A95: =IF(E95+G95>0,A94,"") ->  | B95: =IF(E95+G95>0,B94,"") ->  | C95: 6 | D95: 03-4-23.381(333) | E95: 0 | F95: 1.1 | G95: 0 | H95: 0 | I95: =SUMIF(Y$14:BA$14,C95,Y$6:BA$6) -> 1733.45 | J95: =IF(H95=0,ROUND(E95*I95,2),ROUND(H95*E95,2)) -> 0 | K95: =ROUND(F95*I95,2) -> 1906.8 | L95: =IF(H95=0,ROUND(ROUND(F95*I95,2)*G95,2),ROUND(G95*H95,2)) -> 0 | M95: =L95-ROUND(G95*I95,2) -> 0 | O95: =J95+L95+N95 -> 0 | Q95: 405.07 | R95: =ROUND(Q95*E95,2) -> 0 | S95: =ROUND(F95*Q95,2) -> 445.58 | T95: =ROUND(S95*G95,2) -> 0 | U95: =T95-ROUND(Q95*G95,2) -> 0 | W95: =R95+T95+V95 -> 0 | AI95: =IF($I95=AI$6,$E95,0) -> 0 | AJ95: 0 | AK95: =IF($H95>0,AI95,0) -> 0 | AL95: =IF(AK95>0,1,0) -> 0 | AM95: =IF($H95>0,AJ95,0) -> 0 | AN95: =IF(AM95>0,1,0) -> 0 | AO95: =IF($I95=AO$6,$E95,0) -> 0 | AP95: 0 | AQ95: =IF($H95>0,AO95,0) -> 0 | AR95: =IF(AQ95>0,1,0) -> 0 | AS95: =IF($H95>0,AP95,0) -> 0 | AT95: =IF(AS95>0,1,0) -> 0 | AU95: =IF($I95=AU$6,$E95,0) -> 0 | AV95: 0 | AW95: =IF($H95>0,AU95,0) -> 0 | AX95: =IF(AW95>0,1,0) -> 0 | AY95: =IF($H95>0,AV95,0) -> 0 | AZ95: =IF(AY95>0,1,0) -> 0 | BA95: =IF($I95=BA$6,$E95,0) -> 0 | BB95: 0 | BC95: =IF($H95>0,BA95,0) -> 0 | BD95: =IF(BC95>0,1,0) -> 0 | BE95: =IF($H95>0,BB95,0) -> 0 | BF95: =IF(BE95>0,1,0) -> 0 | BH95: 0 | BL95: 0
A96: =IF(E96+G96>0,A94,"") ->  | B96: =IF(E96+G96>0,B94,"") ->  | C96: =C95 -> 6 | D96: 03-4-23.381(333) | E96: 0 | F96: 1.5 | G96: 0 | H96: 0 | I96: =SUMIF(Y$14:BA$14,C96,Y$7:BA$7) -> 0 | J96: 0 | K96: 0 | L96: 0 | M96: 0 | O96: 0 | Q96: 405.07 | R96: 0 | S96: 607.61 | T96: 0 | U96: 0 | W96: 0 | AI96: =IF($I96=AI$7,$E96,0) -> 0 | AJ96: =IF($K96=ROUND(AI$7*$F96,2),$G96,0) -> 0 | AK96: 0 | AL96: 0 | AM96: 0 | AN96: 0 | AO96: =IF($I96=AO$7,$E96,0) -> 0 | AP96: =IF($K96=ROUND(AO$7*$F96,2),$G96,0) -> 0 | AQ96: 0 | AR96: 0 | AS96: 0 | AT96: 0 | AU96: =IF($I96=AU$7,$E96,0) -> 0 | AV96: =IF($K96=ROUND(AU$7*$F96,2),$G96,0) -> 0 | AW96: 0 | AX96: 0 | AY96: 0 | AZ96: 0 | BA96: =IF($I96=BA$7,$E96,0) -> 0 | BB96: =IF($K96=ROUND(BA$7*$F96,2),$G96,0) -> 0 | BC96: 0 | BD96: 0 | BE96: 0 | BF96: 0 | BH96: 0 | BL96: 0
A97: =IF(E97+G97>0,A94,"") ->  | B97: =IF(E97+G97>0,B94,"") ->  | C97: =C95 -> 6 | D97: 03-4-23.381(333) | E97: 0 | F97: 1.1 | G97: 0 | H97: 0 | I97: =SUMIF(Y$14:BA$14,C97,Y$7:BA$7) -> 0 | J97: 0 | K97: 0 | L97: 0 | M97: 0 | O97: 0 | Q97: 405.07 | R97: 0 | S97: 445.58 | T97: 0 | U97: 0 | W97: 0 | AI97: =IF($I97=AI$7,$E97,0) -> 0 | AJ97: =IF($K97=ROUND(AI$7*$F97,2),$G97,0) -> 0 | AK97: 0 | AL97: 0 | AM97: 0 | AN97: 0 | AO97: =IF($I97=AO$7,$E97,0) -> 0 | AP97: =IF($K97=ROUND(AO$7*$F97,2),$G97,0) -> 0 | AQ97: 0 | AR97: 0 | AS97: 0 | AT97: 0 | AU97: =IF($I97=AU$7,$E97,0) -> 0 | AV97: =IF($K97=ROUND(AU$7*$F97,2),$G97,0) -> 0 | AW97: 0 | AX97: 0 | AY97: 0 | AZ97: 0 | BA97: =IF($I97=BA$7,$E97,0) -> 0 | BB97: =IF($K97=ROUND(BA$7*$F97,2),$G97,0) -> 0 | BC97: 0 | BD97: 0 | BE97: 0 | BF97: 0 | BH97: 0 | BL97: 0
A98: ИП Тюкин Николай Федорович | B98: Вельск, ул.Набережная-58 | C98: =C99 -> 6 | D98: 03-4-23.382 | E98: 1.2 | F98: 1.5 | G98: 0 | H98: 1.2 | I98: =SUMIF(Y$14:BA$14,C98,Y$6:BA$6) -> 1733.45 | J98: =IF(H98=0,ROUND(E98*I98,2),ROUND(H98*E98,2)) -> 1.44 | K98: =ROUND(F98*I98,2) -> 2600.18 | L98: =IF(H98=0,ROUND(ROUND(F98*I98,2)*G98,2),ROUND(G98*H98,2)) -> 0 | M98: =L98-ROUND(G98*I98,2) -> 0 | O98: =J98+L98+N98 -> 1.44 | Q98: 405.07 | R98: =ROUND(Q98*E98,2) -> 486.08 | S98: =ROUND(F98*Q98,2) -> 607.61 | T98: =ROUND(S98*G98,2) -> 0 | U98: =T98-ROUND(Q98*G98,2) -> 0 | W98: =R98+T98+V98 -> 486.08 | AI98: =IF($I98=AI$6,$E98,0) -> 0 | AJ98: =IF($K98=ROUND(AI$6*$F98,2),$G98,0) -> 0 | AK98: =IF($H98>0,AI98,0) -> 0 | AL98: =IF(AK98>0,1,0) -> 0 | AM98: =IF($H98>0,AJ98,0) -> 0 | AN98: =IF(AM98>0,1,0) -> 0 | AO98: =IF($I98=AO$6,$E98,0) -> 0 | AP98: =IF($K98=ROUND(AO$6*$F98,2),$G98,0) -> 0 | AQ98: =IF($H98>0,AO98,0) -> 0 | AR98: =IF(AQ98>0,1,0) -> 0 | AS98: =IF($H98>0,AP98,0) -> 0 | AT98: =IF(AS98>0,1,0) -> 0 | AU98: =IF($I98=AU$6,$E98,0) -> 1.2 | AV98: =IF($K98=ROUND(AU$6*$F98,2),$G98,0) -> 0 | AW98: =IF($H98>0,AU98,0) -> 1.2 | AX98: =IF(AW98>0,1,0) -> 1 | AY98: =IF($H98>0,AV98,0) -> 0 | AZ98: =IF(AY98>0,1,0) -> 0 | BA98: =IF($I98=BA$6,$E98,0) -> 0 | BB98: =IF($K98=ROUND(BA$6*$F98,2),$G98,0) -> 0 | BC98: =IF($H98>0,BA98,0) -> 0 | BD98: =IF(BC98>0,1,0) -> 0 | BE98: =IF($H98>0,BB98,0) -> 0 | BF98: =IF(BE98>0,1,0) -> 0 | BH98: 0.0012 | BI98: 1.2 | BL98: 0
A99: =IF(E99+G99>0,A98,"") ->  | B99: =IF(E99+G99>0,B98,"") ->  | C99: 6 | D99: 03-4-23.382 | E99: 0 | F99: 1.1 | G99: 0 | H99: 0 | I99: =SUMIF(Y$14:BA$14,C99,Y$6:BA$6) -> 1733.45 | J99: =IF(H99=0,ROUND(E99*I99,2),ROUND(H99*E99,2)) -> 0 | K99: =ROUND(F99*I99,2) -> 1906.8 | L99: =IF(H99=0,ROUND(ROUND(F99*I99,2)*G99,2),ROUND(G99*H99,2)) -> 0 | M99: =L99-ROUND(G99*I99,2) -> 0 | O99: =J99+L99+N99 -> 0 | Q99: 405.07 | R99: =ROUND(Q99*E99,2) -> 0 | S99: =ROUND(F99*Q99,2) -> 445.58 | T99: =ROUND(S99*G99,2) -> 0 | U99: =T99-ROUND(Q99*G99,2) -> 0 | W99: =R99+T99+V99 -> 0 | AI99: =IF($I99=AI$6,$E99,0) -> 0 | AJ99: 0 | AK99: =IF($H99>0,AI99,0) -> 0 | AL99: =IF(AK99>0,1,0) -> 0 | AM99: =IF($H99>0,AJ99,0) -> 0 | AN99: =IF(AM99>0,1,0) -> 0 | AO99: =IF($I99=AO$6,$E99,0) -> 0 | AP99: 0 | AQ99: =IF($H99>0,AO99,0) -> 0 | AR99: =IF(AQ99>0,1,0) -> 0 | AS99: =IF($H99>0,AP99,0) -> 0 | AT99: =IF(AS99>0,1,0) -> 0 | AU99: =IF($I99=AU$6,$E99,0) -> 0 | AV99: 0 | AW99: =IF($H99>0,AU99,0) -> 0 | AX99: =IF(AW99>0,1,0) -> 0 | AY99: =IF($H99>0,AV99,0) -> 0 | AZ99: =IF(AY99>0,1,0) -> 0 | BA99: =IF($I99=BA$6,$E99,0) -> 0 | BB99: 0 | BC99: =IF($H99>0,BA99,0) -> 0 | BD99: =IF(BC99>0,1,0) -> 0 | BE99: =IF($H99>0,BB99,0) -> 0 | BF99: =IF(BE99>0,1,0) -> 0 | BH99: 0 | BL99: 0
A100: =IF(E100+G100>0,A98,"") ->  | B100: =IF(E100+G100>0,B98,"") ->  | C100: =C99 -> 6 | D100: 03-4-23.382 | E100: 0 | F100: 1.5 | G100: 0 | H100: 0 | I100: =SUMIF(Y$14:BA$14,C100,Y$7:BA$7) -> 0 | J100: 0 | K100: 0 | L100: 0 | M100: 0 | O100: 0 | Q100: 405.07 | R100: 0 | S100: 607.61 | T100: 0 | U100: 0 | W100: 0 | AI100: =IF($I100=AI$7,$E100,0) -> 0 | AJ100: =IF($K100=ROUND(AI$7*$F100,2),$G100,0) -> 0 | AK100: 0 | AL100: 0 | AM100: 0 | AN100: 0 | AO100: =IF($I100=AO$7,$E100,0) -> 0 | AP100: =IF($K100=ROUND(AO$7*$F100,2),$G100,0) -> 0 | AQ100: 0 | AR100: 0 | AS100: 0 | AT100: 0 | AU100: =IF($I100=AU$7,$E100,0) -> 0 | AV100: =IF($K100=ROUND(AU$7*$F100,2),$G100,0) -> 0 | AW100: 0 | AX100: 0 | AY100: 0 | AZ100: 0 | BA100: =IF($I100=BA$7,$E100,0) -> 0 | BB100: =IF($K100=ROUND(BA$7*$F100,2),$G100,0) -> 0 | BC100: 0 | BD100: 0 | BE100: 0 | BF100: 0 | BH100: 0 | BL100: 0
A101: =IF(E101+G101>0,A98,"") ->  | B101: =IF(E101+G101>0,B98,"") ->  | C101: =C99 -> 6 | D101: 03-4-23.382 | E101: 0 | F101: 1.1 | G101: 0 | H101: 0 | I101: =SUMIF(Y$14:BA$14,C101,Y$7:BA$7) -> 0 | J101: 0 | K101: 0 | L101: 0 | M101: 0 | O101: 0 | Q101: 405.07 | R101: 0 | S101: 445.58 | T101: 0 | U101: 0 | W101: 0 | AI101: =IF($I101=AI$7,$E101,0) -> 0 | AJ101: =IF($K101=ROUND(AI$7*$F101,2),$G101,0) -> 0 | AK101: 0 | AL101: 0 | AM101: 0 | AN101: 0 | AO101: =IF($I101=AO$7,$E101,0) -> 0 | AP101: =IF($K101=ROUND(AO$7*$F101,2),$G101,0) -> 0 | AQ101: 0 | AR101: 0 | AS101: 0 | AT101: 0 | AU101: =IF($I101=AU$7,$E101,0) -> 0 | AV101: =IF($K101=ROUND(AU$7*$F101,2),$G101,0) -> 0 | AW101: 0 | AX101: 0 | AY101: 0 | AZ101: 0 | BA101: =IF($I101=BA$7,$E101,0) -> 0 | BB101: =IF($K101=ROUND(BA$7*$F101,2),$G101,0) -> 0 | BC101: 0 | BD101: 0 | BE101: 0 | BF101: 0 | BH101: 0 | BL101: 0
A102: ИП Тюкин Николай Федорович | B102: Вельск, ул.Революционная-3в | C102: =C103 -> 6 | D102: 03-4-23.382(333) | E102: 1.2 | F102: 1.5 | G102: 0 | H102: 1.2 | I102: =SUMIF(Y$14:BA$14,C102,Y$6:BA$6) -> 1733.45 | J102: =IF(H102=0,ROUND(E102*I102,2),ROUND(H102*E102,2)) -> 1.44 | K102: =ROUND(F102*I102,2) -> 2600.18 | L102: =IF(H102=0,ROUND(ROUND(F102*I102,2)*G102,2),ROUND(G102*H102,2)) -> 0 | M102: =L102-ROUND(G102*I102,2) -> 0 | O102: =J102+L102+N102 -> 1.44 | Q102: 405.07 | R102: =ROUND(Q102*E102,2) -> 486.08 | S102: =ROUND(F102*Q102,2) -> 607.61 | T102: =ROUND(S102*G102,2) -> 0 | U102: =T102-ROUND(Q102*G102,2) -> 0 | W102: =R102+T102+V102 -> 486.08 | AI102: =IF($I102=AI$6,$E102,0) -> 0 | AJ102: =IF($K102=ROUND(AI$6*$F102,2),$G102,0) -> 0 | AK102: =IF($H102>0,AI102,0) -> 0 | AL102: =IF(AK102>0,1,0) -> 0 | AM102: =IF($H102>0,AJ102,0) -> 0 | AN102: =IF(AM102>0,1,0) -> 0 | AO102: =IF($I102=AO$6,$E102,0) -> 0 | AP102: =IF($K102=ROUND(AO$6*$F102,2),$G102,0) -> 0 | AQ102: =IF($H102>0,AO102,0) -> 0 | AR102: =IF(AQ102>0,1,0) -> 0 | AS102: =IF($H102>0,AP102,0) -> 0 | AT102: =IF(AS102>0,1,0) -> 0 | AU102: =IF($I102=AU$6,$E102,0) -> 1.2 | AV102: =IF($K102=ROUND(AU$6*$F102,2),$G102,0) -> 0 | AW102: =IF($H102>0,AU102,0) -> 1.2 | AX102: =IF(AW102>0,1,0) -> 1 | AY102: =IF($H102>0,AV102,0) -> 0 | AZ102: =IF(AY102>0,1,0) -> 0 | BA102: =IF($I102=BA$6,$E102,0) -> 0 | BB102: =IF($K102=ROUND(BA$6*$F102,2),$G102,0) -> 0 | BC102: =IF($H102>0,BA102,0) -> 0 | BD102: =IF(BC102>0,1,0) -> 0 | BE102: =IF($H102>0,BB102,0) -> 0 | BF102: =IF(BE102>0,1,0) -> 0 | BH102: 0.0012 | BI102: 1.2 | BL102: 0
A103: =IF(E103+G103>0,A102,"") ->  | B103: =IF(E103+G103>0,B102,"") ->  | C103: 6 | D103: 03-4-23.382(333) | E103: 0 | F103: 1.1 | G103: 0 | H103: 0 | I103: =SUMIF(Y$14:BA$14,C103,Y$6:BA$6) -> 1733.45 | J103: =IF(H103=0,ROUND(E103*I103,2),ROUND(H103*E103,2)) -> 0 | K103: =ROUND(F103*I103,2) -> 1906.8 | L103: =IF(H103=0,ROUND(ROUND(F103*I103,2)*G103,2),ROUND(G103*H103,2)) -> 0 | M103: =L103-ROUND(G103*I103,2) -> 0 | O103: =J103+L103+N103 -> 0 | Q103: 405.07 | R103: =ROUND(Q103*E103,2) -> 0 | S103: =ROUND(F103*Q103,2) -> 445.58 | T103: =ROUND(S103*G103,2) -> 0 | U103: =T103-ROUND(Q103*G103,2) -> 0 | W103: =R103+T103+V103 -> 0 | AI103: =IF($I103=AI$6,$E103,0) -> 0 | AJ103: 0 | AK103: =IF($H103>0,AI103,0) -> 0 | AL103: =IF(AK103>0,1,0) -> 0 | AM103: =IF($H103>0,AJ103,0) -> 0 | AN103: =IF(AM103>0,1,0) -> 0 | AO103: =IF($I103=AO$6,$E103,0) -> 0 | AP103: 0 | AQ103: =IF($H103>0,AO103,0) -> 0 | AR103: =IF(AQ103>0,1,0) -> 0 | AS103: =IF($H103>0,AP103,0) -> 0 | AT103: =IF(AS103>0,1,0) -> 0 | AU103: =IF($I103=AU$6,$E103,0) -> 0 | AV103: 0 | AW103: =IF($H103>0,AU103,0) -> 0 | AX103: =IF(AW103>0,1,0) -> 0 | AY103: =IF($H103>0,AV103,0) -> 0 | AZ103: =IF(AY103>0,1,0) -> 0 | BA103: =IF($I103=BA$6,$E103,0) -> 0 | BB103: 0 | BC103: =IF($H103>0,BA103,0) -> 0 | BD103: =IF(BC103>0,1,0) -> 0 | BE103: =IF($H103>0,BB103,0) -> 0 | BF103: =IF(BE103>0,1,0) -> 0 | BH103: 0 | BL103: 0
A104: =IF(E104+G104>0,A102,"") ->  | B104: =IF(E104+G104>0,B102,"") ->  | C104: =C103 -> 6 | D104: 03-4-23.382(333) | E104: 0 | F104: 1.5 | G104: 0 | H104: 0 | I104: =SUMIF(Y$14:BA$14,C104,Y$7:BA$7) -> 0 | J104: 0 | K104: 0 | L104: 0 | M104: 0 | O104: 0 | Q104: 405.07 | R104: 0 | S104: 607.61 | T104: 0 | U104: 0 | W104: 0 | AI104: =IF($I104=AI$7,$E104,0) -> 0 | AJ104: =IF($K104=ROUND(AI$7*$F104,2),$G104,0) -> 0 | AK104: 0 | AL104: 0 | AM104: 0 | AN104: 0 | AO104: =IF($I104=AO$7,$E104,0) -> 0 | AP104: =IF($K104=ROUND(AO$7*$F104,2),$G104,0) -> 0 | AQ104: 0 | AR104: 0 | AS104: 0 | AT104: 0 | AU104: =IF($I104=AU$7,$E104,0) -> 0 | AV104: =IF($K104=ROUND(AU$7*$F104,2),$G104,0) -> 0 | AW104: 0 | AX104: 0 | AY104: 0 | AZ104: 0 | BA104: =IF($I104=BA$7,$E104,0) -> 0 | BB104: =IF($K104=ROUND(BA$7*$F104,2),$G104,0) -> 0 | BC104: 0 | BD104: 0 | BE104: 0 | BF104: 0 | BH104: 0 | BL104: 0
A105: =IF(E105+G105>0,A102,"") ->  | B105: =IF(E105+G105>0,B102,"") ->  | C105: =C103 -> 6 | D105: 03-4-23.382(333) | E105: 0 | F105: 1.1 | G105: 0 | H105: 0 | I105: =SUMIF(Y$14:BA$14,C105,Y$7:BA$7) -> 0 | J105: 0 | K105: 0 | L105: 0 | M105: 0 | O105: 0 | Q105: 405.07 | R105: 0 | S105: 445.58 | T105: 0 | U105: 0 | W105: 0 | AI105: =IF($I105=AI$7,$E105,0) -> 0 | AJ105: =IF($K105=ROUND(AI$7*$F105,2),$G105,0) -> 0 | AK105: 0 | AL105: 0 | AM105: 0 | AN105: 0 | AO105: =IF($I105=AO$7,$E105,0) -> 0 | AP105: =IF($K105=ROUND(AO$7*$F105,2),$G105,0) -> 0 | AQ105: 0 | AR105: 0 | AS105: 0 | AT105: 0 | AU105: =IF($I105=AU$7,$E105,0) -> 0 | AV105: =IF($K105=ROUND(AU$7*$F105,2),$G105,0) -> 0 | AW105: 0 | AX105: 0 | AY105: 0 | AZ105: 0 | BA105: =IF($I105=BA$7,$E105,0) -> 0 | BB105: =IF($K105=ROUND(BA$7*$F105,2),$G105,0) -> 0 | BC105: 0 | BD105: 0 | BE105: 0 | BF105: 0 | BH105: 0 | BL105: 0
A106: ИП Тюкин Николай Федорович | B106: д.Горка Муравьевская, ул.Школьная-4 | C106: =C107 -> 7 | D106: 03-4-23.382(333) | E106: 0.81 | F106: 1.5 | G106: 0 | H106: 0.81 | I106: =SUMIF(Y$14:BA$14,C106,Y$6:BA$6) -> 2166.8 | J106: =IF(H106=0,ROUND(E106*I106,2),ROUND(H106*E106,2)) -> 0.66 | K106: =ROUND(F106*I106,2) -> 3250.2 | L106: =IF(H106=0,ROUND(ROUND(F106*I106,2)*G106,2),ROUND(G106*H106,2)) -> 0 | M106: =L106-ROUND(G106*I106,2) -> 0 | O106: =J106+L106+N106 -> 0.66 | Q106: 405.07 | R106: =ROUND(Q106*E106,2) -> 328.11 | S106: =ROUND(F106*Q106,2) -> 607.61 | T106: =ROUND(S106*G106,2) -> 0 | U106: =T106-ROUND(Q106*G106,2) -> 0 | W106: =R106+T106+V106 -> 328.11 | AI106: =IF($I106=AI$6,$E106,0) -> 0 | AJ106: =IF($K106=ROUND(AI$6*$F106,2),$G106,0) -> 0 | AK106: =IF($H106>0,AI106,0) -> 0 | AL106: =IF(AK106>0,1,0) -> 0 | AM106: =IF($H106>0,AJ106,0) -> 0 | AN106: =IF(AM106>0,1,0) -> 0 | AO106: =IF($I106=AO$6,$E106,0) -> 0 | AP106: =IF($K106=ROUND(AO$6*$F106,2),$G106,0) -> 0 | AQ106: =IF($H106>0,AO106,0) -> 0 | AR106: =IF(AQ106>0,1,0) -> 0 | AS106: =IF($H106>0,AP106,0) -> 0 | AT106: =IF(AS106>0,1,0) -> 0 | AU106: =IF($I106=AU$6,$E106,0) -> 0 | AV106: =IF($K106=ROUND(AU$6*$F106,2),$G106,0) -> 0 | AW106: =IF($H106>0,AU106,0) -> 0 | AX106: =IF(AW106>0,1,0) -> 0 | AY106: =IF($H106>0,AV106,0) -> 0 | AZ106: =IF(AY106>0,1,0) -> 0 | BA106: =IF($I106=BA$6,$E106,0) -> 0.81 | BB106: =IF($K106=ROUND(BA$6*$F106,2),$G106,0) -> 0 | BC106: =IF($H106>0,BA106,0) -> 0.81 | BD106: =IF(BC106>0,1,0) -> 1 | BE106: =IF($H106>0,BB106,0) -> 0 | BF106: =IF(BE106>0,1,0) -> 0 | BH106: 0.00081 | BI106: 0.8 | BL106: 0
A107: =IF(E107+G107>0,A106,"") ->  | B107: =IF(E107+G107>0,B106,"") ->  | C107: 7 | D107: 03-4-23.382(333) | E107: 0 | F107: 1.1 | G107: 0 | H107: 0 | I107: =SUMIF(Y$14:BA$14,C107,Y$6:BA$6) -> 2166.8 | J107: =IF(H107=0,ROUND(E107*I107,2),ROUND(H107*E107,2)) -> 0 | K107: =ROUND(F107*I107,2) -> 2383.48 | L107: =IF(H107=0,ROUND(ROUND(F107*I107,2)*G107,2),ROUND(G107*H107,2)) -> 0 | M107: =L107-ROUND(G107*I107,2) -> 0 | O107: =J107+L107+N107 -> 0 | Q107: 405.07 | R107: =ROUND(Q107*E107,2) -> 0 | S107: =ROUND(F107*Q107,2) -> 445.58 | T107: =ROUND(S107*G107,2) -> 0 | U107: =T107-ROUND(Q107*G107,2) -> 0 | W107: =R107+T107+V107 -> 0 | AI107: =IF($I107=AI$6,$E107,0) -> 0 | AJ107: 0 | AK107: =IF($H107>0,AI107,0) -> 0 | AL107: =IF(AK107>0,1,0) -> 0 | AM107: =IF($H107>0,AJ107,0) -> 0 | AN107: =IF(AM107>0,1,0) -> 0 | AO107: =IF($I107=AO$6,$E107,0) -> 0 | AP107: 0 | AQ107: =IF($H107>0,AO107,0) -> 0 | AR107: =IF(AQ107>0,1,0) -> 0 | AS107: =IF($H107>0,AP107,0) -> 0 | AT107: =IF(AS107>0,1,0) -> 0 | AU107: =IF($I107=AU$6,$E107,0) -> 0 | AV107: 0 | AW107: =IF($H107>0,AU107,0) -> 0 | AX107: =IF(AW107>0,1,0) -> 0 | AY107: =IF($H107>0,AV107,0) -> 0 | AZ107: =IF(AY107>0,1,0) -> 0 | BA107: =IF($I107=BA$6,$E107,0) -> 0 | BB107: 0 | BC107: =IF($H107>0,BA107,0) -> 0 | BD107: =IF(BC107>0,1,0) -> 0 | BE107: =IF($H107>0,BB107,0) -> 0 | BF107: =IF(BE107>0,1,0) -> 0 | BH107: 0 | BL107: 0
A108: =IF(E108+G108>0,A106,"") ->  | B108: =IF(E108+G108>0,B106,"") ->  | C108: =C107 -> 7 | D108: 03-4-23.382(333) | E108: 0 | F108: 1.5 | G108: 0 | H108: 0 | I108: =SUMIF(Y$14:BA$14,C108,Y$7:BA$7) -> 0 | J108: 0 | K108: 0 | L108: 0 | M108: 0 | O108: 0 | Q108: 405.07 | R108: 0 | S108: 607.61 | T108: 0 | U108: 0 | W108: 0 | AI108: =IF($I108=AI$7,$E108,0) -> 0 | AJ108: =IF($K108=ROUND(AI$7*$F108,2),$G108,0) -> 0 | AK108: 0 | AL108: 0 | AM108: 0 | AN108: 0 | AO108: =IF($I108=AO$7,$E108,0) -> 0 | AP108: =IF($K108=ROUND(AO$7*$F108,2),$G108,0) -> 0 | AQ108: 0 | AR108: 0 | AS108: 0 | AT108: 0 | AU108: =IF($I108=AU$7,$E108,0) -> 0 | AV108: =IF($K108=ROUND(AU$7*$F108,2),$G108,0) -> 0 | AW108: 0 | AX108: 0 | AY108: 0 | AZ108: 0 | BA108: =IF($I108=BA$7,$E108,0) -> 0 | BB108: =IF($K108=ROUND(BA$7*$F108,2),$G108,0) -> 0 | BC108: 0 | BD108: 0 | BE108: 0 | BF108: 0 | BH108: 0 | BL108: 0
A109: =IF(E109+G109>0,A106,"") ->  | B109: =IF(E109+G109>0,B106,"") ->  | C109: =C107 -> 7 | D109: 03-4-23.382(333) | E109: 0 | F109: 1.1 | G109: 0 | H109: 0 | I109: =SUMIF(Y$14:BA$14,C109,Y$7:BA$7) -> 0 | J109: 0 | K109: 0 | L109: 0 | M109: 0 | O109: 0 | Q109: 405.07 | R109: 0 | S109: 445.58 | T109: 0 | U109: 0 | W109: 0 | AI109: =IF($I109=AI$7,$E109,0) -> 0 | AJ109: =IF($K109=ROUND(AI$7*$F109,2),$G109,0) -> 0 | AK109: 0 | AL109: 0 | AM109: 0 | AN109: 0 | AO109: =IF($I109=AO$7,$E109,0) -> 0 | AP109: =IF($K109=ROUND(AO$7*$F109,2),$G109,0) -> 0 | AQ109: 0 | AR109: 0 | AS109: 0 | AT109: 0 | AU109: =IF($I109=AU$7,$E109,0) -> 0 | AV109: =IF($K109=ROUND(AU$7*$F109,2),$G109,0) -> 0 | AW109: 0 | AX109: 0 | AY109: 0 | AZ109: 0 | BA109: =IF($I109=BA$7,$E109,0) -> 0 | BB109: =IF($K109=ROUND(BA$7*$F109,2),$G109,0) -> 0 | BC109: 0 | BD109: 0 | BE109: 0 | BF109: 0 | BH109: 0 | BL109: 0
A110: Гр. Козлов Олег Станиславович | C110: =C111 -> 7 | D110: 03-4-23.394(333) | E110: 0.206 | F110: 1.5 | G110: 0 | H110: 0.206 | I110: =SUMIF(Y$14:BA$14,C110,Y$6:BA$6) -> 2166.8 | J110: =IF(H110=0,ROUND(E110*I110,2),ROUND(H110*E110,2)) -> 0.04 | K110: =ROUND(F110*I110,2) -> 3250.2 | L110: =IF(H110=0,ROUND(ROUND(F110*I110,2)*G110,2),ROUND(G110*H110,2)) -> 0 | M110: =L110-ROUND(G110*I110,2) -> 0 | O110: =J110+L110+N110 -> 0.04 | Q110: 405.07 | R110: =ROUND(Q110*E110,2) -> 83.44 | S110: =ROUND(F110*Q110,2) -> 607.61 | T110: =ROUND(S110*G110,2) -> 0 | U110: =T110-ROUND(Q110*G110,2) -> 0 | W110: =R110+T110+V110 -> 83.44 | AI110: =IF($I110=AI$6,$E110,0) -> 0 | AJ110: =IF($K110=ROUND(AI$6*$F110,2),$G110,0) -> 0 | AK110: =IF($H110>0,AI110,0) -> 0 | AL110: =IF(AK110>0,1,0) -> 0 | AM110: =IF($H110>0,AJ110,0) -> 0 | AN110: =IF(AM110>0,1,0) -> 0 | AO110: =IF($I110=AO$6,$E110,0) -> 0 | AP110: =IF($K110=ROUND(AO$6*$F110,2),$G110,0) -> 0 | AQ110: =IF($H110>0,AO110,0) -> 0 | AR110: =IF(AQ110>0,1,0) -> 0 | AS110: =IF($H110>0,AP110,0) -> 0 | AT110: =IF(AS110>0,1,0) -> 0 | AU110: =IF($I110=AU$6,$E110,0) -> 0 | AV110: =IF($K110=ROUND(AU$6*$F110,2),$G110,0) -> 0 | AW110: =IF($H110>0,AU110,0) -> 0 | AX110: =IF(AW110>0,1,0) -> 0 | AY110: =IF($H110>0,AV110,0) -> 0 | AZ110: =IF(AY110>0,1,0) -> 0 | BA110: =IF($I110=BA$6,$E110,0) -> 0.206 | BB110: =IF($K110=ROUND(BA$6*$F110,2),$G110,0) -> 0 | BC110: =IF($H110>0,BA110,0) -> 0.206 | BD110: =IF(BC110>0,1,0) -> 1 | BE110: =IF($H110>0,BB110,0) -> 0 | BF110: =IF(BE110>0,1,0) -> 0 | BH110: 0.000206 | BI110: 1 | BL110: 0
A111: =IF(E111+G111>0,A110,"") ->  | B111: =IF(E111+G111>0,B110,"") ->  | C111: 7 | D111: 03-4-23.394(333) | E111: 0 | F111: 1.1 | G111: 0 | H111: 0 | I111: =SUMIF(Y$14:BA$14,C111,Y$6:BA$6) -> 2166.8 | J111: =IF(H111=0,ROUND(E111*I111,2),ROUND(H111*E111,2)) -> 0 | K111: =ROUND(F111*I111,2) -> 2383.48 | L111: =IF(H111=0,ROUND(ROUND(F111*I111,2)*G111,2),ROUND(G111*H111,2)) -> 0 | M111: =L111-ROUND(G111*I111,2) -> 0 | O111: =J111+L111+N111 -> 0 | Q111: 405.07 | R111: =ROUND(Q111*E111,2) -> 0 | S111: =ROUND(F111*Q111,2) -> 445.58 | T111: =ROUND(S111*G111,2) -> 0 | U111: =T111-ROUND(Q111*G111,2) -> 0 | W111: =R111+T111+V111 -> 0 | AI111: =IF($I111=AI$6,$E111,0) -> 0 | AJ111: 0 | AK111: =IF($H111>0,AI111,0) -> 0 | AL111: =IF(AK111>0,1,0) -> 0 | AM111: =IF($H111>0,AJ111,0) -> 0 | AN111: =IF(AM111>0,1,0) -> 0 | AO111: =IF($I111=AO$6,$E111,0) -> 0 | AP111: 0 | AQ111: =IF($H111>0,AO111,0) -> 0 | AR111: =IF(AQ111>0,1,0) -> 0 | AS111: =IF($H111>0,AP111,0) -> 0 | AT111: =IF(AS111>0,1,0) -> 0 | AU111: =IF($I111=AU$6,$E111,0) -> 0 | AV111: 0 | AW111: =IF($H111>0,AU111,0) -> 0 | AX111: =IF(AW111>0,1,0) -> 0 | AY111: =IF($H111>0,AV111,0) -> 0 | AZ111: =IF(AY111>0,1,0) -> 0 | BA111: =IF($I111=BA$6,$E111,0) -> 0 | BB111: 0 | BC111: =IF($H111>0,BA111,0) -> 0 | BD111: =IF(BC111>0,1,0) -> 0 | BE111: =IF($H111>0,BB111,0) -> 0 | BF111: =IF(BE111>0,1,0) -> 0 | BH111: 0 | BL111: 0
A112: =IF(E112+G112>0,A110,"") ->  | B112: =IF(E112+G112>0,B110,"") ->  | C112: =C111 -> 7 | D112: 03-4-23.394(333) | E112: 0 | F112: 1.5 | G112: 0 | H112: 0 | I112: =SUMIF(Y$14:BA$14,C112,Y$7:BA$7) -> 0 | J112: 0 | K112: 0 | L112: 0 | M112: 0 | O112: 0 | Q112: 405.07 | R112: 0 | S112: 607.61 | T112: 0 | U112: 0 | W112: 0 | AI112: =IF($I112=AI$7,$E112,0) -> 0 | AJ112: =IF($K112=ROUND(AI$7*$F112,2),$G112,0) -> 0 | AK112: 0 | AL112: 0 | AM112: 0 | AN112: 0 | AO112: =IF($I112=AO$7,$E112,0) -> 0 | AP112: =IF($K112=ROUND(AO$7*$F112,2),$G112,0) -> 0 | AQ112: 0 | AR112: 0 | AS112: 0 | AT112: 0 | AU112: =IF($I112=AU$7,$E112,0) -> 0 | AV112: =IF($K112=ROUND(AU$7*$F112,2),$G112,0) -> 0 | AW112: 0 | AX112: 0 | AY112: 0 | AZ112: 0 | BA112: =IF($I112=BA$7,$E112,0) -> 0 | BB112: =IF($K112=ROUND(BA$7*$F112,2),$G112,0) -> 0 | BC112: 0 | BD112: 0 | BE112: 0 | BF112: 0 | BH112: 0 | BL112: 0
A113: =IF(E113+G113>0,A110,"") ->  | B113: =IF(E113+G113>0,B110,"") ->  | C113: =C111 -> 7 | D113: 03-4-23.394(333) | E113: 0 | F113: 1.1 | G113: 0 | H113: 0 | I113: =SUMIF(Y$14:BA$14,C113,Y$7:BA$7) -> 0 | J113: 0 | K113: 0 | L113: 0 | M113: 0 | O113: 0 | Q113: 405.07 | R113: 0 | S113: 445.58 | T113: 0 | U113: 0 | W113: 0 | AI113: =IF($I113=AI$7,$E113,0) -> 0 | AJ113: =IF($K113=ROUND(AI$7*$F113,2),$G113,0) -> 0 | AK113: 0 | AL113: 0 | AM113: 0 | AN113: 0 | AO113: =IF($I113=AO$7,$E113,0) -> 0 | AP113: =IF($K113=ROUND(AO$7*$F113,2),$G113,0) -> 0 | AQ113: 0 | AR113: 0 | AS113: 0 | AT113: 0 | AU113: =IF($I113=AU$7,$E113,0) -> 0 | AV113: =IF($K113=ROUND(AU$7*$F113,2),$G113,0) -> 0 | AW113: 0 | AX113: 0 | AY113: 0 | AZ113: 0 | BA113: =IF($I113=BA$7,$E113,0) -> 0 | BB113: =IF($K113=ROUND(BA$7*$F113,2),$G113,0) -> 0 | BC113: 0 | BD113: 0 | BE113: 0 | BF113: 0 | BH113: 0 | BL113: 0
A114: Гр. Вострецов Олег Анатольевич | C114: =C115 -> 6 | D114: 03-4-23.408 | E114: 0.482 | F114: 1.5 | G114: 0 | H114: 0.482 | I114: =SUMIF(Y$14:BA$14,C114,Y$6:BA$6) -> 1733.45 | J114: =IF(H114=0,ROUND(E114*I114,2),ROUND(H114*E114,2)) -> 0.23 | K114: =ROUND(F114*I114,2) -> 2600.18 | L114: =IF(H114=0,ROUND(ROUND(F114*I114,2)*G114,2),ROUND(G114*H114,2)) -> 0 | M114: =L114-ROUND(G114*I114,2) -> 0 | O114: =J114+L114+N114 -> 0.23 | Q114: 405.07 | R114: =ROUND(Q114*E114,2) -> 195.24 | S114: =ROUND(F114*Q114,2) -> 607.61 | T114: =ROUND(S114*G114,2) -> 0 | U114: =T114-ROUND(Q114*G114,2) -> 0 | W114: =R114+T114+V114 -> 195.24 | AI114: =IF($I114=AI$6,$E114,0) -> 0 | AJ114: =IF($K114=ROUND(AI$6*$F114,2),$G114,0) -> 0 | AK114: =IF($H114>0,AI114,0) -> 0 | AL114: =IF(AK114>0,1,0) -> 0 | AM114: =IF($H114>0,AJ114,0) -> 0 | AN114: =IF(AM114>0,1,0) -> 0 | AO114: =IF($I114=AO$6,$E114,0) -> 0 | AP114: =IF($K114=ROUND(AO$6*$F114,2),$G114,0) -> 0 | AQ114: =IF($H114>0,AO114,0) -> 0 | AR114: =IF(AQ114>0,1,0) -> 0 | AS114: =IF($H114>0,AP114,0) -> 0 | AT114: =IF(AS114>0,1,0) -> 0 | AU114: =IF($I114=AU$6,$E114,0) -> 0.482 | AV114: =IF($K114=ROUND(AU$6*$F114,2),$G114,0) -> 0 | AW114: =IF($H114>0,AU114,0) -> 0.482 | AX114: =IF(AW114>0,1,0) -> 1 | AY114: =IF($H114>0,AV114,0) -> 0 | AZ114: =IF(AY114>0,1,0) -> 0 | BA114: =IF($I114=BA$6,$E114,0) -> 0 | BB114: =IF($K114=ROUND(BA$6*$F114,2),$G114,0) -> 0 | BC114: =IF($H114>0,BA114,0) -> 0 | BD114: =IF(BC114>0,1,0) -> 0 | BE114: =IF($H114>0,BB114,0) -> 0 | BF114: =IF(BE114>0,1,0) -> 0 | BH114: 0.000482 | BI114: 2.6 | BL114: 0
A115: =IF(E115+G115>0,A114,"") ->  | B115: =IF(E115+G115>0,B114,"") ->  | C115: 6 | D115: 03-4-23.408 | E115: 0 | F115: 1.1 | G115: 0 | H115: 0 | I115: =SUMIF(Y$14:BA$14,C115,Y$6:BA$6) -> 1733.45 | J115: =IF(H115=0,ROUND(E115*I115,2),ROUND(H115*E115,2)) -> 0 | K115: =ROUND(F115*I115,2) -> 1906.8 | L115: =IF(H115=0,ROUND(ROUND(F115*I115,2)*G115,2),ROUND(G115*H115,2)) -> 0 | M115: =L115-ROUND(G115*I115,2) -> 0 | O115: =J115+L115+N115 -> 0 | Q115: 405.07 | R115: =ROUND(Q115*E115,2) -> 0 | S115: =ROUND(F115*Q115,2) -> 445.58 | T115: =ROUND(S115*G115,2) -> 0 | U115: =T115-ROUND(Q115*G115,2) -> 0 | W115: =R115+T115+V115 -> 0 | AI115: =IF($I115=AI$6,$E115,0) -> 0 | AJ115: 0 | AK115: =IF($H115>0,AI115,0) -> 0 | AL115: =IF(AK115>0,1,0) -> 0 | AM115: =IF($H115>0,AJ115,0) -> 0 | AN115: =IF(AM115>0,1,0) -> 0 | AO115: =IF($I115=AO$6,$E115,0) -> 0 | AP115: 0 | AQ115: =IF($H115>0,AO115,0) -> 0 | AR115: =IF(AQ115>0,1,0) -> 0 | AS115: =IF($H115>0,AP115,0) -> 0 | AT115: =IF(AS115>0,1,0) -> 0 | AU115: =IF($I115=AU$6,$E115,0) -> 0 | AV115: 0 | AW115: =IF($H115>0,AU115,0) -> 0 | AX115: =IF(AW115>0,1,0) -> 0 | AY115: =IF($H115>0,AV115,0) -> 0 | AZ115: =IF(AY115>0,1,0) -> 0 | BA115: =IF($I115=BA$6,$E115,0) -> 0 | BB115: 0 | BC115: =IF($H115>0,BA115,0) -> 0 | BD115: =IF(BC115>0,1,0) -> 0 | BE115: =IF($H115>0,BB115,0) -> 0 | BF115: =IF(BE115>0,1,0) -> 0 | BH115: 0 | BL115: 0
A116: =IF(E116+G116>0,A114,"") ->  | B116: =IF(E116+G116>0,B114,"") ->  | C116: =C115 -> 6 | D116: 03-4-23.408 | E116: 0 | F116: 1.5 | G116: 0 | H116: 0 | I116: =SUMIF(Y$14:BA$14,C116,Y$7:BA$7) -> 0 | J116: 0 | K116: 0 | L116: 0 | M116: 0 | O116: 0 | Q116: 405.07 | R116: 0 | S116: 607.61 | T116: 0 | U116: 0 | W116: 0 | AI116: =IF($I116=AI$7,$E116,0) -> 0 | AJ116: =IF($K116=ROUND(AI$7*$F116,2),$G116,0) -> 0 | AK116: 0 | AL116: 0 | AM116: 0 | AN116: 0 | AO116: =IF($I116=AO$7,$E116,0) -> 0 | AP116: =IF($K116=ROUND(AO$7*$F116,2),$G116,0) -> 0 | AQ116: 0 | AR116: 0 | AS116: 0 | AT116: 0 | AU116: =IF($I116=AU$7,$E116,0) -> 0 | AV116: =IF($K116=ROUND(AU$7*$F116,2),$G116,0) -> 0 | AW116: 0 | AX116: 0 | AY116: 0 | AZ116: 0 | BA116: =IF($I116=BA$7,$E116,0) -> 0 | BB116: =IF($K116=ROUND(BA$7*$F116,2),$G116,0) -> 0 | BC116: 0 | BD116: 0 | BE116: 0 | BF116: 0 | BH116: 0 | BL116: 0
A117: =IF(E117+G117>0,A114,"") ->  | B117: =IF(E117+G117>0,B114,"") ->  | C117: =C115 -> 6 | D117: 03-4-23.408 | E117: 0 | F117: 1.1 | G117: 0 | H117: 0 | I117: =SUMIF(Y$14:BA$14,C117,Y$7:BA$7) -> 0 | J117: 0 | K117: 0 | L117: 0 | M117: 0 | O117: 0 | Q117: 405.07 | R117: 0 | S117: 445.58 | T117: 0 | U117: 0 | W117: 0 | AI117: =IF($I117=AI$7,$E117,0) -> 0 | AJ117: =IF($K117=ROUND(AI$7*$F117,2),$G117,0) -> 0 | AK117: 0 | AL117: 0 | AM117: 0 | AN117: 0 | AO117: =IF($I117=AO$7,$E117,0) -> 0 | AP117: =IF($K117=ROUND(AO$7*$F117,2),$G117,0) -> 0 | AQ117: 0 | AR117: 0 | AS117: 0 | AT117: 0 | AU117: =IF($I117=AU$7,$E117,0) -> 0 | AV117: =IF($K117=ROUND(AU$7*$F117,2),$G117,0) -> 0 | AW117: 0 | AX117: 0 | AY117: 0 | AZ117: 0 | BA117: =IF($I117=BA$7,$E117,0) -> 0 | BB117: =IF($K117=ROUND(BA$7*$F117,2),$G117,0) -> 0 | BC117: 0 | BD117: 0 | BE117: 0 | BF117: 0 | BH117: 0 | BL117: 0
A118: ООО "Вельская энергетическая компания" | B118: Вельск, ул.Горького-1 | C118: =C119 -> 4 | D118: 03-4-23.426 | E118: 0 | F118: 1.5 | G118: 0 | H118: 0 | I118: =SUMIF(Y$14:BA$14,C118,Y$6:BA$6) -> 1040.08 | J118: =IF(H118=0,ROUND(E118*I118,2),ROUND(H118*E118,2)) -> 0 | K118: =ROUND(F118*I118,2) -> 1560.12 | L118: =IF(H118=0,ROUND(ROUND(F118*I118,2)*G118,2),ROUND(G118*H118,2)) -> 0 | M118: =L118-ROUND(G118*I118,2) -> 0 | O118: =J118+L118+N118 -> 0 | Q118: 405.07 | R118: =ROUND(Q118*E118,2) -> 0 | S118: =ROUND(F118*Q118,2) -> 607.61 | T118: =ROUND(S118*G118,2) -> 0 | U118: =T118-ROUND(Q118*G118,2) -> 0 | W118: =R118+T118+V118 -> 0 | AI118: =IF($I118=AI$6,$E118,0) -> 0 | AJ118: =IF($K118=ROUND(AI$6*$F118,2),$G118,0) -> 0 | AK118: =IF($H118>0,AI118,0) -> 0 | AL118: =IF(AK118>0,1,0) -> 0 | AM118: =IF($H118>0,AJ118,0) -> 0 | AN118: =IF(AM118>0,1,0) -> 0 | AO118: =IF($I118=AO$6,$E118,0) -> 0 | AP118: =IF($K118=ROUND(AO$6*$F118,2),$G118,0) -> 0 | AQ118: =IF($H118>0,AO118,0) -> 0 | AR118: =IF(AQ118>0,1,0) -> 0 | AS118: =IF($H118>0,AP118,0) -> 0 | AT118: =IF(AS118>0,1,0) -> 0 | AU118: =IF($I118=AU$6,$E118,0) -> 0 | AV118: =IF($K118=ROUND(AU$6*$F118,2),$G118,0) -> 0 | AW118: =IF($H118>0,AU118,0) -> 0 | AX118: =IF(AW118>0,1,0) -> 0 | AY118: =IF($H118>0,AV118,0) -> 0 | AZ118: =IF(AY118>0,1,0) -> 0 | BA118: =IF($I118=BA$6,$E118,0) -> 0 | BB118: =IF($K118=ROUND(BA$6*$F118,2),$G118,0) -> 0 | BC118: =IF($H118>0,BA118,0) -> 0 | BD118: =IF(BC118>0,1,0) -> 0 | BE118: =IF($H118>0,BB118,0) -> 0 | BF118: =IF(BE118>0,1,0) -> 0 | BH118: 0 | BI118: 0 | BL118: 0
A119: =IF(E119+G119>0,A118,"") ->  | B119: =IF(E119+G119>0,B118,"") ->  | C119: 4 | D119: 03-4-23.426 | E119: 0 | F119: 1.1 | G119: 0 | H119: 0 | I119: =SUMIF(Y$14:BA$14,C119,Y$6:BA$6) -> 1040.08 | J119: =IF(H119=0,ROUND(E119*I119,2),ROUND(H119*E119,2)) -> 0 | K119: =ROUND(F119*I119,2) -> 1144.09 | L119: =IF(H119=0,ROUND(ROUND(F119*I119,2)*G119,2),ROUND(G119*H119,2)) -> 0 | M119: =L119-ROUND(G119*I119,2) -> 0 | O119: =J119+L119+N119 -> 0 | Q119: 405.07 | R119: =ROUND(Q119*E119,2) -> 0 | S119: =ROUND(F119*Q119,2) -> 445.58 | T119: =ROUND(S119*G119,2) -> 0 | U119: =T119-ROUND(Q119*G119,2) -> 0 | W119: =R119+T119+V119 -> 0 | AI119: =IF($I119=AI$6,$E119,0) -> 0 | AJ119: 0 | AK119: =IF($H119>0,AI119,0) -> 0 | AL119: =IF(AK119>0,1,0) -> 0 | AM119: =IF($H119>0,AJ119,0) -> 0 | AN119: =IF(AM119>0,1,0) -> 0 | AO119: =IF($I119=AO$6,$E119,0) -> 0 | AP119: 0 | AQ119: =IF($H119>0,AO119,0) -> 0 | AR119: =IF(AQ119>0,1,0) -> 0 | AS119: =IF($H119>0,AP119,0) -> 0 | AT119: =IF(AS119>0,1,0) -> 0 | AU119: =IF($I119=AU$6,$E119,0) -> 0 | AV119: 0 | AW119: =IF($H119>0,AU119,0) -> 0 | AX119: =IF(AW119>0,1,0) -> 0 | AY119: =IF($H119>0,AV119,0) -> 0 | AZ119: =IF(AY119>0,1,0) -> 0 | BA119: =IF($I119=BA$6,$E119,0) -> 0 | BB119: 0 | BC119: =IF($H119>0,BA119,0) -> 0 | BD119: =IF(BC119>0,1,0) -> 0 | BE119: =IF($H119>0,BB119,0) -> 0 | BF119: =IF(BE119>0,1,0) -> 0 | BH119: 0 | BL119: 0
A120: =IF(E120+G120>0,A118,"") ->  | B120: =IF(E120+G120>0,B118,"") ->  | C120: =C119 -> 4 | D120: 03-4-23.426 | E120: 0 | F120: 1.5 | G120: 0 | H120: 0 | I120: =SUMIF(Y$14:BA$14,C120,Y$7:BA$7) -> 0 | J120: 0 | K120: 0 | L120: 0 | M120: 0 | O120: 0 | Q120: 405.07 | R120: 0 | S120: 607.61 | T120: 0 | U120: 0 | W120: 0 | AI120: =IF($I120=AI$7,$E120,0) -> 0 | AJ120: =IF($K120=ROUND(AI$7*$F120,2),$G120,0) -> 0 | AK120: 0 | AL120: 0 | AM120: 0 | AN120: 0 | AO120: =IF($I120=AO$7,$E120,0) -> 0 | AP120: =IF($K120=ROUND(AO$7*$F120,2),$G120,0) -> 0 | AQ120: 0 | AR120: 0 | AS120: 0 | AT120: 0 | AU120: =IF($I120=AU$7,$E120,0) -> 0 | AV120: =IF($K120=ROUND(AU$7*$F120,2),$G120,0) -> 0 | AW120: 0 | AX120: 0 | AY120: 0 | AZ120: 0 | BA120: =IF($I120=BA$7,$E120,0) -> 0 | BB120: =IF($K120=ROUND(BA$7*$F120,2),$G120,0) -> 0 | BC120: 0 | BD120: 0 | BE120: 0 | BF120: 0 | BH120: 0 | BL120: 0
A121: =IF(E121+G121>0,A118,"") ->  | B121: =IF(E121+G121>0,B118,"") ->  | C121: =C119 -> 4 | D121: 03-4-23.426 | E121: 0 | F121: 1.1 | G121: 0 | H121: 0 | I121: =SUMIF(Y$14:BA$14,C121,Y$7:BA$7) -> 0 | J121: 0 | K121: 0 | L121: 0 | M121: 0 | O121: 0 | Q121: 405.07 | R121: 0 | S121: 445.58 | T121: 0 | U121: 0 | W121: 0 | AI121: =IF($I121=AI$7,$E121,0) -> 0 | AJ121: =IF($K121=ROUND(AI$7*$F121,2),$G121,0) -> 0 | AK121: 0 | AL121: 0 | AM121: 0 | AN121: 0 | AO121: =IF($I121=AO$7,$E121,0) -> 0 | AP121: =IF($K121=ROUND(AO$7*$F121,2),$G121,0) -> 0 | AQ121: 0 | AR121: 0 | AS121: 0 | AT121: 0 | AU121: =IF($I121=AU$7,$E121,0) -> 0 | AV121: =IF($K121=ROUND(AU$7*$F121,2),$G121,0) -> 0 | AW121: 0 | AX121: 0 | AY121: 0 | AZ121: 0 | BA121: =IF($I121=BA$7,$E121,0) -> 0 | BB121: =IF($K121=ROUND(BA$7*$F121,2),$G121,0) -> 0 | BC121: 0 | BD121: 0 | BE121: 0 | BF121: 0 | BH121: 0 | BL121: 0
A122: ООО "Вельская энергетическая компания" | B122: Вельск, ул.Горького-1 | C122: =C123 -> 4 | D122: 03-4-23.426(333) | E122: 0 | F122: 1.5 | G122: 0 | H122: 0 | I122: =SUMIF(Y$14:BA$14,C122,Y$6:BA$6) -> 1040.08 | J122: =IF(H122=0,ROUND(E122*I122,2),ROUND(H122*E122,2)) -> 0 | K122: =ROUND(F122*I122,2) -> 1560.12 | L122: =IF(H122=0,ROUND(ROUND(F122*I122,2)*G122,2),ROUND(G122*H122,2)) -> 0 | M122: =L122-ROUND(G122*I122,2) -> 0 | O122: =J122+L122+N122 -> 0 | Q122: 405.07 | R122: =ROUND(Q122*E122,2) -> 0 | S122: =ROUND(F122*Q122,2) -> 607.61 | T122: =ROUND(S122*G122,2) -> 0 | U122: =T122-ROUND(Q122*G122,2) -> 0 | W122: =R122+T122+V122 -> 0 | AI122: =IF($I122=AI$6,$E122,0) -> 0 | AJ122: =IF($K122=ROUND(AI$6*$F122,2),$G122,0) -> 0 | AK122: =IF($H122>0,AI122,0) -> 0 | AL122: =IF(AK122>0,1,0) -> 0 | AM122: =IF($H122>0,AJ122,0) -> 0 | AN122: =IF(AM122>0,1,0) -> 0 | AO122: =IF($I122=AO$6,$E122,0) -> 0 | AP122: =IF($K122=ROUND(AO$6*$F122,2),$G122,0) -> 0 | AQ122: =IF($H122>0,AO122,0) -> 0 | AR122: =IF(AQ122>0,1,0) -> 0 | AS122: =IF($H122>0,AP122,0) -> 0 | AT122: =IF(AS122>0,1,0) -> 0 | AU122: =IF($I122=AU$6,$E122,0) -> 0 | AV122: =IF($K122=ROUND(AU$6*$F122,2),$G122,0) -> 0 | AW122: =IF($H122>0,AU122,0) -> 0 | AX122: =IF(AW122>0,1,0) -> 0 | AY122: =IF($H122>0,AV122,0) -> 0 | AZ122: =IF(AY122>0,1,0) -> 0 | BA122: =IF($I122=BA$6,$E122,0) -> 0 | BB122: =IF($K122=ROUND(BA$6*$F122,2),$G122,0) -> 0 | BC122: =IF($H122>0,BA122,0) -> 0 | BD122: =IF(BC122>0,1,0) -> 0 | BE122: =IF($H122>0,BB122,0) -> 0 | BF122: =IF(BE122>0,1,0) -> 0 | BH122: 0 | BI122: 0 | BL122: 0
A123: =IF(E123+G123>0,A122,"") ->  | B123: =IF(E123+G123>0,B122,"") ->  | C123: 4 | D123: 03-4-23.426(333) | E123: 0 | F123: 1.1 | G123: 0 | H123: 0 | I123: =SUMIF(Y$14:BA$14,C123,Y$6:BA$6) -> 1040.08 | J123: =IF(H123=0,ROUND(E123*I123,2),ROUND(H123*E123,2)) -> 0 | K123: =ROUND(F123*I123,2) -> 1144.09 | L123: =IF(H123=0,ROUND(ROUND(F123*I123,2)*G123,2),ROUND(G123*H123,2)) -> 0 | M123: =L123-ROUND(G123*I123,2) -> 0 | O123: =J123+L123+N123 -> 0 | Q123: 405.07 | R123: =ROUND(Q123*E123,2) -> 0 | S123: =ROUND(F123*Q123,2) -> 445.58 | T123: =ROUND(S123*G123,2) -> 0 | U123: =T123-ROUND(Q123*G123,2) -> 0 | W123: =R123+T123+V123 -> 0 | AI123: =IF($I123=AI$6,$E123,0) -> 0 | AJ123: 0 | AK123: =IF($H123>0,AI123,0) -> 0 | AL123: =IF(AK123>0,1,0) -> 0 | AM123: =IF($H123>0,AJ123,0) -> 0 | AN123: =IF(AM123>0,1,0) -> 0 | AO123: =IF($I123=AO$6,$E123,0) -> 0 | AP123: 0 | AQ123: =IF($H123>0,AO123,0) -> 0 | AR123: =IF(AQ123>0,1,0) -> 0 | AS123: =IF($H123>0,AP123,0) -> 0 | AT123: =IF(AS123>0,1,0) -> 0 | AU123: =IF($I123=AU$6,$E123,0) -> 0 | AV123: 0 | AW123: =IF($H123>0,AU123,0) -> 0 | AX123: =IF(AW123>0,1,0) -> 0 | AY123: =IF($H123>0,AV123,0) -> 0 | AZ123: =IF(AY123>0,1,0) -> 0 | BA123: =IF($I123=BA$6,$E123,0) -> 0 | BB123: 0 | BC123: =IF($H123>0,BA123,0) -> 0 | BD123: =IF(BC123>0,1,0) -> 0 | BE123: =IF($H123>0,BB123,0) -> 0 | BF123: =IF(BE123>0,1,0) -> 0 | BH123: 0 | BL123: 0
A124: =IF(E124+G124>0,A122,"") ->  | B124: =IF(E124+G124>0,B122,"") ->  | C124: =C123 -> 4 | D124: 03-4-23.426(333) | E124: 0 | F124: 1.5 | G124: 0 | H124: 0 | I124: =SUMIF(Y$14:BA$14,C124,Y$7:BA$7) -> 0 | J124: 0 | K124: 0 | L124: 0 | M124: 0 | O124: 0 | Q124: 405.07 | R124: 0 | S124: 607.61 | T124: 0 | U124: 0 | W124: 0 | AI124: =IF($I124=AI$7,$E124,0) -> 0 | AJ124: =IF($K124=ROUND(AI$7*$F124,2),$G124,0) -> 0 | AK124: 0 | AL124: 0 | AM124: 0 | AN124: 0 | AO124: =IF($I124=AO$7,$E124,0) -> 0 | AP124: =IF($K124=ROUND(AO$7*$F124,2),$G124,0) -> 0 | AQ124: 0 | AR124: 0 | AS124: 0 | AT124: 0 | AU124: =IF($I124=AU$7,$E124,0) -> 0 | AV124: =IF($K124=ROUND(AU$7*$F124,2),$G124,0) -> 0 | AW124: 0 | AX124: 0 | AY124: 0 | AZ124: 0 | BA124: =IF($I124=BA$7,$E124,0) -> 0 | BB124: =IF($K124=ROUND(BA$7*$F124,2),$G124,0) -> 0 | BC124: 0 | BD124: 0 | BE124: 0 | BF124: 0 | BH124: 0 | BL124: 0
A125: =IF(E125+G125>0,A122,"") ->  | B125: =IF(E125+G125>0,B122,"") ->  | C125: =C123 -> 4 | D125: 03-4-23.426(333) | E125: 0 | F125: 1.1 | G125: 0 | H125: 0 | I125: =SUMIF(Y$14:BA$14,C125,Y$7:BA$7) -> 0 | J125: 0 | K125: 0 | L125: 0 | M125: 0 | O125: 0 | Q125: 405.07 | R125: 0 | S125: 445.58 | T125: 0 | U125: 0 | W125: 0 | AI125: =IF($I125=AI$7,$E125,0) -> 0 | AJ125: =IF($K125=ROUND(AI$7*$F125,2),$G125,0) -> 0 | AK125: 0 | AL125: 0 | AM125: 0 | AN125: 0 | AO125: =IF($I125=AO$7,$E125,0) -> 0 | AP125: =IF($K125=ROUND(AO$7*$F125,2),$G125,0) -> 0 | AQ125: 0 | AR125: 0 | AS125: 0 | AT125: 0 | AU125: =IF($I125=AU$7,$E125,0) -> 0 | AV125: =IF($K125=ROUND(AU$7*$F125,2),$G125,0) -> 0 | AW125: 0 | AX125: 0 | AY125: 0 | AZ125: 0 | BA125: =IF($I125=BA$7,$E125,0) -> 0 | BB125: =IF($K125=ROUND(BA$7*$F125,2),$G125,0) -> 0 | BC125: 0 | BD125: 0 | BE125: 0 | BF125: 0 | BH125: 0 | BL125: 0
A126: ООО "Вельская энергетическая компания" | B126: Вельск, ул.Набережная, кот."Терапия" | C126: =C127 -> 5 | D126: 03-4-23.426(333) | E126: 0 | F126: 1.5 | G126: 0 | H126: 0 | I126: =SUMIF(Y$14:BA$14,C126,Y$6:BA$6) -> 1386.75 | J126: =IF(H126=0,ROUND(E126*I126,2),ROUND(H126*E126,2)) -> 0 | K126: =ROUND(F126*I126,2) -> 2080.13 | L126: =IF(H126=0,ROUND(ROUND(F126*I126,2)*G126,2),ROUND(G126*H126,2)) -> 0 | M126: =L126-ROUND(G126*I126,2) -> 0 | O126: =J126+L126+N126 -> 0 | Q126: 405.07 | R126: =ROUND(Q126*E126,2) -> 0 | S126: =ROUND(F126*Q126,2) -> 607.61 | T126: =ROUND(S126*G126,2) -> 0 | U126: =T126-ROUND(Q126*G126,2) -> 0 | W126: =R126+T126+V126 -> 0 | AI126: =IF($I126=AI$6,$E126,0) -> 0 | AJ126: =IF($K126=ROUND(AI$6*$F126,2),$G126,0) -> 0 | AK126: =IF($H126>0,AI126,0) -> 0 | AL126: =IF(AK126>0,1,0) -> 0 | AM126: =IF($H126>0,AJ126,0) -> 0 | AN126: =IF(AM126>0,1,0) -> 0 | AO126: =IF($I126=AO$6,$E126,0) -> 0 | AP126: =IF($K126=ROUND(AO$6*$F126,2),$G126,0) -> 0 | AQ126: =IF($H126>0,AO126,0) -> 0 | AR126: =IF(AQ126>0,1,0) -> 0 | AS126: =IF($H126>0,AP126,0) -> 0 | AT126: =IF(AS126>0,1,0) -> 0 | AU126: =IF($I126=AU$6,$E126,0) -> 0 | AV126: =IF($K126=ROUND(AU$6*$F126,2),$G126,0) -> 0 | AW126: =IF($H126>0,AU126,0) -> 0 | AX126: =IF(AW126>0,1,0) -> 0 | AY126: =IF($H126>0,AV126,0) -> 0 | AZ126: =IF(AY126>0,1,0) -> 0 | BA126: =IF($I126=BA$6,$E126,0) -> 0 | BB126: =IF($K126=ROUND(BA$6*$F126,2),$G126,0) -> 0 | BC126: =IF($H126>0,BA126,0) -> 0 | BD126: =IF(BC126>0,1,0) -> 0 | BE126: =IF($H126>0,BB126,0) -> 0 | BF126: =IF(BE126>0,1,0) -> 0 | BH126: 0 | BI126: 0 | BL126: 0
A127: =IF(E127+G127>0,A126,"") ->  | B127: =IF(E127+G127>0,B126,"") ->  | C127: 5 | D127: 03-4-23.426(333) | E127: 0 | F127: 1.1 | G127: 0 | H127: 0 | I127: =SUMIF(Y$14:BA$14,C127,Y$6:BA$6) -> 1386.75 | J127: =IF(H127=0,ROUND(E127*I127,2),ROUND(H127*E127,2)) -> 0 | K127: =ROUND(F127*I127,2) -> 1525.43 | L127: =IF(H127=0,ROUND(ROUND(F127*I127,2)*G127,2),ROUND(G127*H127,2)) -> 0 | M127: =L127-ROUND(G127*I127,2) -> 0 | O127: =J127+L127+N127 -> 0 | Q127: 405.07 | R127: =ROUND(Q127*E127,2) -> 0 | S127: =ROUND(F127*Q127,2) -> 445.58 | T127: =ROUND(S127*G127,2) -> 0 | U127: =T127-ROUND(Q127*G127,2) -> 0 | W127: =R127+T127+V127 -> 0 | AI127: =IF($I127=AI$6,$E127,0) -> 0 | AJ127: 0 | AK127: =IF($H127>0,AI127,0) -> 0 | AL127: =IF(AK127>0,1,0) -> 0 | AM127: =IF($H127>0,AJ127,0) -> 0 | AN127: =IF(AM127>0,1,0) -> 0 | AO127: =IF($I127=AO$6,$E127,0) -> 0 | AP127: 0 | AQ127: =IF($H127>0,AO127,0) -> 0 | AR127: =IF(AQ127>0,1,0) -> 0 | AS127: =IF($H127>0,AP127,0) -> 0 | AT127: =IF(AS127>0,1,0) -> 0 | AU127: =IF($I127=AU$6,$E127,0) -> 0 | AV127: 0 | AW127: =IF($H127>0,AU127,0) -> 0 | AX127: =IF(AW127>0,1,0) -> 0 | AY127: =IF($H127>0,AV127,0) -> 0 | AZ127: =IF(AY127>0,1,0) -> 0 | BA127: =IF($I127=BA$6,$E127,0) -> 0 | BB127: 0 | BC127: =IF($H127>0,BA127,0) -> 0 | BD127: =IF(BC127>0,1,0) -> 0 | BE127: =IF($H127>0,BB127,0) -> 0 | BF127: =IF(BE127>0,1,0) -> 0 | BH127: 0 | BL127: 0
A128: =IF(E128+G128>0,A126,"") ->  | B128: =IF(E128+G128>0,B126,"") ->  | C128: =C127 -> 5 | D128: 03-4-23.426(333) | E128: 0 | F128: 1.5 | G128: 0 | H128: 0 | I128: =SUMIF(Y$14:BA$14,C128,Y$7:BA$7) -> 0 | J128: 0 | K128: 0 | L128: 0 | M128: 0 | O128: 0 | Q128: 405.07 | R128: 0 | S128: 607.61 | T128: 0 | U128: 0 | W128: 0 | AI128: =IF($I128=AI$7,$E128,0) -> 0 | AJ128: =IF($K128=ROUND(AI$7*$F128,2),$G128,0) -> 0 | AK128: 0 | AL128: 0 | AM128: 0 | AN128: 0 | AO128: =IF($I128=AO$7,$E128,0) -> 0 | AP128: =IF($K128=ROUND(AO$7*$F128,2),$G128,0) -> 0 | AQ128: 0 | AR128: 0 | AS128: 0 | AT128: 0 | AU128: =IF($I128=AU$7,$E128,0) -> 0 | AV128: =IF($K128=ROUND(AU$7*$F128,2),$G128,0) -> 0 | AW128: 0 | AX128: 0 | AY128: 0 | AZ128: 0 | BA128: =IF($I128=BA$7,$E128,0) -> 0 | BB128: =IF($K128=ROUND(BA$7*$F128,2),$G128,0) -> 0 | BC128: 0 | BD128: 0 | BE128: 0 | BF128: 0 | BH128: 0 | BL128: 0
A129: =IF(E129+G129>0,A126,"") ->  | B129: =IF(E129+G129>0,B126,"") ->  | C129: =C127 -> 5 | D129: 03-4-23.426(333) | E129: 0 | F129: 1.1 | G129: 0 | H129: 0 | I129: =SUMIF(Y$14:BA$14,C129,Y$7:BA$7) -> 0 | J129: 0 | K129: 0 | L129: 0 | M129: 0 | O129: 0 | Q129: 405.07 | R129: 0 | S129: 445.58 | T129: 0 | U129: 0 | W129: 0 | AI129: =IF($I129=AI$7,$E129,0) -> 0 | AJ129: =IF($K129=ROUND(AI$7*$F129,2),$G129,0) -> 0 | AK129: 0 | AL129: 0 | AM129: 0 | AN129: 0 | AO129: =IF($I129=AO$7,$E129,0) -> 0 | AP129: =IF($K129=ROUND(AO$7*$F129,2),$G129,0) -> 0 | AQ129: 0 | AR129: 0 | AS129: 0 | AT129: 0 | AU129: =IF($I129=AU$7,$E129,0) -> 0 | AV129: =IF($K129=ROUND(AU$7*$F129,2),$G129,0) -> 0 | AW129: 0 | AX129: 0 | AY129: 0 | AZ129: 0 | BA129: =IF($I129=BA$7,$E129,0) -> 0 | BB129: =IF($K129=ROUND(BA$7*$F129,2),$G129,0) -> 0 | BC129: 0 | BD129: 0 | BE129: 0 | BF129: 0 | BH129: 0 | BL129: 0
A130: ООО "Вельская торговая компания" | C130: =C131 -> 6 | D130: 03-4-23.562(333) | E130: 5.156 | F130: 1.5 | G130: 0 | H130: 5.156 | I130: =SUMIF(Y$14:BA$14,C130,Y$6:BA$6) -> 1733.45 | J130: =IF(H130=0,ROUND(E130*I130,2),ROUND(H130*E130,2)) -> 26.58 | K130: =ROUND(F130*I130,2) -> 2600.18 | L130: =IF(H130=0,ROUND(ROUND(F130*I130,2)*G130,2),ROUND(G130*H130,2)) -> 0 | M130: =L130-ROUND(G130*I130,2) -> 0 | O130: =J130+L130+N130 -> 26.58 | Q130: 405.07 | R130: =ROUND(Q130*E130,2) -> 2088.54 | S130: =ROUND(F130*Q130,2) -> 607.61 | T130: =ROUND(S130*G130,2) -> 0 | U130: =T130-ROUND(Q130*G130,2) -> 0 | W130: =R130+T130+V130 -> 2088.54 | AI130: =IF($I130=AI$6,$E130,0) -> 0 | AJ130: =IF($K130=ROUND(AI$6*$F130,2),$G130,0) -> 0 | AK130: =IF($H130>0,AI130,0) -> 0 | AL130: =IF(AK130>0,1,0) -> 0 | AM130: =IF($H130>0,AJ130,0) -> 0 | AN130: =IF(AM130>0,1,0) -> 0 | AO130: =IF($I130=AO$6,$E130,0) -> 0 | AP130: =IF($K130=ROUND(AO$6*$F130,2),$G130,0) -> 0 | AQ130: =IF($H130>0,AO130,0) -> 0 | AR130: =IF(AQ130>0,1,0) -> 0 | AS130: =IF($H130>0,AP130,0) -> 0 | AT130: =IF(AS130>0,1,0) -> 0 | AU130: =IF($I130=AU$6,$E130,0) -> 5.156 | AV130: =IF($K130=ROUND(AU$6*$F130,2),$G130,0) -> 0 | AW130: =IF($H130>0,AU130,0) -> 5.156 | AX130: =IF(AW130>0,1,0) -> 1 | AY130: =IF($H130>0,AV130,0) -> 0 | AZ130: =IF(AY130>0,1,0) -> 0 | BA130: =IF($I130=BA$6,$E130,0) -> 0 | BB130: =IF($K130=ROUND(BA$6*$F130,2),$G130,0) -> 0 | BC130: =IF($H130>0,BA130,0) -> 0 | BD130: =IF(BC130>0,1,0) -> 0 | BE130: =IF($H130>0,BB130,0) -> 0 | BF130: =IF(BE130>0,1,0) -> 0 | BH130: 0.005156 | BI130: 10 | BL130: 0
A131: =IF(E131+G131>0,A130,"") ->  | B131: =IF(E131+G131>0,B130,"") ->  | C131: 6 | D131: 03-4-23.562(333) | E131: 0 | F131: 1.1 | G131: 0 | H131: 0 | I131: =SUMIF(Y$14:BA$14,C131,Y$6:BA$6) -> 1733.45 | J131: =IF(H131=0,ROUND(E131*I131,2),ROUND(H131*E131,2)) -> 0 | K131: =ROUND(F131*I131,2) -> 1906.8 | L131: =IF(H131=0,ROUND(ROUND(F131*I131,2)*G131,2),ROUND(G131*H131,2)) -> 0 | M131: =L131-ROUND(G131*I131,2) -> 0 | O131: =J131+L131+N131 -> 0 | Q131: 405.07 | R131: =ROUND(Q131*E131,2) -> 0 | S131: =ROUND(F131*Q131,2) -> 445.58 | T131: =ROUND(S131*G131,2) -> 0 | U131: =T131-ROUND(Q131*G131,2) -> 0 | W131: =R131+T131+V131 -> 0 | AI131: =IF($I131=AI$6,$E131,0) -> 0 | AJ131: 0 | AK131: =IF($H131>0,AI131,0) -> 0 | AL131: =IF(AK131>0,1,0) -> 0 | AM131: =IF($H131>0,AJ131,0) -> 0 | AN131: =IF(AM131>0,1,0) -> 0 | AO131: =IF($I131=AO$6,$E131,0) -> 0 | AP131: 0 | AQ131: =IF($H131>0,AO131,0) -> 0 | AR131: =IF(AQ131>0,1,0) -> 0 | AS131: =IF($H131>0,AP131,0) -> 0 | AT131: =IF(AS131>0,1,0) -> 0 | AU131: =IF($I131=AU$6,$E131,0) -> 0 | AV131: 0 | AW131: =IF($H131>0,AU131,0) -> 0 | AX131: =IF(AW131>0,1,0) -> 0 | AY131: =IF($H131>0,AV131,0) -> 0 | AZ131: =IF(AY131>0,1,0) -> 0 | BA131: =IF($I131=BA$6,$E131,0) -> 0 | BB131: 0 | BC131: =IF($H131>0,BA131,0) -> 0 | BD131: =IF(BC131>0,1,0) -> 0 | BE131: =IF($H131>0,BB131,0) -> 0 | BF131: =IF(BE131>0,1,0) -> 0 | BH131: 0 | BL131: 0
A132: =IF(E132+G132>0,A130,"") ->  | B132: =IF(E132+G132>0,B130,"") ->  | C132: =C131 -> 6 | D132: 03-4-23.562(333) | E132: 0 | F132: 1.5 | G132: 0 | H132: 0 | I132: =SUMIF(Y$14:BA$14,C132,Y$7:BA$7) -> 0 | J132: 0 | K132: 0 | L132: 0 | M132: 0 | O132: 0 | Q132: 405.07 | R132: 0 | S132: 607.61 | T132: 0 | U132: 0 | W132: 0 | AI132: =IF($I132=AI$7,$E132,0) -> 0 | AJ132: =IF($K132=ROUND(AI$7*$F132,2),$G132,0) -> 0 | AK132: 0 | AL132: 0 | AM132: 0 | AN132: 0 | AO132: =IF($I132=AO$7,$E132,0) -> 0 | AP132: =IF($K132=ROUND(AO$7*$F132,2),$G132,0) -> 0 | AQ132: 0 | AR132: 0 | AS132: 0 | AT132: 0 | AU132: =IF($I132=AU$7,$E132,0) -> 0 | AV132: =IF($K132=ROUND(AU$7*$F132,2),$G132,0) -> 0 | AW132: 0 | AX132: 0 | AY132: 0 | AZ132: 0 | BA132: =IF($I132=BA$7,$E132,0) -> 0 | BB132: =IF($K132=ROUND(BA$7*$F132,2),$G132,0) -> 0 | BC132: 0 | BD132: 0 | BE132: 0 | BF132: 0 | BH132: 0 | BL132: 0
A133: =IF(E133+G133>0,A130,"") ->  | B133: =IF(E133+G133>0,B130,"") ->  | C133: =C131 -> 6 | D133: 03-4-23.562(333) | E133: 0 | F133: 1.1 | G133: 0 | H133: 0 | I133: =SUMIF(Y$14:BA$14,C133,Y$7:BA$7) -> 0 | J133: 0 | K133: 0 | L133: 0 | M133: 0 | O133: 0 | Q133: 405.07 | R133: 0 | S133: 445.58 | T133: 0 | U133: 0 | W133: 0 | AI133: =IF($I133=AI$7,$E133,0) -> 0 | AJ133: =IF($K133=ROUND(AI$7*$F133,2),$G133,0) -> 0 | AK133: 0 | AL133: 0 | AM133: 0 | AN133: 0 | AO133: =IF($I133=AO$7,$E133,0) -> 0 | AP133: =IF($K133=ROUND(AO$7*$F133,2),$G133,0) -> 0 | AQ133: 0 | AR133: 0 | AS133: 0 | AT133: 0 | AU133: =IF($I133=AU$7,$E133,0) -> 0 | AV133: =IF($K133=ROUND(AU$7*$F133,2),$G133,0) -> 0 | AW133: 0 | AX133: 0 | AY133: 0 | AZ133: 0 | BA133: =IF($I133=BA$7,$E133,0) -> 0 | BB133: =IF($K133=ROUND(BA$7*$F133,2),$G133,0) -> 0 | BC133: 0 | BD133: 0 | BE133: 0 | BF133: 0 | BH133: 0 | BL133: 0
A134: Гр. Хобатенков Виктор Николаевич | C134: =C135 -> 6 | D134: 03-4-23.442(333) | E134: 0.742 | F134: 1.5 | G134: 0 | H134: 0.742 | I134: =SUMIF(Y$14:BA$14,C134,Y$6:BA$6) -> 1733.45 | J134: =IF(H134=0,ROUND(E134*I134,2),ROUND(H134*E134,2)) -> 0.55 | K134: =ROUND(F134*I134,2) -> 2600.18 | L134: =IF(H134=0,ROUND(ROUND(F134*I134,2)*G134,2),ROUND(G134*H134,2)) -> 0 | M134: =L134-ROUND(G134*I134,2) -> 0 | O134: =J134+L134+N134 -> 0.55 | Q134: 405.07 | R134: =ROUND(Q134*E134,2) -> 300.56 | S134: =ROUND(F134*Q134,2) -> 607.61 | T134: =ROUND(S134*G134,2) -> 0 | U134: =T134-ROUND(Q134*G134,2) -> 0 | W134: =R134+T134+V134 -> 300.56 | AI134: =IF($I134=AI$6,$E134,0) -> 0 | AJ134: =IF($K134=ROUND(AI$6*$F134,2),$G134,0) -> 0 | AK134: =IF($H134>0,AI134,0) -> 0 | AL134: =IF(AK134>0,1,0) -> 0 | AM134: =IF($H134>0,AJ134,0) -> 0 | AN134: =IF(AM134>0,1,0) -> 0 | AO134: =IF($I134=AO$6,$E134,0) -> 0 | AP134: =IF($K134=ROUND(AO$6*$F134,2),$G134,0) -> 0 | AQ134: =IF($H134>0,AO134,0) -> 0 | AR134: =IF(AQ134>0,1,0) -> 0 | AS134: =IF($H134>0,AP134,0) -> 0 | AT134: =IF(AS134>0,1,0) -> 0 | AU134: =IF($I134=AU$6,$E134,0) -> 0.742 | AV134: =IF($K134=ROUND(AU$6*$F134,2),$G134,0) -> 0 | AW134: =IF($H134>0,AU134,0) -> 0.742 | AX134: =IF(AW134>0,1,0) -> 1 | AY134: =IF($H134>0,AV134,0) -> 0 | AZ134: =IF(AY134>0,1,0) -> 0 | BA134: =IF($I134=BA$6,$E134,0) -> 0 | BB134: =IF($K134=ROUND(BA$6*$F134,2),$G134,0) -> 0 | BC134: =IF($H134>0,BA134,0) -> 0 | BD134: =IF(BC134>0,1,0) -> 0 | BE134: =IF($H134>0,BB134,0) -> 0 | BF134: =IF(BE134>0,1,0) -> 0 | BH134: 0.000742 | BI134: 1.7 | BL134: 0
A135: =IF(E135+G135>0,A134,"") ->  | B135: =IF(E135+G135>0,B134,"") ->  | C135: 6 | D135: 03-4-23.442(333) | E135: 0 | F135: 1.1 | G135: 0 | H135: 0 | I135: =SUMIF(Y$14:BA$14,C135,Y$6:BA$6) -> 1733.45 | J135: =IF(H135=0,ROUND(E135*I135,2),ROUND(H135*E135,2)) -> 0 | K135: =ROUND(F135*I135,2) -> 1906.8 | L135: =IF(H135=0,ROUND(ROUND(F135*I135,2)*G135,2),ROUND(G135*H135,2)) -> 0 | M135: =L135-ROUND(G135*I135,2) -> 0 | O135: =J135+L135+N135 -> 0 | Q135: 405.07 | R135: =ROUND(Q135*E135,2) -> 0 | S135: =ROUND(F135*Q135,2) -> 445.58 | T135: =ROUND(S135*G135,2) -> 0 | U135: =T135-ROUND(Q135*G135,2) -> 0 | W135: =R135+T135+V135 -> 0 | AI135: =IF($I135=AI$6,$E135,0) -> 0 | AJ135: 0 | AK135: =IF($H135>0,AI135,0) -> 0 | AL135: =IF(AK135>0,1,0) -> 0 | AM135: =IF($H135>0,AJ135,0) -> 0 | AN135: =IF(AM135>0,1,0) -> 0 | AO135: =IF($I135=AO$6,$E135,0) -> 0 | AP135: 0 | AQ135: =IF($H135>0,AO135,0) -> 0 | AR135: =IF(AQ135>0,1,0) -> 0 | AS135: =IF($H135>0,AP135,0) -> 0 | AT135: =IF(AS135>0,1,0) -> 0 | AU135: =IF($I135=AU$6,$E135,0) -> 0 | AV135: 0 | AW135: =IF($H135>0,AU135,0) -> 0 | AX135: =IF(AW135>0,1,0) -> 0 | AY135: =IF($H135>0,AV135,0) -> 0 | AZ135: =IF(AY135>0,1,0) -> 0 | BA135: =IF($I135=BA$6,$E135,0) -> 0 | BB135: 0 | BC135: =IF($H135>0,BA135,0) -> 0 | BD135: =IF(BC135>0,1,0) -> 0 | BE135: =IF($H135>0,BB135,0) -> 0 | BF135: =IF(BE135>0,1,0) -> 0 | BH135: 0 | BL135: 0
A136: =IF(E136+G136>0,A134,"") ->  | B136: =IF(E136+G136>0,B134,"") ->  | C136: =C135 -> 6 | D136: 03-4-23.442(333) | E136: 0 | F136: 1.5 | G136: 0 | H136: 0 | I136: =SUMIF(Y$14:BA$14,C136,Y$7:BA$7) -> 0 | J136: 0 | K136: 0 | L136: 0 | M136: 0 | O136: 0 | Q136: 405.07 | R136: 0 | S136: 607.61 | T136: 0 | U136: 0 | W136: 0 | AI136: =IF($I136=AI$7,$E136,0) -> 0 | AJ136: =IF($K136=ROUND(AI$7*$F136,2),$G136,0) -> 0 | AK136: 0 | AL136: 0 | AM136: 0 | AN136: 0 | AO136: =IF($I136=AO$7,$E136,0) -> 0 | AP136: =IF($K136=ROUND(AO$7*$F136,2),$G136,0) -> 0 | AQ136: 0 | AR136: 0 | AS136: 0 | AT136: 0 | AU136: =IF($I136=AU$7,$E136,0) -> 0 | AV136: =IF($K136=ROUND(AU$7*$F136,2),$G136,0) -> 0 | AW136: 0 | AX136: 0 | AY136: 0 | AZ136: 0 | BA136: =IF($I136=BA$7,$E136,0) -> 0 | BB136: =IF($K136=ROUND(BA$7*$F136,2),$G136,0) -> 0 | BC136: 0 | BD136: 0 | BE136: 0 | BF136: 0 | BH136: 0 | BL136: 0
A137: =IF(E137+G137>0,A134,"") ->  | B137: =IF(E137+G137>0,B134,"") ->  | C137: =C135 -> 6 | D137: 03-4-23.442(333) | E137: 0 | F137: 1.1 | G137: 0 | H137: 0 | I137: =SUMIF(Y$14:BA$14,C137,Y$7:BA$7) -> 0 | J137: 0 | K137: 0 | L137: 0 | M137: 0 | O137: 0 | Q137: 405.07 | R137: 0 | S137: 445.58 | T137: 0 | U137: 0 | W137: 0 | AI137: =IF($I137=AI$7,$E137,0) -> 0 | AJ137: =IF($K137=ROUND(AI$7*$F137,2),$G137,0) -> 0 | AK137: 0 | AL137: 0 | AM137: 0 | AN137: 0 | AO137: =IF($I137=AO$7,$E137,0) -> 0 | AP137: =IF($K137=ROUND(AO$7*$F137,2),$G137,0) -> 0 | AQ137: 0 | AR137: 0 | AS137: 0 | AT137: 0 | AU137: =IF($I137=AU$7,$E137,0) -> 0 | AV137: =IF($K137=ROUND(AU$7*$F137,2),$G137,0) -> 0 | AW137: 0 | AX137: 0 | AY137: 0 | AZ137: 0 | BA137: =IF($I137=BA$7,$E137,0) -> 0 | BB137: =IF($K137=ROUND(BA$7*$F137,2),$G137,0) -> 0 | BC137: 0 | BD137: 0 | BE137: 0 | BF137: 0 | BH137: 0 | BL137: 0
A138: Вельское ГОРПО | B138: Вельск, ул.1 мая-4 | C138: =C139 -> 6 | D138: 03-4-23.461(333) | E138: 2.921 | F138: 1.5 | G138: 0 | H138: 2.921 | I138: =SUMIF(Y$14:BA$14,C138,Y$6:BA$6) -> 1733.45 | J138: =IF(H138=0,ROUND(E138*I138,2),ROUND(H138*E138,2)) -> 8.53 | K138: =ROUND(F138*I138,2) -> 2600.18 | L138: =IF(H138=0,ROUND(ROUND(F138*I138,2)*G138,2),ROUND(G138*H138,2)) -> 0 | M138: =L138-ROUND(G138*I138,2) -> 0 | O138: =J138+L138+N138 -> 8.53 | Q138: 405.07 | R138: =ROUND(Q138*E138,2) -> 1183.21 | S138: =ROUND(F138*Q138,2) -> 607.61 | T138: =ROUND(S138*G138,2) -> 0 | U138: =T138-ROUND(Q138*G138,2) -> 0 | W138: =R138+T138+V138 -> 1183.21 | AI138: =IF($I138=AI$6,$E138,0) -> 0 | AJ138: =IF($K138=ROUND(AI$6*$F138,2),$G138,0) -> 0 | AK138: =IF($H138>0,AI138,0) -> 0 | AL138: =IF(AK138>0,1,0) -> 0 | AM138: =IF($H138>0,AJ138,0) -> 0 | AN138: =IF(AM138>0,1,0) -> 0 | AO138: =IF($I138=AO$6,$E138,0) -> 0 | AP138: =IF($K138=ROUND(AO$6*$F138,2),$G138,0) -> 0 | AQ138: =IF($H138>0,AO138,0) -> 0 | AR138: =IF(AQ138>0,1,0) -> 0 | AS138: =IF($H138>0,AP138,0) -> 0 | AT138: =IF(AS138>0,1,0) -> 0 | AU138: =IF($I138=AU$6,$E138,0) -> 2.921 | AV138: =IF($K138=ROUND(AU$6*$F138,2),$G138,0) -> 0 | AW138: =IF($H138>0,AU138,0) -> 2.921 | AX138: =IF(AW138>0,1,0) -> 1 | AY138: =IF($H138>0,AV138,0) -> 0 | AZ138: =IF(AY138>0,1,0) -> 0 | BA138: =IF($I138=BA$6,$E138,0) -> 0 | BB138: =IF($K138=ROUND(BA$6*$F138,2),$G138,0) -> 0 | BC138: =IF($H138>0,BA138,0) -> 0 | BD138: =IF(BC138>0,1,0) -> 0 | BE138: =IF($H138>0,BB138,0) -> 0 | BF138: =IF(BE138>0,1,0) -> 0 | BH138: 0.002921 | BI138: 3.2 | BL138: 0
A139: =IF(E139+G139>0,A138,"") ->  | B139: =IF(E139+G139>0,B138,"") ->  | C139: 6 | D139: 03-4-23.461(333) | E139: 0 | F139: 1.1 | G139: 0 | H139: 0 | I139: =SUMIF(Y$14:BA$14,C139,Y$6:BA$6) -> 1733.45 | J139: =IF(H139=0,ROUND(E139*I139,2),ROUND(H139*E139,2)) -> 0 | K139: =ROUND(F139*I139,2) -> 1906.8 | L139: =IF(H139=0,ROUND(ROUND(F139*I139,2)*G139,2),ROUND(G139*H139,2)) -> 0 | M139: =L139-ROUND(G139*I139,2) -> 0 | O139: =J139+L139+N139 -> 0 | Q139: 405.07 | R139: =ROUND(Q139*E139,2) -> 0 | S139: =ROUND(F139*Q139,2) -> 445.58 | T139: =ROUND(S139*G139,2) -> 0 | U139: =T139-ROUND(Q139*G139,2) -> 0 | W139: =R139+T139+V139 -> 0 | AI139: =IF($I139=AI$6,$E139,0) -> 0 | AJ139: 0 | AK139: =IF($H139>0,AI139,0) -> 0 | AL139: =IF(AK139>0,1,0) -> 0 | AM139: =IF($H139>0,AJ139,0) -> 0 | AN139: =IF(AM139>0,1,0) -> 0 | AO139: =IF($I139=AO$6,$E139,0) -> 0 | AP139: 0 | AQ139: =IF($H139>0,AO139,0) -> 0 | AR139: =IF(AQ139>0,1,0) -> 0 | AS139: =IF($H139>0,AP139,0) -> 0 | AT139: =IF(AS139>0,1,0) -> 0 | AU139: =IF($I139=AU$6,$E139,0) -> 0 | AV139: 0 | AW139: =IF($H139>0,AU139,0) -> 0 | AX139: =IF(AW139>0,1,0) -> 0 | AY139: =IF($H139>0,AV139,0) -> 0 | AZ139: =IF(AY139>0,1,0) -> 0 | BA139: =IF($I139=BA$6,$E139,0) -> 0 | BB139: 0 | BC139: =IF($H139>0,BA139,0) -> 0 | BD139: =IF(BC139>0,1,0) -> 0 | BE139: =IF($H139>0,BB139,0) -> 0 | BF139: =IF(BE139>0,1,0) -> 0 | BH139: 0 | BL139: 0
A140: =IF(E140+G140>0,A138,"") ->  | B140: =IF(E140+G140>0,B138,"") ->  | C140: =C139 -> 6 | D140: 03-4-23.461(333) | E140: 0 | F140: 1.5 | G140: 0 | H140: 0 | I140: =SUMIF(Y$14:BA$14,C140,Y$7:BA$7) -> 0 | J140: 0 | K140: 0 | L140: 0 | M140: 0 | O140: 0 | Q140: 405.07 | R140: 0 | S140: 607.61 | T140: 0 | U140: 0 | W140: 0 | AI140: =IF($I140=AI$7,$E140,0) -> 0 | AJ140: =IF($K140=ROUND(AI$7*$F140,2),$G140,0) -> 0 | AK140: 0 | AL140: 0 | AM140: 0 | AN140: 0 | AO140: =IF($I140=AO$7,$E140,0) -> 0 | AP140: =IF($K140=ROUND(AO$7*$F140,2),$G140,0) -> 0 | AQ140: 0 | AR140: 0 | AS140: 0 | AT140: 0 | AU140: =IF($I140=AU$7,$E140,0) -> 0 | AV140: =IF($K140=ROUND(AU$7*$F140,2),$G140,0) -> 0 | AW140: 0 | AX140: 0 | AY140: 0 | AZ140: 0 | BA140: =IF($I140=BA$7,$E140,0) -> 0 | BB140: =IF($K140=ROUND(BA$7*$F140,2),$G140,0) -> 0 | BC140: 0 | BD140: 0 | BE140: 0 | BF140: 0 | BH140: 0 | BL140: 0
A141: =IF(E141+G141>0,A138,"") ->  | B141: =IF(E141+G141>0,B138,"") ->  | C141: =C139 -> 6 | D141: 03-4-23.461(333) | E141: 0 | F141: 1.1 | G141: 0 | H141: 0 | I141: =SUMIF(Y$14:BA$14,C141,Y$7:BA$7) -> 0 | J141: 0 | K141: 0 | L141: 0 | M141: 0 | O141: 0 | Q141: 405.07 | R141: 0 | S141: 445.58 | T141: 0 | U141: 0 | W141: 0 | AI141: =IF($I141=AI$7,$E141,0) -> 0 | AJ141: =IF($K141=ROUND(AI$7*$F141,2),$G141,0) -> 0 | AK141: 0 | AL141: 0 | AM141: 0 | AN141: 0 | AO141: =IF($I141=AO$7,$E141,0) -> 0 | AP141: =IF($K141=ROUND(AO$7*$F141,2),$G141,0) -> 0 | AQ141: 0 | AR141: 0 | AS141: 0 | AT141: 0 | AU141: =IF($I141=AU$7,$E141,0) -> 0 | AV141: =IF($K141=ROUND(AU$7*$F141,2),$G141,0) -> 0 | AW141: 0 | AX141: 0 | AY141: 0 | AZ141: 0 | BA141: =IF($I141=BA$7,$E141,0) -> 0 | BB141: =IF($K141=ROUND(BA$7*$F141,2),$G141,0) -> 0 | BC141: 0 | BD141: 0 | BE141: 0 | BF141: 0 | BH141: 0 | BL141: 0
A142: Вельское ГОРПО | B142: Вельск, ул.Фефилова-66 | C142: =C143 -> 7 | D142: 03-4-23.461(333) | E142: 0.098 | F142: 1.5 | G142: 0 | H142: 0.098 | I142: =SUMIF(Y$14:BA$14,C142,Y$6:BA$6) -> 2166.8 | J142: =IF(H142=0,ROUND(E142*I142,2),ROUND(H142*E142,2)) -> 0.01 | K142: =ROUND(F142*I142,2) -> 3250.2 | L142: =IF(H142=0,ROUND(ROUND(F142*I142,2)*G142,2),ROUND(G142*H142,2)) -> 0 | M142: =L142-ROUND(G142*I142,2) -> 0 | O142: =J142+L142+N142 -> 0.01 | Q142: 405.07 | R142: =ROUND(Q142*E142,2) -> 39.7 | S142: =ROUND(F142*Q142,2) -> 607.61 | T142: =ROUND(S142*G142,2) -> 0 | U142: =T142-ROUND(Q142*G142,2) -> 0 | W142: =R142+T142+V142 -> 39.7 | AI142: =IF($I142=AI$6,$E142,0) -> 0 | AJ142: =IF($K142=ROUND(AI$6*$F142,2),$G142,0) -> 0 | AK142: =IF($H142>0,AI142,0) -> 0 | AL142: =IF(AK142>0,1,0) -> 0 | AM142: =IF($H142>0,AJ142,0) -> 0 | AN142: =IF(AM142>0,1,0) -> 0 | AO142: =IF($I142=AO$6,$E142,0) -> 0 | AP142: =IF($K142=ROUND(AO$6*$F142,2),$G142,0) -> 0 | AQ142: =IF($H142>0,AO142,0) -> 0 | AR142: =IF(AQ142>0,1,0) -> 0 | AS142: =IF($H142>0,AP142,0) -> 0 | AT142: =IF(AS142>0,1,0) -> 0 | AU142: =IF($I142=AU$6,$E142,0) -> 0 | AV142: =IF($K142=ROUND(AU$6*$F142,2),$G142,0) -> 0 | AW142: =IF($H142>0,AU142,0) -> 0 | AX142: =IF(AW142>0,1,0) -> 0 | AY142: =IF($H142>0,AV142,0) -> 0 | AZ142: =IF(AY142>0,1,0) -> 0 | BA142: =IF($I142=BA$6,$E142,0) -> 0.098 | BB142: =IF($K142=ROUND(BA$6*$F142,2),$G142,0) -> 0 | BC142: =IF($H142>0,BA142,0) -> 0.098 | BD142: =IF(BC142>0,1,0) -> 1 | BE142: =IF($H142>0,BB142,0) -> 0 | BF142: =IF(BE142>0,1,0) -> 0 | BH142: 9.8e-05 | BI142: 0.8 | BL142: 0
A143: =IF(E143+G143>0,A142,"") ->  | B143: =IF(E143+G143>0,B142,"") ->  | C143: 7 | D143: 03-4-23.461(333) | E143: 0 | F143: 1.1 | G143: 0 | H143: 0 | I143: =SUMIF(Y$14:BA$14,C143,Y$6:BA$6) -> 2166.8 | J143: =IF(H143=0,ROUND(E143*I143,2),ROUND(H143*E143,2)) -> 0 | K143: =ROUND(F143*I143,2) -> 2383.48 | L143: =IF(H143=0,ROUND(ROUND(F143*I143,2)*G143,2),ROUND(G143*H143,2)) -> 0 | M143: =L143-ROUND(G143*I143,2) -> 0 | O143: =J143+L143+N143 -> 0 | Q143: 405.07 | R143: =ROUND(Q143*E143,2) -> 0 | S143: =ROUND(F143*Q143,2) -> 445.58 | T143: =ROUND(S143*G143,2) -> 0 | U143: =T143-ROUND(Q143*G143,2) -> 0 | W143: =R143+T143+V143 -> 0 | AI143: =IF($I143=AI$6,$E143,0) -> 0 | AJ143: 0 | AK143: =IF($H143>0,AI143,0) -> 0 | AL143: =IF(AK143>0,1,0) -> 0 | AM143: =IF($H143>0,AJ143,0) -> 0 | AN143: =IF(AM143>0,1,0) -> 0 | AO143: =IF($I143=AO$6,$E143,0) -> 0 | AP143: 0 | AQ143: =IF($H143>0,AO143,0) -> 0 | AR143: =IF(AQ143>0,1,0) -> 0 | AS143: =IF($H143>0,AP143,0) -> 0 | AT143: =IF(AS143>0,1,0) -> 0 | AU143: =IF($I143=AU$6,$E143,0) -> 0 | AV143: 0 | AW143: =IF($H143>0,AU143,0) -> 0 | AX143: =IF(AW143>0,1,0) -> 0 | AY143: =IF($H143>0,AV143,0) -> 0 | AZ143: =IF(AY143>0,1,0) -> 0 | BA143: =IF($I143=BA$6,$E143,0) -> 0 | BB143: 0 | BC143: =IF($H143>0,BA143,0) -> 0 | BD143: =IF(BC143>0,1,0) -> 0 | BE143: =IF($H143>0,BB143,0) -> 0 | BF143: =IF(BE143>0,1,0) -> 0 | BH143: 0 | BL143: 0
A144: =IF(E144+G144>0,A142,"") ->  | B144: =IF(E144+G144>0,B142,"") ->  | C144: =C143 -> 7 | D144: 03-4-23.461(333) | E144: 0 | F144: 1.5 | G144: 0 | H144: 0 | I144: =SUMIF(Y$14:BA$14,C144,Y$7:BA$7) -> 0 | J144: 0 | K144: 0 | L144: 0 | M144: 0 | O144: 0 | Q144: =IF(BI144>0,Q$6,Q$6) -> 405.07 | R144: 0 | S144: 607.61 | T144: 0 | U144: 0 | W144: 0 | AI144: =IF($I144=AI$7,$E144,0) -> 0 | AJ144: =IF($K144=ROUND(AI$7*$F144,2),$G144,0) -> 0 | AK144: 0 | AL144: 0 | AM144: 0 | AN144: 0 | AO144: =IF($I144=AO$7,$E144,0) -> 0 | AP144: =IF($K144=ROUND(AO$7*$F144,2),$G144,0) -> 0 | AQ144: 0 | AR144: 0 | AS144: 0 | AT144: 0 | AU144: =IF($I144=AU$7,$E144,0) -> 0 | AV144: =IF($K144=ROUND(AU$7*$F144,2),$G144,0) -> 0 | AW144: 0 | AX144: 0 | AY144: 0 | AZ144: 0 | BA144: =IF($I144=BA$7,$E144,0) -> 0 | BB144: =IF($K144=ROUND(BA$7*$F144,2),$G144,0) -> 0 | BC144: 0 | BD144: 0 | BE144: 0 | BF144: 0 | BH144: 0 | BL144: 0
A145: =IF(E145+G145>0,A142,"") ->  | B145: =IF(E145+G145>0,B142,"") ->  | C145: =C143 -> 7 | D145: 03-4-23.461(333) | E145: 0 | F145: 1.1 | G145: 0 | H145: =E145+G145 -> 0 | I145: =SUMIF(Y$14:BA$14,C145,Y$7:BA$7) -> 0 | J145: 0 | K145: 0 | L145: 0 | M145: 0 | O145: 0 | Q145: 405.07 | R145: 0 | S145: 445.58 | T145: 0 | U145: 0 | W145: 0 | AI145: =IF($I145=AI$7,$E145,0) -> 0 | AJ145: =IF($K145=ROUND(AI$7*$F145,2),$G145,0) -> 0 | AK145: 0 | AL145: 0 | AM145: 0 | AN145: 0 | AO145: =IF($I145=AO$7,$E145,0) -> 0 | AP145: =IF($K145=ROUND(AO$7*$F145,2),$G145,0) -> 0 | AQ145: 0 | AR145: 0 | AS145: 0 | AT145: 0 | AU145: =IF($I145=AU$7,$E145,0) -> 0 | AV145: =IF($K145=ROUND(AU$7*$F145,2),$G145,0) -> 0 | AW145: 0 | AX145: 0 | AY145: 0 | AZ145: 0 | BA145: =IF($I145=BA$7,$E145,0) -> 0 | BB145: =IF($K145=ROUND(BA$7*$F145,2),$G145,0) -> 0 | BC145: 0 | BD145: 0 | BE145: 0 | BF145: 0 | BH145: =H145/1000 -> 0 | BL145: =E145-SUM(AI145,AO145,AU145,BA145) -> 0
A146: Вельское ГОРПО | B146: Вельск, ул.Ленина-42 | C146: =C147 -> 6 | D146: 03-4-23.461(333) | E146: 1.614 | F146: 1.5 | G146: 0 | H146: 1.614 | I146: =SUMIF(Y$14:BA$14,C146,Y$6:BA$6) -> 1733.45 | J146: =IF(H146=0,ROUND(E146*I146,2),ROUND(H146*E146,2)) -> 2.6 | K146: =ROUND(F146*I146,2) -> 2600.18 | L146: =IF(H146=0,ROUND(ROUND(F146*I146,2)*G146,2),ROUND(G146*H146,2)) -> 0 | M146: =L146-ROUND(G146*I146,2) -> 0 | O146: =J146+L146+N146 -> 2.6 | Q146: 405.07 | R146: =ROUND(Q146*E146,2) -> 653.78 | S146: =ROUND(F146*Q146,2) -> 607.61 | T146: =ROUND(S146*G146,2) -> 0 | U146: =T146-ROUND(Q146*G146,2) -> 0 | W146: =R146+T146+V146 -> 653.78 | AI146: =IF($I146=AI$6,$E146,0) -> 0 | AJ146: =IF($K146=ROUND(AI$6*$F146,2),$G146,0) -> 0 | AK146: =IF($H146>0,AI146,0) -> 0 | AL146: =IF(AK146>0,1,0) -> 0 | AM146: =IF($H146>0,AJ146,0) -> 0 | AN146: =IF(AM146>0,1,0) -> 0 | AO146: =IF($I146=AO$6,$E146,0) -> 0 | AP146: =IF($K146=ROUND(AO$6*$F146,2),$G146,0) -> 0 | AQ146: =IF($H146>0,AO146,0) -> 0 | AR146: =IF(AQ146>0,1,0) -> 0 | AS146: =IF($H146>0,AP146,0) -> 0 | AT146: =IF(AS146>0,1,0) -> 0 | AU146: =IF($I146=AU$6,$E146,0) -> 1.614 | AV146: =IF($K146=ROUND(AU$6*$F146,2),$G146,0) -> 0 | AW146: =IF($H146>0,AU146,0) -> 1.614 | AX146: =IF(AW146>0,1,0) -> 1 | AY146: =IF($H146>0,AV146,0) -> 0 | AZ146: =IF(AY146>0,1,0) -> 0 | BA146: =IF($I146=BA$6,$E146,0) -> 0 | BB146: =IF($K146=ROUND(BA$6*$F146,2),$G146,0) -> 0 | BC146: =IF($H146>0,BA146,0) -> 0 | BD146: =IF(BC146>0,1,0) -> 0 | BE146: =IF($H146>0,BB146,0) -> 0 | BF146: =IF(BE146>0,1,0) -> 0 | BH146: 0.001614 | BI146: 4 | BL146: 0
A147: =IF(E147+G147>0,A146,"") ->  | B147: =IF(E147+G147>0,B146,"") ->  | C147: 6 | D147: 03-4-23.461(333) | E147: 0 | F147: 1.1 | G147: 0 | H147: 0 | I147: =SUMIF(Y$14:BA$14,C147,Y$6:BA$6) -> 1733.45 | J147: =IF(H147=0,ROUND(E147*I147,2),ROUND(H147*E147,2)) -> 0 | K147: =ROUND(F147*I147,2) -> 1906.8 | L147: =IF(H147=0,ROUND(ROUND(F147*I147,2)*G147,2),ROUND(G147*H147,2)) -> 0 | M147: =L147-ROUND(G147*I147,2) -> 0 | O147: =J147+L147+N147 -> 0 | Q147: 405.07 | R147: =ROUND(Q147*E147,2) -> 0 | S147: =ROUND(F147*Q147,2) -> 445.58 | T147: =ROUND(S147*G147,2) -> 0 | U147: =T147-ROUND(Q147*G147,2) -> 0 | W147: =R147+T147+V147 -> 0 | AI147: =IF($I147=AI$6,$E147,0) -> 0 | AJ147: 0 | AK147: =IF($H147>0,AI147,0) -> 0 | AL147: =IF(AK147>0,1,0) -> 0 | AM147: =IF($H147>0,AJ147,0) -> 0 | AN147: =IF(AM147>0,1,0) -> 0 | AO147: =IF($I147=AO$6,$E147,0) -> 0 | AP147: 0 | AQ147: =IF($H147>0,AO147,0) -> 0 | AR147: =IF(AQ147>0,1,0) -> 0 | AS147: =IF($H147>0,AP147,0) -> 0 | AT147: =IF(AS147>0,1,0) -> 0 | AU147: =IF($I147=AU$6,$E147,0) -> 0 | AV147: 0 | AW147: =IF($H147>0,AU147,0) -> 0 | AX147: =IF(AW147>0,1,0) -> 0 | AY147: =IF($H147>0,AV147,0) -> 0 | AZ147: =IF(AY147>0,1,0) -> 0 | BA147: =IF($I147=BA$6,$E147,0) -> 0 | BB147: 0 | BC147: =IF($H147>0,BA147,0) -> 0 | BD147: =IF(BC147>0,1,0) -> 0 | BE147: =IF($H147>0,BB147,0) -> 0 | BF147: =IF(BE147>0,1,0) -> 0 | BH147: 0 | BL147: 0
A148: =IF(E148+G148>0,A146,"") ->  | B148: =IF(E148+G148>0,B146,"") ->  | C148: =C147 -> 6 | D148: 03-4-23.461(333) | E148: 0 | F148: 1.5 | G148: 0 | H148: 0 | I148: =SUMIF(Y$14:BA$14,C148,Y$7:BA$7) -> 0 | J148: 0 | K148: 0 | L148: 0 | M148: 0 | O148: 0 | Q148: 405.07 | R148: 0 | S148: 607.61 | T148: 0 | U148: 0 | W148: 0 | AI148: =IF($I148=AI$7,$E148,0) -> 0 | AJ148: =IF($K148=ROUND(AI$7*$F148,2),$G148,0) -> 0 | AK148: 0 | AL148: 0 | AM148: 0 | AN148: 0 | AO148: =IF($I148=AO$7,$E148,0) -> 0 | AP148: =IF($K148=ROUND(AO$7*$F148,2),$G148,0) -> 0 | AQ148: 0 | AR148: 0 | AS148: 0 | AT148: 0 | AU148: =IF($I148=AU$7,$E148,0) -> 0 | AV148: =IF($K148=ROUND(AU$7*$F148,2),$G148,0) -> 0 | AW148: 0 | AX148: 0 | AY148: 0 | AZ148: 0 | BA148: =IF($I148=BA$7,$E148,0) -> 0 | BB148: =IF($K148=ROUND(BA$7*$F148,2),$G148,0) -> 0 | BC148: 0 | BD148: 0 | BE148: 0 | BF148: 0 | BH148: 0 | BL148: 0
A149: =IF(E149+G149>0,A146,"") ->  | B149: =IF(E149+G149>0,B146,"") ->  | C149: =C147 -> 6 | D149: 03-4-23.461(333) | E149: 0 | F149: 1.1 | G149: 0 | H149: 0 | I149: =SUMIF(Y$14:BA$14,C149,Y$7:BA$7) -> 0 | J149: 0 | K149: 0 | L149: 0 | M149: 0 | O149: 0 | Q149: 405.07 | R149: 0 | S149: 445.58 | T149: 0 | U149: 0 | W149: 0 | AI149: =IF($I149=AI$7,$E149,0) -> 0 | AJ149: =IF($K149=ROUND(AI$7*$F149,2),$G149,0) -> 0 | AK149: 0 | AL149: 0 | AM149: 0 | AN149: 0 | AO149: =IF($I149=AO$7,$E149,0) -> 0 | AP149: =IF($K149=ROUND(AO$7*$F149,2),$G149,0) -> 0 | AQ149: 0 | AR149: 0 | AS149: 0 | AT149: 0 | AU149: =IF($I149=AU$7,$E149,0) -> 0 | AV149: =IF($K149=ROUND(AU$7*$F149,2),$G149,0) -> 0 | AW149: 0 | AX149: 0 | AY149: 0 | AZ149: 0 | BA149: =IF($I149=BA$7,$E149,0) -> 0 | BB149: =IF($K149=ROUND(BA$7*$F149,2),$G149,0) -> 0 | BC149: 0 | BD149: 0 | BE149: 0 | BF149: 0 | BH149: 0 | BL149: 0
A150: ООО "КМТС плюс" | B150: Вельск, ул.Горького-20 | C150: =C151 -> 6 | D150: 03-4-23.470 | E150: 1.32 | F150: 1.5 | G150: 0 | H150: 1.32 | I150: =SUMIF(Y$14:BA$14,C150,Y$6:BA$6) -> 1733.45 | J150: =IF(H150=0,ROUND(E150*I150,2),ROUND(H150*E150,2)) -> 1.74 | K150: =ROUND(F150*I150,2) -> 2600.18 | L150: =IF(H150=0,ROUND(ROUND(F150*I150,2)*G150,2),ROUND(G150*H150,2)) -> 0 | M150: =L150-ROUND(G150*I150,2) -> 0 | O150: =J150+L150+N150 -> 1.74 | Q150: 405.07 | R150: =ROUND(Q150*E150,2) -> 534.69 | S150: =ROUND(F150*Q150,2) -> 607.61 | T150: =ROUND(S150*G150,2) -> 0 | U150: =T150-ROUND(Q150*G150,2) -> 0 | W150: =R150+T150+V150 -> 534.69 | AI150: =IF($I150=AI$6,$E150,0) -> 0 | AJ150: =IF($K150=ROUND(AI$6*$F150,2),$G150,0) -> 0 | AK150: =IF($H150>0,AI150,0) -> 0 | AL150: =IF(AK150>0,1,0) -> 0 | AM150: =IF($H150>0,AJ150,0) -> 0 | AN150: =IF(AM150>0,1,0) -> 0 | AO150: =IF($I150=AO$6,$E150,0) -> 0 | AP150: =IF($K150=ROUND(AO$6*$F150,2),$G150,0) -> 0 | AQ150: =IF($H150>0,AO150,0) -> 0 | AR150: =IF(AQ150>0,1,0) -> 0 | AS150: =IF($H150>0,AP150,0) -> 0 | AT150: =IF(AS150>0,1,0) -> 0 | AU150: =IF($I150=AU$6,$E150,0) -> 1.32 | AV150: =IF($K150=ROUND(AU$6*$F150,2),$G150,0) -> 0 | AW150: =IF($H150>0,AU150,0) -> 1.32 | AX150: =IF(AW150>0,1,0) -> 1 | AY150: =IF($H150>0,AV150,0) -> 0 | AZ150: =IF(AY150>0,1,0) -> 0 | BA150: =IF($I150=BA$6,$E150,0) -> 0 | BB150: =IF($K150=ROUND(BA$6*$F150,2),$G150,0) -> 0 | BC150: =IF($H150>0,BA150,0) -> 0 | BD150: =IF(BC150>0,1,0) -> 0 | BE150: =IF($H150>0,BB150,0) -> 0 | BF150: =IF(BE150>0,1,0) -> 0 | BH150: 0.00132 | BI150: 1.2 | BL150: 0
A151: =IF(E151+G151>0,A150,"") ->  | B151: =IF(E151+G151>0,B150,"") ->  | C151: 6 | D151: 03-4-23.470 | E151: 0 | F151: 1.1 | G151: 0 | H151: 0 | I151: =SUMIF(Y$14:BA$14,C151,Y$6:BA$6) -> 1733.45 | J151: =IF(H151=0,ROUND(E151*I151,2),ROUND(H151*E151,2)) -> 0 | K151: =ROUND(F151*I151,2) -> 1906.8 | L151: =IF(H151=0,ROUND(ROUND(F151*I151,2)*G151,2),ROUND(G151*H151,2)) -> 0 | M151: =L151-ROUND(G151*I151,2) -> 0 | O151: =J151+L151+N151 -> 0 | Q151: 405.07 | R151: =ROUND(Q151*E151,2) -> 0 | S151: =ROUND(F151*Q151,2) -> 445.58 | T151: =ROUND(S151*G151,2) -> 0 | U151: =T151-ROUND(Q151*G151,2) -> 0 | W151: =R151+T151+V151 -> 0 | AI151: =IF($I151=AI$6,$E151,0) -> 0 | AJ151: 0 | AK151: =IF($H151>0,AI151,0) -> 0 | AL151: =IF(AK151>0,1,0) -> 0 | AM151: =IF($H151>0,AJ151,0) -> 0 | AN151: =IF(AM151>0,1,0) -> 0 | AO151: =IF($I151=AO$6,$E151,0) -> 0 | AP151: 0 | AQ151: =IF($H151>0,AO151,0) -> 0 | AR151: =IF(AQ151>0,1,0) -> 0 | AS151: =IF($H151>0,AP151,0) -> 0 | AT151: =IF(AS151>0,1,0) -> 0 | AU151: =IF($I151=AU$6,$E151,0) -> 0 | AV151: 0 | AW151: =IF($H151>0,AU151,0) -> 0 | AX151: =IF(AW151>0,1,0) -> 0 | AY151: =IF($H151>0,AV151,0) -> 0 | AZ151: =IF(AY151>0,1,0) -> 0 | BA151: =IF($I151=BA$6,$E151,0) -> 0 | BB151: 0 | BC151: =IF($H151>0,BA151,0) -> 0 | BD151: =IF(BC151>0,1,0) -> 0 | BE151: =IF($H151>0,BB151,0) -> 0 | BF151: =IF(BE151>0,1,0) -> 0 | BH151: 0 | BL151: 0
A152: =IF(E152+G152>0,A150,"") ->  | B152: =IF(E152+G152>0,B150,"") ->  | C152: =C151 -> 6 | D152: 03-4-23.470 | E152: 0 | F152: 1.5 | G152: 0 | H152: 0 | I152: =SUMIF(Y$14:BA$14,C152,Y$7:BA$7) -> 0 | J152: 0 | K152: 0 | L152: 0 | M152: 0 | O152: 0 | Q152: 405.07 | R152: 0 | S152: 607.61 | T152: 0 | U152: 0 | W152: 0 | AI152: =IF($I152=AI$7,$E152,0) -> 0 | AJ152: =IF($K152=ROUND(AI$7*$F152,2),$G152,0) -> 0 | AK152: 0 | AL152: 0 | AM152: 0 | AN152: 0 | AO152: =IF($I152=AO$7,$E152,0) -> 0 | AP152: =IF($K152=ROUND(AO$7*$F152,2),$G152,0) -> 0 | AQ152: 0 | AR152: 0 | AS152: 0 | AT152: 0 | AU152: =IF($I152=AU$7,$E152,0) -> 0 | AV152: =IF($K152=ROUND(AU$7*$F152,2),$G152,0) -> 0 | AW152: 0 | AX152: 0 | AY152: 0 | AZ152: 0 | BA152: =IF($I152=BA$7,$E152,0) -> 0 | BB152: =IF($K152=ROUND(BA$7*$F152,2),$G152,0) -> 0 | BC152: 0 | BD152: 0 | BE152: 0 | BF152: 0 | BH152: 0 | BL152: 0
A153: =IF(E153+G153>0,A150,"") ->  | B153: =IF(E153+G153>0,B150,"") ->  | C153: =C151 -> 6 | D153: 03-4-23.470 | E153: 0 | F153: 1.1 | G153: 0 | H153: 0 | I153: =SUMIF(Y$14:BA$14,C153,Y$7:BA$7) -> 0 | J153: 0 | K153: 0 | L153: 0 | M153: 0 | O153: 0 | Q153: 405.07 | R153: 0 | S153: 445.58 | T153: 0 | U153: 0 | W153: 0 | AI153: =IF($I153=AI$7,$E153,0) -> 0 | AJ153: =IF($K153=ROUND(AI$7*$F153,2),$G153,0) -> 0 | AK153: 0 | AL153: 0 | AM153: 0 | AN153: 0 | AO153: =IF($I153=AO$7,$E153,0) -> 0 | AP153: =IF($K153=ROUND(AO$7*$F153,2),$G153,0) -> 0 | AQ153: 0 | AR153: 0 | AS153: 0 | AT153: 0 | AU153: =IF($I153=AU$7,$E153,0) -> 0 | AV153: =IF($K153=ROUND(AU$7*$F153,2),$G153,0) -> 0 | AW153: 0 | AX153: 0 | AY153: 0 | AZ153: 0 | BA153: =IF($I153=BA$7,$E153,0) -> 0 | BB153: =IF($K153=ROUND(BA$7*$F153,2),$G153,0) -> 0 | BC153: 0 | BD153: 0 | BE153: 0 | BF153: 0 | BH153: 0 | BL153: 0
A154: ООО "КМТС плюс" | B154: Вельск, ул.Горького-20 | C154: =C155 -> 6 | D154: 03-4-23.470(333) | E154: 0.149 | F154: 1.5 | G154: 0 | H154: 0.149 | I154: =SUMIF(Y$14:BA$14,C154,Y$6:BA$6) -> 1733.45 | J154: =IF(H154=0,ROUND(E154*I154,2),ROUND(H154*E154,2)) -> 0.02 | K154: =ROUND(F154*I154,2) -> 2600.18 | L154: =IF(H154=0,ROUND(ROUND(F154*I154,2)*G154,2),ROUND(G154*H154,2)) -> 0 | M154: =L154-ROUND(G154*I154,2) -> 0 | O154: =J154+L154+N154 -> 0.02 | Q154: 405.07 | R154: =ROUND(Q154*E154,2) -> 60.36 | S154: =ROUND(F154*Q154,2) -> 607.61 | T154: =ROUND(S154*G154,2) -> 0 | U154: =T154-ROUND(Q154*G154,2) -> 0 | W154: =R154+T154+V154 -> 60.36 | AI154: =IF($I154=AI$6,$E154,0) -> 0 | AJ154: =IF($K154=ROUND(AI$6*$F154,2),$G154,0) -> 0 | AK154: =IF($H154>0,AI154,0) -> 0 | AL154: =IF(AK154>0,1,0) -> 0 | AM154: =IF($H154>0,AJ154,0) -> 0 | AN154: =IF(AM154>0,1,0) -> 0 | AO154: =IF($I154=AO$6,$E154,0) -> 0 | AP154: =IF($K154=ROUND(AO$6*$F154,2),$G154,0) -> 0 | AQ154: =IF($H154>0,AO154,0) -> 0 | AR154: =IF(AQ154>0,1,0) -> 0 | AS154: =IF($H154>0,AP154,0) -> 0 | AT154: =IF(AS154>0,1,0) -> 0 | AU154: =IF($I154=AU$6,$E154,0) -> 0.149 | AV154: =IF($K154=ROUND(AU$6*$F154,2),$G154,0) -> 0 | AW154: =IF($H154>0,AU154,0) -> 0.149 | AX154: =IF(AW154>0,1,0) -> 1 | AY154: =IF($H154>0,AV154,0) -> 0 | AZ154: =IF(AY154>0,1,0) -> 0 | BA154: =IF($I154=BA$6,$E154,0) -> 0 | BB154: =IF($K154=ROUND(BA$6*$F154,2),$G154,0) -> 0 | BC154: =IF($H154>0,BA154,0) -> 0 | BD154: =IF(BC154>0,1,0) -> 0 | BE154: =IF($H154>0,BB154,0) -> 0 | BF154: =IF(BE154>0,1,0) -> 0 | BH154: 0.000149 | BI154: 0.4 | BL154: 0
A155: =IF(E155+G155>0,A154,"") ->  | B155: =IF(E155+G155>0,B154,"") ->  | C155: 6 | D155: 03-4-23.470(333) | E155: 0 | F155: 1.1 | G155: 0 | H155: 0 | I155: =SUMIF(Y$14:BA$14,C155,Y$6:BA$6) -> 1733.45 | J155: =IF(H155=0,ROUND(E155*I155,2),ROUND(H155*E155,2)) -> 0 | K155: =ROUND(F155*I155,2) -> 1906.8 | L155: =IF(H155=0,ROUND(ROUND(F155*I155,2)*G155,2),ROUND(G155*H155,2)) -> 0 | M155: =L155-ROUND(G155*I155,2) -> 0 | O155: =J155+L155+N155 -> 0 | Q155: 405.07 | R155: =ROUND(Q155*E155,2) -> 0 | S155: =ROUND(F155*Q155,2) -> 445.58 | T155: =ROUND(S155*G155,2) -> 0 | U155: =T155-ROUND(Q155*G155,2) -> 0 | W155: =R155+T155+V155 -> 0 | AI155: =IF($I155=AI$6,$E155,0) -> 0 | AJ155: 0 | AK155: =IF($H155>0,AI155,0) -> 0 | AL155: =IF(AK155>0,1,0) -> 0 | AM155: =IF($H155>0,AJ155,0) -> 0 | AN155: =IF(AM155>0,1,0) -> 0 | AO155: =IF($I155=AO$6,$E155,0) -> 0 | AP155: 0 | AQ155: =IF($H155>0,AO155,0) -> 0 | AR155: =IF(AQ155>0,1,0) -> 0 | AS155: =IF($H155>0,AP155,0) -> 0 | AT155: =IF(AS155>0,1,0) -> 0 | AU155: =IF($I155=AU$6,$E155,0) -> 0 | AV155: 0 | AW155: =IF($H155>0,AU155,0) -> 0 | AX155: =IF(AW155>0,1,0) -> 0 | AY155: =IF($H155>0,AV155,0) -> 0 | AZ155: =IF(AY155>0,1,0) -> 0 | BA155: =IF($I155=BA$6,$E155,0) -> 0 | BB155: 0 | BC155: =IF($H155>0,BA155,0) -> 0 | BD155: =IF(BC155>0,1,0) -> 0 | BE155: =IF($H155>0,BB155,0) -> 0 | BF155: =IF(BE155>0,1,0) -> 0 | BH155: 0 | BL155: 0
A156: =IF(E156+G156>0,A154,"") ->  | B156: =IF(E156+G156>0,B154,"") ->  | C156: =C155 -> 6 | D156: 03-4-23.470(333) | E156: 0 | F156: 1.5 | G156: 0 | H156: 0 | I156: =SUMIF(Y$14:BA$14,C156,Y$7:BA$7) -> 0 | J156: 0 | K156: 0 | L156: 0 | M156: 0 | O156: 0 | Q156: 405.07 | R156: 0 | S156: 607.61 | T156: 0 | U156: 0 | W156: 0 | AI156: =IF($I156=AI$7,$E156,0) -> 0 | AJ156: =IF($K156=ROUND(AI$7*$F156,2),$G156,0) -> 0 | AK156: 0 | AL156: 0 | AM156: 0 | AN156: 0 | AO156: =IF($I156=AO$7,$E156,0) -> 0 | AP156: =IF($K156=ROUND(AO$7*$F156,2),$G156,0) -> 0 | AQ156: 0 | AR156: 0 | AS156: 0 | AT156: 0 | AU156: =IF($I156=AU$7,$E156,0) -> 0 | AV156: =IF($K156=ROUND(AU$7*$F156,2),$G156,0) -> 0 | AW156: 0 | AX156: 0 | AY156: 0 | AZ156: 0 | BA156: =IF($I156=BA$7,$E156,0) -> 0 | BB156: =IF($K156=ROUND(BA$7*$F156,2),$G156,0) -> 0 | BC156: 0 | BD156: 0 | BE156: 0 | BF156: 0 | BH156: 0 | BL156: 0
A157: =IF(E157+G157>0,A154,"") ->  | B157: =IF(E157+G157>0,B154,"") ->  | C157: =C155 -> 6 | D157: 03-4-23.470(333) | E157: 0 | F157: 1.1 | G157: 0 | H157: 0 | I157: =SUMIF(Y$14:BA$14,C157,Y$7:BA$7) -> 0 | J157: 0 | K157: 0 | L157: 0 | M157: 0 | O157: 0 | Q157: 405.07 | R157: 0 | S157: 445.58 | T157: 0 | U157: 0 | W157: 0 | AI157: =IF($I157=AI$7,$E157,0) -> 0 | AJ157: =IF($K157=ROUND(AI$7*$F157,2),$G157,0) -> 0 | AK157: 0 | AL157: 0 | AM157: 0 | AN157: 0 | AO157: =IF($I157=AO$7,$E157,0) -> 0 | AP157: =IF($K157=ROUND(AO$7*$F157,2),$G157,0) -> 0 | AQ157: 0 | AR157: 0 | AS157: 0 | AT157: 0 | AU157: =IF($I157=AU$7,$E157,0) -> 0 | AV157: =IF($K157=ROUND(AU$7*$F157,2),$G157,0) -> 0 | AW157: 0 | AX157: 0 | AY157: 0 | AZ157: 0 | BA157: =IF($I157=BA$7,$E157,0) -> 0 | BB157: =IF($K157=ROUND(BA$7*$F157,2),$G157,0) -> 0 | BC157: 0 | BD157: 0 | BE157: 0 | BF157: 0 | BH157: 0 | BL157: 0
A158: ИП Сащенко Олег Леонидович (до 01.07 - ООО "Вагаинвест") | C158: =C159 -> 7 | D158: 03-4-23.1119(333)/03-4-23.489(333) | E158: 0.88 | F158: 1.5 | G158: 0.503 | H158: 1.383 | I158: =SUMIF(Y$14:BA$14,C158,Y$6:BA$6) -> 2166.8 | J158: =IF(H158=0,ROUND(E158*I158,2),ROUND(H158*E158,2)) -> 1.22 | K158: =ROUND(F158*I158,2) -> 3250.2 | L158: =IF(H158=0,ROUND(ROUND(F158*I158,2)*G158,2),ROUND(G158*H158,2)) -> 0.7 | M158: =L158-ROUND(G158*I158,2) -> -1089.2 | O158: =J158+L158+N158 -> 1.92 | Q158: 405.07 | R158: =ROUND(Q158*E158,2) -> 356.46 | S158: =ROUND(F158*Q158,2) -> 607.61 | T158: =ROUND(S158*G158,2) -> 305.63 | U158: =T158-ROUND(Q158*G158,2) -> 101.88 | W158: =R158+T158+V158 -> 662.09 | AI158: =IF($I158=AI$6,$E158,0) -> 0 | AJ158: =IF($K158=ROUND(AI$6*$F158,2),$G158,0) -> 0 | AK158: =IF($H158>0,AI158,0) -> 0 | AL158: =IF(AK158>0,1,0) -> 0 | AM158: =IF($H158>0,AJ158,0) -> 0 | AN158: =IF(AM158>0,1,0) -> 0 | AO158: =IF($I158=AO$6,$E158,0) -> 0 | AP158: =IF($K158=ROUND(AO$6*$F158,2),$G158,0) -> 0 | AQ158: =IF($H158>0,AO158,0) -> 0 | AR158: =IF(AQ158>0,1,0) -> 0 | AS158: =IF($H158>0,AP158,0) -> 0 | AT158: =IF(AS158>0,1,0) -> 0 | AU158: =IF($I158=AU$6,$E158,0) -> 0 | AV158: =IF($K158=ROUND(AU$6*$F158,2),$G158,0) -> 0 | AW158: =IF($H158>0,AU158,0) -> 0 | AX158: =IF(AW158>0,1,0) -> 0 | AY158: =IF($H158>0,AV158,0) -> 0 | AZ158: =IF(AY158>0,1,0) -> 0 | BA158: =IF($I158=BA$6,$E158,0) -> 0.88 | BB158: =IF($K158=ROUND(BA$6*$F158,2),$G158,0) -> 0.503 | BC158: =IF($H158>0,BA158,0) -> 0.88 | BD158: =IF(BC158>0,1,0) -> 1 | BE158: =IF($H158>0,BB158,0) -> 0.503 | BF158: =IF(BE158>0,1,0) -> 1 | BH158: 0.001383 | BI158: 0.8 | BL158: 0
A159: =IF(E159+G159>0,A158,"") ->  | B159: =IF(E159+G159>0,B158,"") ->  | C159: 7 | D159: 03-4-23.1119(333)/03-4-23.489(333) | E159: 0 | F159: 1.1 | G159: 0 | H159: 0 | I159: =SUMIF(Y$14:BA$14,C159,Y$6:BA$6) -> 2166.8 | J159: =IF(H159=0,ROUND(E159*I159,2),ROUND(H159*E159,2)) -> 0 | K159: =ROUND(F159*I159,2) -> 2383.48 | L159: =IF(H159=0,ROUND(ROUND(F159*I159,2)*G159,2),ROUND(G159*H159,2)) -> 0 | M159: =L159-ROUND(G159*I159,2) -> 0 | O159: =J159+L159+N159 -> 0 | Q159: 405.07 | R159: =ROUND(Q159*E159,2) -> 0 | S159: =ROUND(F159*Q159,2) -> 445.58 | T159: =ROUND(S159*G159,2) -> 0 | U159: =T159-ROUND(Q159*G159,2) -> 0 | W159: =R159+T159+V159 -> 0 | AI159: =IF($I159=AI$6,$E159,0) -> 0 | AJ159: 0 | AK159: =IF($H159>0,AI159,0) -> 0 | AL159: =IF(AK159>0,1,0) -> 0 | AM159: =IF($H159>0,AJ159,0) -> 0 | AN159: =IF(AM159>0,1,0) -> 0 | AO159: =IF($I159=AO$6,$E159,0) -> 0 | AP159: 0 | AQ159: =IF($H159>0,AO159,0) -> 0 | AR159: =IF(AQ159>0,1,0) -> 0 | AS159: =IF($H159>0,AP159,0) -> 0 | AT159: =IF(AS159>0,1,0) -> 0 | AU159: =IF($I159=AU$6,$E159,0) -> 0 | AV159: 0 | AW159: =IF($H159>0,AU159,0) -> 0 | AX159: =IF(AW159>0,1,0) -> 0 | AY159: =IF($H159>0,AV159,0) -> 0 | AZ159: =IF(AY159>0,1,0) -> 0 | BA159: =IF($I159=BA$6,$E159,0) -> 0 | BB159: 0 | BC159: =IF($H159>0,BA159,0) -> 0 | BD159: =IF(BC159>0,1,0) -> 0 | BE159: =IF($H159>0,BB159,0) -> 0 | BF159: =IF(BE159>0,1,0) -> 0 | BH159: 0 | BL159: 0
A160: =IF(E160+G160>0,A158,"") ->  | B160: =IF(E160+G160>0,B158,"") ->  | C160: =C159 -> 7 | D160: 03-4-23.1119(333)/03-4-23.489(333) | E160: 0 | F160: 1.5 | G160: 0 | H160: 0 | I160: =SUMIF(Y$14:BA$14,C160,Y$7:BA$7) -> 0 | J160: 0 | K160: 0 | L160: 0 | M160: 0 | O160: 0 | Q160: 405.07 | R160: 0 | S160: 607.61 | T160: 0 | U160: 0 | W160: 0 | AI160: =IF($I160=AI$7,$E160,0) -> 0 | AJ160: =IF($K160=ROUND(AI$7*$F160,2),$G160,0) -> 0 | AK160: 0 | AL160: 0 | AM160: 0 | AN160: 0 | AO160: =IF($I160=AO$7,$E160,0) -> 0 | AP160: =IF($K160=ROUND(AO$7*$F160,2),$G160,0) -> 0 | AQ160: 0 | AR160: 0 | AS160: 0 | AT160: 0 | AU160: =IF($I160=AU$7,$E160,0) -> 0 | AV160: =IF($K160=ROUND(AU$7*$F160,2),$G160,0) -> 0 | AW160: 0 | AX160: 0 | AY160: 0 | AZ160: 0 | BA160: =IF($I160=BA$7,$E160,0) -> 0 | BB160: =IF($K160=ROUND(BA$7*$F160,2),$G160,0) -> 0 | BC160: 0 | BD160: 0 | BE160: 0 | BF160: 0 | BH160: 0 | BL160: 0
A161: =IF(E161+G161>0,A158,"") ->  | B161: =IF(E161+G161>0,B158,"") ->  | C161: =C159 -> 7 | D161: 03-4-23.1119(333)/03-4-23.489(333) | E161: 0 | F161: 1.1 | G161: 0 | H161: 0 | I161: =SUMIF(Y$14:BA$14,C161,Y$7:BA$7) -> 0 | J161: 0 | K161: 0 | L161: 0 | M161: 0 | O161: 0 | Q161: 405.07 | R161: 0 | S161: 445.58 | T161: 0 | U161: 0 | W161: 0 | AI161: =IF($I161=AI$7,$E161,0) -> 0 | AJ161: =IF($K161=ROUND(AI$7*$F161,2),$G161,0) -> 0 | AK161: 0 | AL161: 0 | AM161: 0 | AN161: 0 | AO161: =IF($I161=AO$7,$E161,0) -> 0 | AP161: =IF($K161=ROUND(AO$7*$F161,2),$G161,0) -> 0 | AQ161: 0 | AR161: 0 | AS161: 0 | AT161: 0 | AU161: =IF($I161=AU$7,$E161,0) -> 0 | AV161: =IF($K161=ROUND(AU$7*$F161,2),$G161,0) -> 0 | AW161: 0 | AX161: 0 | AY161: 0 | AZ161: 0 | BA161: =IF($I161=BA$7,$E161,0) -> 0 | BB161: =IF($K161=ROUND(BA$7*$F161,2),$G161,0) -> 0 | BC161: 0 | BD161: 0 | BE161: 0 | BF161: 0 | BH161: 0 | BL161: 0
A162: ГАУ АО ИД "Вельские вести" | C162: =C163 -> 7 | D162: 03-4-23.519(333) | E162: 0.517 | F162: 1.5 | G162: 0.063 | H162: 0.58 | I162: =SUMIF(Y$14:BA$14,C162,Y$6:BA$6) -> 2166.8 | J162: =IF(H162=0,ROUND(E162*I162,2),ROUND(H162*E162,2)) -> 0.3 | K162: =ROUND(F162*I162,2) -> 3250.2 | L162: =IF(H162=0,ROUND(ROUND(F162*I162,2)*G162,2),ROUND(G162*H162,2)) -> 0.04 | M162: =L162-ROUND(G162*I162,2) -> -136.47 | O162: =J162+L162+N162 -> 0.34 | Q162: 405.07 | R162: =ROUND(Q162*E162,2) -> 209.42 | S162: =ROUND(F162*Q162,2) -> 607.61 | T162: =ROUND(S162*G162,2) -> 38.28 | U162: =T162-ROUND(Q162*G162,2) -> 12.76 | W162: =R162+T162+V162 -> 247.7 | AI162: =IF($I162=AI$6,$E162,0) -> 0 | AJ162: =IF($K162=ROUND(AI$6*$F162,2),$G162,0) -> 0 | AK162: =IF($H162>0,AI162,0) -> 0 | AL162: =IF(AK162>0,1,0) -> 0 | AM162: =IF($H162>0,AJ162,0) -> 0 | AN162: =IF(AM162>0,1,0) -> 0 | AO162: =IF($I162=AO$6,$E162,0) -> 0 | AP162: =IF($K162=ROUND(AO$6*$F162,2),$G162,0) -> 0 | AQ162: =IF($H162>0,AO162,0) -> 0 | AR162: =IF(AQ162>0,1,0) -> 0 | AS162: =IF($H162>0,AP162,0) -> 0 | AT162: =IF(AS162>0,1,0) -> 0 | AU162: =IF($I162=AU$6,$E162,0) -> 0 | AV162: =IF($K162=ROUND(AU$6*$F162,2),$G162,0) -> 0 | AW162: =IF($H162>0,AU162,0) -> 0 | AX162: =IF(AW162>0,1,0) -> 0 | AY162: =IF($H162>0,AV162,0) -> 0 | AZ162: =IF(AY162>0,1,0) -> 0 | BA162: =IF($I162=BA$6,$E162,0) -> 0.517 | BB162: =IF($K162=ROUND(BA$6*$F162,2),$G162,0) -> 0.063 | BC162: =IF($H162>0,BA162,0) -> 0.517 | BD162: =IF(BC162>0,1,0) -> 1 | BE162: =IF($H162>0,BB162,0) -> 0.063 | BF162: =IF(BE162>0,1,0) -> 1 | BH162: 0.00058 | BI162: 0.47 | BL162: 0
A163: =IF(E163+G163>0,A162,"") ->  | B163: =IF(E163+G163>0,B162,"") ->  | C163: 7 | D163: 03-4-23.519(333) | E163: 0 | F163: 1.1 | G163: 0 | H163: 0 | I163: =SUMIF(Y$14:BA$14,C163,Y$6:BA$6) -> 2166.8 | J163: =IF(H163=0,ROUND(E163*I163,2),ROUND(H163*E163,2)) -> 0 | K163: =ROUND(F163*I163,2) -> 2383.48 | L163: =IF(H163=0,ROUND(ROUND(F163*I163,2)*G163,2),ROUND(G163*H163,2)) -> 0 | M163: =L163-ROUND(G163*I163,2) -> 0 | O163: =J163+L163+N163 -> 0 | Q163: 405.07 | R163: =ROUND(Q163*E163,2) -> 0 | S163: =ROUND(F163*Q163,2) -> 445.58 | T163: =ROUND(S163*G163,2) -> 0 | U163: =T163-ROUND(Q163*G163,2) -> 0 | W163: =R163+T163+V163 -> 0 | AI163: =IF($I163=AI$6,$E163,0) -> 0 | AJ163: 0 | AK163: =IF($H163>0,AI163,0) -> 0 | AL163: =IF(AK163>0,1,0) -> 0 | AM163: =IF($H163>0,AJ163,0) -> 0 | AN163: =IF(AM163>0,1,0) -> 0 | AO163: =IF($I163=AO$6,$E163,0) -> 0 | AP163: 0 | AQ163: =IF($H163>0,AO163,0) -> 0 | AR163: =IF(AQ163>0,1,0) -> 0 | AS163: =IF($H163>0,AP163,0) -> 0 | AT163: =IF(AS163>0,1,0) -> 0 | AU163: =IF($I163=AU$6,$E163,0) -> 0 | AV163: 0 | AW163: =IF($H163>0,AU163,0) -> 0 | AX163: =IF(AW163>0,1,0) -> 0 | AY163: =IF($H163>0,AV163,0) -> 0 | AZ163: =IF(AY163>0,1,0) -> 0 | BA163: =IF($I163=BA$6,$E163,0) -> 0 | BB163: 0 | BC163: =IF($H163>0,BA163,0) -> 0 | BD163: =IF(BC163>0,1,0) -> 0 | BE163: =IF($H163>0,BB163,0) -> 0 | BF163: =IF(BE163>0,1,0) -> 0 | BH163: 0 | BL163: 0
A164: =IF(E164+G164>0,A162,"") ->  | B164: =IF(E164+G164>0,B162,"") ->  | C164: =C163 -> 7 | D164: 03-4-23.519(333) | E164: 0 | F164: 1.5 | G164: 0 | H164: 0 | I164: =SUMIF(Y$14:BA$14,C164,Y$7:BA$7) -> 0 | J164: 0 | K164: 0 | L164: 0 | M164: 0 | O164: 0 | Q164: 405.07 | R164: 0 | S164: 607.61 | T164: 0 | U164: 0 | W164: 0 | AI164: =IF($I164=AI$7,$E164,0) -> 0 | AJ164: =IF($K164=ROUND(AI$7*$F164,2),$G164,0) -> 0 | AK164: 0 | AL164: 0 | AM164: 0 | AN164: 0 | AO164: =IF($I164=AO$7,$E164,0) -> 0 | AP164: =IF($K164=ROUND(AO$7*$F164,2),$G164,0) -> 0 | AQ164: 0 | AR164: 0 | AS164: 0 | AT164: 0 | AU164: =IF($I164=AU$7,$E164,0) -> 0 | AV164: =IF($K164=ROUND(AU$7*$F164,2),$G164,0) -> 0 | AW164: 0 | AX164: 0 | AY164: 0 | AZ164: 0 | BA164: =IF($I164=BA$7,$E164,0) -> 0 | BB164: =IF($K164=ROUND(BA$7*$F164,2),$G164,0) -> 0 | BC164: 0 | BD164: 0 | BE164: 0 | BF164: 0 | BH164: 0 | BL164: 0
A165: =IF(E165+G165>0,A162,"") ->  | B165: =IF(E165+G165>0,B162,"") ->  | C165: =C163 -> 7 | D165: 03-4-23.519(333) | E165: 0 | F165: 1.1 | G165: 0 | H165: 0 | I165: =SUMIF(Y$14:BA$14,C165,Y$7:BA$7) -> 0 | J165: 0 | K165: 0 | L165: 0 | M165: 0 | O165: 0 | Q165: 405.07 | R165: 0 | S165: 445.58 | T165: 0 | U165: 0 | W165: 0 | AI165: =IF($I165=AI$7,$E165,0) -> 0 | AJ165: =IF($K165=ROUND(AI$7*$F165,2),$G165,0) -> 0 | AK165: 0 | AL165: 0 | AM165: 0 | AN165: 0 | AO165: =IF($I165=AO$7,$E165,0) -> 0 | AP165: =IF($K165=ROUND(AO$7*$F165,2),$G165,0) -> 0 | AQ165: 0 | AR165: 0 | AS165: 0 | AT165: 0 | AU165: =IF($I165=AU$7,$E165,0) -> 0 | AV165: =IF($K165=ROUND(AU$7*$F165,2),$G165,0) -> 0 | AW165: 0 | AX165: 0 | AY165: 0 | AZ165: 0 | BA165: =IF($I165=BA$7,$E165,0) -> 0 | BB165: =IF($K165=ROUND(BA$7*$F165,2),$G165,0) -> 0 | BC165: 0 | BD165: 0 | BE165: 0 | BF165: 0 | BH165: 0 | BL165: 0
A166: МБУ "Эксплуатационно-техническое предприятие" | C166: =C167 -> 6 | D166: 03-4-23.522Б(333) | E166: 0 | F166: 1.5 | G166: 0 | H166: 0 | I166: =SUMIF(Y$14:BA$14,C166,Y$6:BA$6) -> 1733.45 | J166: =IF(H166=0,ROUND(E166*I166,2),ROUND(H166*E166,2)) -> 0 | K166: =ROUND(F166*I166,2) -> 2600.18 | L166: =IF(H166=0,ROUND(ROUND(F166*I166,2)*G166,2),ROUND(G166*H166,2)) -> 0 | M166: =L166-ROUND(G166*I166,2) -> 0 | O166: =J166+L166+N166 -> 0 | Q166: 405.07 | R166: =ROUND(Q166*E166,2) -> 0 | S166: =ROUND(F166*Q166,2) -> 607.61 | T166: =ROUND(S166*G166,2) -> 0 | U166: =T166-ROUND(Q166*G166,2) -> 0 | W166: =R166+T166+V166 -> 0 | AI166: =IF($I166=AI$6,$E166,0) -> 0 | AJ166: =IF($K166=ROUND(AI$6*$F166,2),$G166,0) -> 0 | AK166: =IF($H166>0,AI166,0) -> 0 | AL166: =IF(AK166>0,1,0) -> 0 | AM166: =IF($H166>0,AJ166,0) -> 0 | AN166: =IF(AM166>0,1,0) -> 0 | AO166: =IF($I166=AO$6,$E166,0) -> 0 | AP166: =IF($K166=ROUND(AO$6*$F166,2),$G166,0) -> 0 | AQ166: =IF($H166>0,AO166,0) -> 0 | AR166: =IF(AQ166>0,1,0) -> 0 | AS166: =IF($H166>0,AP166,0) -> 0 | AT166: =IF(AS166>0,1,0) -> 0 | AU166: =IF($I166=AU$6,$E166,0) -> 0 | AV166: =IF($K166=ROUND(AU$6*$F166,2),$G166,0) -> 0 | AW166: =IF($H166>0,AU166,0) -> 0 | AX166: =IF(AW166>0,1,0) -> 0 | AY166: =IF($H166>0,AV166,0) -> 0 | AZ166: =IF(AY166>0,1,0) -> 0 | BA166: =IF($I166=BA$6,$E166,0) -> 0 | BB166: =IF($K166=ROUND(BA$6*$F166,2),$G166,0) -> 0 | BC166: =IF($H166>0,BA166,0) -> 0 | BD166: =IF(BC166>0,1,0) -> 0 | BE166: =IF($H166>0,BB166,0) -> 0 | BF166: =IF(BE166>0,1,0) -> 0 | BH166: 0 | BI166: 0 | BL166: 0
A167: =IF(E167+G167>0,A166,"") ->  | B167: =IF(E167+G167>0,B166,"") ->  | C167: 6 | D167: 03-4-23.522Б(333) | E167: 0 | F167: 1.1 | G167: 0 | H167: 0 | I167: =SUMIF(Y$14:BA$14,C167,Y$6:BA$6) -> 1733.45 | J167: =IF(H167=0,ROUND(E167*I167,2),ROUND(H167*E167,2)) -> 0 | K167: =ROUND(F167*I167,2) -> 1906.8 | L167: =IF(H167=0,ROUND(ROUND(F167*I167,2)*G167,2),ROUND(G167*H167,2)) -> 0 | M167: =L167-ROUND(G167*I167,2) -> 0 | O167: =J167+L167+N167 -> 0 | Q167: 405.07 | R167: =ROUND(Q167*E167,2) -> 0 | S167: =ROUND(F167*Q167,2) -> 445.58 | T167: =ROUND(S167*G167,2) -> 0 | U167: =T167-ROUND(Q167*G167,2) -> 0 | W167: =R167+T167+V167 -> 0 | AI167: =IF($I167=AI$6,$E167,0) -> 0 | AJ167: 0 | AK167: =IF($H167>0,AI167,0) -> 0 | AL167: =IF(AK167>0,1,0) -> 0 | AM167: =IF($H167>0,AJ167,0) -> 0 | AN167: =IF(AM167>0,1,0) -> 0 | AO167: =IF($I167=AO$6,$E167,0) -> 0 | AP167: 0 | AQ167: =IF($H167>0,AO167,0) -> 0 | AR167: =IF(AQ167>0,1,0) -> 0 | AS167: =IF($H167>0,AP167,0) -> 0 | AT167: =IF(AS167>0,1,0) -> 0 | AU167: =IF($I167=AU$6,$E167,0) -> 0 | AV167: 0 | AW167: =IF($H167>0,AU167,0) -> 0 | AX167: =IF(AW167>0,1,0) -> 0 | AY167: =IF($H167>0,AV167,0) -> 0 | AZ167: =IF(AY167>0,1,0) -> 0 | BA167: =IF($I167=BA$6,$E167,0) -> 0 | BB167: 0 | BC167: =IF($H167>0,BA167,0) -> 0 | BD167: =IF(BC167>0,1,0) -> 0 | BE167: =IF($H167>0,BB167,0) -> 0 | BF167: =IF(BE167>0,1,0) -> 0 | BH167: 0 | BL167: 0
A168: =IF(E168+G168>0,A166,"") ->  | B168: =IF(E168+G168>0,B166,"") ->  | C168: =C167 -> 6 | D168: 03-4-23.522Б(333) | E168: 0 | F168: 1.5 | G168: 0 | H168: 0 | I168: =SUMIF(Y$14:BA$14,C168,Y$7:BA$7) -> 0 | J168: 0 | K168: 0 | L168: 0 | M168: 0 | O168: 0 | Q168: 405.07 | R168: 0 | S168: 607.61 | T168: 0 | U168: 0 | W168: 0 | AI168: =IF($I168=AI$7,$E168,0) -> 0 | AJ168: =IF($K168=ROUND(AI$7*$F168,2),$G168,0) -> 0 | AK168: 0 | AL168: 0 | AM168: 0 | AN168: 0 | AO168: =IF($I168=AO$7,$E168,0) -> 0 | AP168: =IF($K168=ROUND(AO$7*$F168,2),$G168,0) -> 0 | AQ168: 0 | AR168: 0 | AS168: 0 | AT168: 0 | AU168: =IF($I168=AU$7,$E168,0) -> 0 | AV168: =IF($K168=ROUND(AU$7*$F168,2),$G168,0) -> 0 | AW168: 0 | AX168: 0 | AY168: 0 | AZ168: 0 | BA168: =IF($I168=BA$7,$E168,0) -> 0 | BB168: =IF($K168=ROUND(BA$7*$F168,2),$G168,0) -> 0 | BC168: 0 | BD168: 0 | BE168: 0 | BF168: 0 | BH168: 0 | BL168: 0
A169: =IF(E169+G169>0,A166,"") ->  | B169: =IF(E169+G169>0,B166,"") ->  | C169: =C167 -> 6 | D169: 03-4-23.522Б(333) | E169: 0 | F169: 1.1 | G169: 0 | H169: 0 | I169: =SUMIF(Y$14:BA$14,C169,Y$7:BA$7) -> 0 | J169: 0 | K169: 0 | L169: 0 | M169: 0 | O169: 0 | Q169: 405.07 | R169: 0 | S169: 445.58 | T169: 0 | U169: 0 | W169: 0 | AI169: =IF($I169=AI$7,$E169,0) -> 0 | AJ169: =IF($K169=ROUND(AI$7*$F169,2),$G169,0) -> 0 | AK169: 0 | AL169: 0 | AM169: 0 | AN169: 0 | AO169: =IF($I169=AO$7,$E169,0) -> 0 | AP169: =IF($K169=ROUND(AO$7*$F169,2),$G169,0) -> 0 | AQ169: 0 | AR169: 0 | AS169: 0 | AT169: 0 | AU169: =IF($I169=AU$7,$E169,0) -> 0 | AV169: =IF($K169=ROUND(AU$7*$F169,2),$G169,0) -> 0 | AW169: 0 | AX169: 0 | AY169: 0 | AZ169: 0 | BA169: =IF($I169=BA$7,$E169,0) -> 0 | BB169: =IF($K169=ROUND(BA$7*$F169,2),$G169,0) -> 0 | BC169: 0 | BD169: 0 | BE169: 0 | BF169: 0 | BH169: 0 | BL169: 0
A170: ООО "Торговый дом "Устьялес" | B170: Вельск, ул.Советская-70 | C170: =C171 -> 6 | D170: 03-4-23.1099(333) | E170: 1.501 | F170: 1.5 | G170: 0 | H170: 1.501 | I170: =SUMIF(Y$14:BA$14,C170,Y$6:BA$6) -> 1733.45 | J170: =IF(H170=0,ROUND(E170*I170,2),ROUND(H170*E170,2)) -> 2.25 | K170: =ROUND(F170*I170,2) -> 2600.18 | L170: =IF(H170=0,ROUND(ROUND(F170*I170,2)*G170,2),ROUND(G170*H170,2)) -> 0 | M170: =L170-ROUND(G170*I170,2) -> 0 | O170: =J170+L170+N170 -> 2.25 | Q170: 405.07 | R170: =ROUND(Q170*E170,2) -> 608.01 | S170: =ROUND(F170*Q170,2) -> 607.61 | T170: =ROUND(S170*G170,2) -> 0 | U170: =T170-ROUND(Q170*G170,2) -> 0 | W170: =R170+T170+V170 -> 608.01 | AI170: =IF($I170=AI$6,$E170,0) -> 0 | AJ170: =IF($K170=ROUND(AI$6*$F170,2),$G170,0) -> 0 | AK170: =IF($H170>0,AI170,0) -> 0 | AL170: =IF(AK170>0,1,0) -> 0 | AM170: =IF($H170>0,AJ170,0) -> 0 | AN170: =IF(AM170>0,1,0) -> 0 | AO170: =IF($I170=AO$6,$E170,0) -> 0 | AP170: =IF($K170=ROUND(AO$6*$F170,2),$G170,0) -> 0 | AQ170: =IF($H170>0,AO170,0) -> 0 | AR170: =IF(AQ170>0,1,0) -> 0 | AS170: =IF($H170>0,AP170,0) -> 0 | AT170: =IF(AS170>0,1,0) -> 0 | AU170: =IF($I170=AU$6,$E170,0) -> 1.501 | AV170: =IF($K170=ROUND(AU$6*$F170,2),$G170,0) -> 0 | AW170: =IF($H170>0,AU170,0) -> 1.501 | AX170: =IF(AW170>0,1,0) -> 1 | AY170: =IF($H170>0,AV170,0) -> 0 | AZ170: =IF(AY170>0,1,0) -> 0 | BA170: =IF($I170=BA$6,$E170,0) -> 0 | BB170: =IF($K170=ROUND(BA$6*$F170,2),$G170,0) -> 0 | BC170: =IF($H170>0,BA170,0) -> 0 | BD170: =IF(BC170>0,1,0) -> 0 | BE170: =IF($H170>0,BB170,0) -> 0 | BF170: =IF(BE170>0,1,0) -> 0 | BH170: 0.001501 | BI170: 3 | BL170: 0
A171: =IF(E171+G171>0,A170,"") ->  | B171: =IF(E171+G171>0,B170,"") ->  | C171: 6 | D171: 03-4-23.1099(333) | E171: 0 | F171: 1.1 | G171: 0 | H171: 0 | I171: =SUMIF(Y$14:BA$14,C171,Y$6:BA$6) -> 1733.45 | J171: =IF(H171=0,ROUND(E171*I171,2),ROUND(H171*E171,2)) -> 0 | K171: =ROUND(F171*I171,2) -> 1906.8 | L171: =IF(H171=0,ROUND(ROUND(F171*I171,2)*G171,2),ROUND(G171*H171,2)) -> 0 | M171: =L171-ROUND(G171*I171,2) -> 0 | O171: =J171+L171+N171 -> 0 | Q171: 405.07 | R171: =ROUND(Q171*E171,2) -> 0 | S171: =ROUND(F171*Q171,2) -> 445.58 | T171: =ROUND(S171*G171,2) -> 0 | U171: =T171-ROUND(Q171*G171,2) -> 0 | W171: =R171+T171+V171 -> 0 | AI171: =IF($I171=AI$6,$E171,0) -> 0 | AJ171: 0 | AK171: =IF($H171>0,AI171,0) -> 0 | AL171: =IF(AK171>0,1,0) -> 0 | AM171: =IF($H171>0,AJ171,0) -> 0 | AN171: =IF(AM171>0,1,0) -> 0 | AO171: =IF($I171=AO$6,$E171,0) -> 0 | AP171: 0 | AQ171: =IF($H171>0,AO171,0) -> 0 | AR171: =IF(AQ171>0,1,0) -> 0 | AS171: =IF($H171>0,AP171,0) -> 0 | AT171: =IF(AS171>0,1,0) -> 0 | AU171: =IF($I171=AU$6,$E171,0) -> 0 | AV171: 0 | AW171: =IF($H171>0,AU171,0) -> 0 | AX171: =IF(AW171>0,1,0) -> 0 | AY171: =IF($H171>0,AV171,0) -> 0 | AZ171: =IF(AY171>0,1,0) -> 0 | BA171: =IF($I171=BA$6,$E171,0) -> 0 | BB171: 0 | BC171: =IF($H171>0,BA171,0) -> 0 | BD171: =IF(BC171>0,1,0) -> 0 | BE171: =IF($H171>0,BB171,0) -> 0 | BF171: =IF(BE171>0,1,0) -> 0 | BH171: 0 | BL171: 0
A172: =IF(E172+G172>0,A170,"") ->  | B172: =IF(E172+G172>0,B170,"") ->  | C172: =C171 -> 6 | D172: 03-4-23.1099(333) | E172: 0 | F172: 1.5 | G172: 0 | H172: 0 | I172: =SUMIF(Y$14:BA$14,C172,Y$7:BA$7) -> 0 | J172: 0 | K172: 0 | L172: 0 | M172: 0 | O172: 0 | Q172: 405.07 | R172: 0 | S172: 607.61 | T172: 0 | U172: 0 | W172: 0 | AI172: =IF($I172=AI$7,$E172,0) -> 0 | AJ172: =IF($K172=ROUND(AI$7*$F172,2),$G172,0) -> 0 | AK172: 0 | AL172: 0 | AM172: 0 | AN172: 0 | AO172: =IF($I172=AO$7,$E172,0) -> 0 | AP172: =IF($K172=ROUND(AO$7*$F172,2),$G172,0) -> 0 | AQ172: 0 | AR172: 0 | AS172: 0 | AT172: 0 | AU172: =IF($I172=AU$7,$E172,0) -> 0 | AV172: =IF($K172=ROUND(AU$7*$F172,2),$G172,0) -> 0 | AW172: 0 | AX172: 0 | AY172: 0 | AZ172: 0 | BA172: =IF($I172=BA$7,$E172,0) -> 0 | BB172: =IF($K172=ROUND(BA$7*$F172,2),$G172,0) -> 0 | BC172: 0 | BD172: 0 | BE172: 0 | BF172: 0 | BH172: 0 | BL172: 0
A173: =IF(E173+G173>0,A170,"") ->  | B173: =IF(E173+G173>0,B170,"") ->  | C173: =C171 -> 6 | D173: 03-4-23.1099(333) | E173: 0 | F173: 1.1 | G173: 0 | H173: 0 | I173: =SUMIF(Y$14:BA$14,C173,Y$7:BA$7) -> 0 | J173: 0 | K173: 0 | L173: 0 | M173: 0 | O173: 0 | Q173: 405.07 | R173: 0 | S173: 445.58 | T173: 0 | U173: 0 | W173: 0 | AI173: =IF($I173=AI$7,$E173,0) -> 0 | AJ173: =IF($K173=ROUND(AI$7*$F173,2),$G173,0) -> 0 | AK173: 0 | AL173: 0 | AM173: 0 | AN173: 0 | AO173: =IF($I173=AO$7,$E173,0) -> 0 | AP173: =IF($K173=ROUND(AO$7*$F173,2),$G173,0) -> 0 | AQ173: 0 | AR173: 0 | AS173: 0 | AT173: 0 | AU173: =IF($I173=AU$7,$E173,0) -> 0 | AV173: =IF($K173=ROUND(AU$7*$F173,2),$G173,0) -> 0 | AW173: 0 | AX173: 0 | AY173: 0 | AZ173: 0 | BA173: =IF($I173=BA$7,$E173,0) -> 0 | BB173: =IF($K173=ROUND(BA$7*$F173,2),$G173,0) -> 0 | BC173: 0 | BD173: 0 | BE173: 0 | BF173: 0 | BH173: 0 | BL173: 0
A174: АО "Тандер" | B174: Вельск | C174: =C175 -> 6 | D174: 03-4-23.525(333) | E174: 0.382 | F174: 1.5 | G174: 0 | H174: 0.382 | I174: =SUMIF(Y$14:BA$14,C174,Y$6:BA$6) -> 1733.45 | J174: =IF(H174=0,ROUND(E174*I174,2),ROUND(H174*E174,2)) -> 0.15 | K174: =ROUND(F174*I174,2) -> 2600.18 | L174: =IF(H174=0,ROUND(ROUND(F174*I174,2)*G174,2),ROUND(G174*H174,2)) -> 0 | M174: =L174-ROUND(G174*I174,2) -> 0 | O174: =J174+L174+N174 -> 0.15 | Q174: 405.07 | R174: =ROUND(Q174*E174,2) -> 154.74 | S174: =ROUND(F174*Q174,2) -> 607.61 | T174: =ROUND(S174*G174,2) -> 0 | U174: =T174-ROUND(Q174*G174,2) -> 0 | W174: =R174+T174+V174 -> 154.74 | AI174: =IF($I174=AI$6,$E174,0) -> 0 | AJ174: =IF($K174=ROUND(AI$6*$F174,2),$G174,0) -> 0 | AK174: =IF($H174>0,AI174,0) -> 0 | AL174: =IF(AK174>0,1,0) -> 0 | AM174: =IF($H174>0,AJ174,0) -> 0 | AN174: =IF(AM174>0,1,0) -> 0 | AO174: =IF($I174=AO$6,$E174,0) -> 0 | AP174: =IF($K174=ROUND(AO$6*$F174,2),$G174,0) -> 0 | AQ174: =IF($H174>0,AO174,0) -> 0 | AR174: =IF(AQ174>0,1,0) -> 0 | AS174: =IF($H174>0,AP174,0) -> 0 | AT174: =IF(AS174>0,1,0) -> 0 | AU174: =IF($I174=AU$6,$E174,0) -> 0.382 | AV174: =IF($K174=ROUND(AU$6*$F174,2),$G174,0) -> 0 | AW174: =IF($H174>0,AU174,0) -> 0.382 | AX174: =IF(AW174>0,1,0) -> 1 | AY174: =IF($H174>0,AV174,0) -> 0 | AZ174: =IF(AY174>0,1,0) -> 0 | BA174: =IF($I174=BA$6,$E174,0) -> 0 | BB174: =IF($K174=ROUND(BA$6*$F174,2),$G174,0) -> 0 | BC174: =IF($H174>0,BA174,0) -> 0 | BD174: =IF(BC174>0,1,0) -> 0 | BE174: =IF($H174>0,BB174,0) -> 0 | BF174: =IF(BE174>0,1,0) -> 0 | BH174: 0.000382 | BI174: 1.3 | BL174: 0
A175: =IF(E175+G175>0,A174,"") ->  | B175: =IF(E175+G175>0,B174,"") ->  | C175: 6 | D175: 03-4-23.525(333) | E175: 0 | F175: 1.1 | G175: 0 | H175: 0 | I175: =SUMIF(Y$14:BA$14,C175,Y$6:BA$6) -> 1733.45 | J175: =IF(H175=0,ROUND(E175*I175,2),ROUND(H175*E175,2)) -> 0 | K175: =ROUND(F175*I175,2) -> 1906.8 | L175: =IF(H175=0,ROUND(ROUND(F175*I175,2)*G175,2),ROUND(G175*H175,2)) -> 0 | M175: =L175-ROUND(G175*I175,2) -> 0 | O175: =J175+L175+N175 -> 0 | Q175: 405.07 | R175: =ROUND(Q175*E175,2) -> 0 | S175: =ROUND(F175*Q175,2) -> 445.58 | T175: =ROUND(S175*G175,2) -> 0 | U175: =T175-ROUND(Q175*G175,2) -> 0 | W175: =R175+T175+V175 -> 0 | AI175: =IF($I175=AI$6,$E175,0) -> 0 | AJ175: 0 | AK175: =IF($H175>0,AI175,0) -> 0 | AL175: =IF(AK175>0,1,0) -> 0 | AM175: =IF($H175>0,AJ175,0) -> 0 | AN175: =IF(AM175>0,1,0) -> 0 | AO175: =IF($I175=AO$6,$E175,0) -> 0 | AP175: 0 | AQ175: =IF($H175>0,AO175,0) -> 0 | AR175: =IF(AQ175>0,1,0) -> 0 | AS175: =IF($H175>0,AP175,0) -> 0 | AT175: =IF(AS175>0,1,0) -> 0 | AU175: =IF($I175=AU$6,$E175,0) -> 0 | AV175: 0 | AW175: =IF($H175>0,AU175,0) -> 0 | AX175: =IF(AW175>0,1,0) -> 0 | AY175: =IF($H175>0,AV175,0) -> 0 | AZ175: =IF(AY175>0,1,0) -> 0 | BA175: =IF($I175=BA$6,$E175,0) -> 0 | BB175: 0 | BC175: =IF($H175>0,BA175,0) -> 0 | BD175: =IF(BC175>0,1,0) -> 0 | BE175: =IF($H175>0,BB175,0) -> 0 | BF175: =IF(BE175>0,1,0) -> 0 | BH175: 0 | BL175: 0
A176: =IF(E176+G176>0,A174,"") ->  | B176: =IF(E176+G176>0,B174,"") ->  | C176: =C175 -> 6 | D176: 03-4-23.525(333) | E176: 0 | F176: 1.5 | G176: 0 | H176: 0 | I176: =SUMIF(Y$14:BA$14,C176,Y$7:BA$7) -> 0 | J176: 0 | K176: 0 | L176: 0 | M176: 0 | O176: 0 | Q176: 405.07 | R176: 0 | S176: 607.61 | T176: 0 | U176: 0 | W176: 0 | AI176: =IF($I176=AI$7,$E176,0) -> 0 | AJ176: =IF($K176=ROUND(AI$7*$F176,2),$G176,0) -> 0 | AK176: 0 | AL176: 0 | AM176: 0 | AN176: 0 | AO176: =IF($I176=AO$7,$E176,0) -> 0 | AP176: =IF($K176=ROUND(AO$7*$F176,2),$G176,0) -> 0 | AQ176: 0 | AR176: 0 | AS176: 0 | AT176: 0 | AU176: =IF($I176=AU$7,$E176,0) -> 0 | AV176: =IF($K176=ROUND(AU$7*$F176,2),$G176,0) -> 0 | AW176: 0 | AX176: 0 | AY176: 0 | AZ176: 0 | BA176: =IF($I176=BA$7,$E176,0) -> 0 | BB176: =IF($K176=ROUND(BA$7*$F176,2),$G176,0) -> 0 | BC176: 0 | BD176: 0 | BE176: 0 | BF176: 0 | BH176: 0 | BL176: 0
A177: =IF(E177+G177>0,A174,"") ->  | B177: =IF(E177+G177>0,B174,"") ->  | C177: =C175 -> 6 | D177: 03-4-23.525(333) | E177: 0 | F177: 1.1 | G177: 0 | H177: 0 | I177: =SUMIF(Y$14:BA$14,C177,Y$7:BA$7) -> 0 | J177: 0 | K177: 0 | L177: 0 | M177: 0 | O177: 0 | Q177: 405.07 | R177: 0 | S177: 445.58 | T177: 0 | U177: 0 | W177: 0 | AI177: =IF($I177=AI$7,$E177,0) -> 0 | AJ177: =IF($K177=ROUND(AI$7*$F177,2),$G177,0) -> 0 | AK177: 0 | AL177: 0 | AM177: 0 | AN177: 0 | AO177: =IF($I177=AO$7,$E177,0) -> 0 | AP177: =IF($K177=ROUND(AO$7*$F177,2),$G177,0) -> 0 | AQ177: 0 | AR177: 0 | AS177: 0 | AT177: 0 | AU177: =IF($I177=AU$7,$E177,0) -> 0 | AV177: =IF($K177=ROUND(AU$7*$F177,2),$G177,0) -> 0 | AW177: 0 | AX177: 0 | AY177: 0 | AZ177: 0 | BA177: =IF($I177=BA$7,$E177,0) -> 0 | BB177: =IF($K177=ROUND(BA$7*$F177,2),$G177,0) -> 0 | BC177: 0 | BD177: 0 | BE177: 0 | BF177: 0 | BH177: 0 | BL177: 0
A178: ИП Евдокимова Анастасия Алексеевна | B178: Вельск, ул.Дзержинского-59 | C178: =C179 -> 6 | D178: 03-4-23.527(333) | E178: 2.099 | F178: 1.5 | G178: 0 | H178: 2.099 | I178: =SUMIF(Y$14:BA$14,C178,Y$6:BA$6) -> 1733.45 | J178: =IF(H178=0,ROUND(E178*I178,2),ROUND(H178*E178,2)) -> 4.41 | K178: =ROUND(F178*I178,2) -> 2600.18 | L178: =IF(H178=0,ROUND(ROUND(F178*I178,2)*G178,2),ROUND(G178*H178,2)) -> 0 | M178: =L178-ROUND(G178*I178,2) -> 0 | O178: =J178+L178+N178 -> 4.41 | Q178: 405.07 | R178: =ROUND(Q178*E178,2) -> 850.24 | S178: =ROUND(F178*Q178,2) -> 607.61 | T178: =ROUND(S178*G178,2) -> 0 | U178: =T178-ROUND(Q178*G178,2) -> 0 | W178: =R178+T178+V178 -> 850.24 | AI178: =IF($I178=AI$6,$E178,0) -> 0 | AJ178: =IF($K178=ROUND(AI$6*$F178,2),$G178,0) -> 0 | AK178: =IF($H178>0,AI178,0) -> 0 | AL178: =IF(AK178>0,1,0) -> 0 | AM178: =IF($H178>0,AJ178,0) -> 0 | AN178: =IF(AM178>0,1,0) -> 0 | AO178: =IF($I178=AO$6,$E178,0) -> 0 | AP178: =IF($K178=ROUND(AO$6*$F178,2),$G178,0) -> 0 | AQ178: =IF($H178>0,AO178,0) -> 0 | AR178: =IF(AQ178>0,1,0) -> 0 | AS178: =IF($H178>0,AP178,0) -> 0 | AT178: =IF(AS178>0,1,0) -> 0 | AU178: =IF($I178=AU$6,$E178,0) -> 2.099 | AV178: =IF($K178=ROUND(AU$6*$F178,2),$G178,0) -> 0 | AW178: =IF($H178>0,AU178,0) -> 2.099 | AX178: =IF(AW178>0,1,0) -> 1 | AY178: =IF($H178>0,AV178,0) -> 0 | AZ178: =IF(AY178>0,1,0) -> 0 | BA178: =IF($I178=BA$6,$E178,0) -> 0 | BB178: =IF($K178=ROUND(BA$6*$F178,2),$G178,0) -> 0 | BC178: =IF($H178>0,BA178,0) -> 0 | BD178: =IF(BC178>0,1,0) -> 0 | BE178: =IF($H178>0,BB178,0) -> 0 | BF178: =IF(BE178>0,1,0) -> 0 | BH178: 0.002099 | BI178: 2.3 | BL178: 0
A179: =IF(E179+G179>0,A178,"") ->  | B179: =IF(E179+G179>0,B178,"") ->  | C179: 6 | D179: 03-4-23.527(333) | E179: 0 | F179: 1.1 | G179: 0 | H179: 0 | I179: =SUMIF(Y$14:BA$14,C179,Y$6:BA$6) -> 1733.45 | J179: =IF(H179=0,ROUND(E179*I179,2),ROUND(H179*E179,2)) -> 0 | K179: =ROUND(F179*I179,2) -> 1906.8 | L179: =IF(H179=0,ROUND(ROUND(F179*I179,2)*G179,2),ROUND(G179*H179,2)) -> 0 | M179: =L179-ROUND(G179*I179,2) -> 0 | O179: =J179+L179+N179 -> 0 | Q179: 405.07 | R179: =ROUND(Q179*E179,2) -> 0 | S179: =ROUND(F179*Q179,2) -> 445.58 | T179: =ROUND(S179*G179,2) -> 0 | U179: =T179-ROUND(Q179*G179,2) -> 0 | W179: =R179+T179+V179 -> 0 | AI179: =IF($I179=AI$6,$E179,0) -> 0 | AJ179: 0 | AK179: =IF($H179>0,AI179,0) -> 0 | AL179: =IF(AK179>0,1,0) -> 0 | AM179: =IF($H179>0,AJ179,0) -> 0 | AN179: =IF(AM179>0,1,0) -> 0 | AO179: =IF($I179=AO$6,$E179,0) -> 0 | AP179: 0 | AQ179: =IF($H179>0,AO179,0) -> 0 | AR179: =IF(AQ179>0,1,0) -> 0 | AS179: =IF($H179>0,AP179,0) -> 0 | AT179: =IF(AS179>0,1,0) -> 0 | AU179: =IF($I179=AU$6,$E179,0) -> 0 | AV179: 0 | AW179: =IF($H179>0,AU179,0) -> 0 | AX179: =IF(AW179>0,1,0) -> 0 | AY179: =IF($H179>0,AV179,0) -> 0 | AZ179: =IF(AY179>0,1,0) -> 0 | BA179: =IF($I179=BA$6,$E179,0) -> 0 | BB179: 0 | BC179: =IF($H179>0,BA179,0) -> 0 | BD179: =IF(BC179>0,1,0) -> 0 | BE179: =IF($H179>0,BB179,0) -> 0 | BF179: =IF(BE179>0,1,0) -> 0 | BH179: 0 | BL179: 0
A180: =IF(E180+G180>0,A178,"") ->  | B180: =IF(E180+G180>0,B178,"") ->  | C180: =C179 -> 6 | D180: 03-4-23.527(333) | E180: 0 | F180: 1.5 | G180: 0 | H180: 0 | I180: =SUMIF(Y$14:BA$14,C180,Y$7:BA$7) -> 0 | J180: 0 | K180: 0 | L180: 0 | M180: 0 | O180: 0 | Q180: 405.07 | R180: 0 | S180: 607.61 | T180: 0 | U180: 0 | W180: 0 | AI180: =IF($I180=AI$7,$E180,0) -> 0 | AJ180: =IF($K180=ROUND(AI$7*$F180,2),$G180,0) -> 0 | AK180: 0 | AL180: 0 | AM180: 0 | AN180: 0 | AO180: =IF($I180=AO$7,$E180,0) -> 0 | AP180: =IF($K180=ROUND(AO$7*$F180,2),$G180,0) -> 0 | AQ180: 0 | AR180: 0 | AS180: 0 | AT180: 0 | AU180: =IF($I180=AU$7,$E180,0) -> 0 | AV180: =IF($K180=ROUND(AU$7*$F180,2),$G180,0) -> 0 | AW180: 0 | AX180: 0 | AY180: 0 | AZ180: 0 | BA180: =IF($I180=BA$7,$E180,0) -> 0 | BB180: =IF($K180=ROUND(BA$7*$F180,2),$G180,0) -> 0 | BC180: 0 | BD180: 0 | BE180: 0 | BF180: 0 | BH180: 0 | BL180: 0
A181: =IF(E181+G181>0,A178,"") ->  | B181: =IF(E181+G181>0,B178,"") ->  | C181: =C179 -> 6 | D181: 03-4-23.527(333) | E181: 0 | F181: 1.1 | G181: 0 | H181: 0 | I181: =SUMIF(Y$14:BA$14,C181,Y$7:BA$7) -> 0 | J181: 0 | K181: 0 | L181: 0 | M181: 0 | O181: 0 | Q181: 405.07 | R181: 0 | S181: 445.58 | T181: 0 | U181: 0 | W181: 0 | AI181: =IF($I181=AI$7,$E181,0) -> 0 | AJ181: =IF($K181=ROUND(AI$7*$F181,2),$G181,0) -> 0 | AK181: 0 | AL181: 0 | AM181: 0 | AN181: 0 | AO181: =IF($I181=AO$7,$E181,0) -> 0 | AP181: =IF($K181=ROUND(AO$7*$F181,2),$G181,0) -> 0 | AQ181: 0 | AR181: 0 | AS181: 0 | AT181: 0 | AU181: =IF($I181=AU$7,$E181,0) -> 0 | AV181: =IF($K181=ROUND(AU$7*$F181,2),$G181,0) -> 0 | AW181: 0 | AX181: 0 | AY181: 0 | AZ181: 0 | BA181: =IF($I181=BA$7,$E181,0) -> 0 | BB181: =IF($K181=ROUND(BA$7*$F181,2),$G181,0) -> 0 | BC181: 0 | BD181: 0 | BE181: 0 | BF181: 0 | BH181: 0 | BL181: 0
A182: ИП Евдокимова Анастасия Алексеевна | B182: Вельск, ул.Революционная-105 | C182: =C183 -> 7 | D182: 03-4-23.527(333) | E182: 0.342 | F182: 1.5 | G182: 0 | H182: 0.342 | I182: =SUMIF(Y$14:BA$14,C182,Y$6:BA$6) -> 2166.8 | J182: =IF(H182=0,ROUND(E182*I182,2),ROUND(H182*E182,2)) -> 0.12 | K182: =ROUND(F182*I182,2) -> 3250.2 | L182: =IF(H182=0,ROUND(ROUND(F182*I182,2)*G182,2),ROUND(G182*H182,2)) -> 0 | M182: =L182-ROUND(G182*I182,2) -> 0 | O182: =J182+L182+N182 -> 0.12 | Q182: 405.07 | R182: =ROUND(Q182*E182,2) -> 138.53 | S182: =ROUND(F182*Q182,2) -> 607.61 | T182: =ROUND(S182*G182,2) -> 0 | U182: =T182-ROUND(Q182*G182,2) -> 0 | W182: =R182+T182+V182 -> 138.53 | AI182: =IF($I182=AI$6,$E182,0) -> 0 | AJ182: =IF($K182=ROUND(AI$6*$F182,2),$G182,0) -> 0 | AK182: =IF($H182>0,AI182,0) -> 0 | AL182: =IF(AK182>0,1,0) -> 0 | AM182: =IF($H182>0,AJ182,0) -> 0 | AN182: =IF(AM182>0,1,0) -> 0 | AO182: =IF($I182=AO$6,$E182,0) -> 0 | AP182: =IF($K182=ROUND(AO$6*$F182,2),$G182,0) -> 0 | AQ182: =IF($H182>0,AO182,0) -> 0 | AR182: =IF(AQ182>0,1,0) -> 0 | AS182: =IF($H182>0,AP182,0) -> 0 | AT182: =IF(AS182>0,1,0) -> 0 | AU182: =IF($I182=AU$6,$E182,0) -> 0 | AV182: =IF($K182=ROUND(AU$6*$F182,2),$G182,0) -> 0 | AW182: =IF($H182>0,AU182,0) -> 0 | AX182: =IF(AW182>0,1,0) -> 0 | AY182: =IF($H182>0,AV182,0) -> 0 | AZ182: =IF(AY182>0,1,0) -> 0 | BA182: =IF($I182=BA$6,$E182,0) -> 0.342 | BB182: =IF($K182=ROUND(BA$6*$F182,2),$G182,0) -> 0 | BC182: =IF($H182>0,BA182,0) -> 0.342 | BD182: =IF(BC182>0,1,0) -> 1 | BE182: =IF($H182>0,BB182,0) -> 0 | BF182: =IF(BE182>0,1,0) -> 0 | BH182: 0.000342 | BI182: 1 | BL182: 0
A183: =IF(E183+G183>0,A182,"") ->  | B183: =IF(E183+G183>0,B182,"") ->  | C183: 7 | D183: 03-4-23.527(333) | E183: 0 | F183: 1.1 | G183: 0 | H183: 0 | I183: =SUMIF(Y$14:BA$14,C183,Y$6:BA$6) -> 2166.8 | J183: =IF(H183=0,ROUND(E183*I183,2),ROUND(H183*E183,2)) -> 0 | K183: =ROUND(F183*I183,2) -> 2383.48 | L183: =IF(H183=0,ROUND(ROUND(F183*I183,2)*G183,2),ROUND(G183*H183,2)) -> 0 | M183: =L183-ROUND(G183*I183,2) -> 0 | O183: =J183+L183+N183 -> 0 | Q183: 405.07 | R183: =ROUND(Q183*E183,2) -> 0 | S183: =ROUND(F183*Q183,2) -> 445.58 | T183: =ROUND(S183*G183,2) -> 0 | U183: =T183-ROUND(Q183*G183,2) -> 0 | W183: =R183+T183+V183 -> 0 | AI183: =IF($I183=AI$6,$E183,0) -> 0 | AJ183: 0 | AK183: =IF($H183>0,AI183,0) -> 0 | AL183: =IF(AK183>0,1,0) -> 0 | AM183: =IF($H183>0,AJ183,0) -> 0 | AN183: =IF(AM183>0,1,0) -> 0 | AO183: =IF($I183=AO$6,$E183,0) -> 0 | AP183: 0 | AQ183: =IF($H183>0,AO183,0) -> 0 | AR183: =IF(AQ183>0,1,0) -> 0 | AS183: =IF($H183>0,AP183,0) -> 0 | AT183: =IF(AS183>0,1,0) -> 0 | AU183: =IF($I183=AU$6,$E183,0) -> 0 | AV183: 0 | AW183: =IF($H183>0,AU183,0) -> 0 | AX183: =IF(AW183>0,1,0) -> 0 | AY183: =IF($H183>0,AV183,0) -> 0 | AZ183: =IF(AY183>0,1,0) -> 0 | BA183: =IF($I183=BA$6,$E183,0) -> 0 | BB183: 0 | BC183: =IF($H183>0,BA183,0) -> 0 | BD183: =IF(BC183>0,1,0) -> 0 | BE183: =IF($H183>0,BB183,0) -> 0 | BF183: =IF(BE183>0,1,0) -> 0 | BH183: 0 | BL183: 0
A184: =IF(E184+G184>0,A182,"") ->  | B184: =IF(E184+G184>0,B182,"") ->  | C184: =C183 -> 7 | D184: 03-4-23.527(333) | E184: 0 | F184: 1.5 | G184: 0 | H184: 0 | I184: =SUMIF(Y$14:BA$14,C184,Y$7:BA$7) -> 0 | J184: 0 | K184: 0 | L184: 0 | M184: 0 | O184: 0 | Q184: 405.07 | R184: 0 | S184: 607.61 | T184: 0 | U184: 0 | W184: 0 | AI184: =IF($I184=AI$7,$E184,0) -> 0 | AJ184: =IF($K184=ROUND(AI$7*$F184,2),$G184,0) -> 0 | AK184: 0 | AL184: 0 | AM184: 0 | AN184: 0 | AO184: =IF($I184=AO$7,$E184,0) -> 0 | AP184: =IF($K184=ROUND(AO$7*$F184,2),$G184,0) -> 0 | AQ184: 0 | AR184: 0 | AS184: 0 | AT184: 0 | AU184: =IF($I184=AU$7,$E184,0) -> 0 | AV184: =IF($K184=ROUND(AU$7*$F184,2),$G184,0) -> 0 | AW184: 0 | AX184: 0 | AY184: 0 | AZ184: 0 | BA184: =IF($I184=BA$7,$E184,0) -> 0 | BB184: =IF($K184=ROUND(BA$7*$F184,2),$G184,0) -> 0 | BC184: 0 | BD184: 0 | BE184: 0 | BF184: 0 | BH184: 0 | BL184: 0
A185: =IF(E185+G185>0,A182,"") ->  | B185: =IF(E185+G185>0,B182,"") ->  | C185: =C183 -> 7 | D185: 03-4-23.527(333) | E185: 0 | F185: 1.1 | G185: 0 | H185: 0 | I185: =SUMIF(Y$14:BA$14,C185,Y$7:BA$7) -> 0 | J185: 0 | K185: 0 | L185: 0 | M185: 0 | O185: 0 | Q185: 405.07 | R185: 0 | S185: 445.58 | T185: 0 | U185: 0 | W185: 0 | AI185: =IF($I185=AI$7,$E185,0) -> 0 | AJ185: =IF($K185=ROUND(AI$7*$F185,2),$G185,0) -> 0 | AK185: 0 | AL185: 0 | AM185: 0 | AN185: 0 | AO185: =IF($I185=AO$7,$E185,0) -> 0 | AP185: =IF($K185=ROUND(AO$7*$F185,2),$G185,0) -> 0 | AQ185: 0 | AR185: 0 | AS185: 0 | AT185: 0 | AU185: =IF($I185=AU$7,$E185,0) -> 0 | AV185: =IF($K185=ROUND(AU$7*$F185,2),$G185,0) -> 0 | AW185: 0 | AX185: 0 | AY185: 0 | AZ185: 0 | BA185: =IF($I185=BA$7,$E185,0) -> 0 | BB185: =IF($K185=ROUND(BA$7*$F185,2),$G185,0) -> 0 | BC185: 0 | BD185: 0 | BE185: 0 | BF185: 0 | BH185: 0 | BL185: 0
A186: ИП Любарский Юрий Алексеевич | C186: =C187 -> 6 | D186: 03-4-23.528(333) | E186: 2.43 | F186: 1.5 | G186: 0 | H186: 2.43 | I186: =SUMIF(Y$14:BA$14,C186,Y$6:BA$6) -> 1733.45 | J186: =IF(H186=0,ROUND(E186*I186,2),ROUND(H186*E186,2)) -> 5.9 | K186: =ROUND(F186*I186,2) -> 2600.18 | L186: =IF(H186=0,ROUND(ROUND(F186*I186,2)*G186,2),ROUND(G186*H186,2)) -> 0 | M186: =L186-ROUND(G186*I186,2) -> 0 | O186: =J186+L186+N186 -> 5.9 | Q186: 405.07 | R186: =ROUND(Q186*E186,2) -> 984.32 | S186: =ROUND(F186*Q186,2) -> 607.61 | T186: =ROUND(S186*G186,2) -> 0 | U186: =T186-ROUND(Q186*G186,2) -> 0 | W186: =R186+T186+V186 -> 984.32 | AI186: =IF($I186=AI$6,$E186,0) -> 0 | AJ186: =IF($K186=ROUND(AI$6*$F186,2),$G186,0) -> 0 | AK186: =IF($H186>0,AI186,0) -> 0 | AL186: =IF(AK186>0,1,0) -> 0 | AM186: =IF($H186>0,AJ186,0) -> 0 | AN186: =IF(AM186>0,1,0) -> 0 | AO186: =IF($I186=AO$6,$E186,0) -> 0 | AP186: =IF($K186=ROUND(AO$6*$F186,2),$G186,0) -> 0 | AQ186: =IF($H186>0,AO186,0) -> 0 | AR186: =IF(AQ186>0,1,0) -> 0 | AS186: =IF($H186>0,AP186,0) -> 0 | AT186: =IF(AS186>0,1,0) -> 0 | AU186: =IF($I186=AU$6,$E186,0) -> 2.43 | AV186: =IF($K186=ROUND(AU$6*$F186,2),$G186,0) -> 0 | AW186: =IF($H186>0,AU186,0) -> 2.43 | AX186: =IF(AW186>0,1,0) -> 1 | AY186: =IF($H186>0,AV186,0) -> 0 | AZ186: =IF(AY186>0,1,0) -> 0 | BA186: =IF($I186=BA$6,$E186,0) -> 0 | BB186: =IF($K186=ROUND(BA$6*$F186,2),$G186,0) -> 0 | BC186: =IF($H186>0,BA186,0) -> 0 | BD186: =IF(BC186>0,1,0) -> 0 | BE186: =IF($H186>0,BB186,0) -> 0 | BF186: =IF(BE186>0,1,0) -> 0 | BH186: 0.00243 | BI186: 3.5 | BL186: 0
A187: =IF(E187+G187>0,A186,"") ->  | B187: =IF(E187+G187>0,B186,"") ->  | C187: 6 | D187: 03-4-23.528(333) | E187: 0 | F187: 1.1 | G187: 0 | H187: 0 | I187: =SUMIF(Y$14:BA$14,C187,Y$6:BA$6) -> 1733.45 | J187: =IF(H187=0,ROUND(E187*I187,2),ROUND(H187*E187,2)) -> 0 | K187: =ROUND(F187*I187,2) -> 1906.8 | L187: =IF(H187=0,ROUND(ROUND(F187*I187,2)*G187,2),ROUND(G187*H187,2)) -> 0 | M187: =L187-ROUND(G187*I187,2) -> 0 | O187: =J187+L187+N187 -> 0 | Q187: 405.07 | R187: =ROUND(Q187*E187,2) -> 0 | S187: =ROUND(F187*Q187,2) -> 445.58 | T187: =ROUND(S187*G187,2) -> 0 | U187: =T187-ROUND(Q187*G187,2) -> 0 | W187: =R187+T187+V187 -> 0 | AI187: =IF($I187=AI$6,$E187,0) -> 0 | AJ187: 0 | AK187: =IF($H187>0,AI187,0) -> 0 | AL187: =IF(AK187>0,1,0) -> 0 | AM187: =IF($H187>0,AJ187,0) -> 0 | AN187: =IF(AM187>0,1,0) -> 0 | AO187: =IF($I187=AO$6,$E187,0) -> 0 | AP187: 0 | AQ187: =IF($H187>0,AO187,0) -> 0 | AR187: =IF(AQ187>0,1,0) -> 0 | AS187: =IF($H187>0,AP187,0) -> 0 | AT187: =IF(AS187>0,1,0) -> 0 | AU187: =IF($I187=AU$6,$E187,0) -> 0 | AV187: 0 | AW187: =IF($H187>0,AU187,0) -> 0 | AX187: =IF(AW187>0,1,0) -> 0 | AY187: =IF($H187>0,AV187,0) -> 0 | AZ187: =IF(AY187>0,1,0) -> 0 | BA187: =IF($I187=BA$6,$E187,0) -> 0 | BB187: 0 | BC187: =IF($H187>0,BA187,0) -> 0 | BD187: =IF(BC187>0,1,0) -> 0 | BE187: =IF($H187>0,BB187,0) -> 0 | BF187: =IF(BE187>0,1,0) -> 0 | BH187: 0 | BL187: 0
A188: =IF(E188+G188>0,A186,"") ->  | B188: =IF(E188+G188>0,B186,"") ->  | C188: =C187 -> 6 | D188: 03-4-23.528(333) | E188: 0 | F188: 1.5 | G188: 0 | H188: 0 | I188: =SUMIF(Y$14:BA$14,C188,Y$7:BA$7) -> 0 | J188: 0 | K188: 0 | L188: 0 | M188: 0 | O188: 0 | Q188: 405.07 | R188: 0 | S188: 607.61 | T188: 0 | U188: 0 | W188: 0 | AI188: =IF($I188=AI$7,$E188,0) -> 0 | AJ188: =IF($K188=ROUND(AI$7*$F188,2),$G188,0) -> 0 | AK188: 0 | AL188: 0 | AM188: 0 | AN188: 0 | AO188: =IF($I188=AO$7,$E188,0) -> 0 | AP188: =IF($K188=ROUND(AO$7*$F188,2),$G188,0) -> 0 | AQ188: 0 | AR188: 0 | AS188: 0 | AT188: 0 | AU188: =IF($I188=AU$7,$E188,0) -> 0 | AV188: =IF($K188=ROUND(AU$7*$F188,2),$G188,0) -> 0 | AW188: 0 | AX188: 0 | AY188: 0 | AZ188: 0 | BA188: =IF($I188=BA$7,$E188,0) -> 0 | BB188: =IF($K188=ROUND(BA$7*$F188,2),$G188,0) -> 0 | BC188: 0 | BD188: 0 | BE188: 0 | BF188: 0 | BH188: 0 | BL188: 0
A189: =IF(E189+G189>0,A186,"") ->  | B189: =IF(E189+G189>0,B186,"") ->  | C189: =C187 -> 6 | D189: 03-4-23.528(333) | E189: 0 | F189: 1.1 | G189: 0 | H189: 0 | I189: =SUMIF(Y$14:BA$14,C189,Y$7:BA$7) -> 0 | J189: 0 | K189: 0 | L189: 0 | M189: 0 | O189: 0 | Q189: 405.07 | R189: 0 | S189: 445.58 | T189: 0 | U189: 0 | W189: 0 | AI189: =IF($I189=AI$7,$E189,0) -> 0 | AJ189: =IF($K189=ROUND(AI$7*$F189,2),$G189,0) -> 0 | AK189: 0 | AL189: 0 | AM189: 0 | AN189: 0 | AO189: =IF($I189=AO$7,$E189,0) -> 0 | AP189: =IF($K189=ROUND(AO$7*$F189,2),$G189,0) -> 0 | AQ189: 0 | AR189: 0 | AS189: 0 | AT189: 0 | AU189: =IF($I189=AU$7,$E189,0) -> 0 | AV189: =IF($K189=ROUND(AU$7*$F189,2),$G189,0) -> 0 | AW189: 0 | AX189: 0 | AY189: 0 | AZ189: 0 | BA189: =IF($I189=BA$7,$E189,0) -> 0 | BB189: =IF($K189=ROUND(BA$7*$F189,2),$G189,0) -> 0 | BC189: 0 | BD189: 0 | BE189: 0 | BF189: 0 | BH189: 0 | BL189: 0
A190: ООО "Наше Пиво" | B190: Вельск | C190: =C191 -> 6 | D190: 03-4-23.529(333) | E190: 3.691 | F190: 1.5 | G190: 0 | H190: 3.691 | I190: =SUMIF(Y$14:BA$14,C190,Y$6:BA$6) -> 1733.45 | J190: =IF(H190=0,ROUND(E190*I190,2),ROUND(H190*E190,2)) -> 13.62 | K190: =ROUND(F190*I190,2) -> 2600.18 | L190: =IF(H190=0,ROUND(ROUND(F190*I190,2)*G190,2),ROUND(G190*H190,2)) -> 0 | M190: =L190-ROUND(G190*I190,2) -> 0 | O190: =J190+L190+N190 -> 13.62 | Q190: 405.07 | R190: =ROUND(Q190*E190,2) -> 1495.11 | S190: =ROUND(F190*Q190,2) -> 607.61 | T190: =ROUND(S190*G190,2) -> 0 | U190: =T190-ROUND(Q190*G190,2) -> 0 | W190: =R190+T190+V190 -> 1495.11 | AI190: =IF($I190=AI$6,$E190,0) -> 0 | AJ190: =IF($K190=ROUND(AI$6*$F190,2),$G190,0) -> 0 | AK190: =IF($H190>0,AI190,0) -> 0 | AL190: =IF(AK190>0,1,0) -> 0 | AM190: =IF($H190>0,AJ190,0) -> 0 | AN190: =IF(AM190>0,1,0) -> 0 | AO190: =IF($I190=AO$6,$E190,0) -> 0 | AP190: =IF($K190=ROUND(AO$6*$F190,2),$G190,0) -> 0 | AQ190: =IF($H190>0,AO190,0) -> 0 | AR190: =IF(AQ190>0,1,0) -> 0 | AS190: =IF($H190>0,AP190,0) -> 0 | AT190: =IF(AS190>0,1,0) -> 0 | AU190: =IF($I190=AU$6,$E190,0) -> 3.691 | AV190: =IF($K190=ROUND(AU$6*$F190,2),$G190,0) -> 0 | AW190: =IF($H190>0,AU190,0) -> 3.691 | AX190: =IF(AW190>0,1,0) -> 1 | AY190: =IF($H190>0,AV190,0) -> 0 | AZ190: =IF(AY190>0,1,0) -> 0 | BA190: =IF($I190=BA$6,$E190,0) -> 0 | BB190: =IF($K190=ROUND(BA$6*$F190,2),$G190,0) -> 0 | BC190: =IF($H190>0,BA190,0) -> 0 | BD190: =IF(BC190>0,1,0) -> 0 | BE190: =IF($H190>0,BB190,0) -> 0 | BF190: =IF(BE190>0,1,0) -> 0 | BH190: 0.003691 | BI190: 5.2 | BL190: 0
A191: =IF(E191+G191>0,A190,"") ->  | B191: =IF(E191+G191>0,B190,"") ->  | C191: 6 | D191: 03-4-23.529(333) | E191: 0 | F191: 1.1 | G191: 0 | H191: 0 | I191: =SUMIF(Y$14:BA$14,C191,Y$6:BA$6) -> 1733.45 | J191: =IF(H191=0,ROUND(E191*I191,2),ROUND(H191*E191,2)) -> 0 | K191: =ROUND(F191*I191,2) -> 1906.8 | L191: =IF(H191=0,ROUND(ROUND(F191*I191,2)*G191,2),ROUND(G191*H191,2)) -> 0 | M191: =L191-ROUND(G191*I191,2) -> 0 | O191: =J191+L191+N191 -> 0 | Q191: 405.07 | R191: =ROUND(Q191*E191,2) -> 0 | S191: =ROUND(F191*Q191,2) -> 445.58 | T191: =ROUND(S191*G191,2) -> 0 | U191: =T191-ROUND(Q191*G191,2) -> 0 | W191: =R191+T191+V191 -> 0 | AI191: =IF($I191=AI$6,$E191,0) -> 0 | AJ191: 0 | AK191: =IF($H191>0,AI191,0) -> 0 | AL191: =IF(AK191>0,1,0) -> 0 | AM191: =IF($H191>0,AJ191,0) -> 0 | AN191: =IF(AM191>0,1,0) -> 0 | AO191: =IF($I191=AO$6,$E191,0) -> 0 | AP191: 0 | AQ191: =IF($H191>0,AO191,0) -> 0 | AR191: =IF(AQ191>0,1,0) -> 0 | AS191: =IF($H191>0,AP191,0) -> 0 | AT191: =IF(AS191>0,1,0) -> 0 | AU191: =IF($I191=AU$6,$E191,0) -> 0 | AV191: 0 | AW191: =IF($H191>0,AU191,0) -> 0 | AX191: =IF(AW191>0,1,0) -> 0 | AY191: =IF($H191>0,AV191,0) -> 0 | AZ191: =IF(AY191>0,1,0) -> 0 | BA191: =IF($I191=BA$6,$E191,0) -> 0 | BB191: 0 | BC191: =IF($H191>0,BA191,0) -> 0 | BD191: =IF(BC191>0,1,0) -> 0 | BE191: =IF($H191>0,BB191,0) -> 0 | BF191: =IF(BE191>0,1,0) -> 0 | BH191: 0 | BL191: 0
A192: =IF(E192+G192>0,A190,"") ->  | B192: =IF(E192+G192>0,B190,"") ->  | C192: =C191 -> 6 | D192: 03-4-23.529(333) | E192: 0 | F192: 1.5 | G192: 0 | H192: 0 | I192: =SUMIF(Y$14:BA$14,C192,Y$7:BA$7) -> 0 | J192: 0 | K192: 0 | L192: 0 | M192: 0 | O192: 0 | Q192: 405.07 | R192: 0 | S192: 607.61 | T192: 0 | U192: 0 | W192: 0 | AI192: =IF($I192=AI$7,$E192,0) -> 0 | AJ192: =IF($K192=ROUND(AI$7*$F192,2),$G192,0) -> 0 | AK192: 0 | AL192: 0 | AM192: 0 | AN192: 0 | AO192: =IF($I192=AO$7,$E192,0) -> 0 | AP192: =IF($K192=ROUND(AO$7*$F192,2),$G192,0) -> 0 | AQ192: 0 | AR192: 0 | AS192: 0 | AT192: 0 | AU192: =IF($I192=AU$7,$E192,0) -> 0 | AV192: =IF($K192=ROUND(AU$7*$F192,2),$G192,0) -> 0 | AW192: 0 | AX192: 0 | AY192: 0 | AZ192: 0 | BA192: =IF($I192=BA$7,$E192,0) -> 0 | BB192: =IF($K192=ROUND(BA$7*$F192,2),$G192,0) -> 0 | BC192: 0 | BD192: 0 | BE192: 0 | BF192: 0 | BH192: 0 | BL192: 0
A193: =IF(E193+G193>0,A190,"") ->  | B193: =IF(E193+G193>0,B190,"") ->  | C193: =C191 -> 6 | D193: 03-4-23.529(333) | E193: 0 | F193: 1.1 | G193: 0 | H193: 0 | I193: =SUMIF(Y$14:BA$14,C193,Y$7:BA$7) -> 0 | J193: 0 | K193: 0 | L193: 0 | M193: 0 | O193: 0 | Q193: 405.07 | R193: 0 | S193: 445.58 | T193: 0 | U193: 0 | W193: 0 | AI193: =IF($I193=AI$7,$E193,0) -> 0 | AJ193: =IF($K193=ROUND(AI$7*$F193,2),$G193,0) -> 0 | AK193: 0 | AL193: 0 | AM193: 0 | AN193: 0 | AO193: =IF($I193=AO$7,$E193,0) -> 0 | AP193: =IF($K193=ROUND(AO$7*$F193,2),$G193,0) -> 0 | AQ193: 0 | AR193: 0 | AS193: 0 | AT193: 0 | AU193: =IF($I193=AU$7,$E193,0) -> 0 | AV193: =IF($K193=ROUND(AU$7*$F193,2),$G193,0) -> 0 | AW193: 0 | AX193: 0 | AY193: 0 | AZ193: 0 | BA193: =IF($I193=BA$7,$E193,0) -> 0 | BB193: =IF($K193=ROUND(BA$7*$F193,2),$G193,0) -> 0 | BC193: 0 | BD193: 0 | BE193: 0 | BF193: 0 | BH193: 0 | BL193: 0
A194: ООО "Фрегат" | C194: =C195 -> 6 | D194: 03-4-23.531(333) | E194: 3.014 | F194: 1.5 | G194: 0 | H194: 3.014 | I194: =SUMIF(Y$14:BA$14,C194,Y$6:BA$6) -> 1733.45 | J194: =IF(H194=0,ROUND(E194*I194,2),ROUND(H194*E194,2)) -> 9.08 | K194: =ROUND(F194*I194,2) -> 2600.18 | L194: =IF(H194=0,ROUND(ROUND(F194*I194,2)*G194,2),ROUND(G194*H194,2)) -> 0 | M194: =L194-ROUND(G194*I194,2) -> 0 | O194: =J194+L194+N194 -> 9.08 | Q194: 405.07 | R194: =ROUND(Q194*E194,2) -> 1220.88 | S194: =ROUND(F194*Q194,2) -> 607.61 | T194: =ROUND(S194*G194,2) -> 0 | U194: =T194-ROUND(Q194*G194,2) -> 0 | W194: =R194+T194+V194 -> 1220.88 | AI194: =IF($I194=AI$6,$E194,0) -> 0 | AJ194: =IF($K194=ROUND(AI$6*$F194,2),$G194,0) -> 0 | AK194: =IF($H194>0,AI194,0) -> 0 | AL194: =IF(AK194>0,1,0) -> 0 | AM194: =IF($H194>0,AJ194,0) -> 0 | AN194: =IF(AM194>0,1,0) -> 0 | AO194: =IF($I194=AO$6,$E194,0) -> 0 | AP194: =IF($K194=ROUND(AO$6*$F194,2),$G194,0) -> 0 | AQ194: =IF($H194>0,AO194,0) -> 0 | AR194: =IF(AQ194>0,1,0) -> 0 | AS194: =IF($H194>0,AP194,0) -> 0 | AT194: =IF(AS194>0,1,0) -> 0 | AU194: =IF($I194=AU$6,$E194,0) -> 3.014 | AV194: =IF($K194=ROUND(AU$6*$F194,2),$G194,0) -> 0 | AW194: =IF($H194>0,AU194,0) -> 3.014 | AX194: =IF(AW194>0,1,0) -> 1 | AY194: =IF($H194>0,AV194,0) -> 0 | AZ194: =IF(AY194>0,1,0) -> 0 | BA194: =IF($I194=BA$6,$E194,0) -> 0 | BB194: =IF($K194=ROUND(BA$6*$F194,2),$G194,0) -> 0 | BC194: =IF($H194>0,BA194,0) -> 0 | BD194: =IF(BC194>0,1,0) -> 0 | BE194: =IF($H194>0,BB194,0) -> 0 | BF194: =IF(BE194>0,1,0) -> 0 | BH194: 0.003014 | BI194: 5.5 | BL194: 0
A195: =IF(E195+G195>0,A194,"") ->  | B195: =IF(E195+G195>0,B194,"") ->  | C195: 6 | D195: 03-4-23.531(333) | E195: 0 | F195: 1.1 | G195: 0 | H195: 0 | I195: =SUMIF(Y$14:BA$14,C195,Y$6:BA$6) -> 1733.45 | J195: =IF(H195=0,ROUND(E195*I195,2),ROUND(H195*E195,2)) -> 0 | K195: =ROUND(F195*I195,2) -> 1906.8 | L195: =IF(H195=0,ROUND(ROUND(F195*I195,2)*G195,2),ROUND(G195*H195,2)) -> 0 | M195: =L195-ROUND(G195*I195,2) -> 0 | O195: =J195+L195+N195 -> 0 | Q195: 405.07 | R195: =ROUND(Q195*E195,2) -> 0 | S195: =ROUND(F195*Q195,2) -> 445.58 | T195: =ROUND(S195*G195,2) -> 0 | U195: =T195-ROUND(Q195*G195,2) -> 0 | W195: =R195+T195+V195 -> 0 | AI195: =IF($I195=AI$6,$E195,0) -> 0 | AJ195: 0 | AK195: =IF($H195>0,AI195,0) -> 0 | AL195: =IF(AK195>0,1,0) -> 0 | AM195: =IF($H195>0,AJ195,0) -> 0 | AN195: =IF(AM195>0,1,0) -> 0 | AO195: =IF($I195=AO$6,$E195,0) -> 0 | AP195: 0 | AQ195: =IF($H195>0,AO195,0) -> 0 | AR195: =IF(AQ195>0,1,0) -> 0 | AS195: =IF($H195>0,AP195,0) -> 0 | AT195: =IF(AS195>0,1,0) -> 0 | AU195: =IF($I195=AU$6,$E195,0) -> 0 | AV195: 0 | AW195: =IF($H195>0,AU195,0) -> 0 | AX195: =IF(AW195>0,1,0) -> 0 | AY195: =IF($H195>0,AV195,0) -> 0 | AZ195: =IF(AY195>0,1,0) -> 0 | BA195: =IF($I195=BA$6,$E195,0) -> 0 | BB195: 0 | BC195: =IF($H195>0,BA195,0) -> 0 | BD195: =IF(BC195>0,1,0) -> 0 | BE195: =IF($H195>0,BB195,0) -> 0 | BF195: =IF(BE195>0,1,0) -> 0 | BH195: 0 | BL195: 0
A196: =IF(E196+G196>0,A194,"") ->  | B196: =IF(E196+G196>0,B194,"") ->  | C196: =C195 -> 6 | D196: 03-4-23.531(333) | E196: 0 | F196: 1.5 | G196: 0 | H196: 0 | I196: =SUMIF(Y$14:BA$14,C196,Y$7:BA$7) -> 0 | J196: 0 | K196: 0 | L196: 0 | M196: 0 | O196: 0 | Q196: 405.07 | R196: 0 | S196: 607.61 | T196: 0 | U196: 0 | W196: 0 | AI196: =IF($I196=AI$7,$E196,0) -> 0 | AJ196: =IF($K196=ROUND(AI$7*$F196,2),$G196,0) -> 0 | AK196: 0 | AL196: 0 | AM196: 0 | AN196: 0 | AO196: =IF($I196=AO$7,$E196,0) -> 0 | AP196: =IF($K196=ROUND(AO$7*$F196,2),$G196,0) -> 0 | AQ196: 0 | AR196: 0 | AS196: 0 | AT196: 0 | AU196: =IF($I196=AU$7,$E196,0) -> 0 | AV196: =IF($K196=ROUND(AU$7*$F196,2),$G196,0) -> 0 | AW196: 0 | AX196: 0 | AY196: 0 | AZ196: 0 | BA196: =IF($I196=BA$7,$E196,0) -> 0 | BB196: =IF($K196=ROUND(BA$7*$F196,2),$G196,0) -> 0 | BC196: 0 | BD196: 0 | BE196: 0 | BF196: 0 | BH196: 0 | BL196: 0
A197: =IF(E197+G197>0,A194,"") ->  | B197: =IF(E197+G197>0,B194,"") ->  | C197: =C195 -> 6 | D197: 03-4-23.531(333) | E197: 0 | F197: 1.1 | G197: 0 | H197: 0 | I197: =SUMIF(Y$14:BA$14,C197,Y$7:BA$7) -> 0 | J197: 0 | K197: 0 | L197: 0 | M197: 0 | O197: 0 | Q197: 405.07 | R197: 0 | S197: 445.58 | T197: 0 | U197: 0 | W197: 0 | AI197: =IF($I197=AI$7,$E197,0) -> 0 | AJ197: =IF($K197=ROUND(AI$7*$F197,2),$G197,0) -> 0 | AK197: 0 | AL197: 0 | AM197: 0 | AN197: 0 | AO197: =IF($I197=AO$7,$E197,0) -> 0 | AP197: =IF($K197=ROUND(AO$7*$F197,2),$G197,0) -> 0 | AQ197: 0 | AR197: 0 | AS197: 0 | AT197: 0 | AU197: =IF($I197=AU$7,$E197,0) -> 0 | AV197: =IF($K197=ROUND(AU$7*$F197,2),$G197,0) -> 0 | AW197: 0 | AX197: 0 | AY197: 0 | AZ197: 0 | BA197: =IF($I197=BA$7,$E197,0) -> 0 | BB197: =IF($K197=ROUND(BA$7*$F197,2),$G197,0) -> 0 | BC197: 0 | BD197: 0 | BE197: 0 | BF197: 0 | BH197: 0 | BL197: 0
A198: ИП Онучин Евгений Борисович | C198: =C199 -> 6 | D198: 03-4-23.538(333) | E198: 1.603 | F198: 1.5 | G198: 0 | H198: 1.603 | I198: =SUMIF(Y$14:BA$14,C198,Y$6:BA$6) -> 1733.45 | J198: =IF(H198=0,ROUND(E198*I198,2),ROUND(H198*E198,2)) -> 2.57 | K198: =ROUND(F198*I198,2) -> 2600.18 | L198: =IF(H198=0,ROUND(ROUND(F198*I198,2)*G198,2),ROUND(G198*H198,2)) -> 0 | M198: =L198-ROUND(G198*I198,2) -> 0 | O198: =J198+L198+N198 -> 2.57 | Q198: 405.07 | R198: =ROUND(Q198*E198,2) -> 649.33 | S198: =ROUND(F198*Q198,2) -> 607.61 | T198: =ROUND(S198*G198,2) -> 0 | U198: =T198-ROUND(Q198*G198,2) -> 0 | W198: =R198+T198+V198 -> 649.33 | AI198: =IF($I198=AI$6,$E198,0) -> 0 | AJ198: =IF($K198=ROUND(AI$6*$F198,2),$G198,0) -> 0 | AK198: =IF($H198>0,AI198,0) -> 0 | AL198: =IF(AK198>0,1,0) -> 0 | AM198: =IF($H198>0,AJ198,0) -> 0 | AN198: =IF(AM198>0,1,0) -> 0 | AO198: =IF($I198=AO$6,$E198,0) -> 0 | AP198: =IF($K198=ROUND(AO$6*$F198,2),$G198,0) -> 0 | AQ198: =IF($H198>0,AO198,0) -> 0 | AR198: =IF(AQ198>0,1,0) -> 0 | AS198: =IF($H198>0,AP198,0) -> 0 | AT198: =IF(AS198>0,1,0) -> 0 | AU198: =IF($I198=AU$6,$E198,0) -> 1.603 | AV198: =IF($K198=ROUND(AU$6*$F198,2),$G198,0) -> 0 | AW198: =IF($H198>0,AU198,0) -> 1.603 | AX198: =IF(AW198>0,1,0) -> 1 | AY198: =IF($H198>0,AV198,0) -> 0 | AZ198: =IF(AY198>0,1,0) -> 0 | BA198: =IF($I198=BA$6,$E198,0) -> 0 | BB198: =IF($K198=ROUND(BA$6*$F198,2),$G198,0) -> 0 | BC198: =IF($H198>0,BA198,0) -> 0 | BD198: =IF(BC198>0,1,0) -> 0 | BE198: =IF($H198>0,BB198,0) -> 0 | BF198: =IF(BE198>0,1,0) -> 0 | BH198: 0.001603 | BI198: 2.5 | BL198: 0
A199: =IF(E199+G199>0,A198,"") ->  | B199: =IF(E199+G199>0,B198,"") ->  | C199: 6 | D199: 03-4-23.538(333) | E199: 0 | F199: 1.1 | G199: 0 | H199: 0 | I199: =SUMIF(Y$14:BA$14,C199,Y$6:BA$6) -> 1733.45 | J199: =IF(H199=0,ROUND(E199*I199,2),ROUND(H199*E199,2)) -> 0 | K199: =ROUND(F199*I199,2) -> 1906.8 | L199: =IF(H199=0,ROUND(ROUND(F199*I199,2)*G199,2),ROUND(G199*H199,2)) -> 0 | M199: =L199-ROUND(G199*I199,2) -> 0 | O199: =J199+L199+N199 -> 0 | Q199: 405.07 | R199: =ROUND(Q199*E199,2) -> 0 | S199: =ROUND(F199*Q199,2) -> 445.58 | T199: =ROUND(S199*G199,2) -> 0 | U199: =T199-ROUND(Q199*G199,2) -> 0 | W199: =R199+T199+V199 -> 0 | AI199: =IF($I199=AI$6,$E199,0) -> 0 | AJ199: 0 | AK199: =IF($H199>0,AI199,0) -> 0 | AL199: =IF(AK199>0,1,0) -> 0 | AM199: =IF($H199>0,AJ199,0) -> 0 | AN199: =IF(AM199>0,1,0) -> 0 | AO199: =IF($I199=AO$6,$E199,0) -> 0 | AP199: 0 | AQ199: =IF($H199>0,AO199,0) -> 0 | AR199: =IF(AQ199>0,1,0) -> 0 | AS199: =IF($H199>0,AP199,0) -> 0 | AT199: =IF(AS199>0,1,0) -> 0 | AU199: =IF($I199=AU$6,$E199,0) -> 0 | AV199: 0 | AW199: =IF($H199>0,AU199,0) -> 0 | AX199: =IF(AW199>0,1,0) -> 0 | AY199: =IF($H199>0,AV199,0) -> 0 | AZ199: =IF(AY199>0,1,0) -> 0 | BA199: =IF($I199=BA$6,$E199,0) -> 0 | BB199: 0 | BC199: =IF($H199>0,BA199,0) -> 0 | BD199: =IF(BC199>0,1,0) -> 0 | BE199: =IF($H199>0,BB199,0) -> 0 | BF199: =IF(BE199>0,1,0) -> 0 | BH199: 0 | BL199: 0
A200: =IF(E200+G200>0,A198,"") ->  | B200: =IF(E200+G200>0,B198,"") ->  | C200: =C199 -> 6 | D200: 03-4-23.538(333) | E200: 0 | F200: 1.5 | G200: 0 | H200: 0 | I200: =SUMIF(Y$14:BA$14,C200,Y$7:BA$7) -> 0 | J200: 0 | K200: 0 | L200: 0 | M200: 0 | O200: 0 | Q200: 405.07 | R200: 0 | S200: 607.61 | T200: 0 | U200: 0 | W200: 0 | AI200: =IF($I200=AI$7,$E200,0) -> 0 | AJ200: =IF($K200=ROUND(AI$7*$F200,2),$G200,0) -> 0 | AK200: 0 | AL200: 0 | AM200: 0 | AN200: 0 | AO200: =IF($I200=AO$7,$E200,0) -> 0 | AP200: =IF($K200=ROUND(AO$7*$F200,2),$G200,0) -> 0 | AQ200: 0 | AR200: 0 | AS200: 0 | AT200: 0 | AU200: =IF($I200=AU$7,$E200,0) -> 0 | AV200: =IF($K200=ROUND(AU$7*$F200,2),$G200,0) -> 0 | AW200: 0 | AX200: 0 | AY200: 0 | AZ200: 0 | BA200: =IF($I200=BA$7,$E200,0) -> 0 | BB200: =IF($K200=ROUND(BA$7*$F200,2),$G200,0) -> 0 | BC200: 0 | BD200: 0 | BE200: 0 | BF200: 0 | BH200: 0 | BL200: 0
A201: =IF(E201+G201>0,A198,"") ->  | B201: =IF(E201+G201>0,B198,"") ->  | C201: =C199 -> 6 | D201: 03-4-23.538(333) | E201: 0 | F201: 1.1 | G201: 0 | H201: 0 | I201: =SUMIF(Y$14:BA$14,C201,Y$7:BA$7) -> 0 | J201: 0 | K201: 0 | L201: 0 | M201: 0 | O201: 0 | Q201: 405.07 | R201: 0 | S201: 445.58 | T201: 0 | U201: 0 | W201: 0 | AI201: =IF($I201=AI$7,$E201,0) -> 0 | AJ201: =IF($K201=ROUND(AI$7*$F201,2),$G201,0) -> 0 | AK201: 0 | AL201: 0 | AM201: 0 | AN201: 0 | AO201: =IF($I201=AO$7,$E201,0) -> 0 | AP201: =IF($K201=ROUND(AO$7*$F201,2),$G201,0) -> 0 | AQ201: 0 | AR201: 0 | AS201: 0 | AT201: 0 | AU201: =IF($I201=AU$7,$E201,0) -> 0 | AV201: =IF($K201=ROUND(AU$7*$F201,2),$G201,0) -> 0 | AW201: 0 | AX201: 0 | AY201: 0 | AZ201: 0 | BA201: =IF($I201=BA$7,$E201,0) -> 0 | BB201: =IF($K201=ROUND(BA$7*$F201,2),$G201,0) -> 0 | BC201: 0 | BD201: 0 | BE201: 0 | BF201: 0 | BH201: 0 | BL201: 0
A202: КУМИ Вельского муниципального района АО | C202: =C203 -> 7 | D202: 03-4-23.1116(333) | E202: 0 | F202: 1.5 | G202: 0 | H202: 0 | I202: =SUMIF(Y$14:BA$14,C202,Y$6:BA$6) -> 2166.8 | J202: =IF(H202=0,ROUND(E202*I202,2),ROUND(H202*E202,2)) -> 0 | K202: =ROUND(F202*I202,2) -> 3250.2 | L202: =IF(H202=0,ROUND(ROUND(F202*I202,2)*G202,2),ROUND(G202*H202,2)) -> 0 | M202: =L202-ROUND(G202*I202,2) -> 0 | O202: =J202+L202+N202 -> 0 | Q202: 405.07 | R202: =ROUND(Q202*E202,2) -> 0 | S202: =ROUND(F202*Q202,2) -> 607.61 | T202: =ROUND(S202*G202,2) -> 0 | U202: =T202-ROUND(Q202*G202,2) -> 0 | W202: =R202+T202+V202 -> 0 | AI202: =IF($I202=AI$6,$E202,0) -> 0 | AJ202: =IF($K202=ROUND(AI$6*$F202,2),$G202,0) -> 0 | AK202: =IF($H202>0,AI202,0) -> 0 | AL202: =IF(AK202>0,1,0) -> 0 | AM202: =IF($H202>0,AJ202,0) -> 0 | AN202: =IF(AM202>0,1,0) -> 0 | AO202: =IF($I202=AO$6,$E202,0) -> 0 | AP202: =IF($K202=ROUND(AO$6*$F202,2),$G202,0) -> 0 | AQ202: =IF($H202>0,AO202,0) -> 0 | AR202: =IF(AQ202>0,1,0) -> 0 | AS202: =IF($H202>0,AP202,0) -> 0 | AT202: =IF(AS202>0,1,0) -> 0 | AU202: =IF($I202=AU$6,$E202,0) -> 0 | AV202: =IF($K202=ROUND(AU$6*$F202,2),$G202,0) -> 0 | AW202: =IF($H202>0,AU202,0) -> 0 | AX202: =IF(AW202>0,1,0) -> 0 | AY202: =IF($H202>0,AV202,0) -> 0 | AZ202: =IF(AY202>0,1,0) -> 0 | BA202: =IF($I202=BA$6,$E202,0) -> 0 | BB202: =IF($K202=ROUND(BA$6*$F202,2),$G202,0) -> 0 | BC202: =IF($H202>0,BA202,0) -> 0 | BD202: =IF(BC202>0,1,0) -> 0 | BE202: =IF($H202>0,BB202,0) -> 0 | BF202: =IF(BE202>0,1,0) -> 0 | BH202: 0 | BI202: 0 | BL202: 0
A203: =IF(E203+G203>0,A202,"") ->  | B203: =IF(E203+G203>0,B202,"") ->  | C203: 7 | D203: 03-4-23.1116(333) | E203: 0 | F203: 1.1 | G203: 0 | H203: 0 | I203: =SUMIF(Y$14:BA$14,C203,Y$6:BA$6) -> 2166.8 | J203: =IF(H203=0,ROUND(E203*I203,2),ROUND(H203*E203,2)) -> 0 | K203: =ROUND(F203*I203,2) -> 2383.48 | L203: =IF(H203=0,ROUND(ROUND(F203*I203,2)*G203,2),ROUND(G203*H203,2)) -> 0 | M203: =L203-ROUND(G203*I203,2) -> 0 | O203: =J203+L203+N203 -> 0 | Q203: 405.07 | R203: =ROUND(Q203*E203,2) -> 0 | S203: =ROUND(F203*Q203,2) -> 445.58 | T203: =ROUND(S203*G203,2) -> 0 | U203: =T203-ROUND(Q203*G203,2) -> 0 | W203: =R203+T203+V203 -> 0 | AI203: =IF($I203=AI$6,$E203,0) -> 0 | AJ203: 0 | AK203: =IF($H203>0,AI203,0) -> 0 | AL203: =IF(AK203>0,1,0) -> 0 | AM203: =IF($H203>0,AJ203,0) -> 0 | AN203: =IF(AM203>0,1,0) -> 0 | AO203: =IF($I203=AO$6,$E203,0) -> 0 | AP203: 0 | AQ203: =IF($H203>0,AO203,0) -> 0 | AR203: =IF(AQ203>0,1,0) -> 0 | AS203: =IF($H203>0,AP203,0) -> 0 | AT203: =IF(AS203>0,1,0) -> 0 | AU203: =IF($I203=AU$6,$E203,0) -> 0 | AV203: 0 | AW203: =IF($H203>0,AU203,0) -> 0 | AX203: =IF(AW203>0,1,0) -> 0 | AY203: =IF($H203>0,AV203,0) -> 0 | AZ203: =IF(AY203>0,1,0) -> 0 | BA203: =IF($I203=BA$6,$E203,0) -> 0 | BB203: 0 | BC203: =IF($H203>0,BA203,0) -> 0 | BD203: =IF(BC203>0,1,0) -> 0 | BE203: =IF($H203>0,BB203,0) -> 0 | BF203: =IF(BE203>0,1,0) -> 0 | BH203: 0 | BL203: 0
A204: =IF(E204+G204>0,A202,"") ->  | B204: =IF(E204+G204>0,B202,"") ->  | C204: =C203 -> 7 | D204: 03-4-23.1116(333) | E204: 0 | F204: 1.5 | G204: 0 | H204: 0 | I204: =SUMIF(Y$14:BA$14,C204,Y$7:BA$7) -> 0 | J204: 0 | K204: 0 | L204: 0 | M204: 0 | O204: 0 | Q204: 405.07 | R204: 0 | S204: 607.61 | T204: 0 | U204: 0 | W204: 0 | AI204: =IF($I204=AI$7,$E204,0) -> 0 | AJ204: =IF($K204=ROUND(AI$7*$F204,2),$G204,0) -> 0 | AK204: 0 | AL204: 0 | AM204: 0 | AN204: 0 | AO204: =IF($I204=AO$7,$E204,0) -> 0 | AP204: =IF($K204=ROUND(AO$7*$F204,2),$G204,0) -> 0 | AQ204: 0 | AR204: 0 | AS204: 0 | AT204: 0 | AU204: =IF($I204=AU$7,$E204,0) -> 0 | AV204: =IF($K204=ROUND(AU$7*$F204,2),$G204,0) -> 0 | AW204: 0 | AX204: 0 | AY204: 0 | AZ204: 0 | BA204: =IF($I204=BA$7,$E204,0) -> 0 | BB204: =IF($K204=ROUND(BA$7*$F204,2),$G204,0) -> 0 | BC204: 0 | BD204: 0 | BE204: 0 | BF204: 0 | BH204: 0 | BL204: 0
A205: =IF(E205+G205>0,A202,"") ->  | B205: =IF(E205+G205>0,B202,"") ->  | C205: =C203 -> 7 | D205: 03-4-23.1116(333) | E205: 0 | F205: 1.1 | G205: 0 | H205: 0 | I205: =SUMIF(Y$14:BA$14,C205,Y$7:BA$7) -> 0 | J205: 0 | K205: 0 | L205: 0 | M205: 0 | O205: 0 | Q205: 405.07 | R205: 0 | S205: 445.58 | T205: 0 | U205: 0 | W205: 0 | AI205: =IF($I205=AI$7,$E205,0) -> 0 | AJ205: =IF($K205=ROUND(AI$7*$F205,2),$G205,0) -> 0 | AK205: 0 | AL205: 0 | AM205: 0 | AN205: 0 | AO205: =IF($I205=AO$7,$E205,0) -> 0 | AP205: =IF($K205=ROUND(AO$7*$F205,2),$G205,0) -> 0 | AQ205: 0 | AR205: 0 | AS205: 0 | AT205: 0 | AU205: =IF($I205=AU$7,$E205,0) -> 0 | AV205: =IF($K205=ROUND(AU$7*$F205,2),$G205,0) -> 0 | AW205: 0 | AX205: 0 | AY205: 0 | AZ205: 0 | BA205: =IF($I205=BA$7,$E205,0) -> 0 | BB205: =IF($K205=ROUND(BA$7*$F205,2),$G205,0) -> 0 | BC205: 0 | BD205: 0 | BE205: 0 | BF205: 0 | BH205: 0 | BL205: 0
A206: Гр. Онучина Людмила Владимировна | C206: =C207 -> 6 | D206: 03-4-23.548(333) | E206: 0.719 | F206: 1.5 | G206: 0 | H206: 0.719 | I206: =SUMIF(Y$14:BA$14,C206,Y$6:BA$6) -> 1733.45 | J206: =IF(H206=0,ROUND(E206*I206,2),ROUND(H206*E206,2)) -> 0.52 | K206: =ROUND(F206*I206,2) -> 2600.18 | L206: =IF(H206=0,ROUND(ROUND(F206*I206,2)*G206,2),ROUND(G206*H206,2)) -> 0 | M206: =L206-ROUND(G206*I206,2) -> 0 | O206: =J206+L206+N206 -> 0.52 | Q206: 405.07 | R206: =ROUND(Q206*E206,2) -> 291.25 | S206: =ROUND(F206*Q206,2) -> 607.61 | T206: =ROUND(S206*G206,2) -> 0 | U206: =T206-ROUND(Q206*G206,2) -> 0 | W206: =R206+T206+V206 -> 291.25 | AI206: =IF($I206=AI$6,$E206,0) -> 0 | AJ206: =IF($K206=ROUND(AI$6*$F206,2),$G206,0) -> 0 | AK206: =IF($H206>0,AI206,0) -> 0 | AL206: =IF(AK206>0,1,0) -> 0 | AM206: =IF($H206>0,AJ206,0) -> 0 | AN206: =IF(AM206>0,1,0) -> 0 | AO206: =IF($I206=AO$6,$E206,0) -> 0 | AP206: =IF($K206=ROUND(AO$6*$F206,2),$G206,0) -> 0 | AQ206: =IF($H206>0,AO206,0) -> 0 | AR206: =IF(AQ206>0,1,0) -> 0 | AS206: =IF($H206>0,AP206,0) -> 0 | AT206: =IF(AS206>0,1,0) -> 0 | AU206: =IF($I206=AU$6,$E206,0) -> 0.719 | AV206: =IF($K206=ROUND(AU$6*$F206,2),$G206,0) -> 0 | AW206: =IF($H206>0,AU206,0) -> 0.719 | AX206: =IF(AW206>0,1,0) -> 1 | AY206: =IF($H206>0,AV206,0) -> 0 | AZ206: =IF(AY206>0,1,0) -> 0 | BA206: =IF($I206=BA$6,$E206,0) -> 0 | BB206: =IF($K206=ROUND(BA$6*$F206,2),$G206,0) -> 0 | BC206: =IF($H206>0,BA206,0) -> 0 | BD206: =IF(BC206>0,1,0) -> 0 | BE206: =IF($H206>0,BB206,0) -> 0 | BF206: =IF(BE206>0,1,0) -> 0 | BH206: 0.000719 | BI206: 1 | BL206: 0
A207: =IF(E207+G207>0,A206,"") ->  | B207: =IF(E207+G207>0,B206,"") ->  | C207: 6 | D207: 03-4-23.548(333) | E207: 0 | F207: 1.1 | G207: 0 | H207: 0 | I207: =SUMIF(Y$14:BA$14,C207,Y$6:BA$6) -> 1733.45 | J207: =IF(H207=0,ROUND(E207*I207,2),ROUND(H207*E207,2)) -> 0 | K207: =ROUND(F207*I207,2) -> 1906.8 | L207: =IF(H207=0,ROUND(ROUND(F207*I207,2)*G207,2),ROUND(G207*H207,2)) -> 0 | M207: =L207-ROUND(G207*I207,2) -> 0 | O207: =J207+L207+N207 -> 0 | Q207: 405.07 | R207: =ROUND(Q207*E207,2) -> 0 | S207: =ROUND(F207*Q207,2) -> 445.58 | T207: =ROUND(S207*G207,2) -> 0 | U207: =T207-ROUND(Q207*G207,2) -> 0 | W207: =R207+T207+V207 -> 0 | AI207: =IF($I207=AI$6,$E207,0) -> 0 | AJ207: 0 | AK207: =IF($H207>0,AI207,0) -> 0 | AL207: =IF(AK207>0,1,0) -> 0 | AM207: =IF($H207>0,AJ207,0) -> 0 | AN207: =IF(AM207>0,1,0) -> 0 | AO207: =IF($I207=AO$6,$E207,0) -> 0 | AP207: 0 | AQ207: =IF($H207>0,AO207,0) -> 0 | AR207: =IF(AQ207>0,1,0) -> 0 | AS207: =IF($H207>0,AP207,0) -> 0 | AT207: =IF(AS207>0,1,0) -> 0 | AU207: =IF($I207=AU$6,$E207,0) -> 0 | AV207: 0 | AW207: =IF($H207>0,AU207,0) -> 0 | AX207: =IF(AW207>0,1,0) -> 0 | AY207: =IF($H207>0,AV207,0) -> 0 | AZ207: =IF(AY207>0,1,0) -> 0 | BA207: =IF($I207=BA$6,$E207,0) -> 0 | BB207: 0 | BC207: =IF($H207>0,BA207,0) -> 0 | BD207: =IF(BC207>0,1,0) -> 0 | BE207: =IF($H207>0,BB207,0) -> 0 | BF207: =IF(BE207>0,1,0) -> 0 | BH207: 0 | BL207: 0
A208: =IF(E208+G208>0,A206,"") ->  | B208: =IF(E208+G208>0,B206,"") ->  | C208: =C207 -> 6 | D208: 03-4-23.548(333) | E208: 0 | F208: 1.5 | G208: 0 | H208: 0 | I208: =SUMIF(Y$14:BA$14,C208,Y$7:BA$7) -> 0 | J208: 0 | K208: 0 | L208: 0 | M208: 0 | O208: 0 | Q208: =IF(BI208>0,Q$6,Q$6) -> 405.07 | R208: 0 | S208: 607.61 | T208: 0 | U208: 0 | W208: 0 | AI208: =IF($I208=AI$7,$E208,0) -> 0 | AJ208: =IF($K208=ROUND(AI$7*$F208,2),$G208,0) -> 0 | AK208: 0 | AL208: 0 | AM208: 0 | AN208: 0 | AO208: =IF($I208=AO$7,$E208,0) -> 0 | AP208: =IF($K208=ROUND(AO$7*$F208,2),$G208,0) -> 0 | AQ208: 0 | AR208: 0 | AS208: 0 | AT208: 0 | AU208: =IF($I208=AU$7,$E208,0) -> 0 | AV208: =IF($K208=ROUND(AU$7*$F208,2),$G208,0) -> 0 | AW208: 0 | AX208: 0 | AY208: 0 | AZ208: 0 | BA208: =IF($I208=BA$7,$E208,0) -> 0 | BB208: =IF($K208=ROUND(BA$7*$F208,2),$G208,0) -> 0 | BC208: 0 | BD208: 0 | BE208: 0 | BF208: 0 | BH208: 0 | BL208: 0
... 818 more rows
